Workbook

Sheet DATA (hidden)
A1: Item No. | B1: New Listing | C1: Brand | D1: Subsection | E1: Description | F1: Unit UPC | G1: Size | H1: Picked | I1: Pack | J1: O | K1: K | L1: V | M1: GF | N1: N | O1: H | P1: CM | Q1: CO | R1: CP | S1: Guaranteed Days | T1: Storage | U1: Price | V1: Monthly Promo | W1: Promo Discount | X1: SRP | Y1: SKU Territory Ranking - East
A2: FN2639 | C2: 49TH PARALLEL | D2: Nespresso Pods | E2: Déjà Vu Ground | F2: 883242002632 | G2: 10 X 53G | H2: CA | I2: 6 | P2: Y | Q2: Y | S2: 81 | T2: Dry | U2: 66.8 | X2: 14.99 | Y2: 2
A3: FN2622 | C3: 49TH PARALLEL | D3: Nespresso Pods | E3: Med Dark Espresso | F3: 883242002625 | G3: 10 X 53G | H3: CA | I3: 6 | P3: Y | Q3: Y | S3: 81 | T3: Dry | U3: 66.8 | X3: 14.99 | Y3: 1
A4: FN3370 | C4: 49TH PARALLEL | D4: Shipper | E4: Coffee Shipper (8 Old Sch, 8 Org Esp, 8 Fr Rst, 8 Nost) | F4: 883242003370 | G4: 340G | H4: CA | I4: 32 | P4: Y | Q4: Y | S4: 81 | T4: Dry | U4: 477.54 | X4: 19.99 | Y4: 11
A5: FN2028 | C5: 49TH PARALLEL | D5: Whole Bean Coffee | E5: Blue Sky Espresso | F5: 883242002021 | G5: 340G | H5: CA | I5: 6 | P5: Y | Q5: Y | S5: 81 | T5: Dry | U5: 89.54 | X5: 19.99
A6: FN2004 | C6: 49TH PARALLEL | D6: Whole Bean Coffee | E6: Epic Espresso | F6: 883242002007 | G6: 340G | H6: CA | I6: 6 | P6: Y | Q6: Y | S6: 81 | T6: Dry | U6: 89.54 | X6: 18.99 | Y6: 3
A7: FN0055 | C7: 49TH PARALLEL | D7: Whole Bean Coffee | E7: Longitude 123 Filter | F7: 883242000058 | G7: 340G | H7: CA | I7: 6 | P7: Y | Q7: Y | S7: 81 | T7: Dry | U7: 89.54 | X7: 18.99 | Y7: 7
A8: FN2868 | C8: 49TH PARALLEL | D8: Whole Bean Coffee | E8: Nostalgia Blend | F8: 883242002861 | G8: 340G | H8: CA | I8: 6 | J8: Y | P8: Y | Q8: Y | S8: 81 | T8: Dry | U8: 89.54 | X8: 17.99 | Y8: 6
A9: FN2011 | C9: 49TH PARALLEL | D9: Whole Bean Coffee | E9: Old School Espresso | F9: 883242002014 | G9: 340G | H9: CA | I9: 6 | P9: Y | Q9: Y | S9: 81 | T9: Dry | U9: 89.54 | X9: 18.99 | Y9: 1
A10: FN2042 | C10: 49TH PARALLEL | D10: Whole Bean Coffee | E10: Organic Breakfast Roast | F10: 883242002045 | G10: 340G | H10: CA | I10: 6 | J10: Y | P10: Y | Q10: Y | S10: 81 | T10: Dry | U10: 89.54 | X10: 18.99 | Y10: 2
A11: FN2035 | C11: 49TH PARALLEL | D11: Whole Bean Coffee | E11: Organic Espresso | F11: 883242002038 | G11: 340G | H11: CA | I11: 6 | J11: Y | P11: Y | Q11: Y | S11: 81 | T11: Dry | U11: 89.54 | X11: 18.99 | Y11: 4
A12: FN0062 | C12: 49TH PARALLEL | D12: Whole Bean Coffee | E12: Organic French Roast | F12: 883242000065 | G12: 340G | H12: CA | I12: 6 | J12: Y | P12: Y | Q12: Y | S12: 81 | T12: Dry | U12: 89.54 | X12: 18.99 | Y12: 5
A13: FN0048 | C13: 49TH PARALLEL | D13: Whole Bean Coffee | E13: Swiss Water Process Decaf | F13: 883242000041 | G13: 340G | H13: CA | I13: 6 | J13: Y | P13: Y | Q13: Y | S13: 81 | T13: Dry | U13: 89.54 | X13: 18.99 | Y13: 8
A14: AL6218 | C14: A2 | D14: A2 MILK | E14: 1% Partly Skimmed | F14: 628011256218 | G14: 2L | H14: EA | I14: 1 | P14: Y | Q14: Y | R14: Y | S14: 15 | T14: Chilled | U14: 7.44 | X14: 6.99 - 8.49 | Y14: 3
A15: AL6225 | C15: A2 | D15: A2 MILK | E15: 2% Partly Skimmed | F15: 628011256225 | G15: 2L | H15: EA | I15: 1 | P15: Y | Q15: Y | R15: Y | S15: 15 | T15: Chilled | U15: 7.44 | X15: 6.99 - 8.49 | Y15: 2
A16: AL6232 | C16: A2 | D16: A2 MILK | E16: 3.25% Homogenized | F16: 628011256232 | G16: 2L | H16: EA | I16: 1 | P16: Y | Q16: Y | R16: Y | S16: 15 | T16: Chilled | U16: 7.44 | X16: 6.99 - 8.49 | Y16: 1
A17: AL6345 | C17: A2 | D17: A2 MILK | E17: Half & Half 10% Cream | F17: 628011256348 | G17: 473ML | H17: EA | I17: 1 | P17: Y | Q17: Y | R17: Y | S17: 12 | T17: Chilled | U17: 4.13 | X17: 5.29
A18: AF1252 | C18: ALDERWOOD FARMS | D18: Bone Broth | E18: Organic Beef Bone Broth | F18: 871261001255 | G18: 500ML | H18: CA | I18: 12 | J18: Y | P18: Y | Q18: Y | R18: Y | S18: 109 | T18: Frozen | U18: 127.5 | V18: MARCH DEAL! | W18: SAVE 10% | X18: 12.99 - 14.99
A19: AF1269 | C19: ALDERWOOD FARMS | D19: Bone Broth | E19: Organic Free Range Chicken Bone Broth | F19: 871261001262 | G19: 500ML | H19: CA | I19: 12 | J19: Y | P19: Y | Q19: Y | R19: Y | S19: 109 | T19: Frozen | U19: 127.5 | V19: MARCH DEAL! | W19: SAVE 10% | X19: 12.99 - 14.99
A20: AF1283 | C20: ALDERWOOD FARMS | D20: Breakfast Sausages | E20: Breakfast Sausages Maple Pork | F20: 871261001286 | G20: 375G | H20: CA | I20: 8 | P20: Y | Q20: Y | R20: Y | S20: 110 | T20: Frozen | U20: 64.21 | X20: 12.99
A21: AF1276 | C21: ALDERWOOD FARMS | D21: Breakfast Sausages | E21: Breakfast Sausages Original Pork | F21: 871261001279 | G21: 375G | H21: CA | I21: 8 | P21: Y | Q21: Y | R21: Y | S21: 110 | T21: Frozen | U21: 64.21 | X21: 12.99
A22: AF1382 | C22: ALDERWOOD FARMS | D22: French Fries | E22: Sweet Potato Classic Cut French Fries | F22: 871261001385 | G22: 400G | H22: CA | I22: 12 | P22: Y | Q22: Y | S22: 219 | T22: Frozen | U22: 70.4 | X22: 7.99 | Y22: 16
A23: AF1351 | C23: ALDERWOOD FARMS | D23: French Fries | E23: Crinkle Cut French Fries | F23: 871261001354 | G23: 450G | H23: CA | I23: 12 | P23: Y | Q23: Y | S23: 219 | T23: Frozen | U23: 59.71 | X23: 6.99 | Y23: 19
A24: AF1368 | C24: ALDERWOOD FARMS | D24: French Fries | E24: Straight Cut French Fries | F24: 871261001361 | G24: 450G | H24: CA | I24: 12 | P24: Y | Q24: Y | S24: 219 | T24: Frozen | U24: 57.8 | X24: 6.99 | Y24: 19
A25: AF1375 | C25: ALDERWOOD FARMS | D25: French Fries | E25: Waffle Cut French Fries | F25: 871261001378 | G25: 450G | H25: CA | I25: 12 | P25: Y | Q25: Y | S25: 219 | T25: Frozen | U25: 58.05 | X25: 6.99 | Y25: 17
A26: AF1221 | C26: ALDERWOOD FARMS | D26: Hot Dogs | E26: Free Range Chicken | F26: 871261001224 | G26: 375G | H26: CA | I26: 8 | O26: Y | P26: Y | Q26: Y | R26: Y | S26: 25 | T26: Chilled | U26: 77.24 | X26: 11.99 | Y26: 4
A27: AF1214 | C27: ALDERWOOD FARMS | D27: Hot Dogs | E27: Grass Fed Beef | F27: 871261001217 | G27: 375G | H27: CA | I27: 8 | O27: Y | P27: Y | Q27: Y | R27: Y | S27: 25 | T27: Chilled | U27: 79.66 | X27: 11.99 | Y27: 3
A28: AF2129 | C28: ALDERWOOD FARMS | D28: Maple Syrup | E28: 100% Pure Organic Ontario Maple Syrup | F28: 871261002122 | G28: 500ML | H28: CA | I28: 12 | J28: Y | P28: Y | Q28: Y | R28: Y | S28: 219 | T28: Dry | U28: 161.83 | X28: 19.99 | Y28: 18
A29: AF1016 | C29: ALDERWOOD FARMS | D29: Pasture Raised Eggs | E29: Large Pasture Raised Brown Eggs | F29: 871261001019 | G29: 1DZ | H29: CA | I29: 15 | P29: Y | Q29: Y | R29: Y | S29: 21 | T29: Chilled | U29: 103.52 | X29: 7.49 | Y29: 2
A30: AF1023 | C30: ALDERWOOD FARMS | D30: Pasture Raised Eggs | E30: X-Large Pasture Raised Brown Eggs | F30: 871261001026 | G30: 1DZ | H30: CA | I30: 15 | P30: Y | Q30: Y | R30: Y | S30: 21 | T30: Chilled | U30: 106.3 | X30: 7.99 | Y30: 1
A31: AF1030 | C31: ALDERWOOD FARMS | D31: Quail Eggs | E31: Free Run Quail Eggs | F31: 871261001033 | G31: 15 | H31: CA | I31: 12 | P31: Y | Q31: Y | R31: Y | S31: 16 | T31: Chilled | U31: 56.8 | X31: 4.99
A32: AF2105 | C32: ALDERWOOD FARMS | D32: Raw Honey | E32: Full Season Wildflower Liquid Honey | F32: 871261002108 | G32: 1KG | H32: CA | I32: 12 | P32: Y | Q32: Y | R32: Y | S32: 438 | T32: Dry | U32: 168 | X32: 20.99 | Y32: 21
A33: AF2082 | C33: ALDERWOOD FARMS | D33: Raw Honey | E33: Summer Wildflower Honey-Creamed Raw | F33: 871261002085 | G33: 1KG | H33: CA | I33: 12 | P33: Y | Q33: Y | R33: Y | S33: 438 | T33: Dry | U33: 168 | X33: 20.99 | Y33: 22
A34: AF2099 | C34: ALDERWOOD FARMS | D34: Raw Honey | E34: Season Wildflower Raw Honey | F34: 871261002092 | G34: 500g | H34: CA | I34: 12 | P34: Y | Q34: Y | R34: Y | S34: 438 | T34: Dry | U34: 114 | X34: 20.99 | Y34: 19
A35: AF2112 | C35: ALDERWOOD FARMS | D35: Raw Honey | E35: Summer Wildflower Liquid Honey | F35: 871261002115 | G35: 500g | H35: CA | I35: 12 | P35: Y | Q35: Y | R35: Y | S35: 438 | T35: Dry | U35: 114 | X35: 20.99 | Y35: 20
A36: SN5045 | C36: ALT-PRO ADVANTAGE | D36: Dog food | E36: Nose-to-Tail Wellness: Daily Nutrient-Rich Recipe | F36: 628942605048 | G36: 1.58KG | H36: CA | I36: 4 | P36: Y | Q36: Y | S36: 164 | T36: Dry | U36: 81.17 | X36: 28.99
A37: SN5052 | C37: ALT-PRO ADVANTAGE | D37: Oven-baked dog treats | E37: Calming Care | F37: 628942605055 | G37: 130G | H37: CA | I37: 6 | P37: Y | Q37: Y | S37: 164 | T37: Dry | U37: 47.15 | X37: 9.99
A38: SN0065 | C38: ALT-PRO ADVANTAGE | D38: Oven-baked dog treats | E38: Omega Boost | F38: 628942070068 | G38: 130G | H38: CA | I38: 6 | P38: Y | Q38: Y | S38: 164 | T38: Dry | U38: 47.15 | X38: 9.99
A39: SN0089 | C39: ALT-PRO ADVANTAGE | D39: Oven-baked dog treats | E39: Wellness Blend | F39: 628942070082 | G39: 130G | H39: CA | I39: 6 | P39: Y | Q39: Y | S39: 164 | T39: Dry | U39: 47.15 | X39: 9.99
A40: SN0072 | C40: ALT-PRO ADVANTAGE | D40: Semimoist dog treats | E40: Healthy Skin & Coat | F40: 628942070075 | G40: 130G | H40: CA | I40: 6 | P40: Y | Q40: Y | S40: 164 | T40: Dry | U40: 47.15 | X40: 9.99
A41: SN0058 | C41: ALT-PRO ADVANTAGE | D41: Semimoist dog treats | E41: Prebiotic Boost | F41: 628942070051 | G41: 130G | H41: CA | I41: 6 | P41: Y | Q41: Y | S41: 164 | T41: Dry | U41: 47.15 | X41: 9.99
A42: ART0112 | C42: ARTISANA | D42: Artisana Nut Butters | E42: Cashew Butter | F42: 870001000220 | G42: 227G | H42: CA | I42: 6 | J42: Y | K42: Y | L42: Y | N42: Y | S42: 137 | T42: Dry | U42: 64.25 | X42: 15.99 | Y42: 2
A43: ART0117 | C43: ARTISANA | D43: Artisana Nut Butters | E43: Cashew Cacao Butter | F43: 870001000930 | G43: 227G | H43: CA | I43: 6 | J43: Y | K43: Y | L43: Y | N43: Y | S43: 137 | T43: Dry | U43: 58.25 | X43: 14.49 | Y43: 9
A44: ART0114 | C44: ARTISANA | D44: Artisana Nut Butters | E44: Pecan Butter | F44: 870001000565 | G44: 227G | H44: CA | I44: 6 | J44: Y | K44: Y | L44: Y | N44: Y | S44: 137 | T44: Dry | U44: 81 | V44: MARCH DEAL! | W44: SAVE 15% | X44: 19.99 | Y44: 6
A45: ART0116 | C45: ARTISANA | D45: Artisana Nut Butters | E45: Walnut Butter | F45: 870001000664 | G45: 227G | H45: CA | I45: 6 | J45: Y | K45: Y | L45: Y | N45: Y | S45: 137 | T45: Dry | U45: 90 | V45: MARCH DEAL! | W45: SAVE 15% | X45: 21.99 | Y45: 3
A46: ART0111 | C46: ARTISANA | D46: Artisana Nut Butters | E46: Almond Butter | F46: 870001002866 | G46: 397G | H46: CA | I46: 6 | J46: Y | K46: Y | L46: Y | N46: Y | S46: 164 | T46: Dry | U46: 114.73 | X46: 28.99 | Y46: 7
A47: ART0113 | C47: ARTISANA | D47: Artisana Nut Butters | E47: Coconut Butter | F47: 870001002880 | G47: 397G | H47: CA | I47: 6 | J47: Y | K47: Y | L47: Y | N47: Y | S47: 137 | T47: Dry | U47: 59.8 | X47: 14.99 | Y47: 1
A48: ART0115 | C48: ARTISANA | D48: Artisana Nut Butters | E48: Raw Tahini | F48: 870001002897 | G48: 397G | H48: CA | I48: 6 | J48: Y | K48: Y | L48: Y | N48: Y | S48: 110 | T48: Dry | U48: 64.49 | X48: 14.79 | Y48: 5
A49: ART0208 | C49: ARTISANA | D49: Artisana Squeeze Pack | E49: Coconut Butter Squeeze Packs | F49: 870001000091 | G49: 31G | H49: EA | I49: 10 | J49: Y | K49: Y | L49: Y | N49: Y | S49: 164 | T49: Dry | U49: 20 | X49: 2.99 | Y49: 12
A50: BE8295 | C50: BARBET | D50: Sparkling water | E50: Deep Dive | F50: 627987748291 | G50: 355ML | H50: CA | I50: 12 | P50: Y | S50: 109 | T50: Dry | U50: 30.78 | X50: 3.49
A51: BE8199 | C51: BARBET | D51: Sparkling water | E51: Light Wave | F51: 627987748192 | G51: 355ML | H51: CA | I51: 24 | P51: Y | S51: 109 | T51: Dry | U51: 57.53 | X51: 3.49
A52: BE8196 | C52: BARBET | D52: Sparkling water | E52: Light Wave | F52: 627987748192 | G52: 355ML | H52: CA | I52: 12 | P52: Y | Q52: Y | R52: Y | S52: 109 | T52: Dry | U52: 30.78 | X52: 3.49
A53: BE8236 | C53: BARBET | D53: Sparkling water | E53: Love Bite | F53: 627987748239 | G53: 355ML | H53: CA | I53: 24 | P53: Y | S53: 109 | T53: Dry | U53: 57.53 | X53: 3.49
A54: BE8233 | C54: BARBET | D54: Sparkling water | E54: Love Bite | F54: 627987748239 | G54: 355ML | H54: CA | I54: 12 | P54: Y | Q54: Y | R54: Y | S54: 109 | T54: Dry | U54: 30.78 | X54: 3.49
A55: BE8212 | C55: BARBET | D55: Sparkling water | E55: Wild Card | F55: 627987748215 | G55: 355ML | H55: CA | I55: 24 | P55: Y | S55: 109 | T55: Dry | U55: 57.53 | X55: 3.49
A56: BE8219 | C56: BARBET | D56: Sparkling water | E56: Wild Card | F56: 627987748215 | G56: 355ML | H56: CA | I56: 12 | P56: Y | Q56: Y | R56: Y | S56: 109 | T56: Dry | U56: 30.78 | X56: 3.49
A57: BY1780 | C57: BENNY | D57: Nourishing energy | E57: Elderberry yuzu | F57: 628942441783 | G57: 355ML | H57: CA | I57: 12 | P57: Y | Q57: Y | R57: Y | S57: 95 | T57: Dry | U57: 39.17 | X57: 4.99
A58: BY1766 | C58: BENNY | D58: Nourishing energy | E58: Peach lychee | F58: 628942441769 | G58: 355ML | H58: CA | I58: 12 | P58: Y | Q58: Y | R58: Y | S58: 95 | T58: Dry | U58: 39.17 | X58: 4.99
A59: BY1759 | C59: BENNY | D59: Nourishing energy | E59: Raspberry hibiscus | F59: 628942441752 | G59: 355ML | H59: CA | I59: 12 | P59: Y | Q59: Y | R59: Y | S59: 95 | T59: Dry | U59: 39.17 | X59: 4.99
A60: BY1803 | C60: BENNY | D60: Nourishing energy | E60: Elderberry yuzu | F60: 628942441806 | G60: 4x355ML | H60: CA | I60: 6 | J60: Y | L60: Y | M60: Y | N60: Y | P60: Y | Q60: Y | R60: Y | S60: 109 | T60: Dry | U60: 83.34 | X60: 18.99
A61: BY1773 | C61: BENNY | D61: Nourishing energy | E61: Peach lychee | F61: 628942441776 | G61: 4x355ML | H61: CA | I61: 6 | J61: Y | L61: Y | M61: Y | N61: Y | P61: Y | Q61: Y | R61: Y | S61: 109 | T61: Dry | U61: 83.34 | X61: 18.99
A62: BY1810 | C62: BENNY | D62: Nourishing energy | E62: Raspberry hibiscus | F62: 628942441813 | G62: 4x355ML | H62: CA | I62: 6 | J62: Y | L62: Y | M62: Y | N62: Y | P62: Y | Q62: Y | R62: Y | S62: 109 | T62: Dry | U62: 83.34 | X62: 18.99
A63: BT4212 | C63: BETTER BRIE | D63: Vegan Cheese | E63: Chili Garlic Plant-Based Aged Brie | F63: 628942914218 | G63: 200G | H63: CA | I63: 6 | L63: Y | P63: Y | Q63: Y | R63: Y | S63: 16 | T63: Chilled | U63: 58.46 | X63: 14.99
A64: BT4345 | C64: BETTER BRIE | D64: Vegan Cheese | E64: Everything Plant-Based Aged Brie | F64: 628942914348 | G64: 200G | H64: CA | I64: 6 | L64: Y | P64: Y | Q64: Y | R64: Y | S64: 16 | T64: Chilled | U64: 58.46 | X64: 14.99
A65: BT4222 | C65: BETTER BRIE | D65: Vegan Cheese | E65: Ripened Brie | F65: 628942914225 | G65: 200G | H65: CA | I65: 6 | J65: Y | N65: Y | P65: Y | Q65: Y | R65: Y | S65: 24 | T65: Chilled | U65: 58.46 | X65: 14.99
A66: BT4253 | C66: BETTER BRIE | D66: Vegan Cheese | E66: Truffle Plant-Based Aged Brie | F66: 628942914256 | G66: 200G | H66: CA | I66: 6 | L66: Y | P66: Y | Q66: Y | R66: Y | S66: 15 | T66: Chilled | U66: 64.8 | X66: 16.99
A67: BS5372 | C67: BIERE SANS ALCOOL | D67: Non-Alcoholic Beer | E67: Blonde Pilsner | F67: 627987335378 | G67: 473ML | H67: CA | I67: 12 | P67: Y | Q67: Y | S67: 200 | T67: Dry | U67: 30.71 | X67: 3.99 | Y67: 4
A68: BS5365 | C68: BIERE SANS ALCOOL | D68: Non-Alcoholic Craft Beer | E68: Raspberry Sour | F68: 627987335361 | G68: 473ML | H68: CA | I68: 12 | P68: Y | Q68: Y | S68: 200 | T68: Dry | U68: 30.71 | X68: 3.99 | Y68: 1
A69: BS5341 | C69: BIERE SANS ALCOOL | D69: Non-Alcoholic Craft Beer | E69: Smooth IPA | F69: 627987335347 | G69: 473ML | H69: CA | I69: 12 | P69: Y | Q69: Y | S69: 200 | T69: Dry | U69: 30.71 | X69: 3.99 | Y69: 3
A70: BS5358 | C70: BIERE SANS ALCOOL | D70: Non-Alcoholic Craft Beer | E70: Tropical Sour | F70: 627987335354 | G70: 473ML | H70: CA | I70: 12 | P70: Y | Q70: Y | S70: 200 | T70: Dry | U70: 30.71 | X70: 3.99 | Y70: 2
A71: BS5396 | C71: BIERE SANS ALCOOL | D71: Non-Alcoholic Craft Beer | E71: White Orange | F71: 627987335392 | G71: 473ML | H71: CA | I71: 12 | P71: Y | Q71: Y | S71: 219 | T71: Dry | U71: 30.71 | X71: 3.99 | Y71: 5
A72: UF0719 | C72: BOTTICELLI | D72: Premium Pasta Sauce | E72: Marinara Sauce | F72: 810095660528 | G72: 710ML | H72: CA | I72: 6 | M72: Y | S72: 328 | T72: Dry | U72: 42.83 | X72: 11.99 | Y72: 2
A73: UF0696 | C73: BOTTICELLI | D73: Premium Pasta Sauce | E73: Roasted Garlic Sauce | F73: 810095660542 | G73: 710ML | H73: CA | I73: 6 | M73: Y | S73: 328 | T73: Dry | U73: 42.83 | X73: 11.99 | Y73: 3
A74: UF0689 | C74: BOTTICELLI | D74: Premium Pasta Sauce | E74: Tomato & Basil Sauce | F74: 810095660535 | G74: 710ML | H74: CA | I74: 6 | M74: Y | S74: 328 | T74: Dry | U74: 42.83 | X74: 11.99 | Y74: 1
A75: UF0702 | C75: BOTTICELLI | D75: Premium Pasta Sauce | E75: Traditional Sauce | F75: 810095660559 | G75: 710ML | H75: CA | I75: 6 | M75: Y | S75: 328 | T75: Dry | U75: 42.83 | X75: 11.99 | Y75: 4
A76: UF0870 | C76: BOTTICELLI | D76: Premium White Pasta Sauce | E76: Alfredo Sauce | F76: 810095660566 | G76: 370ML | H76: CA | I76: 6 | M76: Y | S76: 150 | T76: Dry | U76: 42.83 | X76: 11.99 | Y76: 1
A77: BO0059 | C77: BRIGHTSIDE ORGANICS | D77: Daily Fibre Boost | E77: Natura Fibre | F77: 839266000055 | G77: 750G | H77: CA | I77: 6 | J77: Y | M77: Y | S77: 46 | T77: Dry | U77: 151.33 | X77: 36.99
A78: BUF0110 | C78: BUFF | D78: Buff Bison Snack | E78: Chipotle Bison Snack Stick 5 Pack | F78: 627987353624 | G78: 125G | H78: EA | I78: 6 | M78: Y | P78: Y | Q78: Y | R78: Y | S78: 109 | T78: Dry | U78: 59.31 | X78: 15.21
A79: BUF0109 | C79: BUFF | D79: Buff Bison Snack | E79: Original Bison Snack Stick 5 Pack | F79: 627987353587 | G79: 125G | H79: EA | I79: 6 | M79: Y | P79: Y | Q79: Y | R79: Y | S79: 109 | T79: Dry | U79: 59.31 | X79: 15.21
A80: BUF0108 | C80: BUFF | D80: Buff Bison Snack | E80: Chipotle Bison Snack Sticks Twin Pack | F80: 627987353617 | G80: 50G | H80: EA | I80: 12 | M80: Y | P80: Y | Q80: Y | R80: Y | S80: 109 | T80: Dry | U80: 52.5 | X80: 6.73
A81: BUF0107 | C81: BUFF | D81: Buff Bison Snack | E81: Original Bison Snack Sticks Twin Pack | F81: 627987353556 | G81: 50G | H81: EA | I81: 12 | M81: Y | P81: Y | Q81: Y | R81: Y | S81: 109 | T81: Dry | U81: 52.5 | X81: 6.73
A82: BA1878 | C82: BALZAC'S | D82: 100% Compostable Coffee Pods | E82: A Dark Affair | F82: 628614001871 | G82: 189G | H82: CA | I82: 6 | K82: Y | Q82: Y | S82: 109 | T82: Dry | U82: 88.15 | X82: 15.99 | Y82: 10
A83: BA1816 | C83: BALZAC'S | D83: 100% Compostable Coffee Pods | E83: Balzac's Blend | F83: 628614001819 | G83: 189G | H83: CA | I83: 6 | K83: Y | Q83: Y | S83: 109 | T83: Dry | U83: 88.15 | X83: 15.99 | Y83: 6
A84: BA8418 | C84: BALZAC'S | D84: 100% Compostable Coffee Pods | E84: Bards Blend | F84: 628614018411 | G84: 189G | H84: CA | I84: 6 | J84: Y | K84: Y | Q84: Y | S84: 109 | T84: Dry | U84: 92.58 | X84: 16.99 | Y84: 15
A85: BA1823 | C85: BALZAC'S | D85: 100% Compostable Coffee Pods | E85: Farmer's Blend | F85: 628614001826 | G85: 189G | H85: CA | I85: 6 | J85: Y | K85: Y | Q85: Y | S85: 109 | T85: Dry | U85: 92.58 | X85: 16.99 | Y85: 11
A86: BA1847 | C86: BALZAC'S | D86: 100% Compostable Coffee Pods | E86: Swiss Water Decaf | F86: 628614001840 | G86: 189G | H86: CA | I86: 6 | K86: Y | Q86: Y | S86: 109 | T86: Dry | U86: 92.58 | X86: 16.99 | Y86: 14
A87: BA0307 | C87: BALZAC'S | D87: Ground Coffee (Tin) | E87: Espresso Fair-Trade Blend | F87: 628614000300 | G87: 300G | H87: CA | I87: 12 | J87: Y | K87: Y | Q87: Y | S87: 109 | T87: Dry | U87: 167.44 | X87: 15.99 | Y87: 19
A88: BA0703 | C88: BALZAC'S | D88: Ground Coffee (Tin) | E88: A Dark Affair | F88: 628614000706 | G88: 330G | H88: CA | I88: 12 | K88: Y | Q88: Y | S88: 109 | T88: Dry | U88: 158.58 | X88: 14.99 | Y88: 16
A89: BA0604 | C89: BALZAC'S | D89: Ground Coffee (Tin) | E89: Atwood Blend | F89: 628614000607 | G89: 330G | H89: CA | I89: 12 | J89: Y | K89: Y | Q89: Y | S89: 109 | T89: Dry | U89: 149.12 | X89: 16.99 | Y89: 22
A90: BA1007 | C90: BALZAC'S | D90: Ground Coffee (Tin) | E90: Balzac's Blend | F90: 628614001000 | G90: 330G | H90: CA | I90: 12 | K90: Y | Q90: Y | S90: 109 | T90: Dry | U90: 158.58 | X90: 14.99 | Y90: 7
A91: BA0208 | C91: BALZAC'S | D91: Ground Coffee (Tin) | E91: Farmer's Fair-Trade Blend | F91: 628614000201 | G91: 330G | H91: CA | I91: 12 | J91: Y | K91: Y | Q91: Y | S91: 109 | T91: Dry | U91: 167.44 | X91: 15.99 | Y91: 12
A92: BA0008 | C92: BALZAC'S | D92: Ground Coffee (Tin) | E92: Swiss Water Decaf Blend | F92: 628614400001 | G92: 330G | H92: CA | I92: 12 | K92: Y | P92: Y | Q92: Y | S92: 109 | T92: Dry | U92: 167.44 | X92: 16.99 | Y92: 17
A93: BA0164 | C93: BALZAC'S | D93: Whole Bean Coffee | E93: A Dark Affair | F93: 628614000164 | G93: 340G | H93: CA | I93: 6 | K93: Y | Q93: Y | S93: 109 | T93: Dry | U93: 79.29 | X93: 15.99 | Y93: 3
A94: BA010 | C94: BALZAC'S | D94: Whole Bean Coffee | E94: Balzac's Blend | F94: 628614000102 | G94: 340G | H94: CA | I94: 6 | K94: Y | P94: Y | Q94: Y | S94: 109 | T94: Dry | U94: 79.29 | X94: 15.99 | Y94: 2
A95: BA0413 | C95: BALZAC'S | D95: Whole Bean Coffee | E95: Bards Fair-Trade Blend | F95: 628614000416 | G95: 340G | H95: CA | I95: 6 | J95: Y | K95: Y | Q95: Y | S95: 109 | T95: Dry | U95: 83.72 | X95: 16.99 | Y95: 8
A96: BA0406 | C96: BALZAC'S | D96: Whole Bean Coffee | E96: Colombian Las Rosas | F96: 628614000409 | G96: 340G | H96: CA | I96: 6 | K96: Y | Q96: Y | S96: 109 | T96: Dry | U96: 83.72 | X96: 16.99 | Y96: 13
A97: BA012 | C97: BALZAC'S | D97: Whole Bean Coffee | E97: Espresso Fair-Trade Blend | F97: 628614000126 | G97: 340G | H97: CA | I97: 6 | J97: Y | K97: Y | P97: Y | Q97: Y | S97: 109 | T97: Dry | U97: 83.72 | X97: 16.99 | Y97: 1
A98: BA011 | C98: BALZAC'S | D98: Whole Bean Coffee | E98: Farmer's Fair-Trade Blend | F98: 628614000119 | G98: 340G | H98: CA | I98: 6 | J98: Y | K98: Y | P98: Y | Q98: Y | S98: 109 | T98: Dry | U98: 83.72 | X98: 16.99 | Y98: 4
A99: BA013 | C99: BALZAC'S | D99: Whole Bean Coffee | E99: Swiss Water Decaf Blend | F99: 628614000133 | G99: 340G | H99: CA | I99: 6 | K99: Y | Q99: Y | S99: 109 | T99: Dry | U99: 83.72 | X99: 16.99 | Y99: 9
A100: BB6155 | C100: BEST BAA | D100: Feta | E100: Baby Feta | F100: 628774336158 | G100: 60G | H100: EA | I100: 1 | M100: Y | N100: Y | P100: Y | S100: 36 | T100: Chilled | U100: 3.91 | X100: 4.75 | Y100: 1
A101: BB300140 | C101: BEST BAA | D101: Ricotta | E101: Sheep Milk Ricotta Cheese | F101: 736211300140 | G101: 400G | H101: EA | I101: 1 | M101: Y | N101: Y | P101: Y | Q101: Y | R101: Y | S101: 15 | T101: Chilled | U101: 8.28 | X101: 8.59 | Y101: 9
A102: BB300744 | C102: BEST BAA | D102: Sheep Cheese | E102: Bonfeta Pasteurized Sheep Cheese | F102: 627843616795 | G102: 175G | H102: EA | I102: 1 | M102: Y | N102: Y | P102: Y | Q102: Y | R102: Y | S102: 36 | T102: Chilled | U102: 7.94 | X102: 9.99 | Y102: 5
A103: BB433223 | C103: BEST BAA | D103: Sheep Cheese | E103: Garlic Brebis Sheep Cream Cheese | F103: 627843616788 | G103: 200G | H103: EA | I103: 1 | M103: Y | N103: Y | P103: Y | Q103: Y | R103: Y | S103: 15 | T103: Chilled | U103: 8.74 | X103: 8.39 | Y103: 11
A104: BB433124 | C104: BEST BAA | D104: Sheep Cheese | E104: Plain Brebis Sheep Cream Cheese | F104: 627843616870 | G104: 200G | H104: EA | I104: 1 | M104: Y | N104: Y | P104: Y | Q104: Y | R104: Y | S104: 15 | T104: Chilled | U104: 8.42 | X104: 7.99 | Y104: 8
A105: BB6832 | C105: BEST BAA | D105: Sheep Kefir | E105: Sheep Kefir | F105: 627843616832 | G105: 1L | H105: EA | I105: 1 | M105: Y | N105: Y | P105: Y | Q105: Y | R105: Y | S105: 27 | T105: Chilled | U105: 8.24 | X105: 8.99 | Y105: 6
A106: BB6825 | C106: BEST BAA | D106: Sheep Milk | E106: Sheep Milk | F106: 627843616825 | G106: 1L | H106: EA | I106: 1 | M106: Y | N106: Y | P106: Y | Q106: Y | R106: Y | S106: 11 | T106: Chilled | U106: 8.04 | V106: MARCH DEAL! | W106: SAVE 10% | X106: 8.39 | Y106: 4
A107: BB6856 | C107: BEST BAA | D107: Sheep Milk Yogurts | E107: Maple Sheep | F107: 627843616856 | G107: 150G | H107: EA | I107: 1 | M107: Y | N107: Y | P107: Y | Q107: Y | R107: Y | S107: 27 | T107: Chilled | U107: 2.15 | X107: 3.25 | Y107: 10
A108: BB6849 | C108: BEST BAA | D108: Sheep Milk Yogurts | E108: Plain Sheep | F108: 627843616849 | G108: 150G | H108: EA | I108: 1 | M108: Y | N108: Y | P108: Y | Q108: Y | R108: Y | S108: 27 | T108: Chilled | U108: 2.15 | X108: 3.25 | Y108: 3
A109: BB6818 | C109: BEST BAA | D109: Sheep Milk Yogurts | E109: Maple Sheep | F109: 627843616818 | G109: 425G | H109: EA | I109: 1 | M109: Y | N109: Y | P109: Y | Q109: Y | R109: Y | S109: 27 | T109: Chilled | U109: 6.63 | X109: 7.99 | Y109: 7
A110: BB432820 | C110: BEST BAA | D110: Sheep Milk Yogurts | E110: Plain Sheep | F110: 627843616801 | G110: 425G | H110: EA | I110: 1 | M110: Y | N110: Y | P110: Y | Q110: Y | R110: Y | S110: 27 | T110: Chilled | U110: 5.59 | X110: 7.99 | Y110: 1
A111: BB6863 | C111: BEST BAA | D111: Sheep Milk Yogurts | E111: Plain Sheep | F111: 627843616863 | G111: 800G | H111: EA | I111: 1 | M111: Y | N111: Y | P111: Y | Q111: Y | R111: Y | S111: 27 | T111: Chilled | U111: 9.44 | X111: 12.99 | Y111: 2
A112: BM0030 | C112: BIG MOUNTAIN | D112: Alternative Meat Products | E112: Lion’s Mane Mushroom Burger | F112: 777744000138 | G112: 240g | H112: CA | I112: 8 | P112: Y | Q112: Y | R112: Y | S112: 28 | T112: Chilled | U112: 52.17 | X112: 7.99 | Y112: 14
A113: BM0026 | C113: BIG MOUNTAIN | D113: Alternative Meat Products | E113: Lion's Mane Mushroom Crumble | F113: 777744000008 | G113: 300G | H113: CA | I113: 8 | K113: Y | L113: Y | N113: Y | P113: Y | Q113: Y | R113: Y | S113: 28 | T113: Chilled | U113: 47.75 | X113: 6.99 | Y113: 3
A114: BM0088 | C114: BIG MOUNTAIN | D114: Alternative Meat Products | E114: Mighty Mushroom Bites | F114: 777744000084 | G114: 300G | H114: CA | I114: 8 | K114: Y | L114: Y | N114: Y | P114: Y | Q114: Y | R114: Y | S114: 28 | T114: Chilled | U114: 47.75 | X114: 6.49 | Y114: 7
A115: BM0071 | C115: BIG MOUNTAIN | D115: Alternative Meat Products | E115: Superfood Breakfast Bites | F115: 777744000077 | G115: 300G | H115: CA | I115: 8 | K115: Y | L115: Y | N115: Y | P115: Y | Q115: Y | R115: Y | S115: 28 | T115: Chilled | U115: 47.75 | X115: 6.49 | Y115: 5
A116: BM0095 | C116: BIG MOUNTAIN | D116: Alternative Meat Products | E116: Caulicrumble Veggie Grounds | F116: 777744000046 | G116: 340G | H116: CA | I116: 8 | K116: Y | L116: Y | N116: Y | P116: Y | Q116: Y | R116: Y | S116: 28 | T116: Chilled | U116: 47.75 | X116: 6.49 | Y116: 2
A117: BM0019 | C117: BIG MOUNTAIN | D117: Alternative Meat Products | E117: Original Veggie Patty | F117: 777744000015 | G117: 400G | H117: CA | I117: 8 | K117: Y | L117: Y | N117: Y | P117: Y | Q117: Y | R117: Y | S117: 28 | T117: Chilled | U117: 47.75 | X117: 6.49 | Y117: 6
A118: BM0034 | C118: BIG MOUNTAIN | D118: Alternative Meat Products | E118: Plant-based Roast | F118: 777744000220 | G118: 950G | H118: CA | I118: 6 | P118: Y | Q118: Y | R118: Y | S118: 102 | T118: Frozen | U118: 116 | X118: 29.99
A119: BM0023 | C119: BIG MOUNTAIN | D119: Fava Tofu | E119: Super Smoked - Firm | F119: 777744000121 | G119: 280G | H119: CA | I119: 8 | P119: Y | Q119: Y | R119: Y | S119: 28 | T119: Chilled | U119: 32.05 | X119: 4.99 | Y119: 4
A120: BM0016 | C120: BIG MOUNTAIN | D120: Fava Tofu | E120: Original - Medium Firm | F120: 777744000107 | G120: 340G | H120: CA | I120: 8 | P120: Y | Q120: Y | R120: Y | S120: 28 | T120: Chilled | U120: 32.05 | X120: 4.99 | Y120: 1
A121: BM0006 | C121: BIG MOUNTAIN | D121: Soy Free Tofu | E121: Baked Sriracha Soy Free Tofu | F121: 777744000169 | G121: 280G | H121: CA | I121: 8 | L121: Y | S121: 27 | T121: Chilled | U121: 34.86 | X121: 6.99
A122: BM0078 | C122: BIG MOUNTAIN | D122: Soy Free Tofu | E122: Korean Style BBQ Soy Free Tofu | F122: 777744000305 | G122: 280G | H122: CA | I122: 8 | L122: Y | N122: Y | Q122: Y | S122: 27 | T122: Chilled | U122: 37.41 | X122: 6.99
A123: BM0111 | C123: BIG MOUNTAIN | D123: Veggie Links | E123: Spinach & Fava Feta Veggie Links | F123: 777744000152 | G123: 300G | H123: CA | I123: 8 | S123: 37 | T123: Chilled | U123: 47.75 | X123: 6.99
A124: BM0067 | C124: BIG MOUNTAIN | D124: Veggie Links | E124: Big Brat | F124: 777744000060 | G124: 360G | H124: CA | I124: 12 | K124: Y | L124: Y | N124: Y | P124: Y | Q124: Y | R124: Y | S124: 28 | T124: Chilled | U124: 71.62 | X124: 6.99 | Y124: 11
A125: BM0029 | C125: BIG MOUNTAIN | D125: Veggie Links | E125: Fiesta | F125: 777744000022 | G125: 360G | H125: CA | I125: 12 | K125: Y | L125: Y | N125: Y | P125: Y | Q125: Y | R125: Y | S125: 28 | T125: Chilled | U125: 71.62 | X125: 6.99 | Y125: 8
A126: BK0091 | C126: BIO K+ | D126: Bio Kidz | E126: Strawberry Dairy Probiotic (6x4SL) | F126: 626608000091 | G126: 6X98G | H126: EA | I126: 6 | M126: Y | P126: Y | Q126: Y | S126: 30 | T126: Chilled | U126: 12.17 | X126: 15.99 | Y126: 4
A127: BK7020 | C127: BIO K+ | D127: Dispensary Capsules | E127: Antibio PRO 50B - 15 caps | F127: 626608017020 | G127: 15CAPS | H127: EA | I127: 15 | P127: Y | Q127: Y | S127: 146 | T127: Chilled | U127: 22.6 | X127: 26.99
A128: BK6016 | C128: BIO K+ | D128: Dispensary Capsules | E128: Daily Care 25B - 15 Cap | F128: 626608016016 | G128: 15CAPS | H128: EA | I128: 15 | P128: Y | Q128: Y | S128: 109 | T128: Chilled | U128: 18.21 | X128: 22.99
A129: BK4013 | C129: BIO K+ | D129: Dispensary Capsules | E129: Extra Care 30B - 15 Cap | F129: 626608004013 | G129: 15CAPS | H129: EA | I129: 15 | P129: Y | Q129: Y | S129: 109 | T129: Chilled | U129: 24.04 | X129: 27.99
A130: BK4012 | C130: BIO K+ | D130: Dispensary Capsules | E130: Daily Care 12.5B - 30 Cap | F130: 626608014012 | G130: 30CAPS | H130: EA | I130: 30 | P130: Y | Q130: Y | S130: 109 | T130: Chilled | U130: 18.21 | X130: 22.99
A131: BK6023 | C131: BIO K+ | D131: Dispensary Capsules | E131: Daily Care+ 25B - 30 Caps - Bottle | F131: 626608016023 | G131: 30CAPS | H131: EA | I131: 30 | P131: Y | Q131: Y | S131: 109 | T131: Chilled | U131: 33.41 | X131: 39.99
A132: BK7013 | C132: BIO K+ | D132: Dispensary Capsules | E132: IBS Pro 50B- 30 caps | F132: 626608017013 | G132: 30CAPS | H132: EA | I132: 30 | P132: Y | Q132: Y | S132: 146 | T132: Chilled | U132: 34.97 | X132: 42.99
A133: BK4029 | C133: BIO K+ | D133: Dispensary Capsules | E133: Bio-K+ Daily Care 12.5B - 60 Caps - Bottle | F133: 626608014029 | G133: 60CAPS | H133: EA | I133: 60 | P133: Y | Q133: Y | S133: 109 | T133: Chilled | U133: 33.41 | X133: 39.99
A134: BK2125 | C134: BIO K+ | D134: Extra Probiotics, 80 Billion Bacteria | E134: Blueberry/Rice Dairy-Free Probiotic | F134: 626608002125 | G134: 12 X 98G | H134: EA | I134: 12 | J134: Y | M134: Y | P134: Y | Q134: Y | S134: 30 | T134: Chilled | U134: 37.07 | X134: 38.99 | Y134: 10
A135: BK0879 | C135: BIO K+ | D135: Extra Probiotics, 80 Billion Bacteria | E135: Mango/Soy Dairy-Free Probiotic | F135: 626608000879 | G135: 12X98G | H135: EA | I135: 12 | M135: Y | P135: Y | Q135: Y | S135: 30 | T135: Chilled | U135: 37.07 | X135: 38.99 | Y135: 11
A136: BK0978 | C136: BIO K+ | D136: Extra Probiotics, 80 Billion Bacteria | E136: Strawberry Dairy Probiotic | F136: 626608000978 | G136: 12X98G | H136: EA | I136: 12 | M136: Y | P136: Y | Q136: Y | S136: 30 | T136: Chilled | U136: 34.29 | X136: 37.99 | Y136: 6
A137: BK8066 | C137: BIO K+ | D137: Extra Probiotics, 80 Billion Bacteria | E137: Elderberry w/wellmune Yeast Beta Glucan | F137: 626608008066 | G137: 6 X 98G | H137: EA | I137: 6 | M137: Y | P137: Y | Q137: Y | S137: 30 | T137: Chilled | U137: 19.4 | X137: 26.99 | Y137: 7
A138: BK0774 | C138: BIO K+ | D138: Probiotics | E138: Original Fermented Milk | F138: 626608000770 | G138: 12x98g | H138: EA | I138: 12 | M138: Y | P138: Y | Q138: Y | S138: 36 | T138: Chilled | U138: 36.49 | X138: 42.99 | Y138: 13
A139: BK0446 | C139: BIO K+ | D139: Probiotics | E139: Vanilla Fermented Milk | F139: 626608000442 | G139: 12x98g | H139: EA | I139: 12 | M139: Y | P139: Y | Q139: Y | S139: 36 | T139: Chilled | U139: 36.49 | X139: 42.99 | Y139: 15
A140: BK7106 | C140: BIO K+ | D140: Probiotics | E140: Active Probiotic Shot Strawberry | F140: 626608007090 | G140: 6 X 98G | H140: EA | I140: 6 | M140: Y | P140: Y | Q140: Y | S140: 74 | T140: Chilled | U140: 15.92 | X140: 4.99
A141: BK7120 | C141: BIO K+ | D141: Probiotics | E141: Probiotic Shot Raspberry | F141: 626608007113 | G141: 6 X 98G | H141: EA | I141: 6 | J141: Y | M141: Y | N141: Y | P141: Y | Q141: Y | S141: 48 | T141: Chilled | U141: 15.92 | X141: 4.99
A142: BK0022 | C142: BIO K+ | D142: Probiotics | E142: Raspberry Fermented Pea | F142: 626608000022 | G142: 6 X 98G | H142: EA | I142: 6 | J142: Y | L142: Y | M142: Y | P142: Y | Q142: Y | S142: 30 | T142: Chilled | U142: 20.1 | X142: 24.69 | Y142: 9
A143: BK0268 | C143: BIO K+ | D143: Probiotics | E143: Blueberry/Rice Dairy-Free Probiotic | F143: 626608000268 | G143: 6X98G | H143: EA | I143: 6 | J143: Y | M143: Y | P143: Y | Q143: Y | S143: 30 | T143: Chilled | U143: 20.1 | X143: 22.99 | Y143: 2
A144: BK0862 | C144: BIO K+ | D144: Probiotics | E144: Mango/Soy Dairy-Free Probiotic | F144: 626608000862 | G144: 6X98G | H144: EA | I144: 6 | M144: Y | P144: Y | Q144: Y | S144: 30 | T144: Chilled | U144: 20.1 | X144: 22.99 | Y144: 8
A145: BK0763 | C145: BIO K+ | D145: Probiotics | E145: Original Dairy Probiotic | F145: 626608000763 | G145: 6X98G | H145: EA | I145: 6 | M145: Y | P145: Y | Q145: Y | S145: 30 | T145: Chilled | U145: 18.35 | X145: 21.99 | Y145: 1
A146: BK0961 | C146: BIO K+ | D146: Probiotics | E146: Strawberry Dairy Probiotic | F146: 626608000961 | G146: 6X98G | H146: EA | I146: 6 | M146: Y | P146: Y | Q146: Y | S146: 30 | T146: Chilled | U146: 18.35 | X146: 21.99 | Y146: 3
A147: BK0336 | C147: BIO K+ | D147: Probiotics | E147: Vanilla Dairy Probiotic | F147: 626608000336 | G147: 6X98G | H147: EA | I147: 6 | M147: Y | P147: Y | Q147: Y | S147: 30 | T147: Chilled | U147: 18.35 | X147: 21.99 | Y147: 5
A148: BK9021 | C148: BIO K+ | D148: Supplements | E148: Women's Health | F148: 626608019024 | G148: 30CAPSULES | H148: EA | I148: 24 | N148: Y | S148: 219 | T148: Chilled | U148: 35.9 | X148: 42.99
A149: BR1559 | C149: BLACK RIVER | D149: Cheese 200g (Random Weight) | E149: Cheddar with Honey | F149: 771579051556 | G149: 6XRANDOM | H149: KG | I149: 6 | P149: Y | Q149: Y | R149: Y | S149: 21 | T149: Chilled | U149: 33.65 | X149: 0 | Y149: 15
A150: BR8503 | C150: BLACK RIVER | D150: Cheese 200g (Random Weight) | E150: Smoked Gouda | F150: 771579058500 | G150: 6XRANDOM | H150: KG | I150: 6 | P150: Y | Q150: Y | R150: Y | S150: 21 | T150: Chilled | U150: 39.15 | X150: 0 | Y150: 12
A151: BR1945 | C151: BLACK RIVER | D151: Cheese 280g (Random Weight) | E151: Maple Cheddar | F151: 771579051945 | G151: 6XRANDOM | H151: KG | I151: 6 | P151: Y | Q151: Y | R151: Y | S151: 21 | T151: Chilled | U151: 32.92 | X151: 0 | Y151: 1
A152: BR2488 | C152: BLACK RIVER | D152: Cheese 280g (Random Weight) | E152: Monterey Jack | F152: 771579052485 | G152: 6XRANDOM | H152: KG | I152: 6 | P152: Y | Q152: Y | R152: Y | S152: 21 | T152: Chilled | U152: 29.08 | X152: 0 | Y152: 7
A153: BR2891 | C153: BLACK RIVER | D153: Cheese 280g (Random Weight) | E153: Pepper Jack | F153: 771579052898 | G153: 6XRANDOM | H153: KG | I153: 6 | P153: Y | Q153: Y | R153: Y | S153: 21 | T153: Chilled | U153: 26.22 | X153: 0 | Y153: 10
A154: BR0221 | C154: BLACK RIVER | D154: Cheese 280g (Random Weight) | E154: White 2 Year Cheddar | F154: 771579050221 | G154: 6XRANDOM | H154: KG | I154: 6 | P154: Y | Q154: Y | R154: Y | S154: 21 | T154: Chilled | U154: 37.88 | X154: 0 | Y154: 2
A155: BR0351 | C155: BLACK RIVER | D155: Cheese 280g (Random Weight) | E155: White 3 Year Cheddar | F155: 771579050351 | G155: 6XRANDOM | H155: KG | I155: 6 | P155: Y | Q155: Y | R155: Y | S155: 21 | T155: Chilled | U155: 39.82 | X155: 0 | Y155: 4
A156: BR1167 | C156: BLACK RIVER | D156: Cheese Curds | E156: Coloured | F156: 771579051167 | G156: 200G | H156: CA | I156: 12 | P156: Y | Q156: Y | R156: Y | S156: 14 | T156: Chilled | U156: 65.95 | X156: 0 | Y156: 11
A157: BR1174 | C157: BLACK RIVER | D157: Cheese Curds | E157: White | F157: 771579051174 | G157: 200G | H157: CA | I157: 12 | P157: Y | Q157: Y | R157: Y | S157: 14 | T157: Chilled | U157: 65.95 | X157: 0 | Y157: 5
A158: PS1004 | C158: BOYLAN | D158: Vintage Cane Sugar Craft Sodas | E158: Black Cherry | F158: 760712040014 | G158: 355ML | H158: CA | I158: 24 | K158: Y | N158: Y | S158: 90 | T158: Dry | U158: 51.71 | X158: 2.49 | Y158: 4
A159: PS1009 | C159: BOYLAN | D159: Vintage Cane Sugar Craft Sodas | E159: Cane Cola | F159: 760712160019 | G159: 355ML | H159: CA | I159: 24 | K159: Y | N159: Y | S159: 90 | T159: Dry | U159: 51.71 | X159: 2.49 | Y159: 2
A160: PS1000 | C160: BOYLAN | D160: Vintage Cane Sugar Craft Sodas | E160: Crème | F160: 760712080010 | G160: 355ML | H160: CA | I160: 24 | K160: Y | N160: Y | S160: 90 | T160: Dry | U160: 51.71 | X160: 2.49 | Y160: 5
A161: PS1010 | C161: BOYLAN | D161: Vintage Cane Sugar Craft Sodas | E161: Dr. Boylan | F161: 760712190016 | G161: 355ML | H161: CA | I161: 24 | K161: Y | S161: 219 | T161: Dry | U161: 51.71 | X161: 3.49
A162: PS1003 | C162: BOYLAN | D162: Vintage Cane Sugar Craft Sodas | E162: Ginger Ale | F162: 760712050013 | G162: 355ML | H162: CA | I162: 24 | K162: Y | N162: Y | S162: 90 | T162: Dry | U162: 51.71 | X162: 2.49 | Y162: 1
A163: PS1001 | C163: BOYLAN | D163: Vintage Cane Sugar Craft Sodas | E163: Grape | F163: 760712070011 | G163: 355ML | H163: CA | I163: 24 | K163: Y | N163: Y | S163: 90 | T163: Dry | U163: 51.71 | X163: 2.49 | Y163: 8
A164: PS1011 | C164: BOYLAN | D164: Vintage Cane Sugar Craft Sodas | E164: Lemon Lime | F164: 760712180017 | G164: 355ML | H164: CA | I164: 24 | K164: Y | S164: 219 | T164: Dry | U164: 51.71 | X164: 3.49
A165: PS1002 | C165: BOYLAN | D165: Vintage Cane Sugar Craft Sodas | E165: Orange | F165: 760712060012 | G165: 355ML | H165: CA | I165: 24 | K165: Y | N165: Y | S165: 90 | T165: Dry | U165: 51.71 | X165: 2.49 | Y165: 6
A166: PS1007 | C166: BOYLAN | D166: Vintage Cane Sugar Craft Sodas | E166: Original Birch Beer | F166: 760712010017 | G166: 355ML | H166: CA | I166: 24 | K166: Y | N166: Y | S166: 90 | T166: Dry | U166: 51.71 | X166: 2.49 | Y166: 7
A167: PS9100 | C167: BOYLAN | D167: Vintage Cane Sugar Craft Sodas | E167: Root Beer | F167: 760712090019 | G167: 355ML | H167: CA | I167: 24 | K167: Y | N167: Y | S167: 90 | T167: Dry | U167: 51.71 | X167: 2.49 | Y167: 3
A168: BD8928 | C168: BREW DR K | D168: Organic Kombucha - Glass Bottles | E168: Organic Kombucha Pineapple Paradise | F168: 857161008921 | G168: 414ML | H168: CA | I168: 12 | J168: Y | K168: Y | M168: Y | N168: Y | Q168: Y | S168: 54 | T168: Chilled | U168: 37.3 | X168: 4.49
A169: BD1140 | C169: BREW DR K | D169: Organic Raw Kombucha - Glass Bottles | E169: Cherry Limeade | F169: 850044821143 | G169: 414ML | H169: CA | I169: 12 | J169: Y | K169: Y | L169: Y | M169: Y | Q169: Y | S169: 36 | T169: Chilled | U169: 37.3 | X169: 3.99
A170: BD3008 | C170: BREW DR K | D170: Organic Raw Kombucha - Glass Bottles | E170: Clear Mind (Rosemary · Mint · Sage · Green Tea) | F170: 851107003001 | G170: 414ML | H170: CA | I170: 12 | J170: Y | K170: Y | M170: Y | N170: Y | Q170: Y | S170: 30 | T170: Chilled | U170: 37.3 | X170: 4.99 | Y170: 5
A171: BD1133 | C171: BREW DR K | D171: Organic Raw Kombucha - Glass Bottles | E171: Crisp Apple | F171: 850044821136 | G171: 414ML | H171: CA | I171: 12 | J171: Y | K171: Y | L171: Y | M171: Y | Q171: Y | S171: 36 | T171: Chilled | U171: 37.3 | X171: 3.99
A172: BD1171 | C172: BREW DR K | D172: Organic Raw Kombucha - Glass Bottles | E172: Iced Tea Lemonade | F172: 850044821174 | G172: 414ML | H172: CA | I172: 12 | J172: Y | K172: Y | L172: Y | M172: Y | Q172: Y | S172: 36 | T172: Chilled | U172: 37.3 | X172: 3.99
A173: BD8461 | C173: BREW DR K | D173: Organic Raw Kombucha - Glass Bottles | E173: Island Mango (Passionfruit · Ginger · Green Tea) | F173: 857161008464 | G173: 414ML | H173: CA | I173: 12 | J173: Y | K173: Y | M173: Y | N173: Y | Q173: Y | S173: 30 | T173: Chilled | U173: 37.3 | X173: 4.99 | Y173: 3
A174: BD3077 | C174: BREW DR K | D174: Organic Raw Kombucha - Glass Bottles | E174: Love (Lavender · Chamomile · Jasmine Green Tea | F174: 851107003070 | G174: 414ML | H174: CA | I174: 12 | J174: Y | K174: Y | M174: Y | N174: Y | Q174: Y | S174: 30 | T174: Chilled | U174: 37.3 | X174: 4.99 | Y174: 5
A175: BD3643 | C175: BREW DR K | D175: Organic Raw Kombucha - Glass Bottles | E175: Mountain Ginger | F175: 851107003629 | G175: 414ML | H175: CA | I175: 12 | J175: Y | K175: Y | M175: Y | N175: Y | Q175: Y | S175: 30 | T175: Chilled | U175: 37.3 | X175: 4.99 | Y175: 1
A176: BD3039 | C176: BREW DR K | D176: Organic Raw Kombucha - Glass Bottles | E176: Superberry (Raspberry · Blueberry · Goji Berry · Oolong Tea) | F176: 851107003032 | G176: 414ML | H176: CA | I176: 12 | J176: Y | K176: Y | M176: Y | N176: Y | Q176: Y | S176: 30 | T176: Chilled | U176: 37.3 | X176: 4.99 | Y176: 2
A177: BR7200 | C177: BROYA | D177: Bone Broth | E177: Chocolate Broth | F177: 628451797203 | G177: 237ML | H177: CA | I177: 6 | Q177: Y | R177: Y | S177: 109 | T177: Dry | U177: 40.08 | X177: 9.99
A178: BR7187 | C178: BROYA | D178: Bone Broth | E178: Classic Beef Bone Broth | F178: 628451797180 | G178: 237ML | H178: CA | I178: 6 | P178: Y | Q178: Y | R178: Y | S178: 100 | T178: Dry | U178: 30.24 | X178: 7.99
A179: BR7170 | C179: BROYA | D179: Bone Broth | E179: Classic Chicken Bone Broth | F179: 628451797173 | G179: 237ML | H179: CA | I179: 6 | J179: Y | P179: Y | Q179: Y | R179: Y | S179: 100 | T179: Dry | U179: 30.24 | X179: 7.99
A180: BR7149 | C180: BROYA | D180: Bone Broth (Pouches) | E180: Beef - Parsley & Cumin | F180: 628451797142 | G180: 500ML | H180: CA | I180: 8 | M180: Y | N180: Y | P180: Y | Q180: Y | R180: Y | S180: 100 | T180: Dry | U180: 71.78 | X180: 11.99 | Y180: 2
A181: BR7163 | C181: BROYA | D181: Bone Broth (Pouches) | E181: Beef - Tomato & Smoked Paprika | F181: 628451797166 | G181: 500ML | H181: CA | I181: 8 | J181: Y | M181: Y | N181: Y | P181: Y | Q181: Y | R181: Y | S181: 100 | T181: Dry | U181: 71.78 | X181: 11.99 | Y181: 3
A182: BR7156 | C182: BROYA | D182: Bone Broth (Pouches) | E182: Chicken - Sriracha & Chili | F182: 628451797159 | G182: 500ML | H182: CA | I182: 8 | J182: Y | M182: Y | N182: Y | P182: Y | Q182: Y | R182: Y | S182: 100 | T182: Dry | U182: 71.78 | X182: 11.99 | Y182: 4
A183: BR7132 | C183: BROYA | D183: Bone Broth (Pouches) | E183: Chicken - Turmeric & Ginger | F183: 628451797135 | G183: 500ML | H183: CA | I183: 8 | J183: Y | M183: Y | N183: Y | P183: Y | Q183: Y | R183: Y | S183: 100 | T183: Dry | U183: 71.78 | X183: 11.99 | Y183: 1
A184: BR7507 | C184: BROYA | D184: Tallow Balm | E184: Premium Tallow Balm | F184: 628451797500 | G184: 56G | H184: CA | I184: 6 | P184: Y | Q184: Y | R184: Y | S184: 210 | T184: Dry | U184: 166.96 | X184: 44.99
A185: BF7501 | C185: BUBBIES | D185: Ferments | E185: Bread N Butter Pickle | F185: 38261957504 | G185: 1L | H185: CA | I185: 6 | K185: Y | L185: Y | S185: 60 | T185: Chilled | U185: 52.21 | X185: 0 | Y185: 3
A186: BF7365 | C186: BUBBIES | D186: Ferments | E186: Kosher Dill Pickle | F186: 38261957368 | G186: 1L | H186: CA | I186: 6 | K186: Y | L186: Y | S186: 60 | T186: Chilled | U186: 52.21 | X186: 0 | Y186: 1
A187: BF4364 | C187: BUBBIES | D187: Ferments | E187: Spicy Kosher Dills | F187: 38261954367 | G187: 1L | H187: CA | I187: 6 | K187: Y | N187: Y | S187: 60 | T187: Chilled | U187: 52.21 | X187: 0
A188: BF7610 | C188: BUBBIES | D188: Ferments | E188: Beet Horseradish | F188: 38261957610 | G188: 250ML | H188: CA | I188: 12 | K188: Y | L188: Y | S188: 30 | T188: Chilled | U188: 52.21 | X188: 0 | Y188: 6
A189: BF7665 | C189: BUBBIES | D189: Ferments | E189: Prepared Horseradish | F189: 38261957665 | G189: 250ML | H189: CA | I189: 12 | K189: Y | L189: Y | S189: 30 | T189: Chilled | U189: 52.21 | X189: 0 | Y189: 5
A190: BF7122 | C190: BUBBIES | D190: Ferments | E190: Herring Filets | F190: 38261957122 | G190: 320G | H190: CA | I190: 12 | K190: Y | L190: Y | S190: 60 | T190: Chilled | U190: 116.26 | X190: 0 | Y190: 7
A191: BF7372 | C191: BUBBIES | D191: Ferments | E191: Pure Kosher Dill Pickle Relish | F191: 38261957375 | G191: 500ML | H191: CA | I191: 6 | K191: Y | L191: Y | S191: 60 | T191: Chilled | U191: 36.35 | X191: 0 | Y191: 4
A192: BF7471 | C192: BUBBIES | D192: Ferments | E192: Plain Sauerkraut | F192: 38261957474 | G192: 750ML | H192: CA | I192: 6 | K192: Y | L192: Y | S192: 60 | T192: Chilled | U192: 52.21 | X192: 0 | Y192: 2
A193: CHS8021 | C193: CAPE HERB & SPICE | D193: Cape H&S | E193: Sea Salt Ceramic Grinder With Refill Pack | F193: 6006507008024 | G193: 605G | H193: CA | I193: 6 | K193: Y | N193: Y | O193: Y | S193: 72 | T193: Dry | U193: 38.19 | X193: 9.99
A194: CHS0309 | C194: CAPE HERB & SPICE | D194: Cape H&S Giant Grinder | E194: Rainbow Peppercorns Giant Grinder | F194: 670071002410 | G194: 175G | H194: CA | I194: 6 | K194: Y | S194: 72 | T194: Dry | U194: 71.87 | X194: 17.89 | Y194: 14
A195: CHS0313 | C195: CAPE HERB & SPICE | D195: Cape H&S Giant Grinder | E195: Extra Bold Peppercorns Giant Grinder | F195: 670071002144 | G195: 180G | H195: CA | I195: 6 | K195: Y | S195: 72 | T195: Dry | U195: 71.87 | X195: 17.89 | Y195: 7
A196: CHS0311 | C196: CAPE HERB & SPICE | D196: Cape H&S Giant Grinder | E196: Seasoned Salt Giant Grinder | F196: 670071003479 | G196: 240G | H196: CA | I196: 6 | K196: Y | S196: 72 | T196: Dry | U196: 47.7 | X196: 11.89 | Y196: 20
A197: CHS0310 | C197: CAPE HERB & SPICE | D197: Cape H&S Giant Grinder | E197: Atlantic Sea Salt Giant Grinder | F197: 670071002137 | G197: 360G | H197: CA | I197: 6 | K197: Y | S197: 72 | T197: Dry | U197: 47.7 | X197: 11.89 | Y197: 6
A198: CHS0312 | C198: CAPE HERB & SPICE | D198: Cape H&S Giant Grinder | E198: Himalayan Pink Salt Giant Grinder | F198: 670071002403 | G198: 390G | H198: CA | I198: 6 | K198: Y | S198: 72 | T198: Dry | U198: 47.7 | X198: 11.89 | Y198: 2
A199: CHS0706 | C199: CAPE HERB & SPICE | D199: Cape H&S Rub Shakers | E199: Caribbean Jerk Rub Shaker | F199: 670071003776 | G199: 100G | H199: CA | I199: 6 | K199: Y | S199: 72 | T199: Dry | U199: 40.38 | X199: 9.19 | Y199: 19
A200: CHS0707 | C200: CAPE HERB & SPICE | D200: Cape H&S Rub Shakers | E200: Greek Lemon & Herb Seasoning Rub Shaker | F200: 6006507007454 | G200: 100G | H200: CA | I200: 6 | K200: Y | S200: 72 | T200: Dry | U200: 40.41 | X200: 9.19 | Y200: 26
... 1869 more rows

Sheet OG
C1: East Order Guide
C3: ALL ORDERS MUST BE RECEIVED BY 2PM orders@jonluca.ca | credits@jonluca.ca | ar@jonluca.ca Orders and Sample Pickups are: Monday - Friday 10:00 am - 4:00 pm EST | D3: PRICES AND PRODUCTS ARE SUBJECT TO CHANGE WITHOUT NOTICE
C4: Please verify your order upon receipt and if required, request a credit within 24hrs of delivery | D4: All prices below are plus applicable taxes
C5: Organic: O | Kosher: K | Vegan: V | Gluten Free: GF | Non-GMO: N | Halal: H | Canadian Made: CM | Canadian Owned: CO | Canadian Produced: CP
A6: When placing orders please be mindful of how skus are picked, Column F is the PICKED column: CA indicates CASE and EA indicates EACH If an item is picked by CASE and you want 1 case please enter 1 in the Order Column
A7: Item Code | B7: Order QTY | C7: Description | D7: Unit UPC | E7: Size | F7: Picked | G7: Pack | H7: O | I7: K | J7: V | K7: GF | L7: N | M7: H | N7: CM | O7: CO | P7: CP | Q7: Guaranteed Days | R7: Storage | S7: Price | T7: Monthly Promo | U7: Promo Discount | V7: SRP | W7: Sku Ranking
A8: 49TH PARALLEL | C8: =_xlfn.XLOOKUP(A8,DATA[Item No.],DATA[Description],"") ->  | D8: =_xlfn.XLOOKUP(A8,DATA[Item No.],DATA[Unit UPC],"") ->  | E8: =_xlfn.XLOOKUP(A8,DATA[Item No.],DATA[Size],"") ->  | F8: =_xlfn.XLOOKUP(A8,DATA[Item No.],DATA[Picked],"") ->  | G8: =_xlfn.XLOOKUP(A8,DATA[Item No.],DATA[Pack],"") ->  | H8: =_xlfn.XLOOKUP(A8,DATA[Item No.],DATA[O],"") ->  | I8: =_xlfn.XLOOKUP(A8,DATA[Item No.],DATA[K],"") ->  | J8: =_xlfn.XLOOKUP(A8,DATA[Item No.],DATA[V],"") ->  | K8: =_xlfn.XLOOKUP(A8,DATA[Item No.],DATA[GF],"") ->  | L8: =_xlfn.XLOOKUP(A8,DATA[Item No.],DATA[N],"") ->  | M8: =_xlfn.XLOOKUP(A8,DATA[Item No.],DATA[H],"") ->  | N8: =_xlfn.XLOOKUP(A8,DATA[Item No.],DATA[CM],"") ->  | O8: =_xlfn.XLOOKUP(A8,DATA[Item No.],DATA[CO],"") ->  | P8: =_xlfn.XLOOKUP(A8,DATA[Item No.],DATA[CP],"") ->  | Q8: =_xlfn.XLOOKUP(A8,DATA[Item No.],DATA[Guaranteed Days],"") ->  | R8: =_xlfn.XLOOKUP(A8,DATA[Item No.],DATA[Storage],"") ->  | S8: =_xlfn.XLOOKUP(A8,DATA[Item No.],DATA[Price],"") ->  | T8: =_xlfn.XLOOKUP(A8,DATA[Item No.],DATA[Monthly Promo],"") ->  | U8: =_xlfn.XLOOKUP(A8,DATA[Item No.],DATA[Promo Discount],"") ->  | V8: =_xlfn.XLOOKUP(A8,DATA[Item No.],DATA[SRP],"") ->  | W8: =_xlfn.XLOOKUP(A8,DATA[Item No.],DATA[SKU Territory Ranking - East],"") -> 
A9: Nespresso Pods | C9: =_xlfn.XLOOKUP(A9,DATA[Item No.],DATA[Description],"") ->  | D9: =_xlfn.XLOOKUP(A9,DATA[Item No.],DATA[Unit UPC],"") ->  | E9: =_xlfn.XLOOKUP(A9,DATA[Item No.],DATA[Size],"") ->  | F9: =_xlfn.XLOOKUP(A9,DATA[Item No.],DATA[Picked],"") ->  | G9: =_xlfn.XLOOKUP(A9,DATA[Item No.],DATA[Pack],"") ->  | H9: =_xlfn.XLOOKUP(A9,DATA[Item No.],DATA[O],"") ->  | I9: =_xlfn.XLOOKUP(A9,DATA[Item No.],DATA[K],"") ->  | J9: =_xlfn.XLOOKUP(A9,DATA[Item No.],DATA[V],"") ->  | K9: =_xlfn.XLOOKUP(A9,DATA[Item No.],DATA[GF],"") ->  | L9: =_xlfn.XLOOKUP(A9,DATA[Item No.],DATA[N],"") ->  | M9: =_xlfn.XLOOKUP(A9,DATA[Item No.],DATA[H],"") ->  | N9: =_xlfn.XLOOKUP(A9,DATA[Item No.],DATA[CM],"") ->  | O9: =_xlfn.XLOOKUP(A9,DATA[Item No.],DATA[CO],"") ->  | P9: =_xlfn.XLOOKUP(A9,DATA[Item No.],DATA[CP],"") ->  | Q9: =_xlfn.XLOOKUP(A9,DATA[Item No.],DATA[Guaranteed Days],"") ->  | R9: =_xlfn.XLOOKUP(A9,DATA[Item No.],DATA[Storage],"") ->  | S9: =_xlfn.XLOOKUP(A9,DATA[Item No.],DATA[Price],"") ->  | T9: =_xlfn.XLOOKUP(A9,DATA[Item No.],DATA[Monthly Promo],"") ->  | U9: =_xlfn.XLOOKUP(A9,DATA[Item No.],DATA[Promo Discount],"") ->  | V9: =_xlfn.XLOOKUP(A9,DATA[Item No.],DATA[SRP],"") ->  | W9: =_xlfn.XLOOKUP(A9,DATA[Item No.],DATA[SKU Territory Ranking - East],"") -> 
A10: FN2622 | C10: =_xlfn.XLOOKUP(A10,DATA[Item No.],DATA[Description],"") -> Med Dark Espresso | D10: =_xlfn.XLOOKUP(A10,DATA[Item No.],DATA[Unit UPC],"") -> 883242002625 | E10: =_xlfn.XLOOKUP(A10,DATA[Item No.],DATA[Size],"") -> 10 X 53G | F10: =_xlfn.XLOOKUP(A10,DATA[Item No.],DATA[Picked],"") -> CA | G10: =_xlfn.XLOOKUP(A10,DATA[Item No.],DATA[Pack],"") -> 6 | H10: =_xlfn.XLOOKUP(A10,DATA[Item No.],DATA[O],"") -> 0 | I10: =_xlfn.XLOOKUP(A10,DATA[Item No.],DATA[K],"") -> 0 | J10: =_xlfn.XLOOKUP(A10,DATA[Item No.],DATA[V],"") -> 0 | K10: =_xlfn.XLOOKUP(A10,DATA[Item No.],DATA[GF],"") -> 0 | L10: =_xlfn.XLOOKUP(A10,DATA[Item No.],DATA[N],"") -> 0 | M10: =_xlfn.XLOOKUP(A10,DATA[Item No.],DATA[H],"") -> 0 | N10: =_xlfn.XLOOKUP(A10,DATA[Item No.],DATA[CM],"") -> Y | O10: =_xlfn.XLOOKUP(A10,DATA[Item No.],DATA[CO],"") -> Y | P10: =_xlfn.XLOOKUP(A10,DATA[Item No.],DATA[CP],"") -> 0 | Q10: =_xlfn.XLOOKUP(A10,DATA[Item No.],DATA[Guaranteed Days],"") -> 81 | R10: =_xlfn.XLOOKUP(A10,DATA[Item No.],DATA[Storage],"") -> Dry | S10: =_xlfn.XLOOKUP(A10,DATA[Item No.],DATA[Price],"") -> 66.8 | T10: =_xlfn.XLOOKUP(A10,DATA[Item No.],DATA[Monthly Promo],"") -> 0 | U10: =_xlfn.XLOOKUP(A10,DATA[Item No.],DATA[Promo Discount],"") -> 0 | V10: =_xlfn.XLOOKUP(A10,DATA[Item No.],DATA[SRP],"") -> 14.99 | W10: =_xlfn.XLOOKUP(A10,DATA[Item No.],DATA[SKU Territory Ranking - East],"") -> 1
A11: FN2639 | C11: =_xlfn.XLOOKUP(A11,DATA[Item No.],DATA[Description],"") -> Déjà Vu Ground | D11: =_xlfn.XLOOKUP(A11,DATA[Item No.],DATA[Unit UPC],"") -> 883242002632 | E11: =_xlfn.XLOOKUP(A11,DATA[Item No.],DATA[Size],"") -> 10 X 53G | F11: =_xlfn.XLOOKUP(A11,DATA[Item No.],DATA[Picked],"") -> CA | G11: =_xlfn.XLOOKUP(A11,DATA[Item No.],DATA[Pack],"") -> 6 | H11: =_xlfn.XLOOKUP(A11,DATA[Item No.],DATA[O],"") -> 0 | I11: =_xlfn.XLOOKUP(A11,DATA[Item No.],DATA[K],"") -> 0 | J11: =_xlfn.XLOOKUP(A11,DATA[Item No.],DATA[V],"") -> 0 | K11: =_xlfn.XLOOKUP(A11,DATA[Item No.],DATA[GF],"") -> 0 | L11: =_xlfn.XLOOKUP(A11,DATA[Item No.],DATA[N],"") -> 0 | M11: =_xlfn.XLOOKUP(A11,DATA[Item No.],DATA[H],"") -> 0 | N11: =_xlfn.XLOOKUP(A11,DATA[Item No.],DATA[CM],"") -> Y | O11: =_xlfn.XLOOKUP(A11,DATA[Item No.],DATA[CO],"") -> Y | P11: =_xlfn.XLOOKUP(A11,DATA[Item No.],DATA[CP],"") -> 0 | Q11: =_xlfn.XLOOKUP(A11,DATA[Item No.],DATA[Guaranteed Days],"") -> 81 | R11: =_xlfn.XLOOKUP(A11,DATA[Item No.],DATA[Storage],"") -> Dry | S11: =_xlfn.XLOOKUP(A11,DATA[Item No.],DATA[Price],"") -> 66.8 | T11: =_xlfn.XLOOKUP(A11,DATA[Item No.],DATA[Monthly Promo],"") -> 0 | U11: =_xlfn.XLOOKUP(A11,DATA[Item No.],DATA[Promo Discount],"") -> 0 | V11: =_xlfn.XLOOKUP(A11,DATA[Item No.],DATA[SRP],"") -> 14.99 | W11: =_xlfn.XLOOKUP(A11,DATA[Item No.],DATA[SKU Territory Ranking - East],"") -> 2
A12: Shipper | C12: =_xlfn.XLOOKUP(A12,DATA[Item No.],DATA[Description],"") ->  | D12: =_xlfn.XLOOKUP(A12,DATA[Item No.],DATA[Unit UPC],"") ->  | E12: =_xlfn.XLOOKUP(A12,DATA[Item No.],DATA[Size],"") ->  | F12: =_xlfn.XLOOKUP(A12,DATA[Item No.],DATA[Picked],"") ->  | G12: =_xlfn.XLOOKUP(A12,DATA[Item No.],DATA[Pack],"") ->  | H12: =_xlfn.XLOOKUP(A12,DATA[Item No.],DATA[O],"") ->  | I12: =_xlfn.XLOOKUP(A12,DATA[Item No.],DATA[K],"") ->  | J12: =_xlfn.XLOOKUP(A12,DATA[Item No.],DATA[V],"") ->  | K12: =_xlfn.XLOOKUP(A12,DATA[Item No.],DATA[GF],"") ->  | L12: =_xlfn.XLOOKUP(A12,DATA[Item No.],DATA[N],"") ->  | M12: =_xlfn.XLOOKUP(A12,DATA[Item No.],DATA[H],"") ->  | N12: =_xlfn.XLOOKUP(A12,DATA[Item No.],DATA[CM],"") ->  | O12: =_xlfn.XLOOKUP(A12,DATA[Item No.],DATA[CO],"") ->  | P12: =_xlfn.XLOOKUP(A12,DATA[Item No.],DATA[CP],"") ->  | Q12: =_xlfn.XLOOKUP(A12,DATA[Item No.],DATA[Guaranteed Days],"") ->  | R12: =_xlfn.XLOOKUP(A12,DATA[Item No.],DATA[Storage],"") ->  | S12: =_xlfn.XLOOKUP(A12,DATA[Item No.],DATA[Price],"") ->  | T12: =_xlfn.XLOOKUP(A12,DATA[Item No.],DATA[Monthly Promo],"") ->  | U12: =_xlfn.XLOOKUP(A12,DATA[Item No.],DATA[Promo Discount],"") ->  | V12: =_xlfn.XLOOKUP(A12,DATA[Item No.],DATA[SRP],"") ->  | W12: =_xlfn.XLOOKUP(A12,DATA[Item No.],DATA[SKU Territory Ranking - East],"") -> 
A13: FN3370 | C13: =_xlfn.XLOOKUP(A13,DATA[Item No.],DATA[Description],"") -> Coffee Shipper (8 Old Sch, 8 Org Esp, 8 Fr Rst, 8 Nost) | D13: =_xlfn.XLOOKUP(A13,DATA[Item No.],DATA[Unit UPC],"") -> 883242003370 | E13: =_xlfn.XLOOKUP(A13,DATA[Item No.],DATA[Size],"") -> 340G | F13: =_xlfn.XLOOKUP(A13,DATA[Item No.],DATA[Picked],"") -> CA | G13: =_xlfn.XLOOKUP(A13,DATA[Item No.],DATA[Pack],"") -> 32 | H13: =_xlfn.XLOOKUP(A13,DATA[Item No.],DATA[O],"") -> 0 | I13: =_xlfn.XLOOKUP(A13,DATA[Item No.],DATA[K],"") -> 0 | J13: =_xlfn.XLOOKUP(A13,DATA[Item No.],DATA[V],"") -> 0 | K13: =_xlfn.XLOOKUP(A13,DATA[Item No.],DATA[GF],"") -> 0 | L13: =_xlfn.XLOOKUP(A13,DATA[Item No.],DATA[N],"") -> 0 | M13: =_xlfn.XLOOKUP(A13,DATA[Item No.],DATA[H],"") -> 0 | N13: =_xlfn.XLOOKUP(A13,DATA[Item No.],DATA[CM],"") -> Y | O13: =_xlfn.XLOOKUP(A13,DATA[Item No.],DATA[CO],"") -> Y | P13: =_xlfn.XLOOKUP(A13,DATA[Item No.],DATA[CP],"") -> 0 | Q13: =_xlfn.XLOOKUP(A13,DATA[Item No.],DATA[Guaranteed Days],"") -> 81 | R13: =_xlfn.XLOOKUP(A13,DATA[Item No.],DATA[Storage],"") -> Dry | S13: =_xlfn.XLOOKUP(A13,DATA[Item No.],DATA[Price],"") -> 477.54 | T13: =_xlfn.XLOOKUP(A13,DATA[Item No.],DATA[Monthly Promo],"") -> 0 | U13: =_xlfn.XLOOKUP(A13,DATA[Item No.],DATA[Promo Discount],"") -> 0 | V13: =_xlfn.XLOOKUP(A13,DATA[Item No.],DATA[SRP],"") -> 19.99 | W13: =_xlfn.XLOOKUP(A13,DATA[Item No.],DATA[SKU Territory Ranking - East],"") -> 11
A14: Whole Bean Coffee | C14: =_xlfn.XLOOKUP(A14,DATA[Item No.],DATA[Description],"") ->  | D14: =_xlfn.XLOOKUP(A14,DATA[Item No.],DATA[Unit UPC],"") ->  | E14: =_xlfn.XLOOKUP(A14,DATA[Item No.],DATA[Size],"") ->  | F14: =_xlfn.XLOOKUP(A14,DATA[Item No.],DATA[Picked],"") ->  | G14: =_xlfn.XLOOKUP(A14,DATA[Item No.],DATA[Pack],"") ->  | H14: =_xlfn.XLOOKUP(A14,DATA[Item No.],DATA[O],"") ->  | I14: =_xlfn.XLOOKUP(A14,DATA[Item No.],DATA[K],"") ->  | J14: =_xlfn.XLOOKUP(A14,DATA[Item No.],DATA[V],"") ->  | K14: =_xlfn.XLOOKUP(A14,DATA[Item No.],DATA[GF],"") ->  | L14: =_xlfn.XLOOKUP(A14,DATA[Item No.],DATA[N],"") ->  | M14: =_xlfn.XLOOKUP(A14,DATA[Item No.],DATA[H],"") ->  | N14: =_xlfn.XLOOKUP(A14,DATA[Item No.],DATA[CM],"") ->  | O14: =_xlfn.XLOOKUP(A14,DATA[Item No.],DATA[CO],"") ->  | P14: =_xlfn.XLOOKUP(A14,DATA[Item No.],DATA[CP],"") ->  | Q14: =_xlfn.XLOOKUP(A14,DATA[Item No.],DATA[Guaranteed Days],"") ->  | R14: =_xlfn.XLOOKUP(A14,DATA[Item No.],DATA[Storage],"") ->  | S14: =_xlfn.XLOOKUP(A14,DATA[Item No.],DATA[Price],"") ->  | T14: =_xlfn.XLOOKUP(A14,DATA[Item No.],DATA[Monthly Promo],"") ->  | U14: =_xlfn.XLOOKUP(A14,DATA[Item No.],DATA[Promo Discount],"") ->  | V14: =_xlfn.XLOOKUP(A14,DATA[Item No.],DATA[SRP],"") ->  | W14: =_xlfn.XLOOKUP(A14,DATA[Item No.],DATA[SKU Territory Ranking - East],"") -> 
A15: FN0048 | C15: =_xlfn.XLOOKUP(A15,DATA[Item No.],DATA[Description],"") -> Swiss Water Process Decaf | D15: =_xlfn.XLOOKUP(A15,DATA[Item No.],DATA[Unit UPC],"") -> 883242000041 | E15: =_xlfn.XLOOKUP(A15,DATA[Item No.],DATA[Size],"") -> 340G | F15: =_xlfn.XLOOKUP(A15,DATA[Item No.],DATA[Picked],"") -> CA | G15: =_xlfn.XLOOKUP(A15,DATA[Item No.],DATA[Pack],"") -> 6 | H15: =_xlfn.XLOOKUP(A15,DATA[Item No.],DATA[O],"") -> Y | I15: =_xlfn.XLOOKUP(A15,DATA[Item No.],DATA[K],"") -> 0 | J15: =_xlfn.XLOOKUP(A15,DATA[Item No.],DATA[V],"") -> 0 | K15: =_xlfn.XLOOKUP(A15,DATA[Item No.],DATA[GF],"") -> 0 | L15: =_xlfn.XLOOKUP(A15,DATA[Item No.],DATA[N],"") -> 0 | M15: =_xlfn.XLOOKUP(A15,DATA[Item No.],DATA[H],"") -> 0 | N15: =_xlfn.XLOOKUP(A15,DATA[Item No.],DATA[CM],"") -> Y | O15: =_xlfn.XLOOKUP(A15,DATA[Item No.],DATA[CO],"") -> Y | P15: =_xlfn.XLOOKUP(A15,DATA[Item No.],DATA[CP],"") -> 0 | Q15: =_xlfn.XLOOKUP(A15,DATA[Item No.],DATA[Guaranteed Days],"") -> 81 | R15: =_xlfn.XLOOKUP(A15,DATA[Item No.],DATA[Storage],"") -> Dry | S15: =_xlfn.XLOOKUP(A15,DATA[Item No.],DATA[Price],"") -> 89.54 | T15: =_xlfn.XLOOKUP(A15,DATA[Item No.],DATA[Monthly Promo],"") -> 0 | U15: =_xlfn.XLOOKUP(A15,DATA[Item No.],DATA[Promo Discount],"") -> 0 | V15: =_xlfn.XLOOKUP(A15,DATA[Item No.],DATA[SRP],"") -> 18.99 | W15: =_xlfn.XLOOKUP(A15,DATA[Item No.],DATA[SKU Territory Ranking - East],"") -> 8
A16: FN0055 | C16: =_xlfn.XLOOKUP(A16,DATA[Item No.],DATA[Description],"") -> Longitude 123 Filter | D16: =_xlfn.XLOOKUP(A16,DATA[Item No.],DATA[Unit UPC],"") -> 883242000058 | E16: =_xlfn.XLOOKUP(A16,DATA[Item No.],DATA[Size],"") -> 340G | F16: =_xlfn.XLOOKUP(A16,DATA[Item No.],DATA[Picked],"") -> CA | G16: =_xlfn.XLOOKUP(A16,DATA[Item No.],DATA[Pack],"") -> 6 | H16: =_xlfn.XLOOKUP(A16,DATA[Item No.],DATA[O],"") -> 0 | I16: =_xlfn.XLOOKUP(A16,DATA[Item No.],DATA[K],"") -> 0 | J16: =_xlfn.XLOOKUP(A16,DATA[Item No.],DATA[V],"") -> 0 | K16: =_xlfn.XLOOKUP(A16,DATA[Item No.],DATA[GF],"") -> 0 | L16: =_xlfn.XLOOKUP(A16,DATA[Item No.],DATA[N],"") -> 0 | M16: =_xlfn.XLOOKUP(A16,DATA[Item No.],DATA[H],"") -> 0 | N16: =_xlfn.XLOOKUP(A16,DATA[Item No.],DATA[CM],"") -> Y | O16: =_xlfn.XLOOKUP(A16,DATA[Item No.],DATA[CO],"") -> Y | P16: =_xlfn.XLOOKUP(A16,DATA[Item No.],DATA[CP],"") -> 0 | Q16: =_xlfn.XLOOKUP(A16,DATA[Item No.],DATA[Guaranteed Days],"") -> 81 | R16: =_xlfn.XLOOKUP(A16,DATA[Item No.],DATA[Storage],"") -> Dry | S16: =_xlfn.XLOOKUP(A16,DATA[Item No.],DATA[Price],"") -> 89.54 | T16: =_xlfn.XLOOKUP(A16,DATA[Item No.],DATA[Monthly Promo],"") -> 0 | U16: =_xlfn.XLOOKUP(A16,DATA[Item No.],DATA[Promo Discount],"") -> 0 | V16: =_xlfn.XLOOKUP(A16,DATA[Item No.],DATA[SRP],"") -> 18.99 | W16: =_xlfn.XLOOKUP(A16,DATA[Item No.],DATA[SKU Territory Ranking - East],"") -> 7
A17: FN0062 | C17: =_xlfn.XLOOKUP(A17,DATA[Item No.],DATA[Description],"") -> Organic French Roast | D17: =_xlfn.XLOOKUP(A17,DATA[Item No.],DATA[Unit UPC],"") -> 883242000065 | E17: =_xlfn.XLOOKUP(A17,DATA[Item No.],DATA[Size],"") -> 340G | F17: =_xlfn.XLOOKUP(A17,DATA[Item No.],DATA[Picked],"") -> CA | G17: =_xlfn.XLOOKUP(A17,DATA[Item No.],DATA[Pack],"") -> 6 | H17: =_xlfn.XLOOKUP(A17,DATA[Item No.],DATA[O],"") -> Y | I17: =_xlfn.XLOOKUP(A17,DATA[Item No.],DATA[K],"") -> 0 | J17: =_xlfn.XLOOKUP(A17,DATA[Item No.],DATA[V],"") -> 0 | K17: =_xlfn.XLOOKUP(A17,DATA[Item No.],DATA[GF],"") -> 0 | L17: =_xlfn.XLOOKUP(A17,DATA[Item No.],DATA[N],"") -> 0 | M17: =_xlfn.XLOOKUP(A17,DATA[Item No.],DATA[H],"") -> 0 | N17: =_xlfn.XLOOKUP(A17,DATA[Item No.],DATA[CM],"") -> Y | O17: =_xlfn.XLOOKUP(A17,DATA[Item No.],DATA[CO],"") -> Y | P17: =_xlfn.XLOOKUP(A17,DATA[Item No.],DATA[CP],"") -> 0 | Q17: =_xlfn.XLOOKUP(A17,DATA[Item No.],DATA[Guaranteed Days],"") -> 81 | R17: =_xlfn.XLOOKUP(A17,DATA[Item No.],DATA[Storage],"") -> Dry | S17: =_xlfn.XLOOKUP(A17,DATA[Item No.],DATA[Price],"") -> 89.54 | T17: =_xlfn.XLOOKUP(A17,DATA[Item No.],DATA[Monthly Promo],"") -> 0 | U17: =_xlfn.XLOOKUP(A17,DATA[Item No.],DATA[Promo Discount],"") -> 0 | V17: =_xlfn.XLOOKUP(A17,DATA[Item No.],DATA[SRP],"") -> 18.99 | W17: =_xlfn.XLOOKUP(A17,DATA[Item No.],DATA[SKU Territory Ranking - East],"") -> 5
A18: FN2004 | C18: =_xlfn.XLOOKUP(A18,DATA[Item No.],DATA[Description],"") -> Epic Espresso | D18: =_xlfn.XLOOKUP(A18,DATA[Item No.],DATA[Unit UPC],"") -> 883242002007 | E18: =_xlfn.XLOOKUP(A18,DATA[Item No.],DATA[Size],"") -> 340G | F18: =_xlfn.XLOOKUP(A18,DATA[Item No.],DATA[Picked],"") -> CA | G18: =_xlfn.XLOOKUP(A18,DATA[Item No.],DATA[Pack],"") -> 6 | H18: =_xlfn.XLOOKUP(A18,DATA[Item No.],DATA[O],"") -> 0 | I18: =_xlfn.XLOOKUP(A18,DATA[Item No.],DATA[K],"") -> 0 | J18: =_xlfn.XLOOKUP(A18,DATA[Item No.],DATA[V],"") -> 0 | K18: =_xlfn.XLOOKUP(A18,DATA[Item No.],DATA[GF],"") -> 0 | L18: =_xlfn.XLOOKUP(A18,DATA[Item No.],DATA[N],"") -> 0 | M18: =_xlfn.XLOOKUP(A18,DATA[Item No.],DATA[H],"") -> 0 | N18: =_xlfn.XLOOKUP(A18,DATA[Item No.],DATA[CM],"") -> Y | O18: =_xlfn.XLOOKUP(A18,DATA[Item No.],DATA[CO],"") -> Y | P18: =_xlfn.XLOOKUP(A18,DATA[Item No.],DATA[CP],"") -> 0 | Q18: =_xlfn.XLOOKUP(A18,DATA[Item No.],DATA[Guaranteed Days],"") -> 81 | R18: =_xlfn.XLOOKUP(A18,DATA[Item No.],DATA[Storage],"") -> Dry | S18: =_xlfn.XLOOKUP(A18,DATA[Item No.],DATA[Price],"") -> 89.54 | T18: =_xlfn.XLOOKUP(A18,DATA[Item No.],DATA[Monthly Promo],"") -> 0 | U18: =_xlfn.XLOOKUP(A18,DATA[Item No.],DATA[Promo Discount],"") -> 0 | V18: =_xlfn.XLOOKUP(A18,DATA[Item No.],DATA[SRP],"") -> 18.99 | W18: =_xlfn.XLOOKUP(A18,DATA[Item No.],DATA[SKU Territory Ranking - East],"") -> 3
A19: FN2011 | C19: =_xlfn.XLOOKUP(A19,DATA[Item No.],DATA[Description],"") -> Old School Espresso | D19: =_xlfn.XLOOKUP(A19,DATA[Item No.],DATA[Unit UPC],"") -> 883242002014 | E19: =_xlfn.XLOOKUP(A19,DATA[Item No.],DATA[Size],"") -> 340G | F19: =_xlfn.XLOOKUP(A19,DATA[Item No.],DATA[Picked],"") -> CA | G19: =_xlfn.XLOOKUP(A19,DATA[Item No.],DATA[Pack],"") -> 6 | H19: =_xlfn.XLOOKUP(A19,DATA[Item No.],DATA[O],"") -> 0 | I19: =_xlfn.XLOOKUP(A19,DATA[Item No.],DATA[K],"") -> 0 | J19: =_xlfn.XLOOKUP(A19,DATA[Item No.],DATA[V],"") -> 0 | K19: =_xlfn.XLOOKUP(A19,DATA[Item No.],DATA[GF],"") -> 0 | L19: =_xlfn.XLOOKUP(A19,DATA[Item No.],DATA[N],"") -> 0 | M19: =_xlfn.XLOOKUP(A19,DATA[Item No.],DATA[H],"") -> 0 | N19: =_xlfn.XLOOKUP(A19,DATA[Item No.],DATA[CM],"") -> Y | O19: =_xlfn.XLOOKUP(A19,DATA[Item No.],DATA[CO],"") -> Y | P19: =_xlfn.XLOOKUP(A19,DATA[Item No.],DATA[CP],"") -> 0 | Q19: =_xlfn.XLOOKUP(A19,DATA[Item No.],DATA[Guaranteed Days],"") -> 81 | R19: =_xlfn.XLOOKUP(A19,DATA[Item No.],DATA[Storage],"") -> Dry | S19: =_xlfn.XLOOKUP(A19,DATA[Item No.],DATA[Price],"") -> 89.54 | T19: =_xlfn.XLOOKUP(A19,DATA[Item No.],DATA[Monthly Promo],"") -> 0 | U19: =_xlfn.XLOOKUP(A19,DATA[Item No.],DATA[Promo Discount],"") -> 0 | V19: =_xlfn.XLOOKUP(A19,DATA[Item No.],DATA[SRP],"") -> 18.99 | W19: =_xlfn.XLOOKUP(A19,DATA[Item No.],DATA[SKU Territory Ranking - East],"") -> 1
A20: FN2028 | C20: =_xlfn.XLOOKUP(A20,DATA[Item No.],DATA[Description],"") -> Blue Sky Espresso | D20: =_xlfn.XLOOKUP(A20,DATA[Item No.],DATA[Unit UPC],"") -> 883242002021 | E20: =_xlfn.XLOOKUP(A20,DATA[Item No.],DATA[Size],"") -> 340G | F20: =_xlfn.XLOOKUP(A20,DATA[Item No.],DATA[Picked],"") -> CA | G20: =_xlfn.XLOOKUP(A20,DATA[Item No.],DATA[Pack],"") -> 6 | H20: =_xlfn.XLOOKUP(A20,DATA[Item No.],DATA[O],"") -> 0 | I20: =_xlfn.XLOOKUP(A20,DATA[Item No.],DATA[K],"") -> 0 | J20: =_xlfn.XLOOKUP(A20,DATA[Item No.],DATA[V],"") -> 0 | K20: =_xlfn.XLOOKUP(A20,DATA[Item No.],DATA[GF],"") -> 0 | L20: =_xlfn.XLOOKUP(A20,DATA[Item No.],DATA[N],"") -> 0 | M20: =_xlfn.XLOOKUP(A20,DATA[Item No.],DATA[H],"") -> 0 | N20: =_xlfn.XLOOKUP(A20,DATA[Item No.],DATA[CM],"") -> Y | O20: =_xlfn.XLOOKUP(A20,DATA[Item No.],DATA[CO],"") -> Y | P20: =_xlfn.XLOOKUP(A20,DATA[Item No.],DATA[CP],"") -> 0 | Q20: =_xlfn.XLOOKUP(A20,DATA[Item No.],DATA[Guaranteed Days],"") -> 81 | R20: =_xlfn.XLOOKUP(A20,DATA[Item No.],DATA[Storage],"") -> Dry | S20: =_xlfn.XLOOKUP(A20,DATA[Item No.],DATA[Price],"") -> 89.54 | T20: =_xlfn.XLOOKUP(A20,DATA[Item No.],DATA[Monthly Promo],"") -> 0 | U20: =_xlfn.XLOOKUP(A20,DATA[Item No.],DATA[Promo Discount],"") -> 0 | V20: =_xlfn.XLOOKUP(A20,DATA[Item No.],DATA[SRP],"") -> 19.99 | W20: =_xlfn.XLOOKUP(A20,DATA[Item No.],DATA[SKU Territory Ranking - East],"") -> 0
A21: FN2035 | C21: =_xlfn.XLOOKUP(A21,DATA[Item No.],DATA[Description],"") -> Organic Espresso | D21: =_xlfn.XLOOKUP(A21,DATA[Item No.],DATA[Unit UPC],"") -> 883242002038 | E21: =_xlfn.XLOOKUP(A21,DATA[Item No.],DATA[Size],"") -> 340G | F21: =_xlfn.XLOOKUP(A21,DATA[Item No.],DATA[Picked],"") -> CA | G21: =_xlfn.XLOOKUP(A21,DATA[Item No.],DATA[Pack],"") -> 6 | H21: =_xlfn.XLOOKUP(A21,DATA[Item No.],DATA[O],"") -> Y | I21: =_xlfn.XLOOKUP(A21,DATA[Item No.],DATA[K],"") -> 0 | J21: =_xlfn.XLOOKUP(A21,DATA[Item No.],DATA[V],"") -> 0 | K21: =_xlfn.XLOOKUP(A21,DATA[Item No.],DATA[GF],"") -> 0 | L21: =_xlfn.XLOOKUP(A21,DATA[Item No.],DATA[N],"") -> 0 | M21: =_xlfn.XLOOKUP(A21,DATA[Item No.],DATA[H],"") -> 0 | N21: =_xlfn.XLOOKUP(A21,DATA[Item No.],DATA[CM],"") -> Y | O21: =_xlfn.XLOOKUP(A21,DATA[Item No.],DATA[CO],"") -> Y | P21: =_xlfn.XLOOKUP(A21,DATA[Item No.],DATA[CP],"") -> 0 | Q21: =_xlfn.XLOOKUP(A21,DATA[Item No.],DATA[Guaranteed Days],"") -> 81 | R21: =_xlfn.XLOOKUP(A21,DATA[Item No.],DATA[Storage],"") -> Dry | S21: =_xlfn.XLOOKUP(A21,DATA[Item No.],DATA[Price],"") -> 89.54 | T21: =_xlfn.XLOOKUP(A21,DATA[Item No.],DATA[Monthly Promo],"") -> 0 | U21: =_xlfn.XLOOKUP(A21,DATA[Item No.],DATA[Promo Discount],"") -> 0 | V21: =_xlfn.XLOOKUP(A21,DATA[Item No.],DATA[SRP],"") -> 18.99 | W21: =_xlfn.XLOOKUP(A21,DATA[Item No.],DATA[SKU Territory Ranking - East],"") -> 4
A22: FN2042 | C22: =_xlfn.XLOOKUP(A22,DATA[Item No.],DATA[Description],"") -> Organic Breakfast Roast | D22: =_xlfn.XLOOKUP(A22,DATA[Item No.],DATA[Unit UPC],"") -> 883242002045 | E22: =_xlfn.XLOOKUP(A22,DATA[Item No.],DATA[Size],"") -> 340G | F22: =_xlfn.XLOOKUP(A22,DATA[Item No.],DATA[Picked],"") -> CA | G22: =_xlfn.XLOOKUP(A22,DATA[Item No.],DATA[Pack],"") -> 6 | H22: =_xlfn.XLOOKUP(A22,DATA[Item No.],DATA[O],"") -> Y | I22: =_xlfn.XLOOKUP(A22,DATA[Item No.],DATA[K],"") -> 0 | J22: =_xlfn.XLOOKUP(A22,DATA[Item No.],DATA[V],"") -> 0 | K22: =_xlfn.XLOOKUP(A22,DATA[Item No.],DATA[GF],"") -> 0 | L22: =_xlfn.XLOOKUP(A22,DATA[Item No.],DATA[N],"") -> 0 | M22: =_xlfn.XLOOKUP(A22,DATA[Item No.],DATA[H],"") -> 0 | N22: =_xlfn.XLOOKUP(A22,DATA[Item No.],DATA[CM],"") -> Y | O22: =_xlfn.XLOOKUP(A22,DATA[Item No.],DATA[CO],"") -> Y | P22: =_xlfn.XLOOKUP(A22,DATA[Item No.],DATA[CP],"") -> 0 | Q22: =_xlfn.XLOOKUP(A22,DATA[Item No.],DATA[Guaranteed Days],"") -> 81 | R22: =_xlfn.XLOOKUP(A22,DATA[Item No.],DATA[Storage],"") -> Dry | S22: =_xlfn.XLOOKUP(A22,DATA[Item No.],DATA[Price],"") -> 89.54 | T22: =_xlfn.XLOOKUP(A22,DATA[Item No.],DATA[Monthly Promo],"") -> 0 | U22: =_xlfn.XLOOKUP(A22,DATA[Item No.],DATA[Promo Discount],"") -> 0 | V22: =_xlfn.XLOOKUP(A22,DATA[Item No.],DATA[SRP],"") -> 18.99 | W22: =_xlfn.XLOOKUP(A22,DATA[Item No.],DATA[SKU Territory Ranking - East],"") -> 2
A23: FN2868 | C23: =_xlfn.XLOOKUP(A23,DATA[Item No.],DATA[Description],"") -> Nostalgia Blend | D23: =_xlfn.XLOOKUP(A23,DATA[Item No.],DATA[Unit UPC],"") -> 883242002861 | E23: =_xlfn.XLOOKUP(A23,DATA[Item No.],DATA[Size],"") -> 340G | F23: =_xlfn.XLOOKUP(A23,DATA[Item No.],DATA[Picked],"") -> CA | G23: =_xlfn.XLOOKUP(A23,DATA[Item No.],DATA[Pack],"") -> 6 | H23: =_xlfn.XLOOKUP(A23,DATA[Item No.],DATA[O],"") -> Y | I23: =_xlfn.XLOOKUP(A23,DATA[Item No.],DATA[K],"") -> 0 | J23: =_xlfn.XLOOKUP(A23,DATA[Item No.],DATA[V],"") -> 0 | K23: =_xlfn.XLOOKUP(A23,DATA[Item No.],DATA[GF],"") -> 0 | L23: =_xlfn.XLOOKUP(A23,DATA[Item No.],DATA[N],"") -> 0 | M23: =_xlfn.XLOOKUP(A23,DATA[Item No.],DATA[H],"") -> 0 | N23: =_xlfn.XLOOKUP(A23,DATA[Item No.],DATA[CM],"") -> Y | O23: =_xlfn.XLOOKUP(A23,DATA[Item No.],DATA[CO],"") -> Y | P23: =_xlfn.XLOOKUP(A23,DATA[Item No.],DATA[CP],"") -> 0 | Q23: =_xlfn.XLOOKUP(A23,DATA[Item No.],DATA[Guaranteed Days],"") -> 81 | R23: =_xlfn.XLOOKUP(A23,DATA[Item No.],DATA[Storage],"") -> Dry | S23: =_xlfn.XLOOKUP(A23,DATA[Item No.],DATA[Price],"") -> 89.54 | T23: =_xlfn.XLOOKUP(A23,DATA[Item No.],DATA[Monthly Promo],"") -> 0 | U23: =_xlfn.XLOOKUP(A23,DATA[Item No.],DATA[Promo Discount],"") -> 0 | V23: =_xlfn.XLOOKUP(A23,DATA[Item No.],DATA[SRP],"") -> 17.99 | W23: =_xlfn.XLOOKUP(A23,DATA[Item No.],DATA[SKU Territory Ranking - East],"") -> 6
A24: A2 | C24: =_xlfn.XLOOKUP(A24,DATA[Item No.],DATA[Description],"") ->  | D24: =_xlfn.XLOOKUP(A24,DATA[Item No.],DATA[Unit UPC],"") ->  | E24: =_xlfn.XLOOKUP(A24,DATA[Item No.],DATA[Size],"") ->  | F24: =_xlfn.XLOOKUP(A24,DATA[Item No.],DATA[Picked],"") ->  | G24: =_xlfn.XLOOKUP(A24,DATA[Item No.],DATA[Pack],"") ->  | H24: =_xlfn.XLOOKUP(A24,DATA[Item No.],DATA[O],"") ->  | I24: =_xlfn.XLOOKUP(A24,DATA[Item No.],DATA[K],"") ->  | J24: =_xlfn.XLOOKUP(A24,DATA[Item No.],DATA[V],"") ->  | K24: =_xlfn.XLOOKUP(A24,DATA[Item No.],DATA[GF],"") ->  | L24: =_xlfn.XLOOKUP(A24,DATA[Item No.],DATA[N],"") ->  | M24: =_xlfn.XLOOKUP(A24,DATA[Item No.],DATA[H],"") ->  | N24: =_xlfn.XLOOKUP(A24,DATA[Item No.],DATA[CM],"") ->  | O24: =_xlfn.XLOOKUP(A24,DATA[Item No.],DATA[CO],"") ->  | P24: =_xlfn.XLOOKUP(A24,DATA[Item No.],DATA[CP],"") ->  | Q24: =_xlfn.XLOOKUP(A24,DATA[Item No.],DATA[Guaranteed Days],"") ->  | R24: =_xlfn.XLOOKUP(A24,DATA[Item No.],DATA[Storage],"") ->  | S24: =_xlfn.XLOOKUP(A24,DATA[Item No.],DATA[Price],"") ->  | T24: =_xlfn.XLOOKUP(A24,DATA[Item No.],DATA[Monthly Promo],"") ->  | U24: =_xlfn.XLOOKUP(A24,DATA[Item No.],DATA[Promo Discount],"") ->  | V24: =_xlfn.XLOOKUP(A24,DATA[Item No.],DATA[SRP],"") ->  | W24: =_xlfn.XLOOKUP(A24,DATA[Item No.],DATA[SKU Territory Ranking - East],"") -> 
A25: A2 MILK | C25: =_xlfn.XLOOKUP(A25,DATA[Item No.],DATA[Description],"") ->  | D25: =_xlfn.XLOOKUP(A25,DATA[Item No.],DATA[Unit UPC],"") ->  | E25: =_xlfn.XLOOKUP(A25,DATA[Item No.],DATA[Size],"") ->  | F25: =_xlfn.XLOOKUP(A25,DATA[Item No.],DATA[Picked],"") ->  | G25: =_xlfn.XLOOKUP(A25,DATA[Item No.],DATA[Pack],"") ->  | H25: =_xlfn.XLOOKUP(A25,DATA[Item No.],DATA[O],"") ->  | I25: =_xlfn.XLOOKUP(A25,DATA[Item No.],DATA[K],"") ->  | J25: =_xlfn.XLOOKUP(A25,DATA[Item No.],DATA[V],"") ->  | K25: =_xlfn.XLOOKUP(A25,DATA[Item No.],DATA[GF],"") ->  | L25: =_xlfn.XLOOKUP(A25,DATA[Item No.],DATA[N],"") ->  | M25: =_xlfn.XLOOKUP(A25,DATA[Item No.],DATA[H],"") ->  | N25: =_xlfn.XLOOKUP(A25,DATA[Item No.],DATA[CM],"") ->  | O25: =_xlfn.XLOOKUP(A25,DATA[Item No.],DATA[CO],"") ->  | P25: =_xlfn.XLOOKUP(A25,DATA[Item No.],DATA[CP],"") ->  | Q25: =_xlfn.XLOOKUP(A25,DATA[Item No.],DATA[Guaranteed Days],"") ->  | R25: =_xlfn.XLOOKUP(A25,DATA[Item No.],DATA[Storage],"") ->  | S25: =_xlfn.XLOOKUP(A25,DATA[Item No.],DATA[Price],"") ->  | T25: =_xlfn.XLOOKUP(A25,DATA[Item No.],DATA[Monthly Promo],"") ->  | U25: =_xlfn.XLOOKUP(A25,DATA[Item No.],DATA[Promo Discount],"") ->  | V25: =_xlfn.XLOOKUP(A25,DATA[Item No.],DATA[SRP],"") ->  | W25: =_xlfn.XLOOKUP(A25,DATA[Item No.],DATA[SKU Territory Ranking - East],"") -> 
A26: AL6218 | C26: =_xlfn.XLOOKUP(A26,DATA[Item No.],DATA[Description],"") -> 1% Partly Skimmed | D26: =_xlfn.XLOOKUP(A26,DATA[Item No.],DATA[Unit UPC],"") -> 628011256218 | E26: =_xlfn.XLOOKUP(A26,DATA[Item No.],DATA[Size],"") -> 2L | F26: =_xlfn.XLOOKUP(A26,DATA[Item No.],DATA[Picked],"") -> EA | G26: =_xlfn.XLOOKUP(A26,DATA[Item No.],DATA[Pack],"") -> 1 | H26: =_xlfn.XLOOKUP(A26,DATA[Item No.],DATA[O],"") -> 0 | I26: =_xlfn.XLOOKUP(A26,DATA[Item No.],DATA[K],"") -> 0 | J26: =_xlfn.XLOOKUP(A26,DATA[Item No.],DATA[V],"") -> 0 | K26: =_xlfn.XLOOKUP(A26,DATA[Item No.],DATA[GF],"") -> 0 | L26: =_xlfn.XLOOKUP(A26,DATA[Item No.],DATA[N],"") -> 0 | M26: =_xlfn.XLOOKUP(A26,DATA[Item No.],DATA[H],"") -> 0 | N26: =_xlfn.XLOOKUP(A26,DATA[Item No.],DATA[CM],"") -> Y | O26: =_xlfn.XLOOKUP(A26,DATA[Item No.],DATA[CO],"") -> Y | P26: =_xlfn.XLOOKUP(A26,DATA[Item No.],DATA[CP],"") -> Y | Q26: =_xlfn.XLOOKUP(A26,DATA[Item No.],DATA[Guaranteed Days],"") -> 15 | R26: =_xlfn.XLOOKUP(A26,DATA[Item No.],DATA[Storage],"") -> Chilled | S26: =_xlfn.XLOOKUP(A26,DATA[Item No.],DATA[Price],"") -> 7.44 | T26: =_xlfn.XLOOKUP(A26,DATA[Item No.],DATA[Monthly Promo],"") -> 0 | U26: =_xlfn.XLOOKUP(A26,DATA[Item No.],DATA[Promo Discount],"") -> 0 | V26: =_xlfn.XLOOKUP(A26,DATA[Item No.],DATA[SRP],"") -> 6.99 - 8.49 | W26: =_xlfn.XLOOKUP(A26,DATA[Item No.],DATA[SKU Territory Ranking - East],"") -> 3
A27: AL6225 | C27: =_xlfn.XLOOKUP(A27,DATA[Item No.],DATA[Description],"") -> 2% Partly Skimmed | D27: =_xlfn.XLOOKUP(A27,DATA[Item No.],DATA[Unit UPC],"") -> 628011256225 | E27: =_xlfn.XLOOKUP(A27,DATA[Item No.],DATA[Size],"") -> 2L | F27: =_xlfn.XLOOKUP(A27,DATA[Item No.],DATA[Picked],"") -> EA | G27: =_xlfn.XLOOKUP(A27,DATA[Item No.],DATA[Pack],"") -> 1 | H27: =_xlfn.XLOOKUP(A27,DATA[Item No.],DATA[O],"") -> 0 | I27: =_xlfn.XLOOKUP(A27,DATA[Item No.],DATA[K],"") -> 0 | J27: =_xlfn.XLOOKUP(A27,DATA[Item No.],DATA[V],"") -> 0 | K27: =_xlfn.XLOOKUP(A27,DATA[Item No.],DATA[GF],"") -> 0 | L27: =_xlfn.XLOOKUP(A27,DATA[Item No.],DATA[N],"") -> 0 | M27: =_xlfn.XLOOKUP(A27,DATA[Item No.],DATA[H],"") -> 0 | N27: =_xlfn.XLOOKUP(A27,DATA[Item No.],DATA[CM],"") -> Y | O27: =_xlfn.XLOOKUP(A27,DATA[Item No.],DATA[CO],"") -> Y | P27: =_xlfn.XLOOKUP(A27,DATA[Item No.],DATA[CP],"") -> Y | Q27: =_xlfn.XLOOKUP(A27,DATA[Item No.],DATA[Guaranteed Days],"") -> 15 | R27: =_xlfn.XLOOKUP(A27,DATA[Item No.],DATA[Storage],"") -> Chilled | S27: =_xlfn.XLOOKUP(A27,DATA[Item No.],DATA[Price],"") -> 7.44 | T27: =_xlfn.XLOOKUP(A27,DATA[Item No.],DATA[Monthly Promo],"") -> 0 | U27: =_xlfn.XLOOKUP(A27,DATA[Item No.],DATA[Promo Discount],"") -> 0 | V27: =_xlfn.XLOOKUP(A27,DATA[Item No.],DATA[SRP],"") -> 6.99 - 8.49 | W27: =_xlfn.XLOOKUP(A27,DATA[Item No.],DATA[SKU Territory Ranking - East],"") -> 2
A28: AL6232 | C28: =_xlfn.XLOOKUP(A28,DATA[Item No.],DATA[Description],"") -> 3.25% Homogenized | D28: =_xlfn.XLOOKUP(A28,DATA[Item No.],DATA[Unit UPC],"") -> 628011256232 | E28: =_xlfn.XLOOKUP(A28,DATA[Item No.],DATA[Size],"") -> 2L | F28: =_xlfn.XLOOKUP(A28,DATA[Item No.],DATA[Picked],"") -> EA | G28: =_xlfn.XLOOKUP(A28,DATA[Item No.],DATA[Pack],"") -> 1 | H28: =_xlfn.XLOOKUP(A28,DATA[Item No.],DATA[O],"") -> 0 | I28: =_xlfn.XLOOKUP(A28,DATA[Item No.],DATA[K],"") -> 0 | J28: =_xlfn.XLOOKUP(A28,DATA[Item No.],DATA[V],"") -> 0 | K28: =_xlfn.XLOOKUP(A28,DATA[Item No.],DATA[GF],"") -> 0 | L28: =_xlfn.XLOOKUP(A28,DATA[Item No.],DATA[N],"") -> 0 | M28: =_xlfn.XLOOKUP(A28,DATA[Item No.],DATA[H],"") -> 0 | N28: =_xlfn.XLOOKUP(A28,DATA[Item No.],DATA[CM],"") -> Y | O28: =_xlfn.XLOOKUP(A28,DATA[Item No.],DATA[CO],"") -> Y | P28: =_xlfn.XLOOKUP(A28,DATA[Item No.],DATA[CP],"") -> Y | Q28: =_xlfn.XLOOKUP(A28,DATA[Item No.],DATA[Guaranteed Days],"") -> 15 | R28: =_xlfn.XLOOKUP(A28,DATA[Item No.],DATA[Storage],"") -> Chilled | S28: =_xlfn.XLOOKUP(A28,DATA[Item No.],DATA[Price],"") -> 7.44 | T28: =_xlfn.XLOOKUP(A28,DATA[Item No.],DATA[Monthly Promo],"") -> 0 | U28: =_xlfn.XLOOKUP(A28,DATA[Item No.],DATA[Promo Discount],"") -> 0 | V28: =_xlfn.XLOOKUP(A28,DATA[Item No.],DATA[SRP],"") -> 6.99 - 8.49 | W28: =_xlfn.XLOOKUP(A28,DATA[Item No.],DATA[SKU Territory Ranking - East],"") -> 1
A29: AL6345 | C29: =_xlfn.XLOOKUP(A29,DATA[Item No.],DATA[Description],"") -> Half & Half 10% Cream | D29: =_xlfn.XLOOKUP(A29,DATA[Item No.],DATA[Unit UPC],"") -> 628011256348 | E29: =_xlfn.XLOOKUP(A29,DATA[Item No.],DATA[Size],"") -> 473ML | F29: =_xlfn.XLOOKUP(A29,DATA[Item No.],DATA[Picked],"") -> EA | G29: =_xlfn.XLOOKUP(A29,DATA[Item No.],DATA[Pack],"") -> 1 | H29: =_xlfn.XLOOKUP(A29,DATA[Item No.],DATA[O],"") -> 0 | I29: =_xlfn.XLOOKUP(A29,DATA[Item No.],DATA[K],"") -> 0 | J29: =_xlfn.XLOOKUP(A29,DATA[Item No.],DATA[V],"") -> 0 | K29: =_xlfn.XLOOKUP(A29,DATA[Item No.],DATA[GF],"") -> 0 | L29: =_xlfn.XLOOKUP(A29,DATA[Item No.],DATA[N],"") -> 0 | M29: =_xlfn.XLOOKUP(A29,DATA[Item No.],DATA[H],"") -> 0 | N29: =_xlfn.XLOOKUP(A29,DATA[Item No.],DATA[CM],"") -> Y | O29: =_xlfn.XLOOKUP(A29,DATA[Item No.],DATA[CO],"") -> Y | P29: =_xlfn.XLOOKUP(A29,DATA[Item No.],DATA[CP],"") -> Y | Q29: =_xlfn.XLOOKUP(A29,DATA[Item No.],DATA[Guaranteed Days],"") -> 12 | R29: =_xlfn.XLOOKUP(A29,DATA[Item No.],DATA[Storage],"") -> Chilled | S29: =_xlfn.XLOOKUP(A29,DATA[Item No.],DATA[Price],"") -> 4.13 | T29: =_xlfn.XLOOKUP(A29,DATA[Item No.],DATA[Monthly Promo],"") -> 0 | U29: =_xlfn.XLOOKUP(A29,DATA[Item No.],DATA[Promo Discount],"") -> 0 | V29: =_xlfn.XLOOKUP(A29,DATA[Item No.],DATA[SRP],"") -> 5.29 | W29: =_xlfn.XLOOKUP(A29,DATA[Item No.],DATA[SKU Territory Ranking - East],"") -> 0
A30: ALDERWOOD FARMS | C30: =_xlfn.XLOOKUP(A30,DATA[Item No.],DATA[Description],"") ->  | D30: =_xlfn.XLOOKUP(A30,DATA[Item No.],DATA[Unit UPC],"") ->  | E30: =_xlfn.XLOOKUP(A30,DATA[Item No.],DATA[Size],"") ->  | F30: =_xlfn.XLOOKUP(A30,DATA[Item No.],DATA[Picked],"") ->  | G30: =_xlfn.XLOOKUP(A30,DATA[Item No.],DATA[Pack],"") ->  | H30: =_xlfn.XLOOKUP(A30,DATA[Item No.],DATA[O],"") ->  | I30: =_xlfn.XLOOKUP(A30,DATA[Item No.],DATA[K],"") ->  | J30: =_xlfn.XLOOKUP(A30,DATA[Item No.],DATA[V],"") ->  | K30: =_xlfn.XLOOKUP(A30,DATA[Item No.],DATA[GF],"") ->  | L30: =_xlfn.XLOOKUP(A30,DATA[Item No.],DATA[N],"") ->  | M30: =_xlfn.XLOOKUP(A30,DATA[Item No.],DATA[H],"") ->  | N30: =_xlfn.XLOOKUP(A30,DATA[Item No.],DATA[CM],"") ->  | O30: =_xlfn.XLOOKUP(A30,DATA[Item No.],DATA[CO],"") ->  | P30: =_xlfn.XLOOKUP(A30,DATA[Item No.],DATA[CP],"") ->  | Q30: =_xlfn.XLOOKUP(A30,DATA[Item No.],DATA[Guaranteed Days],"") ->  | R30: =_xlfn.XLOOKUP(A30,DATA[Item No.],DATA[Storage],"") ->  | S30: =_xlfn.XLOOKUP(A30,DATA[Item No.],DATA[Price],"") ->  | T30: =_xlfn.XLOOKUP(A30,DATA[Item No.],DATA[Monthly Promo],"") ->  | U30: =_xlfn.XLOOKUP(A30,DATA[Item No.],DATA[Promo Discount],"") ->  | V30: =_xlfn.XLOOKUP(A30,DATA[Item No.],DATA[SRP],"") ->  | W30: =_xlfn.XLOOKUP(A30,DATA[Item No.],DATA[SKU Territory Ranking - East],"") -> 
A31: Bone Broth | C31: =_xlfn.XLOOKUP(A31,DATA[Item No.],DATA[Description],"") ->  | D31: =_xlfn.XLOOKUP(A31,DATA[Item No.],DATA[Unit UPC],"") ->  | E31: =_xlfn.XLOOKUP(A31,DATA[Item No.],DATA[Size],"") ->  | F31: =_xlfn.XLOOKUP(A31,DATA[Item No.],DATA[Picked],"") ->  | G31: =_xlfn.XLOOKUP(A31,DATA[Item No.],DATA[Pack],"") ->  | H31: =_xlfn.XLOOKUP(A31,DATA[Item No.],DATA[O],"") ->  | I31: =_xlfn.XLOOKUP(A31,DATA[Item No.],DATA[K],"") ->  | J31: =_xlfn.XLOOKUP(A31,DATA[Item No.],DATA[V],"") ->  | K31: =_xlfn.XLOOKUP(A31,DATA[Item No.],DATA[GF],"") ->  | L31: =_xlfn.XLOOKUP(A31,DATA[Item No.],DATA[N],"") ->  | M31: =_xlfn.XLOOKUP(A31,DATA[Item No.],DATA[H],"") ->  | N31: =_xlfn.XLOOKUP(A31,DATA[Item No.],DATA[CM],"") ->  | O31: =_xlfn.XLOOKUP(A31,DATA[Item No.],DATA[CO],"") ->  | P31: =_xlfn.XLOOKUP(A31,DATA[Item No.],DATA[CP],"") ->  | Q31: =_xlfn.XLOOKUP(A31,DATA[Item No.],DATA[Guaranteed Days],"") ->  | R31: =_xlfn.XLOOKUP(A31,DATA[Item No.],DATA[Storage],"") ->  | S31: =_xlfn.XLOOKUP(A31,DATA[Item No.],DATA[Price],"") ->  | T31: =_xlfn.XLOOKUP(A31,DATA[Item No.],DATA[Monthly Promo],"") ->  | U31: =_xlfn.XLOOKUP(A31,DATA[Item No.],DATA[Promo Discount],"") ->  | V31: =_xlfn.XLOOKUP(A31,DATA[Item No.],DATA[SRP],"") ->  | W31: =_xlfn.XLOOKUP(A31,DATA[Item No.],DATA[SKU Territory Ranking - East],"") -> 
A32: AF1252 | C32: =_xlfn.XLOOKUP(A32,DATA[Item No.],DATA[Description],"") -> Organic Beef Bone Broth | D32: =_xlfn.XLOOKUP(A32,DATA[Item No.],DATA[Unit UPC],"") -> 871261001255 | E32: =_xlfn.XLOOKUP(A32,DATA[Item No.],DATA[Size],"") -> 500ML | F32: =_xlfn.XLOOKUP(A32,DATA[Item No.],DATA[Picked],"") -> CA | G32: =_xlfn.XLOOKUP(A32,DATA[Item No.],DATA[Pack],"") -> 12 | H32: =_xlfn.XLOOKUP(A32,DATA[Item No.],DATA[O],"") -> Y | I32: =_xlfn.XLOOKUP(A32,DATA[Item No.],DATA[K],"") -> 0 | J32: =_xlfn.XLOOKUP(A32,DATA[Item No.],DATA[V],"") -> 0 | K32: =_xlfn.XLOOKUP(A32,DATA[Item No.],DATA[GF],"") -> 0 | L32: =_xlfn.XLOOKUP(A32,DATA[Item No.],DATA[N],"") -> 0 | M32: =_xlfn.XLOOKUP(A32,DATA[Item No.],DATA[H],"") -> 0 | N32: =_xlfn.XLOOKUP(A32,DATA[Item No.],DATA[CM],"") -> Y | O32: =_xlfn.XLOOKUP(A32,DATA[Item No.],DATA[CO],"") -> Y | P32: =_xlfn.XLOOKUP(A32,DATA[Item No.],DATA[CP],"") -> Y | Q32: =_xlfn.XLOOKUP(A32,DATA[Item No.],DATA[Guaranteed Days],"") -> 109 | R32: =_xlfn.XLOOKUP(A32,DATA[Item No.],DATA[Storage],"") -> Frozen | S32: =_xlfn.XLOOKUP(A32,DATA[Item No.],DATA[Price],"") -> 127.5 | T32: =_xlfn.XLOOKUP(A32,DATA[Item No.],DATA[Monthly Promo],"") -> MARCH DEAL! | U32: =_xlfn.XLOOKUP(A32,DATA[Item No.],DATA[Promo Discount],"") -> SAVE 10% | V32: =_xlfn.XLOOKUP(A32,DATA[Item No.],DATA[SRP],"") -> 12.99 - 14.99 | W32: =_xlfn.XLOOKUP(A32,DATA[Item No.],DATA[SKU Territory Ranking - East],"") -> 0
A33: AF1269 | C33: =_xlfn.XLOOKUP(A33,DATA[Item No.],DATA[Description],"") -> Organic Free Range Chicken Bone Broth | D33: =_xlfn.XLOOKUP(A33,DATA[Item No.],DATA[Unit UPC],"") -> 871261001262 | E33: =_xlfn.XLOOKUP(A33,DATA[Item No.],DATA[Size],"") -> 500ML | F33: =_xlfn.XLOOKUP(A33,DATA[Item No.],DATA[Picked],"") -> CA | G33: =_xlfn.XLOOKUP(A33,DATA[Item No.],DATA[Pack],"") -> 12 | H33: =_xlfn.XLOOKUP(A33,DATA[Item No.],DATA[O],"") -> Y | I33: =_xlfn.XLOOKUP(A33,DATA[Item No.],DATA[K],"") -> 0 | J33: =_xlfn.XLOOKUP(A33,DATA[Item No.],DATA[V],"") -> 0 | K33: =_xlfn.XLOOKUP(A33,DATA[Item No.],DATA[GF],"") -> 0 | L33: =_xlfn.XLOOKUP(A33,DATA[Item No.],DATA[N],"") -> 0 | M33: =_xlfn.XLOOKUP(A33,DATA[Item No.],DATA[H],"") -> 0 | N33: =_xlfn.XLOOKUP(A33,DATA[Item No.],DATA[CM],"") -> Y | O33: =_xlfn.XLOOKUP(A33,DATA[Item No.],DATA[CO],"") -> Y | P33: =_xlfn.XLOOKUP(A33,DATA[Item No.],DATA[CP],"") -> Y | Q33: =_xlfn.XLOOKUP(A33,DATA[Item No.],DATA[Guaranteed Days],"") -> 109 | R33: =_xlfn.XLOOKUP(A33,DATA[Item No.],DATA[Storage],"") -> Frozen | S33: =_xlfn.XLOOKUP(A33,DATA[Item No.],DATA[Price],"") -> 127.5 | T33: =_xlfn.XLOOKUP(A33,DATA[Item No.],DATA[Monthly Promo],"") -> MARCH DEAL! | U33: =_xlfn.XLOOKUP(A33,DATA[Item No.],DATA[Promo Discount],"") -> SAVE 10% | V33: =_xlfn.XLOOKUP(A33,DATA[Item No.],DATA[SRP],"") -> 12.99 - 14.99 | W33: =_xlfn.XLOOKUP(A33,DATA[Item No.],DATA[SKU Territory Ranking - East],"") -> 0
A34: Breakfast Sausages | C34: =_xlfn.XLOOKUP(A34,DATA[Item No.],DATA[Description],"") ->  | D34: =_xlfn.XLOOKUP(A34,DATA[Item No.],DATA[Unit UPC],"") ->  | E34: =_xlfn.XLOOKUP(A34,DATA[Item No.],DATA[Size],"") ->  | F34: =_xlfn.XLOOKUP(A34,DATA[Item No.],DATA[Picked],"") ->  | G34: =_xlfn.XLOOKUP(A34,DATA[Item No.],DATA[Pack],"") ->  | H34: =_xlfn.XLOOKUP(A34,DATA[Item No.],DATA[O],"") ->  | I34: =_xlfn.XLOOKUP(A34,DATA[Item No.],DATA[K],"") ->  | J34: =_xlfn.XLOOKUP(A34,DATA[Item No.],DATA[V],"") ->  | K34: =_xlfn.XLOOKUP(A34,DATA[Item No.],DATA[GF],"") ->  | L34: =_xlfn.XLOOKUP(A34,DATA[Item No.],DATA[N],"") ->  | M34: =_xlfn.XLOOKUP(A34,DATA[Item No.],DATA[H],"") ->  | N34: =_xlfn.XLOOKUP(A34,DATA[Item No.],DATA[CM],"") ->  | O34: =_xlfn.XLOOKUP(A34,DATA[Item No.],DATA[CO],"") ->  | P34: =_xlfn.XLOOKUP(A34,DATA[Item No.],DATA[CP],"") ->  | Q34: =_xlfn.XLOOKUP(A34,DATA[Item No.],DATA[Guaranteed Days],"") ->  | R34: =_xlfn.XLOOKUP(A34,DATA[Item No.],DATA[Storage],"") ->  | S34: =_xlfn.XLOOKUP(A34,DATA[Item No.],DATA[Price],"") ->  | T34: =_xlfn.XLOOKUP(A34,DATA[Item No.],DATA[Monthly Promo],"") ->  | U34: =_xlfn.XLOOKUP(A34,DATA[Item No.],DATA[Promo Discount],"") ->  | V34: =_xlfn.XLOOKUP(A34,DATA[Item No.],DATA[SRP],"") ->  | W34: =_xlfn.XLOOKUP(A34,DATA[Item No.],DATA[SKU Territory Ranking - East],"") -> 
A35: AF1276 | C35: =_xlfn.XLOOKUP(A35,DATA[Item No.],DATA[Description],"") -> Breakfast Sausages Original Pork | D35: =_xlfn.XLOOKUP(A35,DATA[Item No.],DATA[Unit UPC],"") -> 871261001279 | E35: =_xlfn.XLOOKUP(A35,DATA[Item No.],DATA[Size],"") -> 375G | F35: =_xlfn.XLOOKUP(A35,DATA[Item No.],DATA[Picked],"") -> CA | G35: =_xlfn.XLOOKUP(A35,DATA[Item No.],DATA[Pack],"") -> 8 | H35: =_xlfn.XLOOKUP(A35,DATA[Item No.],DATA[O],"") -> 0 | I35: =_xlfn.XLOOKUP(A35,DATA[Item No.],DATA[K],"") -> 0 | J35: =_xlfn.XLOOKUP(A35,DATA[Item No.],DATA[V],"") -> 0 | K35: =_xlfn.XLOOKUP(A35,DATA[Item No.],DATA[GF],"") -> 0 | L35: =_xlfn.XLOOKUP(A35,DATA[Item No.],DATA[N],"") -> 0 | M35: =_xlfn.XLOOKUP(A35,DATA[Item No.],DATA[H],"") -> 0 | N35: =_xlfn.XLOOKUP(A35,DATA[Item No.],DATA[CM],"") -> Y | O35: =_xlfn.XLOOKUP(A35,DATA[Item No.],DATA[CO],"") -> Y | P35: =_xlfn.XLOOKUP(A35,DATA[Item No.],DATA[CP],"") -> Y | Q35: =_xlfn.XLOOKUP(A35,DATA[Item No.],DATA[Guaranteed Days],"") -> 110 | R35: =_xlfn.XLOOKUP(A35,DATA[Item No.],DATA[Storage],"") -> Frozen | S35: =_xlfn.XLOOKUP(A35,DATA[Item No.],DATA[Price],"") -> 64.21 | T35: =_xlfn.XLOOKUP(A35,DATA[Item No.],DATA[Monthly Promo],"") -> 0 | U35: =_xlfn.XLOOKUP(A35,DATA[Item No.],DATA[Promo Discount],"") -> 0 | V35: =_xlfn.XLOOKUP(A35,DATA[Item No.],DATA[SRP],"") -> 12.99 | W35: =_xlfn.XLOOKUP(A35,DATA[Item No.],DATA[SKU Territory Ranking - East],"") -> 0
A36: AF1283 | C36: =_xlfn.XLOOKUP(A36,DATA[Item No.],DATA[Description],"") -> Breakfast Sausages Maple Pork | D36: =_xlfn.XLOOKUP(A36,DATA[Item No.],DATA[Unit UPC],"") -> 871261001286 | E36: =_xlfn.XLOOKUP(A36,DATA[Item No.],DATA[Size],"") -> 375G | F36: =_xlfn.XLOOKUP(A36,DATA[Item No.],DATA[Picked],"") -> CA | G36: =_xlfn.XLOOKUP(A36,DATA[Item No.],DATA[Pack],"") -> 8 | H36: =_xlfn.XLOOKUP(A36,DATA[Item No.],DATA[O],"") -> 0 | I36: =_xlfn.XLOOKUP(A36,DATA[Item No.],DATA[K],"") -> 0 | J36: =_xlfn.XLOOKUP(A36,DATA[Item No.],DATA[V],"") -> 0 | K36: =_xlfn.XLOOKUP(A36,DATA[Item No.],DATA[GF],"") -> 0 | L36: =_xlfn.XLOOKUP(A36,DATA[Item No.],DATA[N],"") -> 0 | M36: =_xlfn.XLOOKUP(A36,DATA[Item No.],DATA[H],"") -> 0 | N36: =_xlfn.XLOOKUP(A36,DATA[Item No.],DATA[CM],"") -> Y | O36: =_xlfn.XLOOKUP(A36,DATA[Item No.],DATA[CO],"") -> Y | P36: =_xlfn.XLOOKUP(A36,DATA[Item No.],DATA[CP],"") -> Y | Q36: =_xlfn.XLOOKUP(A36,DATA[Item No.],DATA[Guaranteed Days],"") -> 110 | R36: =_xlfn.XLOOKUP(A36,DATA[Item No.],DATA[Storage],"") -> Frozen | S36: =_xlfn.XLOOKUP(A36,DATA[Item No.],DATA[Price],"") -> 64.21 | T36: =_xlfn.XLOOKUP(A36,DATA[Item No.],DATA[Monthly Promo],"") -> 0 | U36: =_xlfn.XLOOKUP(A36,DATA[Item No.],DATA[Promo Discount],"") -> 0 | V36: =_xlfn.XLOOKUP(A36,DATA[Item No.],DATA[SRP],"") -> 12.99 | W36: =_xlfn.XLOOKUP(A36,DATA[Item No.],DATA[SKU Territory Ranking - East],"") -> 0
A37: French Fries | C37: =_xlfn.XLOOKUP(A37,DATA[Item No.],DATA[Description],"") ->  | D37: =_xlfn.XLOOKUP(A37,DATA[Item No.],DATA[Unit UPC],"") ->  | E37: =_xlfn.XLOOKUP(A37,DATA[Item No.],DATA[Size],"") ->  | F37: =_xlfn.XLOOKUP(A37,DATA[Item No.],DATA[Picked],"") ->  | G37: =_xlfn.XLOOKUP(A37,DATA[Item No.],DATA[Pack],"") ->  | H37: =_xlfn.XLOOKUP(A37,DATA[Item No.],DATA[O],"") ->  | I37: =_xlfn.XLOOKUP(A37,DATA[Item No.],DATA[K],"") ->  | J37: =_xlfn.XLOOKUP(A37,DATA[Item No.],DATA[V],"") ->  | K37: =_xlfn.XLOOKUP(A37,DATA[Item No.],DATA[GF],"") ->  | L37: =_xlfn.XLOOKUP(A37,DATA[Item No.],DATA[N],"") ->  | M37: =_xlfn.XLOOKUP(A37,DATA[Item No.],DATA[H],"") ->  | N37: =_xlfn.XLOOKUP(A37,DATA[Item No.],DATA[CM],"") ->  | O37: =_xlfn.XLOOKUP(A37,DATA[Item No.],DATA[CO],"") ->  | P37: =_xlfn.XLOOKUP(A37,DATA[Item No.],DATA[CP],"") ->  | Q37: =_xlfn.XLOOKUP(A37,DATA[Item No.],DATA[Guaranteed Days],"") ->  | R37: =_xlfn.XLOOKUP(A37,DATA[Item No.],DATA[Storage],"") ->  | S37: =_xlfn.XLOOKUP(A37,DATA[Item No.],DATA[Price],"") ->  | T37: =_xlfn.XLOOKUP(A37,DATA[Item No.],DATA[Monthly Promo],"") ->  | U37: =_xlfn.XLOOKUP(A37,DATA[Item No.],DATA[Promo Discount],"") ->  | V37: =_xlfn.XLOOKUP(A37,DATA[Item No.],DATA[SRP],"") ->  | W37: =_xlfn.XLOOKUP(A37,DATA[Item No.],DATA[SKU Territory Ranking - East],"") -> 
A38: AF1351 | C38: =_xlfn.XLOOKUP(A38,DATA[Item No.],DATA[Description],"") -> Crinkle Cut French Fries | D38: =_xlfn.XLOOKUP(A38,DATA[Item No.],DATA[Unit UPC],"") -> 871261001354 | E38: =_xlfn.XLOOKUP(A38,DATA[Item No.],DATA[Size],"") -> 450G | F38: =_xlfn.XLOOKUP(A38,DATA[Item No.],DATA[Picked],"") -> CA | G38: =_xlfn.XLOOKUP(A38,DATA[Item No.],DATA[Pack],"") -> 12 | H38: =_xlfn.XLOOKUP(A38,DATA[Item No.],DATA[O],"") -> 0 | I38: =_xlfn.XLOOKUP(A38,DATA[Item No.],DATA[K],"") -> 0 | J38: =_xlfn.XLOOKUP(A38,DATA[Item No.],DATA[V],"") -> 0 | K38: =_xlfn.XLOOKUP(A38,DATA[Item No.],DATA[GF],"") -> 0 | L38: =_xlfn.XLOOKUP(A38,DATA[Item No.],DATA[N],"") -> 0 | M38: =_xlfn.XLOOKUP(A38,DATA[Item No.],DATA[H],"") -> 0 | N38: =_xlfn.XLOOKUP(A38,DATA[Item No.],DATA[CM],"") -> Y | O38: =_xlfn.XLOOKUP(A38,DATA[Item No.],DATA[CO],"") -> Y | P38: =_xlfn.XLOOKUP(A38,DATA[Item No.],DATA[CP],"") -> 0 | Q38: =_xlfn.XLOOKUP(A38,DATA[Item No.],DATA[Guaranteed Days],"") -> 219 | R38: =_xlfn.XLOOKUP(A38,DATA[Item No.],DATA[Storage],"") -> Frozen | S38: =_xlfn.XLOOKUP(A38,DATA[Item No.],DATA[Price],"") -> 59.71 | T38: =_xlfn.XLOOKUP(A38,DATA[Item No.],DATA[Monthly Promo],"") -> 0 | U38: =_xlfn.XLOOKUP(A38,DATA[Item No.],DATA[Promo Discount],"") -> 0 | V38: =_xlfn.XLOOKUP(A38,DATA[Item No.],DATA[SRP],"") -> 6.99 | W38: =_xlfn.XLOOKUP(A38,DATA[Item No.],DATA[SKU Territory Ranking - East],"") -> 19
A39: AF1368 | C39: =_xlfn.XLOOKUP(A39,DATA[Item No.],DATA[Description],"") -> Straight Cut French Fries | D39: =_xlfn.XLOOKUP(A39,DATA[Item No.],DATA[Unit UPC],"") -> 871261001361 | E39: =_xlfn.XLOOKUP(A39,DATA[Item No.],DATA[Size],"") -> 450G | F39: =_xlfn.XLOOKUP(A39,DATA[Item No.],DATA[Picked],"") -> CA | G39: =_xlfn.XLOOKUP(A39,DATA[Item No.],DATA[Pack],"") -> 12 | H39: =_xlfn.XLOOKUP(A39,DATA[Item No.],DATA[O],"") -> 0 | I39: =_xlfn.XLOOKUP(A39,DATA[Item No.],DATA[K],"") -> 0 | J39: =_xlfn.XLOOKUP(A39,DATA[Item No.],DATA[V],"") -> 0 | K39: =_xlfn.XLOOKUP(A39,DATA[Item No.],DATA[GF],"") -> 0 | L39: =_xlfn.XLOOKUP(A39,DATA[Item No.],DATA[N],"") -> 0 | M39: =_xlfn.XLOOKUP(A39,DATA[Item No.],DATA[H],"") -> 0 | N39: =_xlfn.XLOOKUP(A39,DATA[Item No.],DATA[CM],"") -> Y | O39: =_xlfn.XLOOKUP(A39,DATA[Item No.],DATA[CO],"") -> Y | P39: =_xlfn.XLOOKUP(A39,DATA[Item No.],DATA[CP],"") -> 0 | Q39: =_xlfn.XLOOKUP(A39,DATA[Item No.],DATA[Guaranteed Days],"") -> 219 | R39: =_xlfn.XLOOKUP(A39,DATA[Item No.],DATA[Storage],"") -> Frozen | S39: =_xlfn.XLOOKUP(A39,DATA[Item No.],DATA[Price],"") -> 57.8 | T39: =_xlfn.XLOOKUP(A39,DATA[Item No.],DATA[Monthly Promo],"") -> 0 | U39: =_xlfn.XLOOKUP(A39,DATA[Item No.],DATA[Promo Discount],"") -> 0 | V39: =_xlfn.XLOOKUP(A39,DATA[Item No.],DATA[SRP],"") -> 6.99 | W39: =_xlfn.XLOOKUP(A39,DATA[Item No.],DATA[SKU Territory Ranking - East],"") -> 19
A40: AF1375 | C40: =_xlfn.XLOOKUP(A40,DATA[Item No.],DATA[Description],"") -> Waffle Cut French Fries | D40: =_xlfn.XLOOKUP(A40,DATA[Item No.],DATA[Unit UPC],"") -> 871261001378 | E40: =_xlfn.XLOOKUP(A40,DATA[Item No.],DATA[Size],"") -> 450G | F40: =_xlfn.XLOOKUP(A40,DATA[Item No.],DATA[Picked],"") -> CA | G40: =_xlfn.XLOOKUP(A40,DATA[Item No.],DATA[Pack],"") -> 12 | H40: =_xlfn.XLOOKUP(A40,DATA[Item No.],DATA[O],"") -> 0 | I40: =_xlfn.XLOOKUP(A40,DATA[Item No.],DATA[K],"") -> 0 | J40: =_xlfn.XLOOKUP(A40,DATA[Item No.],DATA[V],"") -> 0 | K40: =_xlfn.XLOOKUP(A40,DATA[Item No.],DATA[GF],"") -> 0 | L40: =_xlfn.XLOOKUP(A40,DATA[Item No.],DATA[N],"") -> 0 | M40: =_xlfn.XLOOKUP(A40,DATA[Item No.],DATA[H],"") -> 0 | N40: =_xlfn.XLOOKUP(A40,DATA[Item No.],DATA[CM],"") -> Y | O40: =_xlfn.XLOOKUP(A40,DATA[Item No.],DATA[CO],"") -> Y | P40: =_xlfn.XLOOKUP(A40,DATA[Item No.],DATA[CP],"") -> 0 | Q40: =_xlfn.XLOOKUP(A40,DATA[Item No.],DATA[Guaranteed Days],"") -> 219 | R40: =_xlfn.XLOOKUP(A40,DATA[Item No.],DATA[Storage],"") -> Frozen | S40: =_xlfn.XLOOKUP(A40,DATA[Item No.],DATA[Price],"") -> 58.05 | T40: =_xlfn.XLOOKUP(A40,DATA[Item No.],DATA[Monthly Promo],"") -> 0 | U40: =_xlfn.XLOOKUP(A40,DATA[Item No.],DATA[Promo Discount],"") -> 0 | V40: =_xlfn.XLOOKUP(A40,DATA[Item No.],DATA[SRP],"") -> 6.99 | W40: =_xlfn.XLOOKUP(A40,DATA[Item No.],DATA[SKU Territory Ranking - East],"") -> 17
A41: AF1382 | C41: =_xlfn.XLOOKUP(A41,DATA[Item No.],DATA[Description],"") -> Sweet Potato Classic Cut French Fries | D41: =_xlfn.XLOOKUP(A41,DATA[Item No.],DATA[Unit UPC],"") -> 871261001385 | E41: =_xlfn.XLOOKUP(A41,DATA[Item No.],DATA[Size],"") -> 400G | F41: =_xlfn.XLOOKUP(A41,DATA[Item No.],DATA[Picked],"") -> CA | G41: =_xlfn.XLOOKUP(A41,DATA[Item No.],DATA[Pack],"") -> 12 | H41: =_xlfn.XLOOKUP(A41,DATA[Item No.],DATA[O],"") -> 0 | I41: =_xlfn.XLOOKUP(A41,DATA[Item No.],DATA[K],"") -> 0 | J41: =_xlfn.XLOOKUP(A41,DATA[Item No.],DATA[V],"") -> 0 | K41: =_xlfn.XLOOKUP(A41,DATA[Item No.],DATA[GF],"") -> 0 | L41: =_xlfn.XLOOKUP(A41,DATA[Item No.],DATA[N],"") -> 0 | M41: =_xlfn.XLOOKUP(A41,DATA[Item No.],DATA[H],"") -> 0 | N41: =_xlfn.XLOOKUP(A41,DATA[Item No.],DATA[CM],"") -> Y | O41: =_xlfn.XLOOKUP(A41,DATA[Item No.],DATA[CO],"") -> Y | P41: =_xlfn.XLOOKUP(A41,DATA[Item No.],DATA[CP],"") -> 0 | Q41: =_xlfn.XLOOKUP(A41,DATA[Item No.],DATA[Guaranteed Days],"") -> 219 | R41: =_xlfn.XLOOKUP(A41,DATA[Item No.],DATA[Storage],"") -> Frozen | S41: =_xlfn.XLOOKUP(A41,DATA[Item No.],DATA[Price],"") -> 70.4 | T41: =_xlfn.XLOOKUP(A41,DATA[Item No.],DATA[Monthly Promo],"") -> 0 | U41: =_xlfn.XLOOKUP(A41,DATA[Item No.],DATA[Promo Discount],"") -> 0 | V41: =_xlfn.XLOOKUP(A41,DATA[Item No.],DATA[SRP],"") -> 7.99 | W41: =_xlfn.XLOOKUP(A41,DATA[Item No.],DATA[SKU Territory Ranking - East],"") -> 16
A42: Hot Dogs | C42: =_xlfn.XLOOKUP(A42,DATA[Item No.],DATA[Description],"") ->  | D42: =_xlfn.XLOOKUP(A42,DATA[Item No.],DATA[Unit UPC],"") ->  | E42: =_xlfn.XLOOKUP(A42,DATA[Item No.],DATA[Size],"") ->  | F42: =_xlfn.XLOOKUP(A42,DATA[Item No.],DATA[Picked],"") ->  | G42: =_xlfn.XLOOKUP(A42,DATA[Item No.],DATA[Pack],"") ->  | H42: =_xlfn.XLOOKUP(A42,DATA[Item No.],DATA[O],"") ->  | I42: =_xlfn.XLOOKUP(A42,DATA[Item No.],DATA[K],"") ->  | J42: =_xlfn.XLOOKUP(A42,DATA[Item No.],DATA[V],"") ->  | K42: =_xlfn.XLOOKUP(A42,DATA[Item No.],DATA[GF],"") ->  | L42: =_xlfn.XLOOKUP(A42,DATA[Item No.],DATA[N],"") ->  | M42: =_xlfn.XLOOKUP(A42,DATA[Item No.],DATA[H],"") ->  | N42: =_xlfn.XLOOKUP(A42,DATA[Item No.],DATA[CM],"") ->  | O42: =_xlfn.XLOOKUP(A42,DATA[Item No.],DATA[CO],"") ->  | P42: =_xlfn.XLOOKUP(A42,DATA[Item No.],DATA[CP],"") ->  | Q42: =_xlfn.XLOOKUP(A42,DATA[Item No.],DATA[Guaranteed Days],"") ->  | R42: =_xlfn.XLOOKUP(A42,DATA[Item No.],DATA[Storage],"") ->  | S42: =_xlfn.XLOOKUP(A42,DATA[Item No.],DATA[Price],"") ->  | T42: =_xlfn.XLOOKUP(A42,DATA[Item No.],DATA[Monthly Promo],"") ->  | U42: =_xlfn.XLOOKUP(A42,DATA[Item No.],DATA[Promo Discount],"") ->  | V42: =_xlfn.XLOOKUP(A42,DATA[Item No.],DATA[SRP],"") ->  | W42: =_xlfn.XLOOKUP(A42,DATA[Item No.],DATA[SKU Territory Ranking - East],"") -> 
A43: AF1214 | C43: =_xlfn.XLOOKUP(A43,DATA[Item No.],DATA[Description],"") -> Grass Fed Beef | D43: =_xlfn.XLOOKUP(A43,DATA[Item No.],DATA[Unit UPC],"") -> 871261001217 | E43: =_xlfn.XLOOKUP(A43,DATA[Item No.],DATA[Size],"") -> 375G | F43: =_xlfn.XLOOKUP(A43,DATA[Item No.],DATA[Picked],"") -> CA | G43: =_xlfn.XLOOKUP(A43,DATA[Item No.],DATA[Pack],"") -> 8 | H43: =_xlfn.XLOOKUP(A43,DATA[Item No.],DATA[O],"") -> 0 | I43: =_xlfn.XLOOKUP(A43,DATA[Item No.],DATA[K],"") -> 0 | J43: =_xlfn.XLOOKUP(A43,DATA[Item No.],DATA[V],"") -> 0 | K43: =_xlfn.XLOOKUP(A43,DATA[Item No.],DATA[GF],"") -> 0 | L43: =_xlfn.XLOOKUP(A43,DATA[Item No.],DATA[N],"") -> 0 | M43: =_xlfn.XLOOKUP(A43,DATA[Item No.],DATA[H],"") -> Y | N43: =_xlfn.XLOOKUP(A43,DATA[Item No.],DATA[CM],"") -> Y | O43: =_xlfn.XLOOKUP(A43,DATA[Item No.],DATA[CO],"") -> Y | P43: =_xlfn.XLOOKUP(A43,DATA[Item No.],DATA[CP],"") -> Y | Q43: =_xlfn.XLOOKUP(A43,DATA[Item No.],DATA[Guaranteed Days],"") -> 25 | R43: =_xlfn.XLOOKUP(A43,DATA[Item No.],DATA[Storage],"") -> Chilled | S43: =_xlfn.XLOOKUP(A43,DATA[Item No.],DATA[Price],"") -> 79.66 | T43: =_xlfn.XLOOKUP(A43,DATA[Item No.],DATA[Monthly Promo],"") -> 0 | U43: =_xlfn.XLOOKUP(A43,DATA[Item No.],DATA[Promo Discount],"") -> 0 | V43: =_xlfn.XLOOKUP(A43,DATA[Item No.],DATA[SRP],"") -> 11.99 | W43: =_xlfn.XLOOKUP(A43,DATA[Item No.],DATA[SKU Territory Ranking - East],"") -> 3
A44: AF1221 | C44: =_xlfn.XLOOKUP(A44,DATA[Item No.],DATA[Description],"") -> Free Range Chicken | D44: =_xlfn.XLOOKUP(A44,DATA[Item No.],DATA[Unit UPC],"") -> 871261001224 | E44: =_xlfn.XLOOKUP(A44,DATA[Item No.],DATA[Size],"") -> 375G | F44: =_xlfn.XLOOKUP(A44,DATA[Item No.],DATA[Picked],"") -> CA | G44: =_xlfn.XLOOKUP(A44,DATA[Item No.],DATA[Pack],"") -> 8 | H44: =_xlfn.XLOOKUP(A44,DATA[Item No.],DATA[O],"") -> 0 | I44: =_xlfn.XLOOKUP(A44,DATA[Item No.],DATA[K],"") -> 0 | J44: =_xlfn.XLOOKUP(A44,DATA[Item No.],DATA[V],"") -> 0 | K44: =_xlfn.XLOOKUP(A44,DATA[Item No.],DATA[GF],"") -> 0 | L44: =_xlfn.XLOOKUP(A44,DATA[Item No.],DATA[N],"") -> 0 | M44: =_xlfn.XLOOKUP(A44,DATA[Item No.],DATA[H],"") -> Y | N44: =_xlfn.XLOOKUP(A44,DATA[Item No.],DATA[CM],"") -> Y | O44: =_xlfn.XLOOKUP(A44,DATA[Item No.],DATA[CO],"") -> Y | P44: =_xlfn.XLOOKUP(A44,DATA[Item No.],DATA[CP],"") -> Y | Q44: =_xlfn.XLOOKUP(A44,DATA[Item No.],DATA[Guaranteed Days],"") -> 25 | R44: =_xlfn.XLOOKUP(A44,DATA[Item No.],DATA[Storage],"") -> Chilled | S44: =_xlfn.XLOOKUP(A44,DATA[Item No.],DATA[Price],"") -> 77.24 | T44: =_xlfn.XLOOKUP(A44,DATA[Item No.],DATA[Monthly Promo],"") -> 0 | U44: =_xlfn.XLOOKUP(A44,DATA[Item No.],DATA[Promo Discount],"") -> 0 | V44: =_xlfn.XLOOKUP(A44,DATA[Item No.],DATA[SRP],"") -> 11.99 | W44: =_xlfn.XLOOKUP(A44,DATA[Item No.],DATA[SKU Territory Ranking - East],"") -> 4
A45: Maple Syrup | C45: =_xlfn.XLOOKUP(A45,DATA[Item No.],DATA[Description],"") ->  | D45: =_xlfn.XLOOKUP(A45,DATA[Item No.],DATA[Unit UPC],"") ->  | E45: =_xlfn.XLOOKUP(A45,DATA[Item No.],DATA[Size],"") ->  | F45: =_xlfn.XLOOKUP(A45,DATA[Item No.],DATA[Picked],"") ->  | G45: =_xlfn.XLOOKUP(A45,DATA[Item No.],DATA[Pack],"") ->  | H45: =_xlfn.XLOOKUP(A45,DATA[Item No.],DATA[O],"") ->  | I45: =_xlfn.XLOOKUP(A45,DATA[Item No.],DATA[K],"") ->  | J45: =_xlfn.XLOOKUP(A45,DATA[Item No.],DATA[V],"") ->  | K45: =_xlfn.XLOOKUP(A45,DATA[Item No.],DATA[GF],"") ->  | L45: =_xlfn.XLOOKUP(A45,DATA[Item No.],DATA[N],"") ->  | M45: =_xlfn.XLOOKUP(A45,DATA[Item No.],DATA[H],"") ->  | N45: =_xlfn.XLOOKUP(A45,DATA[Item No.],DATA[CM],"") ->  | O45: =_xlfn.XLOOKUP(A45,DATA[Item No.],DATA[CO],"") ->  | P45: =_xlfn.XLOOKUP(A45,DATA[Item No.],DATA[CP],"") ->  | Q45: =_xlfn.XLOOKUP(A45,DATA[Item No.],DATA[Guaranteed Days],"") ->  | R45: =_xlfn.XLOOKUP(A45,DATA[Item No.],DATA[Storage],"") ->  | S45: =_xlfn.XLOOKUP(A45,DATA[Item No.],DATA[Price],"") ->  | T45: =_xlfn.XLOOKUP(A45,DATA[Item No.],DATA[Monthly Promo],"") ->  | U45: =_xlfn.XLOOKUP(A45,DATA[Item No.],DATA[Promo Discount],"") ->  | V45: =_xlfn.XLOOKUP(A45,DATA[Item No.],DATA[SRP],"") ->  | W45: =_xlfn.XLOOKUP(A45,DATA[Item No.],DATA[SKU Territory Ranking - East],"") -> 
A46: AF2129 | C46: =_xlfn.XLOOKUP(A46,DATA[Item No.],DATA[Description],"") -> 100% Pure Organic Ontario Maple Syrup | D46: =_xlfn.XLOOKUP(A46,DATA[Item No.],DATA[Unit UPC],"") -> 871261002122 | E46: =_xlfn.XLOOKUP(A46,DATA[Item No.],DATA[Size],"") -> 500ML | F46: =_xlfn.XLOOKUP(A46,DATA[Item No.],DATA[Picked],"") -> CA | G46: =_xlfn.XLOOKUP(A46,DATA[Item No.],DATA[Pack],"") -> 12 | H46: =_xlfn.XLOOKUP(A46,DATA[Item No.],DATA[O],"") -> Y | I46: =_xlfn.XLOOKUP(A46,DATA[Item No.],DATA[K],"") -> 0 | J46: =_xlfn.XLOOKUP(A46,DATA[Item No.],DATA[V],"") -> 0 | K46: =_xlfn.XLOOKUP(A46,DATA[Item No.],DATA[GF],"") -> 0 | L46: =_xlfn.XLOOKUP(A46,DATA[Item No.],DATA[N],"") -> 0 | M46: =_xlfn.XLOOKUP(A46,DATA[Item No.],DATA[H],"") -> 0 | N46: =_xlfn.XLOOKUP(A46,DATA[Item No.],DATA[CM],"") -> Y | O46: =_xlfn.XLOOKUP(A46,DATA[Item No.],DATA[CO],"") -> Y | P46: =_xlfn.XLOOKUP(A46,DATA[Item No.],DATA[CP],"") -> Y | Q46: =_xlfn.XLOOKUP(A46,DATA[Item No.],DATA[Guaranteed Days],"") -> 219 | R46: =_xlfn.XLOOKUP(A46,DATA[Item No.],DATA[Storage],"") -> Dry | S46: =_xlfn.XLOOKUP(A46,DATA[Item No.],DATA[Price],"") -> 161.83 | T46: =_xlfn.XLOOKUP(A46,DATA[Item No.],DATA[Monthly Promo],"") -> 0 | U46: =_xlfn.XLOOKUP(A46,DATA[Item No.],DATA[Promo Discount],"") -> 0 | V46: =_xlfn.XLOOKUP(A46,DATA[Item No.],DATA[SRP],"") -> 19.99 | W46: =_xlfn.XLOOKUP(A46,DATA[Item No.],DATA[SKU Territory Ranking - East],"") -> 18
A47: Pasture Raised Eggs | C47: =_xlfn.XLOOKUP(A47,DATA[Item No.],DATA[Description],"") ->  | D47: =_xlfn.XLOOKUP(A47,DATA[Item No.],DATA[Unit UPC],"") ->  | E47: =_xlfn.XLOOKUP(A47,DATA[Item No.],DATA[Size],"") ->  | F47: =_xlfn.XLOOKUP(A47,DATA[Item No.],DATA[Picked],"") ->  | G47: =_xlfn.XLOOKUP(A47,DATA[Item No.],DATA[Pack],"") ->  | H47: =_xlfn.XLOOKUP(A47,DATA[Item No.],DATA[O],"") ->  | I47: =_xlfn.XLOOKUP(A47,DATA[Item No.],DATA[K],"") ->  | J47: =_xlfn.XLOOKUP(A47,DATA[Item No.],DATA[V],"") ->  | K47: =_xlfn.XLOOKUP(A47,DATA[Item No.],DATA[GF],"") ->  | L47: =_xlfn.XLOOKUP(A47,DATA[Item No.],DATA[N],"") ->  | M47: =_xlfn.XLOOKUP(A47,DATA[Item No.],DATA[H],"") ->  | N47: =_xlfn.XLOOKUP(A47,DATA[Item No.],DATA[CM],"") ->  | O47: =_xlfn.XLOOKUP(A47,DATA[Item No.],DATA[CO],"") ->  | P47: =_xlfn.XLOOKUP(A47,DATA[Item No.],DATA[CP],"") ->  | Q47: =_xlfn.XLOOKUP(A47,DATA[Item No.],DATA[Guaranteed Days],"") ->  | R47: =_xlfn.XLOOKUP(A47,DATA[Item No.],DATA[Storage],"") ->  | S47: =_xlfn.XLOOKUP(A47,DATA[Item No.],DATA[Price],"") ->  | T47: =_xlfn.XLOOKUP(A47,DATA[Item No.],DATA[Monthly Promo],"") ->  | U47: =_xlfn.XLOOKUP(A47,DATA[Item No.],DATA[Promo Discount],"") ->  | V47: =_xlfn.XLOOKUP(A47,DATA[Item No.],DATA[SRP],"") ->  | W47: =_xlfn.XLOOKUP(A47,DATA[Item No.],DATA[SKU Territory Ranking - East],"") -> 
A48: AF1016 | C48: =_xlfn.XLOOKUP(A48,DATA[Item No.],DATA[Description],"") -> Large Pasture Raised Brown Eggs | D48: =_xlfn.XLOOKUP(A48,DATA[Item No.],DATA[Unit UPC],"") -> 871261001019 | E48: =_xlfn.XLOOKUP(A48,DATA[Item No.],DATA[Size],"") -> 1DZ | F48: =_xlfn.XLOOKUP(A48,DATA[Item No.],DATA[Picked],"") -> CA | G48: =_xlfn.XLOOKUP(A48,DATA[Item No.],DATA[Pack],"") -> 15 | H48: =_xlfn.XLOOKUP(A48,DATA[Item No.],DATA[O],"") -> 0 | I48: =_xlfn.XLOOKUP(A48,DATA[Item No.],DATA[K],"") -> 0 | J48: =_xlfn.XLOOKUP(A48,DATA[Item No.],DATA[V],"") -> 0 | K48: =_xlfn.XLOOKUP(A48,DATA[Item No.],DATA[GF],"") -> 0 | L48: =_xlfn.XLOOKUP(A48,DATA[Item No.],DATA[N],"") -> 0 | M48: =_xlfn.XLOOKUP(A48,DATA[Item No.],DATA[H],"") -> 0 | N48: =_xlfn.XLOOKUP(A48,DATA[Item No.],DATA[CM],"") -> Y | O48: =_xlfn.XLOOKUP(A48,DATA[Item No.],DATA[CO],"") -> Y | P48: =_xlfn.XLOOKUP(A48,DATA[Item No.],DATA[CP],"") -> Y | Q48: =_xlfn.XLOOKUP(A48,DATA[Item No.],DATA[Guaranteed Days],"") -> 21 | R48: =_xlfn.XLOOKUP(A48,DATA[Item No.],DATA[Storage],"") -> Chilled | S48: =_xlfn.XLOOKUP(A48,DATA[Item No.],DATA[Price],"") -> 103.52 | T48: =_xlfn.XLOOKUP(A48,DATA[Item No.],DATA[Monthly Promo],"") -> 0 | U48: =_xlfn.XLOOKUP(A48,DATA[Item No.],DATA[Promo Discount],"") -> 0 | V48: =_xlfn.XLOOKUP(A48,DATA[Item No.],DATA[SRP],"") -> 7.49 | W48: =_xlfn.XLOOKUP(A48,DATA[Item No.],DATA[SKU Territory Ranking - East],"") -> 2
A49: AF1023 | C49: =_xlfn.XLOOKUP(A49,DATA[Item No.],DATA[Description],"") -> X-Large Pasture Raised Brown Eggs | D49: =_xlfn.XLOOKUP(A49,DATA[Item No.],DATA[Unit UPC],"") -> 871261001026 | E49: =_xlfn.XLOOKUP(A49,DATA[Item No.],DATA[Size],"") -> 1DZ | F49: =_xlfn.XLOOKUP(A49,DATA[Item No.],DATA[Picked],"") -> CA | G49: =_xlfn.XLOOKUP(A49,DATA[Item No.],DATA[Pack],"") -> 15 | H49: =_xlfn.XLOOKUP(A49,DATA[Item No.],DATA[O],"") -> 0 | I49: =_xlfn.XLOOKUP(A49,DATA[Item No.],DATA[K],"") -> 0 | J49: =_xlfn.XLOOKUP(A49,DATA[Item No.],DATA[V],"") -> 0 | K49: =_xlfn.XLOOKUP(A49,DATA[Item No.],DATA[GF],"") -> 0 | L49: =_xlfn.XLOOKUP(A49,DATA[Item No.],DATA[N],"") -> 0 | M49: =_xlfn.XLOOKUP(A49,DATA[Item No.],DATA[H],"") -> 0 | N49: =_xlfn.XLOOKUP(A49,DATA[Item No.],DATA[CM],"") -> Y | O49: =_xlfn.XLOOKUP(A49,DATA[Item No.],DATA[CO],"") -> Y | P49: =_xlfn.XLOOKUP(A49,DATA[Item No.],DATA[CP],"") -> Y | Q49: =_xlfn.XLOOKUP(A49,DATA[Item No.],DATA[Guaranteed Days],"") -> 21 | R49: =_xlfn.XLOOKUP(A49,DATA[Item No.],DATA[Storage],"") -> Chilled | S49: =_xlfn.XLOOKUP(A49,DATA[Item No.],DATA[Price],"") -> 106.3 | T49: =_xlfn.XLOOKUP(A49,DATA[Item No.],DATA[Monthly Promo],"") -> 0 | U49: =_xlfn.XLOOKUP(A49,DATA[Item No.],DATA[Promo Discount],"") -> 0 | V49: =_xlfn.XLOOKUP(A49,DATA[Item No.],DATA[SRP],"") -> 7.99 | W49: =_xlfn.XLOOKUP(A49,DATA[Item No.],DATA[SKU Territory Ranking - East],"") -> 1
A50: Quail Eggs | C50: =_xlfn.XLOOKUP(A50,DATA[Item No.],DATA[Description],"") ->  | D50: =_xlfn.XLOOKUP(A50,DATA[Item No.],DATA[Unit UPC],"") ->  | E50: =_xlfn.XLOOKUP(A50,DATA[Item No.],DATA[Size],"") ->  | F50: =_xlfn.XLOOKUP(A50,DATA[Item No.],DATA[Picked],"") ->  | G50: =_xlfn.XLOOKUP(A50,DATA[Item No.],DATA[Pack],"") ->  | H50: =_xlfn.XLOOKUP(A50,DATA[Item No.],DATA[O],"") ->  | I50: =_xlfn.XLOOKUP(A50,DATA[Item No.],DATA[K],"") ->  | J50: =_xlfn.XLOOKUP(A50,DATA[Item No.],DATA[V],"") ->  | K50: =_xlfn.XLOOKUP(A50,DATA[Item No.],DATA[GF],"") ->  | L50: =_xlfn.XLOOKUP(A50,DATA[Item No.],DATA[N],"") ->  | M50: =_xlfn.XLOOKUP(A50,DATA[Item No.],DATA[H],"") ->  | N50: =_xlfn.XLOOKUP(A50,DATA[Item No.],DATA[CM],"") ->  | O50: =_xlfn.XLOOKUP(A50,DATA[Item No.],DATA[CO],"") ->  | P50: =_xlfn.XLOOKUP(A50,DATA[Item No.],DATA[CP],"") ->  | Q50: =_xlfn.XLOOKUP(A50,DATA[Item No.],DATA[Guaranteed Days],"") ->  | R50: =_xlfn.XLOOKUP(A50,DATA[Item No.],DATA[Storage],"") ->  | S50: =_xlfn.XLOOKUP(A50,DATA[Item No.],DATA[Price],"") ->  | T50: =_xlfn.XLOOKUP(A50,DATA[Item No.],DATA[Monthly Promo],"") ->  | U50: =_xlfn.XLOOKUP(A50,DATA[Item No.],DATA[Promo Discount],"") ->  | V50: =_xlfn.XLOOKUP(A50,DATA[Item No.],DATA[SRP],"") ->  | W50: =_xlfn.XLOOKUP(A50,DATA[Item No.],DATA[SKU Territory Ranking - East],"") -> 
A51: AF1030 | C51: =_xlfn.XLOOKUP(A51,DATA[Item No.],DATA[Description],"") -> Free Run Quail Eggs | D51: =_xlfn.XLOOKUP(A51,DATA[Item No.],DATA[Unit UPC],"") -> 871261001033 | E51: =_xlfn.XLOOKUP(A51,DATA[Item No.],DATA[Size],"") -> 15 | F51: =_xlfn.XLOOKUP(A51,DATA[Item No.],DATA[Picked],"") -> CA | G51: =_xlfn.XLOOKUP(A51,DATA[Item No.],DATA[Pack],"") -> 12 | H51: =_xlfn.XLOOKUP(A51,DATA[Item No.],DATA[O],"") -> 0 | I51: =_xlfn.XLOOKUP(A51,DATA[Item No.],DATA[K],"") -> 0 | J51: =_xlfn.XLOOKUP(A51,DATA[Item No.],DATA[V],"") -> 0 | K51: =_xlfn.XLOOKUP(A51,DATA[Item No.],DATA[GF],"") -> 0 | L51: =_xlfn.XLOOKUP(A51,DATA[Item No.],DATA[N],"") -> 0 | M51: =_xlfn.XLOOKUP(A51,DATA[Item No.],DATA[H],"") -> 0 | N51: =_xlfn.XLOOKUP(A51,DATA[Item No.],DATA[CM],"") -> Y | O51: =_xlfn.XLOOKUP(A51,DATA[Item No.],DATA[CO],"") -> Y | P51: =_xlfn.XLOOKUP(A51,DATA[Item No.],DATA[CP],"") -> Y | Q51: =_xlfn.XLOOKUP(A51,DATA[Item No.],DATA[Guaranteed Days],"") -> 16 | R51: =_xlfn.XLOOKUP(A51,DATA[Item No.],DATA[Storage],"") -> Chilled | S51: =_xlfn.XLOOKUP(A51,DATA[Item No.],DATA[Price],"") -> 56.8 | T51: =_xlfn.XLOOKUP(A51,DATA[Item No.],DATA[Monthly Promo],"") -> 0 | U51: =_xlfn.XLOOKUP(A51,DATA[Item No.],DATA[Promo Discount],"") -> 0 | V51: =_xlfn.XLOOKUP(A51,DATA[Item No.],DATA[SRP],"") -> 4.99 | W51: =_xlfn.XLOOKUP(A51,DATA[Item No.],DATA[SKU Territory Ranking - East],"") -> 0
A52: Raw Honey | C52: =_xlfn.XLOOKUP(A52,DATA[Item No.],DATA[Description],"") ->  | D52: =_xlfn.XLOOKUP(A52,DATA[Item No.],DATA[Unit UPC],"") ->  | E52: =_xlfn.XLOOKUP(A52,DATA[Item No.],DATA[Size],"") ->  | F52: =_xlfn.XLOOKUP(A52,DATA[Item No.],DATA[Picked],"") ->  | G52: =_xlfn.XLOOKUP(A52,DATA[Item No.],DATA[Pack],"") ->  | H52: =_xlfn.XLOOKUP(A52,DATA[Item No.],DATA[O],"") ->  | I52: =_xlfn.XLOOKUP(A52,DATA[Item No.],DATA[K],"") ->  | J52: =_xlfn.XLOOKUP(A52,DATA[Item No.],DATA[V],"") ->  | K52: =_xlfn.XLOOKUP(A52,DATA[Item No.],DATA[GF],"") ->  | L52: =_xlfn.XLOOKUP(A52,DATA[Item No.],DATA[N],"") ->  | M52: =_xlfn.XLOOKUP(A52,DATA[Item No.],DATA[H],"") ->  | N52: =_xlfn.XLOOKUP(A52,DATA[Item No.],DATA[CM],"") ->  | O52: =_xlfn.XLOOKUP(A52,DATA[Item No.],DATA[CO],"") ->  | P52: =_xlfn.XLOOKUP(A52,DATA[Item No.],DATA[CP],"") ->  | Q52: =_xlfn.XLOOKUP(A52,DATA[Item No.],DATA[Guaranteed Days],"") ->  | R52: =_xlfn.XLOOKUP(A52,DATA[Item No.],DATA[Storage],"") ->  | S52: =_xlfn.XLOOKUP(A52,DATA[Item No.],DATA[Price],"") ->  | T52: =_xlfn.XLOOKUP(A52,DATA[Item No.],DATA[Monthly Promo],"") ->  | U52: =_xlfn.XLOOKUP(A52,DATA[Item No.],DATA[Promo Discount],"") ->  | V52: =_xlfn.XLOOKUP(A52,DATA[Item No.],DATA[SRP],"") ->  | W52: =_xlfn.XLOOKUP(A52,DATA[Item No.],DATA[SKU Territory Ranking - East],"") -> 
A53: AF2082 | C53: =_xlfn.XLOOKUP(A53,DATA[Item No.],DATA[Description],"") -> Summer Wildflower Honey-Creamed Raw | D53: =_xlfn.XLOOKUP(A53,DATA[Item No.],DATA[Unit UPC],"") -> 871261002085 | E53: =_xlfn.XLOOKUP(A53,DATA[Item No.],DATA[Size],"") -> 1KG | F53: =_xlfn.XLOOKUP(A53,DATA[Item No.],DATA[Picked],"") -> CA | G53: =_xlfn.XLOOKUP(A53,DATA[Item No.],DATA[Pack],"") -> 12 | H53: =_xlfn.XLOOKUP(A53,DATA[Item No.],DATA[O],"") -> 0 | I53: =_xlfn.XLOOKUP(A53,DATA[Item No.],DATA[K],"") -> 0 | J53: =_xlfn.XLOOKUP(A53,DATA[Item No.],DATA[V],"") -> 0 | K53: =_xlfn.XLOOKUP(A53,DATA[Item No.],DATA[GF],"") -> 0 | L53: =_xlfn.XLOOKUP(A53,DATA[Item No.],DATA[N],"") -> 0 | M53: =_xlfn.XLOOKUP(A53,DATA[Item No.],DATA[H],"") -> 0 | N53: =_xlfn.XLOOKUP(A53,DATA[Item No.],DATA[CM],"") -> Y | O53: =_xlfn.XLOOKUP(A53,DATA[Item No.],DATA[CO],"") -> Y | P53: =_xlfn.XLOOKUP(A53,DATA[Item No.],DATA[CP],"") -> Y | Q53: =_xlfn.XLOOKUP(A53,DATA[Item No.],DATA[Guaranteed Days],"") -> 438 | R53: =_xlfn.XLOOKUP(A53,DATA[Item No.],DATA[Storage],"") -> Dry | S53: =_xlfn.XLOOKUP(A53,DATA[Item No.],DATA[Price],"") -> 168 | T53: =_xlfn.XLOOKUP(A53,DATA[Item No.],DATA[Monthly Promo],"") -> 0 | U53: =_xlfn.XLOOKUP(A53,DATA[Item No.],DATA[Promo Discount],"") -> 0 | V53: =_xlfn.XLOOKUP(A53,DATA[Item No.],DATA[SRP],"") -> 20.99 | W53: =_xlfn.XLOOKUP(A53,DATA[Item No.],DATA[SKU Territory Ranking - East],"") -> 22
A54: AF2099 | C54: =_xlfn.XLOOKUP(A54,DATA[Item No.],DATA[Description],"") -> Season Wildflower Raw Honey | D54: =_xlfn.XLOOKUP(A54,DATA[Item No.],DATA[Unit UPC],"") -> 871261002092 | E54: =_xlfn.XLOOKUP(A54,DATA[Item No.],DATA[Size],"") -> 500g | F54: =_xlfn.XLOOKUP(A54,DATA[Item No.],DATA[Picked],"") -> CA | G54: =_xlfn.XLOOKUP(A54,DATA[Item No.],DATA[Pack],"") -> 12 | H54: =_xlfn.XLOOKUP(A54,DATA[Item No.],DATA[O],"") -> 0 | I54: =_xlfn.XLOOKUP(A54,DATA[Item No.],DATA[K],"") -> 0 | J54: =_xlfn.XLOOKUP(A54,DATA[Item No.],DATA[V],"") -> 0 | K54: =_xlfn.XLOOKUP(A54,DATA[Item No.],DATA[GF],"") -> 0 | L54: =_xlfn.XLOOKUP(A54,DATA[Item No.],DATA[N],"") -> 0 | M54: =_xlfn.XLOOKUP(A54,DATA[Item No.],DATA[H],"") -> 0 | N54: =_xlfn.XLOOKUP(A54,DATA[Item No.],DATA[CM],"") -> Y | O54: =_xlfn.XLOOKUP(A54,DATA[Item No.],DATA[CO],"") -> Y | P54: =_xlfn.XLOOKUP(A54,DATA[Item No.],DATA[CP],"") -> Y | Q54: =_xlfn.XLOOKUP(A54,DATA[Item No.],DATA[Guaranteed Days],"") -> 438 | R54: =_xlfn.XLOOKUP(A54,DATA[Item No.],DATA[Storage],"") -> Dry | S54: =_xlfn.XLOOKUP(A54,DATA[Item No.],DATA[Price],"") -> 114 | T54: =_xlfn.XLOOKUP(A54,DATA[Item No.],DATA[Monthly Promo],"") -> 0 | U54: =_xlfn.XLOOKUP(A54,DATA[Item No.],DATA[Promo Discount],"") -> 0 | V54: =_xlfn.XLOOKUP(A54,DATA[Item No.],DATA[SRP],"") -> 20.99 | W54: =_xlfn.XLOOKUP(A54,DATA[Item No.],DATA[SKU Territory Ranking - East],"") -> 19
A55: AF2105 | C55: =_xlfn.XLOOKUP(A55,DATA[Item No.],DATA[Description],"") -> Full Season Wildflower Liquid Honey | D55: =_xlfn.XLOOKUP(A55,DATA[Item No.],DATA[Unit UPC],"") -> 871261002108 | E55: =_xlfn.XLOOKUP(A55,DATA[Item No.],DATA[Size],"") -> 1KG | F55: =_xlfn.XLOOKUP(A55,DATA[Item No.],DATA[Picked],"") -> CA | G55: =_xlfn.XLOOKUP(A55,DATA[Item No.],DATA[Pack],"") -> 12 | H55: =_xlfn.XLOOKUP(A55,DATA[Item No.],DATA[O],"") -> 0 | I55: =_xlfn.XLOOKUP(A55,DATA[Item No.],DATA[K],"") -> 0 | J55: =_xlfn.XLOOKUP(A55,DATA[Item No.],DATA[V],"") -> 0 | K55: =_xlfn.XLOOKUP(A55,DATA[Item No.],DATA[GF],"") -> 0 | L55: =_xlfn.XLOOKUP(A55,DATA[Item No.],DATA[N],"") -> 0 | M55: =_xlfn.XLOOKUP(A55,DATA[Item No.],DATA[H],"") -> 0 | N55: =_xlfn.XLOOKUP(A55,DATA[Item No.],DATA[CM],"") -> Y | O55: =_xlfn.XLOOKUP(A55,DATA[Item No.],DATA[CO],"") -> Y | P55: =_xlfn.XLOOKUP(A55,DATA[Item No.],DATA[CP],"") -> Y | Q55: =_xlfn.XLOOKUP(A55,DATA[Item No.],DATA[Guaranteed Days],"") -> 438 | R55: =_xlfn.XLOOKUP(A55,DATA[Item No.],DATA[Storage],"") -> Dry | S55: =_xlfn.XLOOKUP(A55,DATA[Item No.],DATA[Price],"") -> 168 | T55: =_xlfn.XLOOKUP(A55,DATA[Item No.],DATA[Monthly Promo],"") -> 0 | U55: =_xlfn.XLOOKUP(A55,DATA[Item No.],DATA[Promo Discount],"") -> 0 | V55: =_xlfn.XLOOKUP(A55,DATA[Item No.],DATA[SRP],"") -> 20.99 | W55: =_xlfn.XLOOKUP(A55,DATA[Item No.],DATA[SKU Territory Ranking - East],"") -> 21
A56: AF2112 | C56: =_xlfn.XLOOKUP(A56,DATA[Item No.],DATA[Description],"") -> Summer Wildflower Liquid Honey | D56: =_xlfn.XLOOKUP(A56,DATA[Item No.],DATA[Unit UPC],"") -> 871261002115 | E56: =_xlfn.XLOOKUP(A56,DATA[Item No.],DATA[Size],"") -> 500g | F56: =_xlfn.XLOOKUP(A56,DATA[Item No.],DATA[Picked],"") -> CA | G56: =_xlfn.XLOOKUP(A56,DATA[Item No.],DATA[Pack],"") -> 12 | H56: =_xlfn.XLOOKUP(A56,DATA[Item No.],DATA[O],"") -> 0 | I56: =_xlfn.XLOOKUP(A56,DATA[Item No.],DATA[K],"") -> 0 | J56: =_xlfn.XLOOKUP(A56,DATA[Item No.],DATA[V],"") -> 0 | K56: =_xlfn.XLOOKUP(A56,DATA[Item No.],DATA[GF],"") -> 0 | L56: =_xlfn.XLOOKUP(A56,DATA[Item No.],DATA[N],"") -> 0 | M56: =_xlfn.XLOOKUP(A56,DATA[Item No.],DATA[H],"") -> 0 | N56: =_xlfn.XLOOKUP(A56,DATA[Item No.],DATA[CM],"") -> Y | O56: =_xlfn.XLOOKUP(A56,DATA[Item No.],DATA[CO],"") -> Y | P56: =_xlfn.XLOOKUP(A56,DATA[Item No.],DATA[CP],"") -> Y | Q56: =_xlfn.XLOOKUP(A56,DATA[Item No.],DATA[Guaranteed Days],"") -> 438 | R56: =_xlfn.XLOOKUP(A56,DATA[Item No.],DATA[Storage],"") -> Dry | S56: =_xlfn.XLOOKUP(A56,DATA[Item No.],DATA[Price],"") -> 114 | T56: =_xlfn.XLOOKUP(A56,DATA[Item No.],DATA[Monthly Promo],"") -> 0 | U56: =_xlfn.XLOOKUP(A56,DATA[Item No.],DATA[Promo Discount],"") -> 0 | V56: =_xlfn.XLOOKUP(A56,DATA[Item No.],DATA[SRP],"") -> 20.99 | W56: =_xlfn.XLOOKUP(A56,DATA[Item No.],DATA[SKU Territory Ranking - East],"") -> 20
A57: ALT-PRO ADVANTAGE | C57: =_xlfn.XLOOKUP(A57,DATA[Item No.],DATA[Description],"") ->  | D57: =_xlfn.XLOOKUP(A57,DATA[Item No.],DATA[Unit UPC],"") ->  | E57: =_xlfn.XLOOKUP(A57,DATA[Item No.],DATA[Size],"") ->  | F57: =_xlfn.XLOOKUP(A57,DATA[Item No.],DATA[Picked],"") ->  | G57: =_xlfn.XLOOKUP(A57,DATA[Item No.],DATA[Pack],"") ->  | H57: =_xlfn.XLOOKUP(A57,DATA[Item No.],DATA[O],"") ->  | I57: =_xlfn.XLOOKUP(A57,DATA[Item No.],DATA[K],"") ->  | J57: =_xlfn.XLOOKUP(A57,DATA[Item No.],DATA[V],"") ->  | K57: =_xlfn.XLOOKUP(A57,DATA[Item No.],DATA[GF],"") ->  | L57: =_xlfn.XLOOKUP(A57,DATA[Item No.],DATA[N],"") ->  | M57: =_xlfn.XLOOKUP(A57,DATA[Item No.],DATA[H],"") ->  | N57: =_xlfn.XLOOKUP(A57,DATA[Item No.],DATA[CM],"") ->  | O57: =_xlfn.XLOOKUP(A57,DATA[Item No.],DATA[CO],"") ->  | P57: =_xlfn.XLOOKUP(A57,DATA[Item No.],DATA[CP],"") ->  | Q57: =_xlfn.XLOOKUP(A57,DATA[Item No.],DATA[Guaranteed Days],"") ->  | R57: =_xlfn.XLOOKUP(A57,DATA[Item No.],DATA[Storage],"") ->  | S57: =_xlfn.XLOOKUP(A57,DATA[Item No.],DATA[Price],"") ->  | T57: =_xlfn.XLOOKUP(A57,DATA[Item No.],DATA[Monthly Promo],"") ->  | U57: =_xlfn.XLOOKUP(A57,DATA[Item No.],DATA[Promo Discount],"") ->  | V57: =_xlfn.XLOOKUP(A57,DATA[Item No.],DATA[SRP],"") ->  | W57: =_xlfn.XLOOKUP(A57,DATA[Item No.],DATA[SKU Territory Ranking - East],"") -> 
A58: Dog food | C58: =_xlfn.XLOOKUP(A58,DATA[Item No.],DATA[Description],"") ->  | D58: =_xlfn.XLOOKUP(A58,DATA[Item No.],DATA[Unit UPC],"") ->  | E58: =_xlfn.XLOOKUP(A58,DATA[Item No.],DATA[Size],"") ->  | F58: =_xlfn.XLOOKUP(A58,DATA[Item No.],DATA[Picked],"") ->  | G58: =_xlfn.XLOOKUP(A58,DATA[Item No.],DATA[Pack],"") ->  | H58: =_xlfn.XLOOKUP(A58,DATA[Item No.],DATA[O],"") ->  | I58: =_xlfn.XLOOKUP(A58,DATA[Item No.],DATA[K],"") ->  | J58: =_xlfn.XLOOKUP(A58,DATA[Item No.],DATA[V],"") ->  | K58: =_xlfn.XLOOKUP(A58,DATA[Item No.],DATA[GF],"") ->  | L58: =_xlfn.XLOOKUP(A58,DATA[Item No.],DATA[N],"") ->  | M58: =_xlfn.XLOOKUP(A58,DATA[Item No.],DATA[H],"") ->  | N58: =_xlfn.XLOOKUP(A58,DATA[Item No.],DATA[CM],"") ->  | O58: =_xlfn.XLOOKUP(A58,DATA[Item No.],DATA[CO],"") ->  | P58: =_xlfn.XLOOKUP(A58,DATA[Item No.],DATA[CP],"") ->  | Q58: =_xlfn.XLOOKUP(A58,DATA[Item No.],DATA[Guaranteed Days],"") ->  | R58: =_xlfn.XLOOKUP(A58,DATA[Item No.],DATA[Storage],"") ->  | S58: =_xlfn.XLOOKUP(A58,DATA[Item No.],DATA[Price],"") ->  | T58: =_xlfn.XLOOKUP(A58,DATA[Item No.],DATA[Monthly Promo],"") ->  | U58: =_xlfn.XLOOKUP(A58,DATA[Item No.],DATA[Promo Discount],"") ->  | V58: =_xlfn.XLOOKUP(A58,DATA[Item No.],DATA[SRP],"") ->  | W58: =_xlfn.XLOOKUP(A58,DATA[Item No.],DATA[SKU Territory Ranking - East],"") -> 
A59: SN5045 | C59: =_xlfn.XLOOKUP(A59,DATA[Item No.],DATA[Description],"") -> Nose-to-Tail Wellness: Daily Nutrient-Rich Recipe | D59: =_xlfn.XLOOKUP(A59,DATA[Item No.],DATA[Unit UPC],"") -> 628942605048 | E59: =_xlfn.XLOOKUP(A59,DATA[Item No.],DATA[Size],"") -> 1.58KG | F59: =_xlfn.XLOOKUP(A59,DATA[Item No.],DATA[Picked],"") -> CA | G59: =_xlfn.XLOOKUP(A59,DATA[Item No.],DATA[Pack],"") -> 4 | H59: =_xlfn.XLOOKUP(A59,DATA[Item No.],DATA[O],"") -> 0 | I59: =_xlfn.XLOOKUP(A59,DATA[Item No.],DATA[K],"") -> 0 | J59: =_xlfn.XLOOKUP(A59,DATA[Item No.],DATA[V],"") -> 0 | K59: =_xlfn.XLOOKUP(A59,DATA[Item No.],DATA[GF],"") -> 0 | L59: =_xlfn.XLOOKUP(A59,DATA[Item No.],DATA[N],"") -> 0 | M59: =_xlfn.XLOOKUP(A59,DATA[Item No.],DATA[H],"") -> 0 | N59: =_xlfn.XLOOKUP(A59,DATA[Item No.],DATA[CM],"") -> Y | O59: =_xlfn.XLOOKUP(A59,DATA[Item No.],DATA[CO],"") -> Y | P59: =_xlfn.XLOOKUP(A59,DATA[Item No.],DATA[CP],"") -> 0 | Q59: =_xlfn.XLOOKUP(A59,DATA[Item No.],DATA[Guaranteed Days],"") -> 164 | R59: =_xlfn.XLOOKUP(A59,DATA[Item No.],DATA[Storage],"") -> Dry | S59: =_xlfn.XLOOKUP(A59,DATA[Item No.],DATA[Price],"") -> 81.17 | T59: =_xlfn.XLOOKUP(A59,DATA[Item No.],DATA[Monthly Promo],"") -> 0 | U59: =_xlfn.XLOOKUP(A59,DATA[Item No.],DATA[Promo Discount],"") -> 0 | V59: =_xlfn.XLOOKUP(A59,DATA[Item No.],DATA[SRP],"") -> 28.99 | W59: =_xlfn.XLOOKUP(A59,DATA[Item No.],DATA[SKU Territory Ranking - East],"") -> 0
A60: Oven-baked dog treats | C60: =_xlfn.XLOOKUP(A60,DATA[Item No.],DATA[Description],"") ->  | D60: =_xlfn.XLOOKUP(A60,DATA[Item No.],DATA[Unit UPC],"") ->  | E60: =_xlfn.XLOOKUP(A60,DATA[Item No.],DATA[Size],"") ->  | F60: =_xlfn.XLOOKUP(A60,DATA[Item No.],DATA[Picked],"") ->  | G60: =_xlfn.XLOOKUP(A60,DATA[Item No.],DATA[Pack],"") ->  | H60: =_xlfn.XLOOKUP(A60,DATA[Item No.],DATA[O],"") ->  | I60: =_xlfn.XLOOKUP(A60,DATA[Item No.],DATA[K],"") ->  | J60: =_xlfn.XLOOKUP(A60,DATA[Item No.],DATA[V],"") ->  | K60: =_xlfn.XLOOKUP(A60,DATA[Item No.],DATA[GF],"") ->  | L60: =_xlfn.XLOOKUP(A60,DATA[Item No.],DATA[N],"") ->  | M60: =_xlfn.XLOOKUP(A60,DATA[Item No.],DATA[H],"") ->  | N60: =_xlfn.XLOOKUP(A60,DATA[Item No.],DATA[CM],"") ->  | O60: =_xlfn.XLOOKUP(A60,DATA[Item No.],DATA[CO],"") ->  | P60: =_xlfn.XLOOKUP(A60,DATA[Item No.],DATA[CP],"") ->  | Q60: =_xlfn.XLOOKUP(A60,DATA[Item No.],DATA[Guaranteed Days],"") ->  | R60: =_xlfn.XLOOKUP(A60,DATA[Item No.],DATA[Storage],"") ->  | S60: =_xlfn.XLOOKUP(A60,DATA[Item No.],DATA[Price],"") ->  | T60: =_xlfn.XLOOKUP(A60,DATA[Item No.],DATA[Monthly Promo],"") ->  | U60: =_xlfn.XLOOKUP(A60,DATA[Item No.],DATA[Promo Discount],"") ->  | V60: =_xlfn.XLOOKUP(A60,DATA[Item No.],DATA[SRP],"") ->  | W60: =_xlfn.XLOOKUP(A60,DATA[Item No.],DATA[SKU Territory Ranking - East],"") -> 
A61: SN0065 | C61: =_xlfn.XLOOKUP(A61,DATA[Item No.],DATA[Description],"") -> Omega Boost | D61: =_xlfn.XLOOKUP(A61,DATA[Item No.],DATA[Unit UPC],"") -> 628942070068 | E61: =_xlfn.XLOOKUP(A61,DATA[Item No.],DATA[Size],"") -> 130G | F61: =_xlfn.XLOOKUP(A61,DATA[Item No.],DATA[Picked],"") -> CA | G61: =_xlfn.XLOOKUP(A61,DATA[Item No.],DATA[Pack],"") -> 6 | H61: =_xlfn.XLOOKUP(A61,DATA[Item No.],DATA[O],"") -> 0 | I61: =_xlfn.XLOOKUP(A61,DATA[Item No.],DATA[K],"") -> 0 | J61: =_xlfn.XLOOKUP(A61,DATA[Item No.],DATA[V],"") -> 0 | K61: =_xlfn.XLOOKUP(A61,DATA[Item No.],DATA[GF],"") -> 0 | L61: =_xlfn.XLOOKUP(A61,DATA[Item No.],DATA[N],"") -> 0 | M61: =_xlfn.XLOOKUP(A61,DATA[Item No.],DATA[H],"") -> 0 | N61: =_xlfn.XLOOKUP(A61,DATA[Item No.],DATA[CM],"") -> Y | O61: =_xlfn.XLOOKUP(A61,DATA[Item No.],DATA[CO],"") -> Y | P61: =_xlfn.XLOOKUP(A61,DATA[Item No.],DATA[CP],"") -> 0 | Q61: =_xlfn.XLOOKUP(A61,DATA[Item No.],DATA[Guaranteed Days],"") -> 164 | R61: =_xlfn.XLOOKUP(A61,DATA[Item No.],DATA[Storage],"") -> Dry | S61: =_xlfn.XLOOKUP(A61,DATA[Item No.],DATA[Price],"") -> 47.15 | T61: =_xlfn.XLOOKUP(A61,DATA[Item No.],DATA[Monthly Promo],"") -> 0 | U61: =_xlfn.XLOOKUP(A61,DATA[Item No.],DATA[Promo Discount],"") -> 0 | V61: =_xlfn.XLOOKUP(A61,DATA[Item No.],DATA[SRP],"") -> 9.99 | W61: =_xlfn.XLOOKUP(A61,DATA[Item No.],DATA[SKU Territory Ranking - East],"") -> 0
A62: SN0089 | C62: =_xlfn.XLOOKUP(A62,DATA[Item No.],DATA[Description],"") -> Wellness Blend | D62: =_xlfn.XLOOKUP(A62,DATA[Item No.],DATA[Unit UPC],"") -> 628942070082 | E62: =_xlfn.XLOOKUP(A62,DATA[Item No.],DATA[Size],"") -> 130G | F62: =_xlfn.XLOOKUP(A62,DATA[Item No.],DATA[Picked],"") -> CA | G62: =_xlfn.XLOOKUP(A62,DATA[Item No.],DATA[Pack],"") -> 6 | H62: =_xlfn.XLOOKUP(A62,DATA[Item No.],DATA[O],"") -> 0 | I62: =_xlfn.XLOOKUP(A62,DATA[Item No.],DATA[K],"") -> 0 | J62: =_xlfn.XLOOKUP(A62,DATA[Item No.],DATA[V],"") -> 0 | K62: =_xlfn.XLOOKUP(A62,DATA[Item No.],DATA[GF],"") -> 0 | L62: =_xlfn.XLOOKUP(A62,DATA[Item No.],DATA[N],"") -> 0 | M62: =_xlfn.XLOOKUP(A62,DATA[Item No.],DATA[H],"") -> 0 | N62: =_xlfn.XLOOKUP(A62,DATA[Item No.],DATA[CM],"") -> Y | O62: =_xlfn.XLOOKUP(A62,DATA[Item No.],DATA[CO],"") -> Y | P62: =_xlfn.XLOOKUP(A62,DATA[Item No.],DATA[CP],"") -> 0 | Q62: =_xlfn.XLOOKUP(A62,DATA[Item No.],DATA[Guaranteed Days],"") -> 164 | R62: =_xlfn.XLOOKUP(A62,DATA[Item No.],DATA[Storage],"") -> Dry | S62: =_xlfn.XLOOKUP(A62,DATA[Item No.],DATA[Price],"") -> 47.15 | T62: =_xlfn.XLOOKUP(A62,DATA[Item No.],DATA[Monthly Promo],"") -> 0 | U62: =_xlfn.XLOOKUP(A62,DATA[Item No.],DATA[Promo Discount],"") -> 0 | V62: =_xlfn.XLOOKUP(A62,DATA[Item No.],DATA[SRP],"") -> 9.99 | W62: =_xlfn.XLOOKUP(A62,DATA[Item No.],DATA[SKU Territory Ranking - East],"") -> 0
A63: SN5052 | C63: =_xlfn.XLOOKUP(A63,DATA[Item No.],DATA[Description],"") -> Calming Care | D63: =_xlfn.XLOOKUP(A63,DATA[Item No.],DATA[Unit UPC],"") -> 628942605055 | E63: =_xlfn.XLOOKUP(A63,DATA[Item No.],DATA[Size],"") -> 130G | F63: =_xlfn.XLOOKUP(A63,DATA[Item No.],DATA[Picked],"") -> CA | G63: =_xlfn.XLOOKUP(A63,DATA[Item No.],DATA[Pack],"") -> 6 | H63: =_xlfn.XLOOKUP(A63,DATA[Item No.],DATA[O],"") -> 0 | I63: =_xlfn.XLOOKUP(A63,DATA[Item No.],DATA[K],"") -> 0 | J63: =_xlfn.XLOOKUP(A63,DATA[Item No.],DATA[V],"") -> 0 | K63: =_xlfn.XLOOKUP(A63,DATA[Item No.],DATA[GF],"") -> 0 | L63: =_xlfn.XLOOKUP(A63,DATA[Item No.],DATA[N],"") -> 0 | M63: =_xlfn.XLOOKUP(A63,DATA[Item No.],DATA[H],"") -> 0 | N63: =_xlfn.XLOOKUP(A63,DATA[Item No.],DATA[CM],"") -> Y | O63: =_xlfn.XLOOKUP(A63,DATA[Item No.],DATA[CO],"") -> Y | P63: =_xlfn.XLOOKUP(A63,DATA[Item No.],DATA[CP],"") -> 0 | Q63: =_xlfn.XLOOKUP(A63,DATA[Item No.],DATA[Guaranteed Days],"") -> 164 | R63: =_xlfn.XLOOKUP(A63,DATA[Item No.],DATA[Storage],"") -> Dry | S63: =_xlfn.XLOOKUP(A63,DATA[Item No.],DATA[Price],"") -> 47.15 | T63: =_xlfn.XLOOKUP(A63,DATA[Item No.],DATA[Monthly Promo],"") -> 0 | U63: =_xlfn.XLOOKUP(A63,DATA[Item No.],DATA[Promo Discount],"") -> 0 | V63: =_xlfn.XLOOKUP(A63,DATA[Item No.],DATA[SRP],"") -> 9.99 | W63: =_xlfn.XLOOKUP(A63,DATA[Item No.],DATA[SKU Territory Ranking - East],"") -> 0
A64: Semimoist dog treats | C64: =_xlfn.XLOOKUP(A64,DATA[Item No.],DATA[Description],"") ->  | D64: =_xlfn.XLOOKUP(A64,DATA[Item No.],DATA[Unit UPC],"") ->  | E64: =_xlfn.XLOOKUP(A64,DATA[Item No.],DATA[Size],"") ->  | F64: =_xlfn.XLOOKUP(A64,DATA[Item No.],DATA[Picked],"") ->  | G64: =_xlfn.XLOOKUP(A64,DATA[Item No.],DATA[Pack],"") ->  | H64: =_xlfn.XLOOKUP(A64,DATA[Item No.],DATA[O],"") ->  | I64: =_xlfn.XLOOKUP(A64,DATA[Item No.],DATA[K],"") ->  | J64: =_xlfn.XLOOKUP(A64,DATA[Item No.],DATA[V],"") ->  | K64: =_xlfn.XLOOKUP(A64,DATA[Item No.],DATA[GF],"") ->  | L64: =_xlfn.XLOOKUP(A64,DATA[Item No.],DATA[N],"") ->  | M64: =_xlfn.XLOOKUP(A64,DATA[Item No.],DATA[H],"") ->  | N64: =_xlfn.XLOOKUP(A64,DATA[Item No.],DATA[CM],"") ->  | O64: =_xlfn.XLOOKUP(A64,DATA[Item No.],DATA[CO],"") ->  | P64: =_xlfn.XLOOKUP(A64,DATA[Item No.],DATA[CP],"") ->  | Q64: =_xlfn.XLOOKUP(A64,DATA[Item No.],DATA[Guaranteed Days],"") ->  | R64: =_xlfn.XLOOKUP(A64,DATA[Item No.],DATA[Storage],"") ->  | S64: =_xlfn.XLOOKUP(A64,DATA[Item No.],DATA[Price],"") ->  | T64: =_xlfn.XLOOKUP(A64,DATA[Item No.],DATA[Monthly Promo],"") ->  | U64: =_xlfn.XLOOKUP(A64,DATA[Item No.],DATA[Promo Discount],"") ->  | V64: =_xlfn.XLOOKUP(A64,DATA[Item No.],DATA[SRP],"") ->  | W64: =_xlfn.XLOOKUP(A64,DATA[Item No.],DATA[SKU Territory Ranking - East],"") -> 
A65: SN0058 | C65: =_xlfn.XLOOKUP(A65,DATA[Item No.],DATA[Description],"") -> Prebiotic Boost | D65: =_xlfn.XLOOKUP(A65,DATA[Item No.],DATA[Unit UPC],"") -> 628942070051 | E65: =_xlfn.XLOOKUP(A65,DATA[Item No.],DATA[Size],"") -> 130G | F65: =_xlfn.XLOOKUP(A65,DATA[Item No.],DATA[Picked],"") -> CA | G65: =_xlfn.XLOOKUP(A65,DATA[Item No.],DATA[Pack],"") -> 6 | H65: =_xlfn.XLOOKUP(A65,DATA[Item No.],DATA[O],"") -> 0 | I65: =_xlfn.XLOOKUP(A65,DATA[Item No.],DATA[K],"") -> 0 | J65: =_xlfn.XLOOKUP(A65,DATA[Item No.],DATA[V],"") -> 0 | K65: =_xlfn.XLOOKUP(A65,DATA[Item No.],DATA[GF],"") -> 0 | L65: =_xlfn.XLOOKUP(A65,DATA[Item No.],DATA[N],"") -> 0 | M65: =_xlfn.XLOOKUP(A65,DATA[Item No.],DATA[H],"") -> 0 | N65: =_xlfn.XLOOKUP(A65,DATA[Item No.],DATA[CM],"") -> Y | O65: =_xlfn.XLOOKUP(A65,DATA[Item No.],DATA[CO],"") -> Y | P65: =_xlfn.XLOOKUP(A65,DATA[Item No.],DATA[CP],"") -> 0 | Q65: =_xlfn.XLOOKUP(A65,DATA[Item No.],DATA[Guaranteed Days],"") -> 164 | R65: =_xlfn.XLOOKUP(A65,DATA[Item No.],DATA[Storage],"") -> Dry | S65: =_xlfn.XLOOKUP(A65,DATA[Item No.],DATA[Price],"") -> 47.15 | T65: =_xlfn.XLOOKUP(A65,DATA[Item No.],DATA[Monthly Promo],"") -> 0 | U65: =_xlfn.XLOOKUP(A65,DATA[Item No.],DATA[Promo Discount],"") -> 0 | V65: =_xlfn.XLOOKUP(A65,DATA[Item No.],DATA[SRP],"") -> 9.99 | W65: =_xlfn.XLOOKUP(A65,DATA[Item No.],DATA[SKU Territory Ranking - East],"") -> 0
A66: SN0072 | C66: =_xlfn.XLOOKUP(A66,DATA[Item No.],DATA[Description],"") -> Healthy Skin & Coat | D66: =_xlfn.XLOOKUP(A66,DATA[Item No.],DATA[Unit UPC],"") -> 628942070075 | E66: =_xlfn.XLOOKUP(A66,DATA[Item No.],DATA[Size],"") -> 130G | F66: =_xlfn.XLOOKUP(A66,DATA[Item No.],DATA[Picked],"") -> CA | G66: =_xlfn.XLOOKUP(A66,DATA[Item No.],DATA[Pack],"") -> 6 | H66: =_xlfn.XLOOKUP(A66,DATA[Item No.],DATA[O],"") -> 0 | I66: =_xlfn.XLOOKUP(A66,DATA[Item No.],DATA[K],"") -> 0 | J66: =_xlfn.XLOOKUP(A66,DATA[Item No.],DATA[V],"") -> 0 | K66: =_xlfn.XLOOKUP(A66,DATA[Item No.],DATA[GF],"") -> 0 | L66: =_xlfn.XLOOKUP(A66,DATA[Item No.],DATA[N],"") -> 0 | M66: =_xlfn.XLOOKUP(A66,DATA[Item No.],DATA[H],"") -> 0 | N66: =_xlfn.XLOOKUP(A66,DATA[Item No.],DATA[CM],"") -> Y | O66: =_xlfn.XLOOKUP(A66,DATA[Item No.],DATA[CO],"") -> Y | P66: =_xlfn.XLOOKUP(A66,DATA[Item No.],DATA[CP],"") -> 0 | Q66: =_xlfn.XLOOKUP(A66,DATA[Item No.],DATA[Guaranteed Days],"") -> 164 | R66: =_xlfn.XLOOKUP(A66,DATA[Item No.],DATA[Storage],"") -> Dry | S66: =_xlfn.XLOOKUP(A66,DATA[Item No.],DATA[Price],"") -> 47.15 | T66: =_xlfn.XLOOKUP(A66,DATA[Item No.],DATA[Monthly Promo],"") -> 0 | U66: =_xlfn.XLOOKUP(A66,DATA[Item No.],DATA[Promo Discount],"") -> 0 | V66: =_xlfn.XLOOKUP(A66,DATA[Item No.],DATA[SRP],"") -> 9.99 | W66: =_xlfn.XLOOKUP(A66,DATA[Item No.],DATA[SKU Territory Ranking - East],"") -> 0
A67: ARTISANA | C67: =_xlfn.XLOOKUP(A67,DATA[Item No.],DATA[Description],"") ->  | D67: =_xlfn.XLOOKUP(A67,DATA[Item No.],DATA[Unit UPC],"") ->  | E67: =_xlfn.XLOOKUP(A67,DATA[Item No.],DATA[Size],"") ->  | F67: =_xlfn.XLOOKUP(A67,DATA[Item No.],DATA[Picked],"") ->  | G67: =_xlfn.XLOOKUP(A67,DATA[Item No.],DATA[Pack],"") ->  | H67: =_xlfn.XLOOKUP(A67,DATA[Item No.],DATA[O],"") ->  | I67: =_xlfn.XLOOKUP(A67,DATA[Item No.],DATA[K],"") ->  | J67: =_xlfn.XLOOKUP(A67,DATA[Item No.],DATA[V],"") ->  | K67: =_xlfn.XLOOKUP(A67,DATA[Item No.],DATA[GF],"") ->  | L67: =_xlfn.XLOOKUP(A67,DATA[Item No.],DATA[N],"") ->  | M67: =_xlfn.XLOOKUP(A67,DATA[Item No.],DATA[H],"") ->  | N67: =_xlfn.XLOOKUP(A67,DATA[Item No.],DATA[CM],"") ->  | O67: =_xlfn.XLOOKUP(A67,DATA[Item No.],DATA[CO],"") ->  | P67: =_xlfn.XLOOKUP(A67,DATA[Item No.],DATA[CP],"") ->  | Q67: =_xlfn.XLOOKUP(A67,DATA[Item No.],DATA[Guaranteed Days],"") ->  | R67: =_xlfn.XLOOKUP(A67,DATA[Item No.],DATA[Storage],"") ->  | S67: =_xlfn.XLOOKUP(A67,DATA[Item No.],DATA[Price],"") ->  | T67: =_xlfn.XLOOKUP(A67,DATA[Item No.],DATA[Monthly Promo],"") ->  | U67: =_xlfn.XLOOKUP(A67,DATA[Item No.],DATA[Promo Discount],"") ->  | V67: =_xlfn.XLOOKUP(A67,DATA[Item No.],DATA[SRP],"") ->  | W67: =_xlfn.XLOOKUP(A67,DATA[Item No.],DATA[SKU Territory Ranking - East],"") -> 
A68: Artisana Nut Butters | C68: =_xlfn.XLOOKUP(A68,DATA[Item No.],DATA[Description],"") ->  | D68: =_xlfn.XLOOKUP(A68,DATA[Item No.],DATA[Unit UPC],"") ->  | E68: =_xlfn.XLOOKUP(A68,DATA[Item No.],DATA[Size],"") ->  | F68: =_xlfn.XLOOKUP(A68,DATA[Item No.],DATA[Picked],"") ->  | G68: =_xlfn.XLOOKUP(A68,DATA[Item No.],DATA[Pack],"") ->  | H68: =_xlfn.XLOOKUP(A68,DATA[Item No.],DATA[O],"") ->  | I68: =_xlfn.XLOOKUP(A68,DATA[Item No.],DATA[K],"") ->  | J68: =_xlfn.XLOOKUP(A68,DATA[Item No.],DATA[V],"") ->  | K68: =_xlfn.XLOOKUP(A68,DATA[Item No.],DATA[GF],"") ->  | L68: =_xlfn.XLOOKUP(A68,DATA[Item No.],DATA[N],"") ->  | M68: =_xlfn.XLOOKUP(A68,DATA[Item No.],DATA[H],"") ->  | N68: =_xlfn.XLOOKUP(A68,DATA[Item No.],DATA[CM],"") ->  | O68: =_xlfn.XLOOKUP(A68,DATA[Item No.],DATA[CO],"") ->  | P68: =_xlfn.XLOOKUP(A68,DATA[Item No.],DATA[CP],"") ->  | Q68: =_xlfn.XLOOKUP(A68,DATA[Item No.],DATA[Guaranteed Days],"") ->  | R68: =_xlfn.XLOOKUP(A68,DATA[Item No.],DATA[Storage],"") ->  | S68: =_xlfn.XLOOKUP(A68,DATA[Item No.],DATA[Price],"") ->  | T68: =_xlfn.XLOOKUP(A68,DATA[Item No.],DATA[Monthly Promo],"") ->  | U68: =_xlfn.XLOOKUP(A68,DATA[Item No.],DATA[Promo Discount],"") ->  | V68: =_xlfn.XLOOKUP(A68,DATA[Item No.],DATA[SRP],"") ->  | W68: =_xlfn.XLOOKUP(A68,DATA[Item No.],DATA[SKU Territory Ranking - East],"") -> 
A69: ART0111 | C69: =_xlfn.XLOOKUP(A69,DATA[Item No.],DATA[Description],"") -> Almond Butter | D69: =_xlfn.XLOOKUP(A69,DATA[Item No.],DATA[Unit UPC],"") -> 870001002866 | E69: =_xlfn.XLOOKUP(A69,DATA[Item No.],DATA[Size],"") -> 397G | F69: =_xlfn.XLOOKUP(A69,DATA[Item No.],DATA[Picked],"") -> CA | G69: =_xlfn.XLOOKUP(A69,DATA[Item No.],DATA[Pack],"") -> 6 | H69: =_xlfn.XLOOKUP(A69,DATA[Item No.],DATA[O],"") -> Y | I69: =_xlfn.XLOOKUP(A69,DATA[Item No.],DATA[K],"") -> Y | J69: =_xlfn.XLOOKUP(A69,DATA[Item No.],DATA[V],"") -> Y | K69: =_xlfn.XLOOKUP(A69,DATA[Item No.],DATA[GF],"") -> 0 | L69: =_xlfn.XLOOKUP(A69,DATA[Item No.],DATA[N],"") -> Y | M69: =_xlfn.XLOOKUP(A69,DATA[Item No.],DATA[H],"") -> 0 | N69: =_xlfn.XLOOKUP(A69,DATA[Item No.],DATA[CM],"") -> 0 | O69: =_xlfn.XLOOKUP(A69,DATA[Item No.],DATA[CO],"") -> 0 | P69: =_xlfn.XLOOKUP(A69,DATA[Item No.],DATA[CP],"") -> 0 | Q69: =_xlfn.XLOOKUP(A69,DATA[Item No.],DATA[Guaranteed Days],"") -> 164 | R69: =_xlfn.XLOOKUP(A69,DATA[Item No.],DATA[Storage],"") -> Dry | S69: =_xlfn.XLOOKUP(A69,DATA[Item No.],DATA[Price],"") -> 114.73 | T69: =_xlfn.XLOOKUP(A69,DATA[Item No.],DATA[Monthly Promo],"") -> 0 | U69: =_xlfn.XLOOKUP(A69,DATA[Item No.],DATA[Promo Discount],"") -> 0 | V69: =_xlfn.XLOOKUP(A69,DATA[Item No.],DATA[SRP],"") -> 28.99 | W69: =_xlfn.XLOOKUP(A69,DATA[Item No.],DATA[SKU Territory Ranking - East],"") -> 7
A70: ART0112 | C70: =_xlfn.XLOOKUP(A70,DATA[Item No.],DATA[Description],"") -> Cashew Butter | D70: =_xlfn.XLOOKUP(A70,DATA[Item No.],DATA[Unit UPC],"") -> 870001000220 | E70: =_xlfn.XLOOKUP(A70,DATA[Item No.],DATA[Size],"") -> 227G | F70: =_xlfn.XLOOKUP(A70,DATA[Item No.],DATA[Picked],"") -> CA | G70: =_xlfn.XLOOKUP(A70,DATA[Item No.],DATA[Pack],"") -> 6 | H70: =_xlfn.XLOOKUP(A70,DATA[Item No.],DATA[O],"") -> Y | I70: =_xlfn.XLOOKUP(A70,DATA[Item No.],DATA[K],"") -> Y | J70: =_xlfn.XLOOKUP(A70,DATA[Item No.],DATA[V],"") -> Y | K70: =_xlfn.XLOOKUP(A70,DATA[Item No.],DATA[GF],"") -> 0 | L70: =_xlfn.XLOOKUP(A70,DATA[Item No.],DATA[N],"") -> Y | M70: =_xlfn.XLOOKUP(A70,DATA[Item No.],DATA[H],"") -> 0 | N70: =_xlfn.XLOOKUP(A70,DATA[Item No.],DATA[CM],"") -> 0 | O70: =_xlfn.XLOOKUP(A70,DATA[Item No.],DATA[CO],"") -> 0 | P70: =_xlfn.XLOOKUP(A70,DATA[Item No.],DATA[CP],"") -> 0 | Q70: =_xlfn.XLOOKUP(A70,DATA[Item No.],DATA[Guaranteed Days],"") -> 137 | R70: =_xlfn.XLOOKUP(A70,DATA[Item No.],DATA[Storage],"") -> Dry | S70: =_xlfn.XLOOKUP(A70,DATA[Item No.],DATA[Price],"") -> 64.25 | T70: =_xlfn.XLOOKUP(A70,DATA[Item No.],DATA[Monthly Promo],"") -> 0 | U70: =_xlfn.XLOOKUP(A70,DATA[Item No.],DATA[Promo Discount],"") -> 0 | V70: =_xlfn.XLOOKUP(A70,DATA[Item No.],DATA[SRP],"") -> 15.99 | W70: =_xlfn.XLOOKUP(A70,DATA[Item No.],DATA[SKU Territory Ranking - East],"") -> 2
A71: ART0113 | C71: =_xlfn.XLOOKUP(A71,DATA[Item No.],DATA[Description],"") -> Coconut Butter | D71: =_xlfn.XLOOKUP(A71,DATA[Item No.],DATA[Unit UPC],"") -> 870001002880 | E71: =_xlfn.XLOOKUP(A71,DATA[Item No.],DATA[Size],"") -> 397G | F71: =_xlfn.XLOOKUP(A71,DATA[Item No.],DATA[Picked],"") -> CA | G71: =_xlfn.XLOOKUP(A71,DATA[Item No.],DATA[Pack],"") -> 6 | H71: =_xlfn.XLOOKUP(A71,DATA[Item No.],DATA[O],"") -> Y | I71: =_xlfn.XLOOKUP(A71,DATA[Item No.],DATA[K],"") -> Y | J71: =_xlfn.XLOOKUP(A71,DATA[Item No.],DATA[V],"") -> Y | K71: =_xlfn.XLOOKUP(A71,DATA[Item No.],DATA[GF],"") -> 0 | L71: =_xlfn.XLOOKUP(A71,DATA[Item No.],DATA[N],"") -> Y | M71: =_xlfn.XLOOKUP(A71,DATA[Item No.],DATA[H],"") -> 0 | N71: =_xlfn.XLOOKUP(A71,DATA[Item No.],DATA[CM],"") -> 0 | O71: =_xlfn.XLOOKUP(A71,DATA[Item No.],DATA[CO],"") -> 0 | P71: =_xlfn.XLOOKUP(A71,DATA[Item No.],DATA[CP],"") -> 0 | Q71: =_xlfn.XLOOKUP(A71,DATA[Item No.],DATA[Guaranteed Days],"") -> 137 | R71: =_xlfn.XLOOKUP(A71,DATA[Item No.],DATA[Storage],"") -> Dry | S71: =_xlfn.XLOOKUP(A71,DATA[Item No.],DATA[Price],"") -> 59.8 | T71: =_xlfn.XLOOKUP(A71,DATA[Item No.],DATA[Monthly Promo],"") -> 0 | U71: =_xlfn.XLOOKUP(A71,DATA[Item No.],DATA[Promo Discount],"") -> 0 | V71: =_xlfn.XLOOKUP(A71,DATA[Item No.],DATA[SRP],"") -> 14.99 | W71: =_xlfn.XLOOKUP(A71,DATA[Item No.],DATA[SKU Territory Ranking - East],"") -> 1
A72: ART0114 | C72: =_xlfn.XLOOKUP(A72,DATA[Item No.],DATA[Description],"") -> Pecan Butter | D72: =_xlfn.XLOOKUP(A72,DATA[Item No.],DATA[Unit UPC],"") -> 870001000565 | E72: =_xlfn.XLOOKUP(A72,DATA[Item No.],DATA[Size],"") -> 227G | F72: =_xlfn.XLOOKUP(A72,DATA[Item No.],DATA[Picked],"") -> CA | G72: =_xlfn.XLOOKUP(A72,DATA[Item No.],DATA[Pack],"") -> 6 | H72: =_xlfn.XLOOKUP(A72,DATA[Item No.],DATA[O],"") -> Y | I72: =_xlfn.XLOOKUP(A72,DATA[Item No.],DATA[K],"") -> Y | J72: =_xlfn.XLOOKUP(A72,DATA[Item No.],DATA[V],"") -> Y | K72: =_xlfn.XLOOKUP(A72,DATA[Item No.],DATA[GF],"") -> 0 | L72: =_xlfn.XLOOKUP(A72,DATA[Item No.],DATA[N],"") -> Y | M72: =_xlfn.XLOOKUP(A72,DATA[Item No.],DATA[H],"") -> 0 | N72: =_xlfn.XLOOKUP(A72,DATA[Item No.],DATA[CM],"") -> 0 | O72: =_xlfn.XLOOKUP(A72,DATA[Item No.],DATA[CO],"") -> 0 | P72: =_xlfn.XLOOKUP(A72,DATA[Item No.],DATA[CP],"") -> 0 | Q72: =_xlfn.XLOOKUP(A72,DATA[Item No.],DATA[Guaranteed Days],"") -> 137 | R72: =_xlfn.XLOOKUP(A72,DATA[Item No.],DATA[Storage],"") -> Dry | S72: =_xlfn.XLOOKUP(A72,DATA[Item No.],DATA[Price],"") -> 81 | T72: =_xlfn.XLOOKUP(A72,DATA[Item No.],DATA[Monthly Promo],"") -> MARCH DEAL! | U72: =_xlfn.XLOOKUP(A72,DATA[Item No.],DATA[Promo Discount],"") -> SAVE 15% | V72: =_xlfn.XLOOKUP(A72,DATA[Item No.],DATA[SRP],"") -> 19.99 | W72: =_xlfn.XLOOKUP(A72,DATA[Item No.],DATA[SKU Territory Ranking - East],"") -> 6
A73: ART0115 | C73: =_xlfn.XLOOKUP(A73,DATA[Item No.],DATA[Description],"") -> Raw Tahini | D73: =_xlfn.XLOOKUP(A73,DATA[Item No.],DATA[Unit UPC],"") -> 870001002897 | E73: =_xlfn.XLOOKUP(A73,DATA[Item No.],DATA[Size],"") -> 397G | F73: =_xlfn.XLOOKUP(A73,DATA[Item No.],DATA[Picked],"") -> CA | G73: =_xlfn.XLOOKUP(A73,DATA[Item No.],DATA[Pack],"") -> 6 | H73: =_xlfn.XLOOKUP(A73,DATA[Item No.],DATA[O],"") -> Y | I73: =_xlfn.XLOOKUP(A73,DATA[Item No.],DATA[K],"") -> Y | J73: =_xlfn.XLOOKUP(A73,DATA[Item No.],DATA[V],"") -> Y | K73: =_xlfn.XLOOKUP(A73,DATA[Item No.],DATA[GF],"") -> 0 | L73: =_xlfn.XLOOKUP(A73,DATA[Item No.],DATA[N],"") -> Y | M73: =_xlfn.XLOOKUP(A73,DATA[Item No.],DATA[H],"") -> 0 | N73: =_xlfn.XLOOKUP(A73,DATA[Item No.],DATA[CM],"") -> 0 | O73: =_xlfn.XLOOKUP(A73,DATA[Item No.],DATA[CO],"") -> 0 | P73: =_xlfn.XLOOKUP(A73,DATA[Item No.],DATA[CP],"") -> 0 | Q73: =_xlfn.XLOOKUP(A73,DATA[Item No.],DATA[Guaranteed Days],"") -> 110 | R73: =_xlfn.XLOOKUP(A73,DATA[Item No.],DATA[Storage],"") -> Dry | S73: =_xlfn.XLOOKUP(A73,DATA[Item No.],DATA[Price],"") -> 64.49 | T73: =_xlfn.XLOOKUP(A73,DATA[Item No.],DATA[Monthly Promo],"") -> 0 | U73: =_xlfn.XLOOKUP(A73,DATA[Item No.],DATA[Promo Discount],"") -> 0 | V73: =_xlfn.XLOOKUP(A73,DATA[Item No.],DATA[SRP],"") -> 14.79 | W73: =_xlfn.XLOOKUP(A73,DATA[Item No.],DATA[SKU Territory Ranking - East],"") -> 5
A74: ART0116 | C74: =_xlfn.XLOOKUP(A74,DATA[Item No.],DATA[Description],"") -> Walnut Butter | D74: =_xlfn.XLOOKUP(A74,DATA[Item No.],DATA[Unit UPC],"") -> 870001000664 | E74: =_xlfn.XLOOKUP(A74,DATA[Item No.],DATA[Size],"") -> 227G | F74: =_xlfn.XLOOKUP(A74,DATA[Item No.],DATA[Picked],"") -> CA | G74: =_xlfn.XLOOKUP(A74,DATA[Item No.],DATA[Pack],"") -> 6 | H74: =_xlfn.XLOOKUP(A74,DATA[Item No.],DATA[O],"") -> Y | I74: =_xlfn.XLOOKUP(A74,DATA[Item No.],DATA[K],"") -> Y | J74: =_xlfn.XLOOKUP(A74,DATA[Item No.],DATA[V],"") -> Y | K74: =_xlfn.XLOOKUP(A74,DATA[Item No.],DATA[GF],"") -> 0 | L74: =_xlfn.XLOOKUP(A74,DATA[Item No.],DATA[N],"") -> Y | M74: =_xlfn.XLOOKUP(A74,DATA[Item No.],DATA[H],"") -> 0 | N74: =_xlfn.XLOOKUP(A74,DATA[Item No.],DATA[CM],"") -> 0 | O74: =_xlfn.XLOOKUP(A74,DATA[Item No.],DATA[CO],"") -> 0 | P74: =_xlfn.XLOOKUP(A74,DATA[Item No.],DATA[CP],"") -> 0 | Q74: =_xlfn.XLOOKUP(A74,DATA[Item No.],DATA[Guaranteed Days],"") -> 137 | R74: =_xlfn.XLOOKUP(A74,DATA[Item No.],DATA[Storage],"") -> Dry | S74: =_xlfn.XLOOKUP(A74,DATA[Item No.],DATA[Price],"") -> 90 | T74: =_xlfn.XLOOKUP(A74,DATA[Item No.],DATA[Monthly Promo],"") -> MARCH DEAL! | U74: =_xlfn.XLOOKUP(A74,DATA[Item No.],DATA[Promo Discount],"") -> SAVE 15% | V74: =_xlfn.XLOOKUP(A74,DATA[Item No.],DATA[SRP],"") -> 21.99 | W74: =_xlfn.XLOOKUP(A74,DATA[Item No.],DATA[SKU Territory Ranking - East],"") -> 3
A75: ART0117 | C75: =_xlfn.XLOOKUP(A75,DATA[Item No.],DATA[Description],"") -> Cashew Cacao Butter | D75: =_xlfn.XLOOKUP(A75,DATA[Item No.],DATA[Unit UPC],"") -> 870001000930 | E75: =_xlfn.XLOOKUP(A75,DATA[Item No.],DATA[Size],"") -> 227G | F75: =_xlfn.XLOOKUP(A75,DATA[Item No.],DATA[Picked],"") -> CA | G75: =_xlfn.XLOOKUP(A75,DATA[Item No.],DATA[Pack],"") -> 6 | H75: =_xlfn.XLOOKUP(A75,DATA[Item No.],DATA[O],"") -> Y | I75: =_xlfn.XLOOKUP(A75,DATA[Item No.],DATA[K],"") -> Y | J75: =_xlfn.XLOOKUP(A75,DATA[Item No.],DATA[V],"") -> Y | K75: =_xlfn.XLOOKUP(A75,DATA[Item No.],DATA[GF],"") -> 0 | L75: =_xlfn.XLOOKUP(A75,DATA[Item No.],DATA[N],"") -> Y | M75: =_xlfn.XLOOKUP(A75,DATA[Item No.],DATA[H],"") -> 0 | N75: =_xlfn.XLOOKUP(A75,DATA[Item No.],DATA[CM],"") -> 0 | O75: =_xlfn.XLOOKUP(A75,DATA[Item No.],DATA[CO],"") -> 0 | P75: =_xlfn.XLOOKUP(A75,DATA[Item No.],DATA[CP],"") -> 0 | Q75: =_xlfn.XLOOKUP(A75,DATA[Item No.],DATA[Guaranteed Days],"") -> 137 | R75: =_xlfn.XLOOKUP(A75,DATA[Item No.],DATA[Storage],"") -> Dry | S75: =_xlfn.XLOOKUP(A75,DATA[Item No.],DATA[Price],"") -> 58.25 | T75: =_xlfn.XLOOKUP(A75,DATA[Item No.],DATA[Monthly Promo],"") -> 0 | U75: =_xlfn.XLOOKUP(A75,DATA[Item No.],DATA[Promo Discount],"") -> 0 | V75: =_xlfn.XLOOKUP(A75,DATA[Item No.],DATA[SRP],"") -> 14.49 | W75: =_xlfn.XLOOKUP(A75,DATA[Item No.],DATA[SKU Territory Ranking - East],"") -> 9
A76: Artisana Squeeze Pack | C76: =_xlfn.XLOOKUP(A76,DATA[Item No.],DATA[Description],"") ->  | D76: =_xlfn.XLOOKUP(A76,DATA[Item No.],DATA[Unit UPC],"") ->  | E76: =_xlfn.XLOOKUP(A76,DATA[Item No.],DATA[Size],"") ->  | F76: =_xlfn.XLOOKUP(A76,DATA[Item No.],DATA[Picked],"") ->  | G76: =_xlfn.XLOOKUP(A76,DATA[Item No.],DATA[Pack],"") ->  | H76: =_xlfn.XLOOKUP(A76,DATA[Item No.],DATA[O],"") ->  | I76: =_xlfn.XLOOKUP(A76,DATA[Item No.],DATA[K],"") ->  | J76: =_xlfn.XLOOKUP(A76,DATA[Item No.],DATA[V],"") ->  | K76: =_xlfn.XLOOKUP(A76,DATA[Item No.],DATA[GF],"") ->  | L76: =_xlfn.XLOOKUP(A76,DATA[Item No.],DATA[N],"") ->  | M76: =_xlfn.XLOOKUP(A76,DATA[Item No.],DATA[H],"") ->  | N76: =_xlfn.XLOOKUP(A76,DATA[Item No.],DATA[CM],"") ->  | O76: =_xlfn.XLOOKUP(A76,DATA[Item No.],DATA[CO],"") ->  | P76: =_xlfn.XLOOKUP(A76,DATA[Item No.],DATA[CP],"") ->  | Q76: =_xlfn.XLOOKUP(A76,DATA[Item No.],DATA[Guaranteed Days],"") ->  | R76: =_xlfn.XLOOKUP(A76,DATA[Item No.],DATA[Storage],"") ->  | S76: =_xlfn.XLOOKUP(A76,DATA[Item No.],DATA[Price],"") ->  | T76: =_xlfn.XLOOKUP(A76,DATA[Item No.],DATA[Monthly Promo],"") ->  | U76: =_xlfn.XLOOKUP(A76,DATA[Item No.],DATA[Promo Discount],"") ->  | V76: =_xlfn.XLOOKUP(A76,DATA[Item No.],DATA[SRP],"") ->  | W76: =_xlfn.XLOOKUP(A76,DATA[Item No.],DATA[SKU Territory Ranking - East],"") -> 
A77: ART0208 | C77: =_xlfn.XLOOKUP(A77,DATA[Item No.],DATA[Description],"") -> Coconut Butter Squeeze Packs | D77: =_xlfn.XLOOKUP(A77,DATA[Item No.],DATA[Unit UPC],"") -> 870001000091 | E77: =_xlfn.XLOOKUP(A77,DATA[Item No.],DATA[Size],"") -> 31G | F77: =_xlfn.XLOOKUP(A77,DATA[Item No.],DATA[Picked],"") -> EA | G77: =_xlfn.XLOOKUP(A77,DATA[Item No.],DATA[Pack],"") -> 10 | H77: =_xlfn.XLOOKUP(A77,DATA[Item No.],DATA[O],"") -> Y | I77: =_xlfn.XLOOKUP(A77,DATA[Item No.],DATA[K],"") -> Y | J77: =_xlfn.XLOOKUP(A77,DATA[Item No.],DATA[V],"") -> Y | K77: =_xlfn.XLOOKUP(A77,DATA[Item No.],DATA[GF],"") -> 0 | L77: =_xlfn.XLOOKUP(A77,DATA[Item No.],DATA[N],"") -> Y | M77: =_xlfn.XLOOKUP(A77,DATA[Item No.],DATA[H],"") -> 0 | N77: =_xlfn.XLOOKUP(A77,DATA[Item No.],DATA[CM],"") -> 0 | O77: =_xlfn.XLOOKUP(A77,DATA[Item No.],DATA[CO],"") -> 0 | P77: =_xlfn.XLOOKUP(A77,DATA[Item No.],DATA[CP],"") -> 0 | Q77: =_xlfn.XLOOKUP(A77,DATA[Item No.],DATA[Guaranteed Days],"") -> 164 | R77: =_xlfn.XLOOKUP(A77,DATA[Item No.],DATA[Storage],"") -> Dry | S77: =_xlfn.XLOOKUP(A77,DATA[Item No.],DATA[Price],"") -> 20 | T77: =_xlfn.XLOOKUP(A77,DATA[Item No.],DATA[Monthly Promo],"") -> 0 | U77: =_xlfn.XLOOKUP(A77,DATA[Item No.],DATA[Promo Discount],"") -> 0 | V77: =_xlfn.XLOOKUP(A77,DATA[Item No.],DATA[SRP],"") -> 2.99 | W77: =_xlfn.XLOOKUP(A77,DATA[Item No.],DATA[SKU Territory Ranking - East],"") -> 12
A78: BALZAC'S | C78: =_xlfn.XLOOKUP(A78,DATA[Item No.],DATA[Description],"") ->  | D78: =_xlfn.XLOOKUP(A78,DATA[Item No.],DATA[Unit UPC],"") ->  | E78: =_xlfn.XLOOKUP(A78,DATA[Item No.],DATA[Size],"") ->  | F78: =_xlfn.XLOOKUP(A78,DATA[Item No.],DATA[Picked],"") ->  | G78: =_xlfn.XLOOKUP(A78,DATA[Item No.],DATA[Pack],"") ->  | H78: =_xlfn.XLOOKUP(A78,DATA[Item No.],DATA[O],"") ->  | I78: =_xlfn.XLOOKUP(A78,DATA[Item No.],DATA[K],"") ->  | J78: =_xlfn.XLOOKUP(A78,DATA[Item No.],DATA[V],"") ->  | K78: =_xlfn.XLOOKUP(A78,DATA[Item No.],DATA[GF],"") ->  | L78: =_xlfn.XLOOKUP(A78,DATA[Item No.],DATA[N],"") ->  | M78: =_xlfn.XLOOKUP(A78,DATA[Item No.],DATA[H],"") ->  | N78: =_xlfn.XLOOKUP(A78,DATA[Item No.],DATA[CM],"") ->  | O78: =_xlfn.XLOOKUP(A78,DATA[Item No.],DATA[CO],"") ->  | P78: =_xlfn.XLOOKUP(A78,DATA[Item No.],DATA[CP],"") ->  | Q78: =_xlfn.XLOOKUP(A78,DATA[Item No.],DATA[Guaranteed Days],"") ->  | R78: =_xlfn.XLOOKUP(A78,DATA[Item No.],DATA[Storage],"") ->  | S78: =_xlfn.XLOOKUP(A78,DATA[Item No.],DATA[Price],"") ->  | T78: =_xlfn.XLOOKUP(A78,DATA[Item No.],DATA[Monthly Promo],"") ->  | U78: =_xlfn.XLOOKUP(A78,DATA[Item No.],DATA[Promo Discount],"") ->  | V78: =_xlfn.XLOOKUP(A78,DATA[Item No.],DATA[SRP],"") ->  | W78: =_xlfn.XLOOKUP(A78,DATA[Item No.],DATA[SKU Territory Ranking - East],"") -> 
A79: 100% Compostable Coffee Pods | C79: =_xlfn.XLOOKUP(A79,DATA[Item No.],DATA[Description],"") ->  | D79: =_xlfn.XLOOKUP(A79,DATA[Item No.],DATA[Unit UPC],"") ->  | E79: =_xlfn.XLOOKUP(A79,DATA[Item No.],DATA[Size],"") ->  | F79: =_xlfn.XLOOKUP(A79,DATA[Item No.],DATA[Picked],"") ->  | G79: =_xlfn.XLOOKUP(A79,DATA[Item No.],DATA[Pack],"") ->  | H79: =_xlfn.XLOOKUP(A79,DATA[Item No.],DATA[O],"") ->  | I79: =_xlfn.XLOOKUP(A79,DATA[Item No.],DATA[K],"") ->  | J79: =_xlfn.XLOOKUP(A79,DATA[Item No.],DATA[V],"") ->  | K79: =_xlfn.XLOOKUP(A79,DATA[Item No.],DATA[GF],"") ->  | L79: =_xlfn.XLOOKUP(A79,DATA[Item No.],DATA[N],"") ->  | M79: =_xlfn.XLOOKUP(A79,DATA[Item No.],DATA[H],"") ->  | N79: =_xlfn.XLOOKUP(A79,DATA[Item No.],DATA[CM],"") ->  | O79: =_xlfn.XLOOKUP(A79,DATA[Item No.],DATA[CO],"") ->  | P79: =_xlfn.XLOOKUP(A79,DATA[Item No.],DATA[CP],"") ->  | Q79: =_xlfn.XLOOKUP(A79,DATA[Item No.],DATA[Guaranteed Days],"") ->  | R79: =_xlfn.XLOOKUP(A79,DATA[Item No.],DATA[Storage],"") ->  | S79: =_xlfn.XLOOKUP(A79,DATA[Item No.],DATA[Price],"") ->  | T79: =_xlfn.XLOOKUP(A79,DATA[Item No.],DATA[Monthly Promo],"") ->  | U79: =_xlfn.XLOOKUP(A79,DATA[Item No.],DATA[Promo Discount],"") ->  | V79: =_xlfn.XLOOKUP(A79,DATA[Item No.],DATA[SRP],"") ->  | W79: =_xlfn.XLOOKUP(A79,DATA[Item No.],DATA[SKU Territory Ranking - East],"") -> 
A80: BA1816 | C80: =_xlfn.XLOOKUP(A80,DATA[Item No.],DATA[Description],"") -> Balzac's Blend | D80: =_xlfn.XLOOKUP(A80,DATA[Item No.],DATA[Unit UPC],"") -> 628614001819 | E80: =_xlfn.XLOOKUP(A80,DATA[Item No.],DATA[Size],"") -> 189G | F80: =_xlfn.XLOOKUP(A80,DATA[Item No.],DATA[Picked],"") -> CA | G80: =_xlfn.XLOOKUP(A80,DATA[Item No.],DATA[Pack],"") -> 6 | H80: =_xlfn.XLOOKUP(A80,DATA[Item No.],DATA[O],"") -> 0 | I80: =_xlfn.XLOOKUP(A80,DATA[Item No.],DATA[K],"") -> Y | J80: =_xlfn.XLOOKUP(A80,DATA[Item No.],DATA[V],"") -> 0 | K80: =_xlfn.XLOOKUP(A80,DATA[Item No.],DATA[GF],"") -> 0 | L80: =_xlfn.XLOOKUP(A80,DATA[Item No.],DATA[N],"") -> 0 | M80: =_xlfn.XLOOKUP(A80,DATA[Item No.],DATA[H],"") -> 0 | N80: =_xlfn.XLOOKUP(A80,DATA[Item No.],DATA[CM],"") -> 0 | O80: =_xlfn.XLOOKUP(A80,DATA[Item No.],DATA[CO],"") -> Y | P80: =_xlfn.XLOOKUP(A80,DATA[Item No.],DATA[CP],"") -> 0 | Q80: =_xlfn.XLOOKUP(A80,DATA[Item No.],DATA[Guaranteed Days],"") -> 109 | R80: =_xlfn.XLOOKUP(A80,DATA[Item No.],DATA[Storage],"") -> Dry | S80: =_xlfn.XLOOKUP(A80,DATA[Item No.],DATA[Price],"") -> 88.15 | T80: =_xlfn.XLOOKUP(A80,DATA[Item No.],DATA[Monthly Promo],"") -> 0 | U80: =_xlfn.XLOOKUP(A80,DATA[Item No.],DATA[Promo Discount],"") -> 0 | V80: =_xlfn.XLOOKUP(A80,DATA[Item No.],DATA[SRP],"") -> 15.99 | W80: =_xlfn.XLOOKUP(A80,DATA[Item No.],DATA[SKU Territory Ranking - East],"") -> 6
A81: BA1823 | C81: =_xlfn.XLOOKUP(A81,DATA[Item No.],DATA[Description],"") -> Farmer's Blend | D81: =_xlfn.XLOOKUP(A81,DATA[Item No.],DATA[Unit UPC],"") -> 628614001826 | E81: =_xlfn.XLOOKUP(A81,DATA[Item No.],DATA[Size],"") -> 189G | F81: =_xlfn.XLOOKUP(A81,DATA[Item No.],DATA[Picked],"") -> CA | G81: =_xlfn.XLOOKUP(A81,DATA[Item No.],DATA[Pack],"") -> 6 | H81: =_xlfn.XLOOKUP(A81,DATA[Item No.],DATA[O],"") -> Y | I81: =_xlfn.XLOOKUP(A81,DATA[Item No.],DATA[K],"") -> Y | J81: =_xlfn.XLOOKUP(A81,DATA[Item No.],DATA[V],"") -> 0 | K81: =_xlfn.XLOOKUP(A81,DATA[Item No.],DATA[GF],"") -> 0 | L81: =_xlfn.XLOOKUP(A81,DATA[Item No.],DATA[N],"") -> 0 | M81: =_xlfn.XLOOKUP(A81,DATA[Item No.],DATA[H],"") -> 0 | N81: =_xlfn.XLOOKUP(A81,DATA[Item No.],DATA[CM],"") -> 0 | O81: =_xlfn.XLOOKUP(A81,DATA[Item No.],DATA[CO],"") -> Y | P81: =_xlfn.XLOOKUP(A81,DATA[Item No.],DATA[CP],"") -> 0 | Q81: =_xlfn.XLOOKUP(A81,DATA[Item No.],DATA[Guaranteed Days],"") -> 109 | R81: =_xlfn.XLOOKUP(A81,DATA[Item No.],DATA[Storage],"") -> Dry | S81: =_xlfn.XLOOKUP(A81,DATA[Item No.],DATA[Price],"") -> 92.58 | T81: =_xlfn.XLOOKUP(A81,DATA[Item No.],DATA[Monthly Promo],"") -> 0 | U81: =_xlfn.XLOOKUP(A81,DATA[Item No.],DATA[Promo Discount],"") -> 0 | V81: =_xlfn.XLOOKUP(A81,DATA[Item No.],DATA[SRP],"") -> 16.99 | W81: =_xlfn.XLOOKUP(A81,DATA[Item No.],DATA[SKU Territory Ranking - East],"") -> 11
A82: BA1847 | C82: =_xlfn.XLOOKUP(A82,DATA[Item No.],DATA[Description],"") -> Swiss Water Decaf | D82: =_xlfn.XLOOKUP(A82,DATA[Item No.],DATA[Unit UPC],"") -> 628614001840 | E82: =_xlfn.XLOOKUP(A82,DATA[Item No.],DATA[Size],"") -> 189G | F82: =_xlfn.XLOOKUP(A82,DATA[Item No.],DATA[Picked],"") -> CA | G82: =_xlfn.XLOOKUP(A82,DATA[Item No.],DATA[Pack],"") -> 6 | H82: =_xlfn.XLOOKUP(A82,DATA[Item No.],DATA[O],"") -> 0 | I82: =_xlfn.XLOOKUP(A82,DATA[Item No.],DATA[K],"") -> Y | J82: =_xlfn.XLOOKUP(A82,DATA[Item No.],DATA[V],"") -> 0 | K82: =_xlfn.XLOOKUP(A82,DATA[Item No.],DATA[GF],"") -> 0 | L82: =_xlfn.XLOOKUP(A82,DATA[Item No.],DATA[N],"") -> 0 | M82: =_xlfn.XLOOKUP(A82,DATA[Item No.],DATA[H],"") -> 0 | N82: =_xlfn.XLOOKUP(A82,DATA[Item No.],DATA[CM],"") -> 0 | O82: =_xlfn.XLOOKUP(A82,DATA[Item No.],DATA[CO],"") -> Y | P82: =_xlfn.XLOOKUP(A82,DATA[Item No.],DATA[CP],"") -> 0 | Q82: =_xlfn.XLOOKUP(A82,DATA[Item No.],DATA[Guaranteed Days],"") -> 109 | R82: =_xlfn.XLOOKUP(A82,DATA[Item No.],DATA[Storage],"") -> Dry | S82: =_xlfn.XLOOKUP(A82,DATA[Item No.],DATA[Price],"") -> 92.58 | T82: =_xlfn.XLOOKUP(A82,DATA[Item No.],DATA[Monthly Promo],"") -> 0 | U82: =_xlfn.XLOOKUP(A82,DATA[Item No.],DATA[Promo Discount],"") -> 0 | V82: =_xlfn.XLOOKUP(A82,DATA[Item No.],DATA[SRP],"") -> 16.99 | W82: =_xlfn.XLOOKUP(A82,DATA[Item No.],DATA[SKU Territory Ranking - East],"") -> 14
A83: BA1878 | C83: =_xlfn.XLOOKUP(A83,DATA[Item No.],DATA[Description],"") -> A Dark Affair | D83: =_xlfn.XLOOKUP(A83,DATA[Item No.],DATA[Unit UPC],"") -> 628614001871 | E83: =_xlfn.XLOOKUP(A83,DATA[Item No.],DATA[Size],"") -> 189G | F83: =_xlfn.XLOOKUP(A83,DATA[Item No.],DATA[Picked],"") -> CA | G83: =_xlfn.XLOOKUP(A83,DATA[Item No.],DATA[Pack],"") -> 6 | H83: =_xlfn.XLOOKUP(A83,DATA[Item No.],DATA[O],"") -> 0 | I83: =_xlfn.XLOOKUP(A83,DATA[Item No.],DATA[K],"") -> Y | J83: =_xlfn.XLOOKUP(A83,DATA[Item No.],DATA[V],"") -> 0 | K83: =_xlfn.XLOOKUP(A83,DATA[Item No.],DATA[GF],"") -> 0 | L83: =_xlfn.XLOOKUP(A83,DATA[Item No.],DATA[N],"") -> 0 | M83: =_xlfn.XLOOKUP(A83,DATA[Item No.],DATA[H],"") -> 0 | N83: =_xlfn.XLOOKUP(A83,DATA[Item No.],DATA[CM],"") -> 0 | O83: =_xlfn.XLOOKUP(A83,DATA[Item No.],DATA[CO],"") -> Y | P83: =_xlfn.XLOOKUP(A83,DATA[Item No.],DATA[CP],"") -> 0 | Q83: =_xlfn.XLOOKUP(A83,DATA[Item No.],DATA[Guaranteed Days],"") -> 109 | R83: =_xlfn.XLOOKUP(A83,DATA[Item No.],DATA[Storage],"") -> Dry | S83: =_xlfn.XLOOKUP(A83,DATA[Item No.],DATA[Price],"") -> 88.15 | T83: =_xlfn.XLOOKUP(A83,DATA[Item No.],DATA[Monthly Promo],"") -> 0 | U83: =_xlfn.XLOOKUP(A83,DATA[Item No.],DATA[Promo Discount],"") -> 0 | V83: =_xlfn.XLOOKUP(A83,DATA[Item No.],DATA[SRP],"") -> 15.99 | W83: =_xlfn.XLOOKUP(A83,DATA[Item No.],DATA[SKU Territory Ranking - East],"") -> 10
A84: BA8418 | C84: =_xlfn.XLOOKUP(A84,DATA[Item No.],DATA[Description],"") -> Bards Blend | D84: =_xlfn.XLOOKUP(A84,DATA[Item No.],DATA[Unit UPC],"") -> 628614018411 | E84: =_xlfn.XLOOKUP(A84,DATA[Item No.],DATA[Size],"") -> 189G | F84: =_xlfn.XLOOKUP(A84,DATA[Item No.],DATA[Picked],"") -> CA | G84: =_xlfn.XLOOKUP(A84,DATA[Item No.],DATA[Pack],"") -> 6 | H84: =_xlfn.XLOOKUP(A84,DATA[Item No.],DATA[O],"") -> Y | I84: =_xlfn.XLOOKUP(A84,DATA[Item No.],DATA[K],"") -> Y | J84: =_xlfn.XLOOKUP(A84,DATA[Item No.],DATA[V],"") -> 0 | K84: =_xlfn.XLOOKUP(A84,DATA[Item No.],DATA[GF],"") -> 0 | L84: =_xlfn.XLOOKUP(A84,DATA[Item No.],DATA[N],"") -> 0 | M84: =_xlfn.XLOOKUP(A84,DATA[Item No.],DATA[H],"") -> 0 | N84: =_xlfn.XLOOKUP(A84,DATA[Item No.],DATA[CM],"") -> 0 | O84: =_xlfn.XLOOKUP(A84,DATA[Item No.],DATA[CO],"") -> Y | P84: =_xlfn.XLOOKUP(A84,DATA[Item No.],DATA[CP],"") -> 0 | Q84: =_xlfn.XLOOKUP(A84,DATA[Item No.],DATA[Guaranteed Days],"") -> 109 | R84: =_xlfn.XLOOKUP(A84,DATA[Item No.],DATA[Storage],"") -> Dry | S84: =_xlfn.XLOOKUP(A84,DATA[Item No.],DATA[Price],"") -> 92.58 | T84: =_xlfn.XLOOKUP(A84,DATA[Item No.],DATA[Monthly Promo],"") -> 0 | U84: =_xlfn.XLOOKUP(A84,DATA[Item No.],DATA[Promo Discount],"") -> 0 | V84: =_xlfn.XLOOKUP(A84,DATA[Item No.],DATA[SRP],"") -> 16.99 | W84: =_xlfn.XLOOKUP(A84,DATA[Item No.],DATA[SKU Territory Ranking - East],"") -> 15
A85: Ground Coffee (Tin) | C85: =_xlfn.XLOOKUP(A85,DATA[Item No.],DATA[Description],"") ->  | D85: =_xlfn.XLOOKUP(A85,DATA[Item No.],DATA[Unit UPC],"") ->  | E85: =_xlfn.XLOOKUP(A85,DATA[Item No.],DATA[Size],"") ->  | F85: =_xlfn.XLOOKUP(A85,DATA[Item No.],DATA[Picked],"") ->  | G85: =_xlfn.XLOOKUP(A85,DATA[Item No.],DATA[Pack],"") ->  | H85: =_xlfn.XLOOKUP(A85,DATA[Item No.],DATA[O],"") ->  | I85: =_xlfn.XLOOKUP(A85,DATA[Item No.],DATA[K],"") ->  | J85: =_xlfn.XLOOKUP(A85,DATA[Item No.],DATA[V],"") ->  | K85: =_xlfn.XLOOKUP(A85,DATA[Item No.],DATA[GF],"") ->  | L85: =_xlfn.XLOOKUP(A85,DATA[Item No.],DATA[N],"") ->  | M85: =_xlfn.XLOOKUP(A85,DATA[Item No.],DATA[H],"") ->  | N85: =_xlfn.XLOOKUP(A85,DATA[Item No.],DATA[CM],"") ->  | O85: =_xlfn.XLOOKUP(A85,DATA[Item No.],DATA[CO],"") ->  | P85: =_xlfn.XLOOKUP(A85,DATA[Item No.],DATA[CP],"") ->  | Q85: =_xlfn.XLOOKUP(A85,DATA[Item No.],DATA[Guaranteed Days],"") ->  | R85: =_xlfn.XLOOKUP(A85,DATA[Item No.],DATA[Storage],"") ->  | S85: =_xlfn.XLOOKUP(A85,DATA[Item No.],DATA[Price],"") ->  | T85: =_xlfn.XLOOKUP(A85,DATA[Item No.],DATA[Monthly Promo],"") ->  | U85: =_xlfn.XLOOKUP(A85,DATA[Item No.],DATA[Promo Discount],"") ->  | V85: =_xlfn.XLOOKUP(A85,DATA[Item No.],DATA[SRP],"") ->  | W85: =_xlfn.XLOOKUP(A85,DATA[Item No.],DATA[SKU Territory Ranking - East],"") -> 
A86: BA0008 | C86: =_xlfn.XLOOKUP(A86,DATA[Item No.],DATA[Description],"") -> Swiss Water Decaf Blend | D86: =_xlfn.XLOOKUP(A86,DATA[Item No.],DATA[Unit UPC],"") -> 628614400001 | E86: =_xlfn.XLOOKUP(A86,DATA[Item No.],DATA[Size],"") -> 330G | F86: =_xlfn.XLOOKUP(A86,DATA[Item No.],DATA[Picked],"") -> CA | G86: =_xlfn.XLOOKUP(A86,DATA[Item No.],DATA[Pack],"") -> 12 | H86: =_xlfn.XLOOKUP(A86,DATA[Item No.],DATA[O],"") -> 0 | I86: =_xlfn.XLOOKUP(A86,DATA[Item No.],DATA[K],"") -> Y | J86: =_xlfn.XLOOKUP(A86,DATA[Item No.],DATA[V],"") -> 0 | K86: =_xlfn.XLOOKUP(A86,DATA[Item No.],DATA[GF],"") -> 0 | L86: =_xlfn.XLOOKUP(A86,DATA[Item No.],DATA[N],"") -> 0 | M86: =_xlfn.XLOOKUP(A86,DATA[Item No.],DATA[H],"") -> 0 | N86: =_xlfn.XLOOKUP(A86,DATA[Item No.],DATA[CM],"") -> Y | O86: =_xlfn.XLOOKUP(A86,DATA[Item No.],DATA[CO],"") -> Y | P86: =_xlfn.XLOOKUP(A86,DATA[Item No.],DATA[CP],"") -> 0 | Q86: =_xlfn.XLOOKUP(A86,DATA[Item No.],DATA[Guaranteed Days],"") -> 109 | R86: =_xlfn.XLOOKUP(A86,DATA[Item No.],DATA[Storage],"") -> Dry | S86: =_xlfn.XLOOKUP(A86,DATA[Item No.],DATA[Price],"") -> 167.44 | T86: =_xlfn.XLOOKUP(A86,DATA[Item No.],DATA[Monthly Promo],"") -> 0 | U86: =_xlfn.XLOOKUP(A86,DATA[Item No.],DATA[Promo Discount],"") -> 0 | V86: =_xlfn.XLOOKUP(A86,DATA[Item No.],DATA[SRP],"") -> 16.99 | W86: =_xlfn.XLOOKUP(A86,DATA[Item No.],DATA[SKU Territory Ranking - East],"") -> 17
A87: BA0208 | C87: =_xlfn.XLOOKUP(A87,DATA[Item No.],DATA[Description],"") -> Farmer's Fair-Trade Blend | D87: =_xlfn.XLOOKUP(A87,DATA[Item No.],DATA[Unit UPC],"") -> 628614000201 | E87: =_xlfn.XLOOKUP(A87,DATA[Item No.],DATA[Size],"") -> 330G | F87: =_xlfn.XLOOKUP(A87,DATA[Item No.],DATA[Picked],"") -> CA | G87: =_xlfn.XLOOKUP(A87,DATA[Item No.],DATA[Pack],"") -> 12 | H87: =_xlfn.XLOOKUP(A87,DATA[Item No.],DATA[O],"") -> Y | I87: =_xlfn.XLOOKUP(A87,DATA[Item No.],DATA[K],"") -> Y | J87: =_xlfn.XLOOKUP(A87,DATA[Item No.],DATA[V],"") -> 0 | K87: =_xlfn.XLOOKUP(A87,DATA[Item No.],DATA[GF],"") -> 0 | L87: =_xlfn.XLOOKUP(A87,DATA[Item No.],DATA[N],"") -> 0 | M87: =_xlfn.XLOOKUP(A87,DATA[Item No.],DATA[H],"") -> 0 | N87: =_xlfn.XLOOKUP(A87,DATA[Item No.],DATA[CM],"") -> 0 | O87: =_xlfn.XLOOKUP(A87,DATA[Item No.],DATA[CO],"") -> Y | P87: =_xlfn.XLOOKUP(A87,DATA[Item No.],DATA[CP],"") -> 0 | Q87: =_xlfn.XLOOKUP(A87,DATA[Item No.],DATA[Guaranteed Days],"") -> 109 | R87: =_xlfn.XLOOKUP(A87,DATA[Item No.],DATA[Storage],"") -> Dry | S87: =_xlfn.XLOOKUP(A87,DATA[Item No.],DATA[Price],"") -> 167.44 | T87: =_xlfn.XLOOKUP(A87,DATA[Item No.],DATA[Monthly Promo],"") -> 0 | U87: =_xlfn.XLOOKUP(A87,DATA[Item No.],DATA[Promo Discount],"") -> 0 | V87: =_xlfn.XLOOKUP(A87,DATA[Item No.],DATA[SRP],"") -> 15.99 | W87: =_xlfn.XLOOKUP(A87,DATA[Item No.],DATA[SKU Territory Ranking - East],"") -> 12
A88: BA0307 | C88: =_xlfn.XLOOKUP(A88,DATA[Item No.],DATA[Description],"") -> Espresso Fair-Trade Blend | D88: =_xlfn.XLOOKUP(A88,DATA[Item No.],DATA[Unit UPC],"") -> 628614000300 | E88: =_xlfn.XLOOKUP(A88,DATA[Item No.],DATA[Size],"") -> 300G | F88: =_xlfn.XLOOKUP(A88,DATA[Item No.],DATA[Picked],"") -> CA | G88: =_xlfn.XLOOKUP(A88,DATA[Item No.],DATA[Pack],"") -> 12 | H88: =_xlfn.XLOOKUP(A88,DATA[Item No.],DATA[O],"") -> Y | I88: =_xlfn.XLOOKUP(A88,DATA[Item No.],DATA[K],"") -> Y | J88: =_xlfn.XLOOKUP(A88,DATA[Item No.],DATA[V],"") -> 0 | K88: =_xlfn.XLOOKUP(A88,DATA[Item No.],DATA[GF],"") -> 0 | L88: =_xlfn.XLOOKUP(A88,DATA[Item No.],DATA[N],"") -> 0 | M88: =_xlfn.XLOOKUP(A88,DATA[Item No.],DATA[H],"") -> 0 | N88: =_xlfn.XLOOKUP(A88,DATA[Item No.],DATA[CM],"") -> 0 | O88: =_xlfn.XLOOKUP(A88,DATA[Item No.],DATA[CO],"") -> Y | P88: =_xlfn.XLOOKUP(A88,DATA[Item No.],DATA[CP],"") -> 0 | Q88: =_xlfn.XLOOKUP(A88,DATA[Item No.],DATA[Guaranteed Days],"") -> 109 | R88: =_xlfn.XLOOKUP(A88,DATA[Item No.],DATA[Storage],"") -> Dry | S88: =_xlfn.XLOOKUP(A88,DATA[Item No.],DATA[Price],"") -> 167.44 | T88: =_xlfn.XLOOKUP(A88,DATA[Item No.],DATA[Monthly Promo],"") -> 0 | U88: =_xlfn.XLOOKUP(A88,DATA[Item No.],DATA[Promo Discount],"") -> 0 | V88: =_xlfn.XLOOKUP(A88,DATA[Item No.],DATA[SRP],"") -> 15.99 | W88: =_xlfn.XLOOKUP(A88,DATA[Item No.],DATA[SKU Territory Ranking - East],"") -> 19
A89: BA0604 | C89: =_xlfn.XLOOKUP(A89,DATA[Item No.],DATA[Description],"") -> Atwood Blend | D89: =_xlfn.XLOOKUP(A89,DATA[Item No.],DATA[Unit UPC],"") -> 628614000607 | E89: =_xlfn.XLOOKUP(A89,DATA[Item No.],DATA[Size],"") -> 330G | F89: =_xlfn.XLOOKUP(A89,DATA[Item No.],DATA[Picked],"") -> CA | G89: =_xlfn.XLOOKUP(A89,DATA[Item No.],DATA[Pack],"") -> 12 | H89: =_xlfn.XLOOKUP(A89,DATA[Item No.],DATA[O],"") -> Y | I89: =_xlfn.XLOOKUP(A89,DATA[Item No.],DATA[K],"") -> Y | J89: =_xlfn.XLOOKUP(A89,DATA[Item No.],DATA[V],"") -> 0 | K89: =_xlfn.XLOOKUP(A89,DATA[Item No.],DATA[GF],"") -> 0 | L89: =_xlfn.XLOOKUP(A89,DATA[Item No.],DATA[N],"") -> 0 | M89: =_xlfn.XLOOKUP(A89,DATA[Item No.],DATA[H],"") -> 0 | N89: =_xlfn.XLOOKUP(A89,DATA[Item No.],DATA[CM],"") -> 0 | O89: =_xlfn.XLOOKUP(A89,DATA[Item No.],DATA[CO],"") -> Y | P89: =_xlfn.XLOOKUP(A89,DATA[Item No.],DATA[CP],"") -> 0 | Q89: =_xlfn.XLOOKUP(A89,DATA[Item No.],DATA[Guaranteed Days],"") -> 109 | R89: =_xlfn.XLOOKUP(A89,DATA[Item No.],DATA[Storage],"") -> Dry | S89: =_xlfn.XLOOKUP(A89,DATA[Item No.],DATA[Price],"") -> 149.12 | T89: =_xlfn.XLOOKUP(A89,DATA[Item No.],DATA[Monthly Promo],"") -> 0 | U89: =_xlfn.XLOOKUP(A89,DATA[Item No.],DATA[Promo Discount],"") -> 0 | V89: =_xlfn.XLOOKUP(A89,DATA[Item No.],DATA[SRP],"") -> 16.99 | W89: =_xlfn.XLOOKUP(A89,DATA[Item No.],DATA[SKU Territory Ranking - East],"") -> 22
A90: BA0703 | C90: =_xlfn.XLOOKUP(A90,DATA[Item No.],DATA[Description],"") -> A Dark Affair | D90: =_xlfn.XLOOKUP(A90,DATA[Item No.],DATA[Unit UPC],"") -> 628614000706 | E90: =_xlfn.XLOOKUP(A90,DATA[Item No.],DATA[Size],"") -> 330G | F90: =_xlfn.XLOOKUP(A90,DATA[Item No.],DATA[Picked],"") -> CA | G90: =_xlfn.XLOOKUP(A90,DATA[Item No.],DATA[Pack],"") -> 12 | H90: =_xlfn.XLOOKUP(A90,DATA[Item No.],DATA[O],"") -> 0 | I90: =_xlfn.XLOOKUP(A90,DATA[Item No.],DATA[K],"") -> Y | J90: =_xlfn.XLOOKUP(A90,DATA[Item No.],DATA[V],"") -> 0 | K90: =_xlfn.XLOOKUP(A90,DATA[Item No.],DATA[GF],"") -> 0 | L90: =_xlfn.XLOOKUP(A90,DATA[Item No.],DATA[N],"") -> 0 | M90: =_xlfn.XLOOKUP(A90,DATA[Item No.],DATA[H],"") -> 0 | N90: =_xlfn.XLOOKUP(A90,DATA[Item No.],DATA[CM],"") -> 0 | O90: =_xlfn.XLOOKUP(A90,DATA[Item No.],DATA[CO],"") -> Y | P90: =_xlfn.XLOOKUP(A90,DATA[Item No.],DATA[CP],"") -> 0 | Q90: =_xlfn.XLOOKUP(A90,DATA[Item No.],DATA[Guaranteed Days],"") -> 109 | R90: =_xlfn.XLOOKUP(A90,DATA[Item No.],DATA[Storage],"") -> Dry | S90: =_xlfn.XLOOKUP(A90,DATA[Item No.],DATA[Price],"") -> 158.58 | T90: =_xlfn.XLOOKUP(A90,DATA[Item No.],DATA[Monthly Promo],"") -> 0 | U90: =_xlfn.XLOOKUP(A90,DATA[Item No.],DATA[Promo Discount],"") -> 0 | V90: =_xlfn.XLOOKUP(A90,DATA[Item No.],DATA[SRP],"") -> 14.99 | W90: =_xlfn.XLOOKUP(A90,DATA[Item No.],DATA[SKU Territory Ranking - East],"") -> 16
A91: BA1007 | C91: =_xlfn.XLOOKUP(A91,DATA[Item No.],DATA[Description],"") -> Balzac's Blend | D91: =_xlfn.XLOOKUP(A91,DATA[Item No.],DATA[Unit UPC],"") -> 628614001000 | E91: =_xlfn.XLOOKUP(A91,DATA[Item No.],DATA[Size],"") -> 330G | F91: =_xlfn.XLOOKUP(A91,DATA[Item No.],DATA[Picked],"") -> CA | G91: =_xlfn.XLOOKUP(A91,DATA[Item No.],DATA[Pack],"") -> 12 | H91: =_xlfn.XLOOKUP(A91,DATA[Item No.],DATA[O],"") -> 0 | I91: =_xlfn.XLOOKUP(A91,DATA[Item No.],DATA[K],"") -> Y | J91: =_xlfn.XLOOKUP(A91,DATA[Item No.],DATA[V],"") -> 0 | K91: =_xlfn.XLOOKUP(A91,DATA[Item No.],DATA[GF],"") -> 0 | L91: =_xlfn.XLOOKUP(A91,DATA[Item No.],DATA[N],"") -> 0 | M91: =_xlfn.XLOOKUP(A91,DATA[Item No.],DATA[H],"") -> 0 | N91: =_xlfn.XLOOKUP(A91,DATA[Item No.],DATA[CM],"") -> 0 | O91: =_xlfn.XLOOKUP(A91,DATA[Item No.],DATA[CO],"") -> Y | P91: =_xlfn.XLOOKUP(A91,DATA[Item No.],DATA[CP],"") -> 0 | Q91: =_xlfn.XLOOKUP(A91,DATA[Item No.],DATA[Guaranteed Days],"") -> 109 | R91: =_xlfn.XLOOKUP(A91,DATA[Item No.],DATA[Storage],"") -> Dry | S91: =_xlfn.XLOOKUP(A91,DATA[Item No.],DATA[Price],"") -> 158.58 | T91: =_xlfn.XLOOKUP(A91,DATA[Item No.],DATA[Monthly Promo],"") -> 0 | U91: =_xlfn.XLOOKUP(A91,DATA[Item No.],DATA[Promo Discount],"") -> 0 | V91: =_xlfn.XLOOKUP(A91,DATA[Item No.],DATA[SRP],"") -> 14.99 | W91: =_xlfn.XLOOKUP(A91,DATA[Item No.],DATA[SKU Territory Ranking - East],"") -> 7
A92: Whole Bean Coffee | C92: =_xlfn.XLOOKUP(A92,DATA[Item No.],DATA[Description],"") ->  | D92: =_xlfn.XLOOKUP(A92,DATA[Item No.],DATA[Unit UPC],"") ->  | E92: =_xlfn.XLOOKUP(A92,DATA[Item No.],DATA[Size],"") ->  | F92: =_xlfn.XLOOKUP(A92,DATA[Item No.],DATA[Picked],"") ->  | G92: =_xlfn.XLOOKUP(A92,DATA[Item No.],DATA[Pack],"") ->  | H92: =_xlfn.XLOOKUP(A92,DATA[Item No.],DATA[O],"") ->  | I92: =_xlfn.XLOOKUP(A92,DATA[Item No.],DATA[K],"") ->  | J92: =_xlfn.XLOOKUP(A92,DATA[Item No.],DATA[V],"") ->  | K92: =_xlfn.XLOOKUP(A92,DATA[Item No.],DATA[GF],"") ->  | L92: =_xlfn.XLOOKUP(A92,DATA[Item No.],DATA[N],"") ->  | M92: =_xlfn.XLOOKUP(A92,DATA[Item No.],DATA[H],"") ->  | N92: =_xlfn.XLOOKUP(A92,DATA[Item No.],DATA[CM],"") ->  | O92: =_xlfn.XLOOKUP(A92,DATA[Item No.],DATA[CO],"") ->  | P92: =_xlfn.XLOOKUP(A92,DATA[Item No.],DATA[CP],"") ->  | Q92: =_xlfn.XLOOKUP(A92,DATA[Item No.],DATA[Guaranteed Days],"") ->  | R92: =_xlfn.XLOOKUP(A92,DATA[Item No.],DATA[Storage],"") ->  | S92: =_xlfn.XLOOKUP(A92,DATA[Item No.],DATA[Price],"") ->  | T92: =_xlfn.XLOOKUP(A92,DATA[Item No.],DATA[Monthly Promo],"") ->  | U92: =_xlfn.XLOOKUP(A92,DATA[Item No.],DATA[Promo Discount],"") ->  | V92: =_xlfn.XLOOKUP(A92,DATA[Item No.],DATA[SRP],"") ->  | W92: =_xlfn.XLOOKUP(A92,DATA[Item No.],DATA[SKU Territory Ranking - East],"") -> 
A93: BA010 | C93: =_xlfn.XLOOKUP(A93,DATA[Item No.],DATA[Description],"") -> Balzac's Blend | D93: =_xlfn.XLOOKUP(A93,DATA[Item No.],DATA[Unit UPC],"") -> 628614000102 | E93: =_xlfn.XLOOKUP(A93,DATA[Item No.],DATA[Size],"") -> 340G | F93: =_xlfn.XLOOKUP(A93,DATA[Item No.],DATA[Picked],"") -> CA | G93: =_xlfn.XLOOKUP(A93,DATA[Item No.],DATA[Pack],"") -> 6 | H93: =_xlfn.XLOOKUP(A93,DATA[Item No.],DATA[O],"") -> 0 | I93: =_xlfn.XLOOKUP(A93,DATA[Item No.],DATA[K],"") -> Y | J93: =_xlfn.XLOOKUP(A93,DATA[Item No.],DATA[V],"") -> 0 | K93: =_xlfn.XLOOKUP(A93,DATA[Item No.],DATA[GF],"") -> 0 | L93: =_xlfn.XLOOKUP(A93,DATA[Item No.],DATA[N],"") -> 0 | M93: =_xlfn.XLOOKUP(A93,DATA[Item No.],DATA[H],"") -> 0 | N93: =_xlfn.XLOOKUP(A93,DATA[Item No.],DATA[CM],"") -> Y | O93: =_xlfn.XLOOKUP(A93,DATA[Item No.],DATA[CO],"") -> Y | P93: =_xlfn.XLOOKUP(A93,DATA[Item No.],DATA[CP],"") -> 0 | Q93: =_xlfn.XLOOKUP(A93,DATA[Item No.],DATA[Guaranteed Days],"") -> 109 | R93: =_xlfn.XLOOKUP(A93,DATA[Item No.],DATA[Storage],"") -> Dry | S93: =_xlfn.XLOOKUP(A93,DATA[Item No.],DATA[Price],"") -> 79.29 | T93: =_xlfn.XLOOKUP(A93,DATA[Item No.],DATA[Monthly Promo],"") -> 0 | U93: =_xlfn.XLOOKUP(A93,DATA[Item No.],DATA[Promo Discount],"") -> 0 | V93: =_xlfn.XLOOKUP(A93,DATA[Item No.],DATA[SRP],"") -> 15.99 | W93: =_xlfn.XLOOKUP(A93,DATA[Item No.],DATA[SKU Territory Ranking - East],"") -> 2
A94: BA011 | C94: =_xlfn.XLOOKUP(A94,DATA[Item No.],DATA[Description],"") -> Farmer's Fair-Trade Blend | D94: =_xlfn.XLOOKUP(A94,DATA[Item No.],DATA[Unit UPC],"") -> 628614000119 | E94: =_xlfn.XLOOKUP(A94,DATA[Item No.],DATA[Size],"") -> 340G | F94: =_xlfn.XLOOKUP(A94,DATA[Item No.],DATA[Picked],"") -> CA | G94: =_xlfn.XLOOKUP(A94,DATA[Item No.],DATA[Pack],"") -> 6 | H94: =_xlfn.XLOOKUP(A94,DATA[Item No.],DATA[O],"") -> Y | I94: =_xlfn.XLOOKUP(A94,DATA[Item No.],DATA[K],"") -> Y | J94: =_xlfn.XLOOKUP(A94,DATA[Item No.],DATA[V],"") -> 0 | K94: =_xlfn.XLOOKUP(A94,DATA[Item No.],DATA[GF],"") -> 0 | L94: =_xlfn.XLOOKUP(A94,DATA[Item No.],DATA[N],"") -> 0 | M94: =_xlfn.XLOOKUP(A94,DATA[Item No.],DATA[H],"") -> 0 | N94: =_xlfn.XLOOKUP(A94,DATA[Item No.],DATA[CM],"") -> Y | O94: =_xlfn.XLOOKUP(A94,DATA[Item No.],DATA[CO],"") -> Y | P94: =_xlfn.XLOOKUP(A94,DATA[Item No.],DATA[CP],"") -> 0 | Q94: =_xlfn.XLOOKUP(A94,DATA[Item No.],DATA[Guaranteed Days],"") -> 109 | R94: =_xlfn.XLOOKUP(A94,DATA[Item No.],DATA[Storage],"") -> Dry | S94: =_xlfn.XLOOKUP(A94,DATA[Item No.],DATA[Price],"") -> 83.72 | T94: =_xlfn.XLOOKUP(A94,DATA[Item No.],DATA[Monthly Promo],"") -> 0 | U94: =_xlfn.XLOOKUP(A94,DATA[Item No.],DATA[Promo Discount],"") -> 0 | V94: =_xlfn.XLOOKUP(A94,DATA[Item No.],DATA[SRP],"") -> 16.99 | W94: =_xlfn.XLOOKUP(A94,DATA[Item No.],DATA[SKU Territory Ranking - East],"") -> 4
A95: BA012 | C95: =_xlfn.XLOOKUP(A95,DATA[Item No.],DATA[Description],"") -> Espresso Fair-Trade Blend | D95: =_xlfn.XLOOKUP(A95,DATA[Item No.],DATA[Unit UPC],"") -> 628614000126 | E95: =_xlfn.XLOOKUP(A95,DATA[Item No.],DATA[Size],"") -> 340G | F95: =_xlfn.XLOOKUP(A95,DATA[Item No.],DATA[Picked],"") -> CA | G95: =_xlfn.XLOOKUP(A95,DATA[Item No.],DATA[Pack],"") -> 6 | H95: =_xlfn.XLOOKUP(A95,DATA[Item No.],DATA[O],"") -> Y | I95: =_xlfn.XLOOKUP(A95,DATA[Item No.],DATA[K],"") -> Y | J95: =_xlfn.XLOOKUP(A95,DATA[Item No.],DATA[V],"") -> 0 | K95: =_xlfn.XLOOKUP(A95,DATA[Item No.],DATA[GF],"") -> 0 | L95: =_xlfn.XLOOKUP(A95,DATA[Item No.],DATA[N],"") -> 0 | M95: =_xlfn.XLOOKUP(A95,DATA[Item No.],DATA[H],"") -> 0 | N95: =_xlfn.XLOOKUP(A95,DATA[Item No.],DATA[CM],"") -> Y | O95: =_xlfn.XLOOKUP(A95,DATA[Item No.],DATA[CO],"") -> Y | P95: =_xlfn.XLOOKUP(A95,DATA[Item No.],DATA[CP],"") -> 0 | Q95: =_xlfn.XLOOKUP(A95,DATA[Item No.],DATA[Guaranteed Days],"") -> 109 | R95: =_xlfn.XLOOKUP(A95,DATA[Item No.],DATA[Storage],"") -> Dry | S95: =_xlfn.XLOOKUP(A95,DATA[Item No.],DATA[Price],"") -> 83.72 | T95: =_xlfn.XLOOKUP(A95,DATA[Item No.],DATA[Monthly Promo],"") -> 0 | U95: =_xlfn.XLOOKUP(A95,DATA[Item No.],DATA[Promo Discount],"") -> 0 | V95: =_xlfn.XLOOKUP(A95,DATA[Item No.],DATA[SRP],"") -> 16.99 | W95: =_xlfn.XLOOKUP(A95,DATA[Item No.],DATA[SKU Territory Ranking - East],"") -> 1
A96: BA013 | C96: =_xlfn.XLOOKUP(A96,DATA[Item No.],DATA[Description],"") -> Swiss Water Decaf Blend | D96: =_xlfn.XLOOKUP(A96,DATA[Item No.],DATA[Unit UPC],"") -> 628614000133 | E96: =_xlfn.XLOOKUP(A96,DATA[Item No.],DATA[Size],"") -> 340G | F96: =_xlfn.XLOOKUP(A96,DATA[Item No.],DATA[Picked],"") -> CA | G96: =_xlfn.XLOOKUP(A96,DATA[Item No.],DATA[Pack],"") -> 6 | H96: =_xlfn.XLOOKUP(A96,DATA[Item No.],DATA[O],"") -> 0 | I96: =_xlfn.XLOOKUP(A96,DATA[Item No.],DATA[K],"") -> Y | J96: =_xlfn.XLOOKUP(A96,DATA[Item No.],DATA[V],"") -> 0 | K96: =_xlfn.XLOOKUP(A96,DATA[Item No.],DATA[GF],"") -> 0 | L96: =_xlfn.XLOOKUP(A96,DATA[Item No.],DATA[N],"") -> 0 | M96: =_xlfn.XLOOKUP(A96,DATA[Item No.],DATA[H],"") -> 0 | N96: =_xlfn.XLOOKUP(A96,DATA[Item No.],DATA[CM],"") -> 0 | O96: =_xlfn.XLOOKUP(A96,DATA[Item No.],DATA[CO],"") -> Y | P96: =_xlfn.XLOOKUP(A96,DATA[Item No.],DATA[CP],"") -> 0 | Q96: =_xlfn.XLOOKUP(A96,DATA[Item No.],DATA[Guaranteed Days],"") -> 109 | R96: =_xlfn.XLOOKUP(A96,DATA[Item No.],DATA[Storage],"") -> Dry | S96: =_xlfn.XLOOKUP(A96,DATA[Item No.],DATA[Price],"") -> 83.72 | T96: =_xlfn.XLOOKUP(A96,DATA[Item No.],DATA[Monthly Promo],"") -> 0 | U96: =_xlfn.XLOOKUP(A96,DATA[Item No.],DATA[Promo Discount],"") -> 0 | V96: =_xlfn.XLOOKUP(A96,DATA[Item No.],DATA[SRP],"") -> 16.99 | W96: =_xlfn.XLOOKUP(A96,DATA[Item No.],DATA[SKU Territory Ranking - East],"") -> 9
A97: BA0164 | C97: =_xlfn.XLOOKUP(A97,DATA[Item No.],DATA[Description],"") -> A Dark Affair | D97: =_xlfn.XLOOKUP(A97,DATA[Item No.],DATA[Unit UPC],"") -> 628614000164 | E97: =_xlfn.XLOOKUP(A97,DATA[Item No.],DATA[Size],"") -> 340G | F97: =_xlfn.XLOOKUP(A97,DATA[Item No.],DATA[Picked],"") -> CA | G97: =_xlfn.XLOOKUP(A97,DATA[Item No.],DATA[Pack],"") -> 6 | H97: =_xlfn.XLOOKUP(A97,DATA[Item No.],DATA[O],"") -> 0 | I97: =_xlfn.XLOOKUP(A97,DATA[Item No.],DATA[K],"") -> Y | J97: =_xlfn.XLOOKUP(A97,DATA[Item No.],DATA[V],"") -> 0 | K97: =_xlfn.XLOOKUP(A97,DATA[Item No.],DATA[GF],"") -> 0 | L97: =_xlfn.XLOOKUP(A97,DATA[Item No.],DATA[N],"") -> 0 | M97: =_xlfn.XLOOKUP(A97,DATA[Item No.],DATA[H],"") -> 0 | N97: =_xlfn.XLOOKUP(A97,DATA[Item No.],DATA[CM],"") -> 0 | O97: =_xlfn.XLOOKUP(A97,DATA[Item No.],DATA[CO],"") -> Y | P97: =_xlfn.XLOOKUP(A97,DATA[Item No.],DATA[CP],"") -> 0 | Q97: =_xlfn.XLOOKUP(A97,DATA[Item No.],DATA[Guaranteed Days],"") -> 109 | R97: =_xlfn.XLOOKUP(A97,DATA[Item No.],DATA[Storage],"") -> Dry | S97: =_xlfn.XLOOKUP(A97,DATA[Item No.],DATA[Price],"") -> 79.29 | T97: =_xlfn.XLOOKUP(A97,DATA[Item No.],DATA[Monthly Promo],"") -> 0 | U97: =_xlfn.XLOOKUP(A97,DATA[Item No.],DATA[Promo Discount],"") -> 0 | V97: =_xlfn.XLOOKUP(A97,DATA[Item No.],DATA[SRP],"") -> 15.99 | W97: =_xlfn.XLOOKUP(A97,DATA[Item No.],DATA[SKU Territory Ranking - East],"") -> 3
A98: BA0406 | C98: =_xlfn.XLOOKUP(A98,DATA[Item No.],DATA[Description],"") -> Colombian Las Rosas | D98: =_xlfn.XLOOKUP(A98,DATA[Item No.],DATA[Unit UPC],"") -> 628614000409 | E98: =_xlfn.XLOOKUP(A98,DATA[Item No.],DATA[Size],"") -> 340G | F98: =_xlfn.XLOOKUP(A98,DATA[Item No.],DATA[Picked],"") -> CA | G98: =_xlfn.XLOOKUP(A98,DATA[Item No.],DATA[Pack],"") -> 6 | H98: =_xlfn.XLOOKUP(A98,DATA[Item No.],DATA[O],"") -> 0 | I98: =_xlfn.XLOOKUP(A98,DATA[Item No.],DATA[K],"") -> Y | J98: =_xlfn.XLOOKUP(A98,DATA[Item No.],DATA[V],"") -> 0 | K98: =_xlfn.XLOOKUP(A98,DATA[Item No.],DATA[GF],"") -> 0 | L98: =_xlfn.XLOOKUP(A98,DATA[Item No.],DATA[N],"") -> 0 | M98: =_xlfn.XLOOKUP(A98,DATA[Item No.],DATA[H],"") -> 0 | N98: =_xlfn.XLOOKUP(A98,DATA[Item No.],DATA[CM],"") -> 0 | O98: =_xlfn.XLOOKUP(A98,DATA[Item No.],DATA[CO],"") -> Y | P98: =_xlfn.XLOOKUP(A98,DATA[Item No.],DATA[CP],"") -> 0 | Q98: =_xlfn.XLOOKUP(A98,DATA[Item No.],DATA[Guaranteed Days],"") -> 109 | R98: =_xlfn.XLOOKUP(A98,DATA[Item No.],DATA[Storage],"") -> Dry | S98: =_xlfn.XLOOKUP(A98,DATA[Item No.],DATA[Price],"") -> 83.72 | T98: =_xlfn.XLOOKUP(A98,DATA[Item No.],DATA[Monthly Promo],"") -> 0 | U98: =_xlfn.XLOOKUP(A98,DATA[Item No.],DATA[Promo Discount],"") -> 0 | V98: =_xlfn.XLOOKUP(A98,DATA[Item No.],DATA[SRP],"") -> 16.99 | W98: =_xlfn.XLOOKUP(A98,DATA[Item No.],DATA[SKU Territory Ranking - East],"") -> 13
A99: BA0413 | C99: =_xlfn.XLOOKUP(A99,DATA[Item No.],DATA[Description],"") -> Bards Fair-Trade Blend | D99: =_xlfn.XLOOKUP(A99,DATA[Item No.],DATA[Unit UPC],"") -> 628614000416 | E99: =_xlfn.XLOOKUP(A99,DATA[Item No.],DATA[Size],"") -> 340G | F99: =_xlfn.XLOOKUP(A99,DATA[Item No.],DATA[Picked],"") -> CA | G99: =_xlfn.XLOOKUP(A99,DATA[Item No.],DATA[Pack],"") -> 6 | H99: =_xlfn.XLOOKUP(A99,DATA[Item No.],DATA[O],"") -> Y | I99: =_xlfn.XLOOKUP(A99,DATA[Item No.],DATA[K],"") -> Y | J99: =_xlfn.XLOOKUP(A99,DATA[Item No.],DATA[V],"") -> 0 | K99: =_xlfn.XLOOKUP(A99,DATA[Item No.],DATA[GF],"") -> 0 | L99: =_xlfn.XLOOKUP(A99,DATA[Item No.],DATA[N],"") -> 0 | M99: =_xlfn.XLOOKUP(A99,DATA[Item No.],DATA[H],"") -> 0 | N99: =_xlfn.XLOOKUP(A99,DATA[Item No.],DATA[CM],"") -> 0 | O99: =_xlfn.XLOOKUP(A99,DATA[Item No.],DATA[CO],"") -> Y | P99: =_xlfn.XLOOKUP(A99,DATA[Item No.],DATA[CP],"") -> 0 | Q99: =_xlfn.XLOOKUP(A99,DATA[Item No.],DATA[Guaranteed Days],"") -> 109 | R99: =_xlfn.XLOOKUP(A99,DATA[Item No.],DATA[Storage],"") -> Dry | S99: =_xlfn.XLOOKUP(A99,DATA[Item No.],DATA[Price],"") -> 83.72 | T99: =_xlfn.XLOOKUP(A99,DATA[Item No.],DATA[Monthly Promo],"") -> 0 | U99: =_xlfn.XLOOKUP(A99,DATA[Item No.],DATA[Promo Discount],"") -> 0 | V99: =_xlfn.XLOOKUP(A99,DATA[Item No.],DATA[SRP],"") -> 16.99 | W99: =_xlfn.XLOOKUP(A99,DATA[Item No.],DATA[SKU Territory Ranking - East],"") -> 8
A100: BARBET | C100: =_xlfn.XLOOKUP(A100,DATA[Item No.],DATA[Description],"") ->  | D100: =_xlfn.XLOOKUP(A100,DATA[Item No.],DATA[Unit UPC],"") ->  | E100: =_xlfn.XLOOKUP(A100,DATA[Item No.],DATA[Size],"") ->  | F100: =_xlfn.XLOOKUP(A100,DATA[Item No.],DATA[Picked],"") ->  | G100: =_xlfn.XLOOKUP(A100,DATA[Item No.],DATA[Pack],"") ->  | H100: =_xlfn.XLOOKUP(A100,DATA[Item No.],DATA[O],"") ->  | I100: =_xlfn.XLOOKUP(A100,DATA[Item No.],DATA[K],"") ->  | J100: =_xlfn.XLOOKUP(A100,DATA[Item No.],DATA[V],"") ->  | K100: =_xlfn.XLOOKUP(A100,DATA[Item No.],DATA[GF],"") ->  | L100: =_xlfn.XLOOKUP(A100,DATA[Item No.],DATA[N],"") ->  | M100: =_xlfn.XLOOKUP(A100,DATA[Item No.],DATA[H],"") ->  | N100: =_xlfn.XLOOKUP(A100,DATA[Item No.],DATA[CM],"") ->  | O100: =_xlfn.XLOOKUP(A100,DATA[Item No.],DATA[CO],"") ->  | P100: =_xlfn.XLOOKUP(A100,DATA[Item No.],DATA[CP],"") ->  | Q100: =_xlfn.XLOOKUP(A100,DATA[Item No.],DATA[Guaranteed Days],"") ->  | R100: =_xlfn.XLOOKUP(A100,DATA[Item No.],DATA[Storage],"") ->  | S100: =_xlfn.XLOOKUP(A100,DATA[Item No.],DATA[Price],"") ->  | T100: =_xlfn.XLOOKUP(A100,DATA[Item No.],DATA[Monthly Promo],"") ->  | U100: =_xlfn.XLOOKUP(A100,DATA[Item No.],DATA[Promo Discount],"") ->  | V100: =_xlfn.XLOOKUP(A100,DATA[Item No.],DATA[SRP],"") ->  | W100: =_xlfn.XLOOKUP(A100,DATA[Item No.],DATA[SKU Territory Ranking - East],"") -> 
A101: Sparkling water | C101: =_xlfn.XLOOKUP(A101,DATA[Item No.],DATA[Description],"") ->  | D101: =_xlfn.XLOOKUP(A101,DATA[Item No.],DATA[Unit UPC],"") ->  | E101: =_xlfn.XLOOKUP(A101,DATA[Item No.],DATA[Size],"") ->  | F101: =_xlfn.XLOOKUP(A101,DATA[Item No.],DATA[Picked],"") ->  | G101: =_xlfn.XLOOKUP(A101,DATA[Item No.],DATA[Pack],"") ->  | H101: =_xlfn.XLOOKUP(A101,DATA[Item No.],DATA[O],"") ->  | I101: =_xlfn.XLOOKUP(A101,DATA[Item No.],DATA[K],"") ->  | J101: =_xlfn.XLOOKUP(A101,DATA[Item No.],DATA[V],"") ->  | K101: =_xlfn.XLOOKUP(A101,DATA[Item No.],DATA[GF],"") ->  | L101: =_xlfn.XLOOKUP(A101,DATA[Item No.],DATA[N],"") ->  | M101: =_xlfn.XLOOKUP(A101,DATA[Item No.],DATA[H],"") ->  | N101: =_xlfn.XLOOKUP(A101,DATA[Item No.],DATA[CM],"") ->  | O101: =_xlfn.XLOOKUP(A101,DATA[Item No.],DATA[CO],"") ->  | P101: =_xlfn.XLOOKUP(A101,DATA[Item No.],DATA[CP],"") ->  | Q101: =_xlfn.XLOOKUP(A101,DATA[Item No.],DATA[Guaranteed Days],"") ->  | R101: =_xlfn.XLOOKUP(A101,DATA[Item No.],DATA[Storage],"") ->  | S101: =_xlfn.XLOOKUP(A101,DATA[Item No.],DATA[Price],"") ->  | T101: =_xlfn.XLOOKUP(A101,DATA[Item No.],DATA[Monthly Promo],"") ->  | U101: =_xlfn.XLOOKUP(A101,DATA[Item No.],DATA[Promo Discount],"") ->  | V101: =_xlfn.XLOOKUP(A101,DATA[Item No.],DATA[SRP],"") ->  | W101: =_xlfn.XLOOKUP(A101,DATA[Item No.],DATA[SKU Territory Ranking - East],"") -> 
A102: BE8196 | C102: =_xlfn.XLOOKUP(A102,DATA[Item No.],DATA[Description],"") -> Light Wave | D102: =_xlfn.XLOOKUP(A102,DATA[Item No.],DATA[Unit UPC],"") -> 627987748192 | E102: =_xlfn.XLOOKUP(A102,DATA[Item No.],DATA[Size],"") -> 355ML | F102: =_xlfn.XLOOKUP(A102,DATA[Item No.],DATA[Picked],"") -> CA | G102: =_xlfn.XLOOKUP(A102,DATA[Item No.],DATA[Pack],"") -> 12 | H102: =_xlfn.XLOOKUP(A102,DATA[Item No.],DATA[O],"") -> 0 | I102: =_xlfn.XLOOKUP(A102,DATA[Item No.],DATA[K],"") -> 0 | J102: =_xlfn.XLOOKUP(A102,DATA[Item No.],DATA[V],"") -> 0 | K102: =_xlfn.XLOOKUP(A102,DATA[Item No.],DATA[GF],"") -> 0 | L102: =_xlfn.XLOOKUP(A102,DATA[Item No.],DATA[N],"") -> 0 | M102: =_xlfn.XLOOKUP(A102,DATA[Item No.],DATA[H],"") -> 0 | N102: =_xlfn.XLOOKUP(A102,DATA[Item No.],DATA[CM],"") -> Y | O102: =_xlfn.XLOOKUP(A102,DATA[Item No.],DATA[CO],"") -> Y | P102: =_xlfn.XLOOKUP(A102,DATA[Item No.],DATA[CP],"") -> Y | Q102: =_xlfn.XLOOKUP(A102,DATA[Item No.],DATA[Guaranteed Days],"") -> 109 | R102: =_xlfn.XLOOKUP(A102,DATA[Item No.],DATA[Storage],"") -> Dry | S102: =_xlfn.XLOOKUP(A102,DATA[Item No.],DATA[Price],"") -> 30.78 | T102: =_xlfn.XLOOKUP(A102,DATA[Item No.],DATA[Monthly Promo],"") -> 0 | U102: =_xlfn.XLOOKUP(A102,DATA[Item No.],DATA[Promo Discount],"") -> 0 | V102: =_xlfn.XLOOKUP(A102,DATA[Item No.],DATA[SRP],"") -> 3.49 | W102: =_xlfn.XLOOKUP(A102,DATA[Item No.],DATA[SKU Territory Ranking - East],"") -> 0
A103: BE8199 | C103: =_xlfn.XLOOKUP(A103,DATA[Item No.],DATA[Description],"") -> Light Wave | D103: =_xlfn.XLOOKUP(A103,DATA[Item No.],DATA[Unit UPC],"") -> 627987748192 | E103: =_xlfn.XLOOKUP(A103,DATA[Item No.],DATA[Size],"") -> 355ML | F103: =_xlfn.XLOOKUP(A103,DATA[Item No.],DATA[Picked],"") -> CA | G103: =_xlfn.XLOOKUP(A103,DATA[Item No.],DATA[Pack],"") -> 24 | H103: =_xlfn.XLOOKUP(A103,DATA[Item No.],DATA[O],"") -> 0 | I103: =_xlfn.XLOOKUP(A103,DATA[Item No.],DATA[K],"") -> 0 | J103: =_xlfn.XLOOKUP(A103,DATA[Item No.],DATA[V],"") -> 0 | K103: =_xlfn.XLOOKUP(A103,DATA[Item No.],DATA[GF],"") -> 0 | L103: =_xlfn.XLOOKUP(A103,DATA[Item No.],DATA[N],"") -> 0 | M103: =_xlfn.XLOOKUP(A103,DATA[Item No.],DATA[H],"") -> 0 | N103: =_xlfn.XLOOKUP(A103,DATA[Item No.],DATA[CM],"") -> Y | O103: =_xlfn.XLOOKUP(A103,DATA[Item No.],DATA[CO],"") -> 0 | P103: =_xlfn.XLOOKUP(A103,DATA[Item No.],DATA[CP],"") -> 0 | Q103: =_xlfn.XLOOKUP(A103,DATA[Item No.],DATA[Guaranteed Days],"") -> 109 | R103: =_xlfn.XLOOKUP(A103,DATA[Item No.],DATA[Storage],"") -> Dry | S103: =_xlfn.XLOOKUP(A103,DATA[Item No.],DATA[Price],"") -> 57.53 | T103: =_xlfn.XLOOKUP(A103,DATA[Item No.],DATA[Monthly Promo],"") -> 0 | U103: =_xlfn.XLOOKUP(A103,DATA[Item No.],DATA[Promo Discount],"") -> 0 | V103: =_xlfn.XLOOKUP(A103,DATA[Item No.],DATA[SRP],"") -> 3.49 | W103: =_xlfn.XLOOKUP(A103,DATA[Item No.],DATA[SKU Territory Ranking - East],"") -> 0
A104: BE8212 | C104: =_xlfn.XLOOKUP(A104,DATA[Item No.],DATA[Description],"") -> Wild Card | D104: =_xlfn.XLOOKUP(A104,DATA[Item No.],DATA[Unit UPC],"") -> 627987748215 | E104: =_xlfn.XLOOKUP(A104,DATA[Item No.],DATA[Size],"") -> 355ML | F104: =_xlfn.XLOOKUP(A104,DATA[Item No.],DATA[Picked],"") -> CA | G104: =_xlfn.XLOOKUP(A104,DATA[Item No.],DATA[Pack],"") -> 24 | H104: =_xlfn.XLOOKUP(A104,DATA[Item No.],DATA[O],"") -> 0 | I104: =_xlfn.XLOOKUP(A104,DATA[Item No.],DATA[K],"") -> 0 | J104: =_xlfn.XLOOKUP(A104,DATA[Item No.],DATA[V],"") -> 0 | K104: =_xlfn.XLOOKUP(A104,DATA[Item No.],DATA[GF],"") -> 0 | L104: =_xlfn.XLOOKUP(A104,DATA[Item No.],DATA[N],"") -> 0 | M104: =_xlfn.XLOOKUP(A104,DATA[Item No.],DATA[H],"") -> 0 | N104: =_xlfn.XLOOKUP(A104,DATA[Item No.],DATA[CM],"") -> Y | O104: =_xlfn.XLOOKUP(A104,DATA[Item No.],DATA[CO],"") -> 0 | P104: =_xlfn.XLOOKUP(A104,DATA[Item No.],DATA[CP],"") -> 0 | Q104: =_xlfn.XLOOKUP(A104,DATA[Item No.],DATA[Guaranteed Days],"") -> 109 | R104: =_xlfn.XLOOKUP(A104,DATA[Item No.],DATA[Storage],"") -> Dry | S104: =_xlfn.XLOOKUP(A104,DATA[Item No.],DATA[Price],"") -> 57.53 | T104: =_xlfn.XLOOKUP(A104,DATA[Item No.],DATA[Monthly Promo],"") -> 0 | U104: =_xlfn.XLOOKUP(A104,DATA[Item No.],DATA[Promo Discount],"") -> 0 | V104: =_xlfn.XLOOKUP(A104,DATA[Item No.],DATA[SRP],"") -> 3.49 | W104: =_xlfn.XLOOKUP(A104,DATA[Item No.],DATA[SKU Territory Ranking - East],"") -> 0
A105: BE8219 | C105: =_xlfn.XLOOKUP(A105,DATA[Item No.],DATA[Description],"") -> Wild Card | D105: =_xlfn.XLOOKUP(A105,DATA[Item No.],DATA[Unit UPC],"") -> 627987748215 | E105: =_xlfn.XLOOKUP(A105,DATA[Item No.],DATA[Size],"") -> 355ML | F105: =_xlfn.XLOOKUP(A105,DATA[Item No.],DATA[Picked],"") -> CA | G105: =_xlfn.XLOOKUP(A105,DATA[Item No.],DATA[Pack],"") -> 12 | H105: =_xlfn.XLOOKUP(A105,DATA[Item No.],DATA[O],"") -> 0 | I105: =_xlfn.XLOOKUP(A105,DATA[Item No.],DATA[K],"") -> 0 | J105: =_xlfn.XLOOKUP(A105,DATA[Item No.],DATA[V],"") -> 0 | K105: =_xlfn.XLOOKUP(A105,DATA[Item No.],DATA[GF],"") -> 0 | L105: =_xlfn.XLOOKUP(A105,DATA[Item No.],DATA[N],"") -> 0 | M105: =_xlfn.XLOOKUP(A105,DATA[Item No.],DATA[H],"") -> 0 | N105: =_xlfn.XLOOKUP(A105,DATA[Item No.],DATA[CM],"") -> Y | O105: =_xlfn.XLOOKUP(A105,DATA[Item No.],DATA[CO],"") -> Y | P105: =_xlfn.XLOOKUP(A105,DATA[Item No.],DATA[CP],"") -> Y | Q105: =_xlfn.XLOOKUP(A105,DATA[Item No.],DATA[Guaranteed Days],"") -> 109 | R105: =_xlfn.XLOOKUP(A105,DATA[Item No.],DATA[Storage],"") -> Dry | S105: =_xlfn.XLOOKUP(A105,DATA[Item No.],DATA[Price],"") -> 30.78 | T105: =_xlfn.XLOOKUP(A105,DATA[Item No.],DATA[Monthly Promo],"") -> 0 | U105: =_xlfn.XLOOKUP(A105,DATA[Item No.],DATA[Promo Discount],"") -> 0 | V105: =_xlfn.XLOOKUP(A105,DATA[Item No.],DATA[SRP],"") -> 3.49 | W105: =_xlfn.XLOOKUP(A105,DATA[Item No.],DATA[SKU Territory Ranking - East],"") -> 0
A106: BE8233 | C106: =_xlfn.XLOOKUP(A106,DATA[Item No.],DATA[Description],"") -> Love Bite | D106: =_xlfn.XLOOKUP(A106,DATA[Item No.],DATA[Unit UPC],"") -> 627987748239 | E106: =_xlfn.XLOOKUP(A106,DATA[Item No.],DATA[Size],"") -> 355ML | F106: =_xlfn.XLOOKUP(A106,DATA[Item No.],DATA[Picked],"") -> CA | G106: =_xlfn.XLOOKUP(A106,DATA[Item No.],DATA[Pack],"") -> 12 | H106: =_xlfn.XLOOKUP(A106,DATA[Item No.],DATA[O],"") -> 0 | I106: =_xlfn.XLOOKUP(A106,DATA[Item No.],DATA[K],"") -> 0 | J106: =_xlfn.XLOOKUP(A106,DATA[Item No.],DATA[V],"") -> 0 | K106: =_xlfn.XLOOKUP(A106,DATA[Item No.],DATA[GF],"") -> 0 | L106: =_xlfn.XLOOKUP(A106,DATA[Item No.],DATA[N],"") -> 0 | M106: =_xlfn.XLOOKUP(A106,DATA[Item No.],DATA[H],"") -> 0 | N106: =_xlfn.XLOOKUP(A106,DATA[Item No.],DATA[CM],"") -> Y | O106: =_xlfn.XLOOKUP(A106,DATA[Item No.],DATA[CO],"") -> Y | P106: =_xlfn.XLOOKUP(A106,DATA[Item No.],DATA[CP],"") -> Y | Q106: =_xlfn.XLOOKUP(A106,DATA[Item No.],DATA[Guaranteed Days],"") -> 109 | R106: =_xlfn.XLOOKUP(A106,DATA[Item No.],DATA[Storage],"") -> Dry | S106: =_xlfn.XLOOKUP(A106,DATA[Item No.],DATA[Price],"") -> 30.78 | T106: =_xlfn.XLOOKUP(A106,DATA[Item No.],DATA[Monthly Promo],"") -> 0 | U106: =_xlfn.XLOOKUP(A106,DATA[Item No.],DATA[Promo Discount],"") -> 0 | V106: =_xlfn.XLOOKUP(A106,DATA[Item No.],DATA[SRP],"") -> 3.49 | W106: =_xlfn.XLOOKUP(A106,DATA[Item No.],DATA[SKU Territory Ranking - East],"") -> 0
A107: BE8236 | C107: =_xlfn.XLOOKUP(A107,DATA[Item No.],DATA[Description],"") -> Love Bite | D107: =_xlfn.XLOOKUP(A107,DATA[Item No.],DATA[Unit UPC],"") -> 627987748239 | E107: =_xlfn.XLOOKUP(A107,DATA[Item No.],DATA[Size],"") -> 355ML | F107: =_xlfn.XLOOKUP(A107,DATA[Item No.],DATA[Picked],"") -> CA | G107: =_xlfn.XLOOKUP(A107,DATA[Item No.],DATA[Pack],"") -> 24 | H107: =_xlfn.XLOOKUP(A107,DATA[Item No.],DATA[O],"") -> 0 | I107: =_xlfn.XLOOKUP(A107,DATA[Item No.],DATA[K],"") -> 0 | J107: =_xlfn.XLOOKUP(A107,DATA[Item No.],DATA[V],"") -> 0 | K107: =_xlfn.XLOOKUP(A107,DATA[Item No.],DATA[GF],"") -> 0 | L107: =_xlfn.XLOOKUP(A107,DATA[Item No.],DATA[N],"") -> 0 | M107: =_xlfn.XLOOKUP(A107,DATA[Item No.],DATA[H],"") -> 0 | N107: =_xlfn.XLOOKUP(A107,DATA[Item No.],DATA[CM],"") -> Y | O107: =_xlfn.XLOOKUP(A107,DATA[Item No.],DATA[CO],"") -> 0 | P107: =_xlfn.XLOOKUP(A107,DATA[Item No.],DATA[CP],"") -> 0 | Q107: =_xlfn.XLOOKUP(A107,DATA[Item No.],DATA[Guaranteed Days],"") -> 109 | R107: =_xlfn.XLOOKUP(A107,DATA[Item No.],DATA[Storage],"") -> Dry | S107: =_xlfn.XLOOKUP(A107,DATA[Item No.],DATA[Price],"") -> 57.53 | T107: =_xlfn.XLOOKUP(A107,DATA[Item No.],DATA[Monthly Promo],"") -> 0 | U107: =_xlfn.XLOOKUP(A107,DATA[Item No.],DATA[Promo Discount],"") -> 0 | V107: =_xlfn.XLOOKUP(A107,DATA[Item No.],DATA[SRP],"") -> 3.49 | W107: =_xlfn.XLOOKUP(A107,DATA[Item No.],DATA[SKU Territory Ranking - East],"") -> 0
A108: BE8295 | C108: =_xlfn.XLOOKUP(A108,DATA[Item No.],DATA[Description],"") -> Deep Dive | D108: =_xlfn.XLOOKUP(A108,DATA[Item No.],DATA[Unit UPC],"") -> 627987748291 | E108: =_xlfn.XLOOKUP(A108,DATA[Item No.],DATA[Size],"") -> 355ML | F108: =_xlfn.XLOOKUP(A108,DATA[Item No.],DATA[Picked],"") -> CA | G108: =_xlfn.XLOOKUP(A108,DATA[Item No.],DATA[Pack],"") -> 12 | H108: =_xlfn.XLOOKUP(A108,DATA[Item No.],DATA[O],"") -> 0 | I108: =_xlfn.XLOOKUP(A108,DATA[Item No.],DATA[K],"") -> 0 | J108: =_xlfn.XLOOKUP(A108,DATA[Item No.],DATA[V],"") -> 0 | K108: =_xlfn.XLOOKUP(A108,DATA[Item No.],DATA[GF],"") -> 0 | L108: =_xlfn.XLOOKUP(A108,DATA[Item No.],DATA[N],"") -> 0 | M108: =_xlfn.XLOOKUP(A108,DATA[Item No.],DATA[H],"") -> 0 | N108: =_xlfn.XLOOKUP(A108,DATA[Item No.],DATA[CM],"") -> Y | O108: =_xlfn.XLOOKUP(A108,DATA[Item No.],DATA[CO],"") -> 0 | P108: =_xlfn.XLOOKUP(A108,DATA[Item No.],DATA[CP],"") -> 0 | Q108: =_xlfn.XLOOKUP(A108,DATA[Item No.],DATA[Guaranteed Days],"") -> 109 | R108: =_xlfn.XLOOKUP(A108,DATA[Item No.],DATA[Storage],"") -> Dry | S108: =_xlfn.XLOOKUP(A108,DATA[Item No.],DATA[Price],"") -> 30.78 | T108: =_xlfn.XLOOKUP(A108,DATA[Item No.],DATA[Monthly Promo],"") -> 0 | U108: =_xlfn.XLOOKUP(A108,DATA[Item No.],DATA[Promo Discount],"") -> 0 | V108: =_xlfn.XLOOKUP(A108,DATA[Item No.],DATA[SRP],"") -> 3.49 | W108: =_xlfn.XLOOKUP(A108,DATA[Item No.],DATA[SKU Territory Ranking - East],"") -> 0
A109: BENNY | C109: =_xlfn.XLOOKUP(A109,DATA[Item No.],DATA[Description],"") ->  | D109: =_xlfn.XLOOKUP(A109,DATA[Item No.],DATA[Unit UPC],"") ->  | E109: =_xlfn.XLOOKUP(A109,DATA[Item No.],DATA[Size],"") ->  | F109: =_xlfn.XLOOKUP(A109,DATA[Item No.],DATA[Picked],"") ->  | G109: =_xlfn.XLOOKUP(A109,DATA[Item No.],DATA[Pack],"") ->  | H109: =_xlfn.XLOOKUP(A109,DATA[Item No.],DATA[O],"") ->  | I109: =_xlfn.XLOOKUP(A109,DATA[Item No.],DATA[K],"") ->  | J109: =_xlfn.XLOOKUP(A109,DATA[Item No.],DATA[V],"") ->  | K109: =_xlfn.XLOOKUP(A109,DATA[Item No.],DATA[GF],"") ->  | L109: =_xlfn.XLOOKUP(A109,DATA[Item No.],DATA[N],"") ->  | M109: =_xlfn.XLOOKUP(A109,DATA[Item No.],DATA[H],"") ->  | N109: =_xlfn.XLOOKUP(A109,DATA[Item No.],DATA[CM],"") ->  | O109: =_xlfn.XLOOKUP(A109,DATA[Item No.],DATA[CO],"") ->  | P109: =_xlfn.XLOOKUP(A109,DATA[Item No.],DATA[CP],"") ->  | Q109: =_xlfn.XLOOKUP(A109,DATA[Item No.],DATA[Guaranteed Days],"") ->  | R109: =_xlfn.XLOOKUP(A109,DATA[Item No.],DATA[Storage],"") ->  | S109: =_xlfn.XLOOKUP(A109,DATA[Item No.],DATA[Price],"") ->  | T109: =_xlfn.XLOOKUP(A109,DATA[Item No.],DATA[Monthly Promo],"") ->  | U109: =_xlfn.XLOOKUP(A109,DATA[Item No.],DATA[Promo Discount],"") ->  | V109: =_xlfn.XLOOKUP(A109,DATA[Item No.],DATA[SRP],"") ->  | W109: =_xlfn.XLOOKUP(A109,DATA[Item No.],DATA[SKU Territory Ranking - East],"") -> 
A110: Nourishing energy | C110: =_xlfn.XLOOKUP(A110,DATA[Item No.],DATA[Description],"") ->  | D110: =_xlfn.XLOOKUP(A110,DATA[Item No.],DATA[Unit UPC],"") ->  | E110: =_xlfn.XLOOKUP(A110,DATA[Item No.],DATA[Size],"") ->  | F110: =_xlfn.XLOOKUP(A110,DATA[Item No.],DATA[Picked],"") ->  | G110: =_xlfn.XLOOKUP(A110,DATA[Item No.],DATA[Pack],"") ->  | H110: =_xlfn.XLOOKUP(A110,DATA[Item No.],DATA[O],"") ->  | I110: =_xlfn.XLOOKUP(A110,DATA[Item No.],DATA[K],"") ->  | J110: =_xlfn.XLOOKUP(A110,DATA[Item No.],DATA[V],"") ->  | K110: =_xlfn.XLOOKUP(A110,DATA[Item No.],DATA[GF],"") ->  | L110: =_xlfn.XLOOKUP(A110,DATA[Item No.],DATA[N],"") ->  | M110: =_xlfn.XLOOKUP(A110,DATA[Item No.],DATA[H],"") ->  | N110: =_xlfn.XLOOKUP(A110,DATA[Item No.],DATA[CM],"") ->  | O110: =_xlfn.XLOOKUP(A110,DATA[Item No.],DATA[CO],"") ->  | P110: =_xlfn.XLOOKUP(A110,DATA[Item No.],DATA[CP],"") ->  | Q110: =_xlfn.XLOOKUP(A110,DATA[Item No.],DATA[Guaranteed Days],"") ->  | R110: =_xlfn.XLOOKUP(A110,DATA[Item No.],DATA[Storage],"") ->  | S110: =_xlfn.XLOOKUP(A110,DATA[Item No.],DATA[Price],"") ->  | T110: =_xlfn.XLOOKUP(A110,DATA[Item No.],DATA[Monthly Promo],"") ->  | U110: =_xlfn.XLOOKUP(A110,DATA[Item No.],DATA[Promo Discount],"") ->  | V110: =_xlfn.XLOOKUP(A110,DATA[Item No.],DATA[SRP],"") ->  | W110: =_xlfn.XLOOKUP(A110,DATA[Item No.],DATA[SKU Territory Ranking - East],"") -> 
A111: BY1759 | C111: =_xlfn.XLOOKUP(A111,DATA[Item No.],DATA[Description],"") -> Raspberry hibiscus | D111: =_xlfn.XLOOKUP(A111,DATA[Item No.],DATA[Unit UPC],"") -> 628942441752 | E111: =_xlfn.XLOOKUP(A111,DATA[Item No.],DATA[Size],"") -> 355ML | F111: =_xlfn.XLOOKUP(A111,DATA[Item No.],DATA[Picked],"") -> CA | G111: =_xlfn.XLOOKUP(A111,DATA[Item No.],DATA[Pack],"") -> 12 | H111: =_xlfn.XLOOKUP(A111,DATA[Item No.],DATA[O],"") -> 0 | I111: =_xlfn.XLOOKUP(A111,DATA[Item No.],DATA[K],"") -> 0 | J111: =_xlfn.XLOOKUP(A111,DATA[Item No.],DATA[V],"") -> 0 | K111: =_xlfn.XLOOKUP(A111,DATA[Item No.],DATA[GF],"") -> 0 | L111: =_xlfn.XLOOKUP(A111,DATA[Item No.],DATA[N],"") -> 0 | M111: =_xlfn.XLOOKUP(A111,DATA[Item No.],DATA[H],"") -> 0 | N111: =_xlfn.XLOOKUP(A111,DATA[Item No.],DATA[CM],"") -> Y | O111: =_xlfn.XLOOKUP(A111,DATA[Item No.],DATA[CO],"") -> Y | P111: =_xlfn.XLOOKUP(A111,DATA[Item No.],DATA[CP],"") -> Y | Q111: =_xlfn.XLOOKUP(A111,DATA[Item No.],DATA[Guaranteed Days],"") -> 95 | R111: =_xlfn.XLOOKUP(A111,DATA[Item No.],DATA[Storage],"") -> Dry | S111: =_xlfn.XLOOKUP(A111,DATA[Item No.],DATA[Price],"") -> 39.17 | T111: =_xlfn.XLOOKUP(A111,DATA[Item No.],DATA[Monthly Promo],"") -> 0 | U111: =_xlfn.XLOOKUP(A111,DATA[Item No.],DATA[Promo Discount],"") -> 0 | V111: =_xlfn.XLOOKUP(A111,DATA[Item No.],DATA[SRP],"") -> 4.99 | W111: =_xlfn.XLOOKUP(A111,DATA[Item No.],DATA[SKU Territory Ranking - East],"") -> 0
A112: BY1766 | C112: =_xlfn.XLOOKUP(A112,DATA[Item No.],DATA[Description],"") -> Peach lychee | D112: =_xlfn.XLOOKUP(A112,DATA[Item No.],DATA[Unit UPC],"") -> 628942441769 | E112: =_xlfn.XLOOKUP(A112,DATA[Item No.],DATA[Size],"") -> 355ML | F112: =_xlfn.XLOOKUP(A112,DATA[Item No.],DATA[Picked],"") -> CA | G112: =_xlfn.XLOOKUP(A112,DATA[Item No.],DATA[Pack],"") -> 12 | H112: =_xlfn.XLOOKUP(A112,DATA[Item No.],DATA[O],"") -> 0 | I112: =_xlfn.XLOOKUP(A112,DATA[Item No.],DATA[K],"") -> 0 | J112: =_xlfn.XLOOKUP(A112,DATA[Item No.],DATA[V],"") -> 0 | K112: =_xlfn.XLOOKUP(A112,DATA[Item No.],DATA[GF],"") -> 0 | L112: =_xlfn.XLOOKUP(A112,DATA[Item No.],DATA[N],"") -> 0 | M112: =_xlfn.XLOOKUP(A112,DATA[Item No.],DATA[H],"") -> 0 | N112: =_xlfn.XLOOKUP(A112,DATA[Item No.],DATA[CM],"") -> Y | O112: =_xlfn.XLOOKUP(A112,DATA[Item No.],DATA[CO],"") -> Y | P112: =_xlfn.XLOOKUP(A112,DATA[Item No.],DATA[CP],"") -> Y | Q112: =_xlfn.XLOOKUP(A112,DATA[Item No.],DATA[Guaranteed Days],"") -> 95 | R112: =_xlfn.XLOOKUP(A112,DATA[Item No.],DATA[Storage],"") -> Dry | S112: =_xlfn.XLOOKUP(A112,DATA[Item No.],DATA[Price],"") -> 39.17 | T112: =_xlfn.XLOOKUP(A112,DATA[Item No.],DATA[Monthly Promo],"") -> 0 | U112: =_xlfn.XLOOKUP(A112,DATA[Item No.],DATA[Promo Discount],"") -> 0 | V112: =_xlfn.XLOOKUP(A112,DATA[Item No.],DATA[SRP],"") -> 4.99 | W112: =_xlfn.XLOOKUP(A112,DATA[Item No.],DATA[SKU Territory Ranking - East],"") -> 0
A113: BY1773 | C113: =_xlfn.XLOOKUP(A113,DATA[Item No.],DATA[Description],"") -> Peach lychee | D113: =_xlfn.XLOOKUP(A113,DATA[Item No.],DATA[Unit UPC],"") -> 628942441776 | E113: =_xlfn.XLOOKUP(A113,DATA[Item No.],DATA[Size],"") -> 4x355ML | F113: =_xlfn.XLOOKUP(A113,DATA[Item No.],DATA[Picked],"") -> CA | G113: =_xlfn.XLOOKUP(A113,DATA[Item No.],DATA[Pack],"") -> 6 | H113: =_xlfn.XLOOKUP(A113,DATA[Item No.],DATA[O],"") -> Y | I113: =_xlfn.XLOOKUP(A113,DATA[Item No.],DATA[K],"") -> 0 | J113: =_xlfn.XLOOKUP(A113,DATA[Item No.],DATA[V],"") -> Y | K113: =_xlfn.XLOOKUP(A113,DATA[Item No.],DATA[GF],"") -> Y | L113: =_xlfn.XLOOKUP(A113,DATA[Item No.],DATA[N],"") -> Y | M113: =_xlfn.XLOOKUP(A113,DATA[Item No.],DATA[H],"") -> 0 | N113: =_xlfn.XLOOKUP(A113,DATA[Item No.],DATA[CM],"") -> Y | O113: =_xlfn.XLOOKUP(A113,DATA[Item No.],DATA[CO],"") -> Y | P113: =_xlfn.XLOOKUP(A113,DATA[Item No.],DATA[CP],"") -> Y | Q113: =_xlfn.XLOOKUP(A113,DATA[Item No.],DATA[Guaranteed Days],"") -> 109 | R113: =_xlfn.XLOOKUP(A113,DATA[Item No.],DATA[Storage],"") -> Dry | S113: =_xlfn.XLOOKUP(A113,DATA[Item No.],DATA[Price],"") -> 83.34 | T113: =_xlfn.XLOOKUP(A113,DATA[Item No.],DATA[Monthly Promo],"") -> 0 | U113: =_xlfn.XLOOKUP(A113,DATA[Item No.],DATA[Promo Discount],"") -> 0 | V113: =_xlfn.XLOOKUP(A113,DATA[Item No.],DATA[SRP],"") -> 18.99 | W113: =_xlfn.XLOOKUP(A113,DATA[Item No.],DATA[SKU Territory Ranking - East],"") -> 0
A114: BY1780 | C114: =_xlfn.XLOOKUP(A114,DATA[Item No.],DATA[Description],"") -> Elderberry yuzu | D114: =_xlfn.XLOOKUP(A114,DATA[Item No.],DATA[Unit UPC],"") -> 628942441783 | E114: =_xlfn.XLOOKUP(A114,DATA[Item No.],DATA[Size],"") -> 355ML | F114: =_xlfn.XLOOKUP(A114,DATA[Item No.],DATA[Picked],"") -> CA | G114: =_xlfn.XLOOKUP(A114,DATA[Item No.],DATA[Pack],"") -> 12 | H114: =_xlfn.XLOOKUP(A114,DATA[Item No.],DATA[O],"") -> 0 | I114: =_xlfn.XLOOKUP(A114,DATA[Item No.],DATA[K],"") -> 0 | J114: =_xlfn.XLOOKUP(A114,DATA[Item No.],DATA[V],"") -> 0 | K114: =_xlfn.XLOOKUP(A114,DATA[Item No.],DATA[GF],"") -> 0 | L114: =_xlfn.XLOOKUP(A114,DATA[Item No.],DATA[N],"") -> 0 | M114: =_xlfn.XLOOKUP(A114,DATA[Item No.],DATA[H],"") -> 0 | N114: =_xlfn.XLOOKUP(A114,DATA[Item No.],DATA[CM],"") -> Y | O114: =_xlfn.XLOOKUP(A114,DATA[Item No.],DATA[CO],"") -> Y | P114: =_xlfn.XLOOKUP(A114,DATA[Item No.],DATA[CP],"") -> Y | Q114: =_xlfn.XLOOKUP(A114,DATA[Item No.],DATA[Guaranteed Days],"") -> 95 | R114: =_xlfn.XLOOKUP(A114,DATA[Item No.],DATA[Storage],"") -> Dry | S114: =_xlfn.XLOOKUP(A114,DATA[Item No.],DATA[Price],"") -> 39.17 | T114: =_xlfn.XLOOKUP(A114,DATA[Item No.],DATA[Monthly Promo],"") -> 0 | U114: =_xlfn.XLOOKUP(A114,DATA[Item No.],DATA[Promo Discount],"") -> 0 | V114: =_xlfn.XLOOKUP(A114,DATA[Item No.],DATA[SRP],"") -> 4.99 | W114: =_xlfn.XLOOKUP(A114,DATA[Item No.],DATA[SKU Territory Ranking - East],"") -> 0
A115: BY1803 | C115: =_xlfn.XLOOKUP(A115,DATA[Item No.],DATA[Description],"") -> Elderberry yuzu | D115: =_xlfn.XLOOKUP(A115,DATA[Item No.],DATA[Unit UPC],"") -> 628942441806 | E115: =_xlfn.XLOOKUP(A115,DATA[Item No.],DATA[Size],"") -> 4x355ML | F115: =_xlfn.XLOOKUP(A115,DATA[Item No.],DATA[Picked],"") -> CA | G115: =_xlfn.XLOOKUP(A115,DATA[Item No.],DATA[Pack],"") -> 6 | H115: =_xlfn.XLOOKUP(A115,DATA[Item No.],DATA[O],"") -> Y | I115: =_xlfn.XLOOKUP(A115,DATA[Item No.],DATA[K],"") -> 0 | J115: =_xlfn.XLOOKUP(A115,DATA[Item No.],DATA[V],"") -> Y | K115: =_xlfn.XLOOKUP(A115,DATA[Item No.],DATA[GF],"") -> Y | L115: =_xlfn.XLOOKUP(A115,DATA[Item No.],DATA[N],"") -> Y | M115: =_xlfn.XLOOKUP(A115,DATA[Item No.],DATA[H],"") -> 0 | N115: =_xlfn.XLOOKUP(A115,DATA[Item No.],DATA[CM],"") -> Y | O115: =_xlfn.XLOOKUP(A115,DATA[Item No.],DATA[CO],"") -> Y | P115: =_xlfn.XLOOKUP(A115,DATA[Item No.],DATA[CP],"") -> Y | Q115: =_xlfn.XLOOKUP(A115,DATA[Item No.],DATA[Guaranteed Days],"") -> 109 | R115: =_xlfn.XLOOKUP(A115,DATA[Item No.],DATA[Storage],"") -> Dry | S115: =_xlfn.XLOOKUP(A115,DATA[Item No.],DATA[Price],"") -> 83.34 | T115: =_xlfn.XLOOKUP(A115,DATA[Item No.],DATA[Monthly Promo],"") -> 0 | U115: =_xlfn.XLOOKUP(A115,DATA[Item No.],DATA[Promo Discount],"") -> 0 | V115: =_xlfn.XLOOKUP(A115,DATA[Item No.],DATA[SRP],"") -> 18.99 | W115: =_xlfn.XLOOKUP(A115,DATA[Item No.],DATA[SKU Territory Ranking - East],"") -> 0
A116: BY1810 | C116: =_xlfn.XLOOKUP(A116,DATA[Item No.],DATA[Description],"") -> Raspberry hibiscus | D116: =_xlfn.XLOOKUP(A116,DATA[Item No.],DATA[Unit UPC],"") -> 628942441813 | E116: =_xlfn.XLOOKUP(A116,DATA[Item No.],DATA[Size],"") -> 4x355ML | F116: =_xlfn.XLOOKUP(A116,DATA[Item No.],DATA[Picked],"") -> CA | G116: =_xlfn.XLOOKUP(A116,DATA[Item No.],DATA[Pack],"") -> 6 | H116: =_xlfn.XLOOKUP(A116,DATA[Item No.],DATA[O],"") -> Y | I116: =_xlfn.XLOOKUP(A116,DATA[Item No.],DATA[K],"") -> 0 | J116: =_xlfn.XLOOKUP(A116,DATA[Item No.],DATA[V],"") -> Y | K116: =_xlfn.XLOOKUP(A116,DATA[Item No.],DATA[GF],"") -> Y | L116: =_xlfn.XLOOKUP(A116,DATA[Item No.],DATA[N],"") -> Y | M116: =_xlfn.XLOOKUP(A116,DATA[Item No.],DATA[H],"") -> 0 | N116: =_xlfn.XLOOKUP(A116,DATA[Item No.],DATA[CM],"") -> Y | O116: =_xlfn.XLOOKUP(A116,DATA[Item No.],DATA[CO],"") -> Y | P116: =_xlfn.XLOOKUP(A116,DATA[Item No.],DATA[CP],"") -> Y | Q116: =_xlfn.XLOOKUP(A116,DATA[Item No.],DATA[Guaranteed Days],"") -> 109 | R116: =_xlfn.XLOOKUP(A116,DATA[Item No.],DATA[Storage],"") -> Dry | S116: =_xlfn.XLOOKUP(A116,DATA[Item No.],DATA[Price],"") -> 83.34 | T116: =_xlfn.XLOOKUP(A116,DATA[Item No.],DATA[Monthly Promo],"") -> 0 | U116: =_xlfn.XLOOKUP(A116,DATA[Item No.],DATA[Promo Discount],"") -> 0 | V116: =_xlfn.XLOOKUP(A116,DATA[Item No.],DATA[SRP],"") -> 18.99 | W116: =_xlfn.XLOOKUP(A116,DATA[Item No.],DATA[SKU Territory Ranking - East],"") -> 0
A117: BEST BAA | C117: =_xlfn.XLOOKUP(A117,DATA[Item No.],DATA[Description],"") ->  | D117: =_xlfn.XLOOKUP(A117,DATA[Item No.],DATA[Unit UPC],"") ->  | E117: =_xlfn.XLOOKUP(A117,DATA[Item No.],DATA[Size],"") ->  | F117: =_xlfn.XLOOKUP(A117,DATA[Item No.],DATA[Picked],"") ->  | G117: =_xlfn.XLOOKUP(A117,DATA[Item No.],DATA[Pack],"") ->  | H117: =_xlfn.XLOOKUP(A117,DATA[Item No.],DATA[O],"") ->  | I117: =_xlfn.XLOOKUP(A117,DATA[Item No.],DATA[K],"") ->  | J117: =_xlfn.XLOOKUP(A117,DATA[Item No.],DATA[V],"") ->  | K117: =_xlfn.XLOOKUP(A117,DATA[Item No.],DATA[GF],"") ->  | L117: =_xlfn.XLOOKUP(A117,DATA[Item No.],DATA[N],"") ->  | M117: =_xlfn.XLOOKUP(A117,DATA[Item No.],DATA[H],"") ->  | N117: =_xlfn.XLOOKUP(A117,DATA[Item No.],DATA[CM],"") ->  | O117: =_xlfn.XLOOKUP(A117,DATA[Item No.],DATA[CO],"") ->  | P117: =_xlfn.XLOOKUP(A117,DATA[Item No.],DATA[CP],"") ->  | Q117: =_xlfn.XLOOKUP(A117,DATA[Item No.],DATA[Guaranteed Days],"") ->  | R117: =_xlfn.XLOOKUP(A117,DATA[Item No.],DATA[Storage],"") ->  | S117: =_xlfn.XLOOKUP(A117,DATA[Item No.],DATA[Price],"") ->  | T117: =_xlfn.XLOOKUP(A117,DATA[Item No.],DATA[Monthly Promo],"") ->  | U117: =_xlfn.XLOOKUP(A117,DATA[Item No.],DATA[Promo Discount],"") ->  | V117: =_xlfn.XLOOKUP(A117,DATA[Item No.],DATA[SRP],"") ->  | W117: =_xlfn.XLOOKUP(A117,DATA[Item No.],DATA[SKU Territory Ranking - East],"") -> 
A118: Ricotta | C118: =_xlfn.XLOOKUP(A118,DATA[Item No.],DATA[Description],"") ->  | D118: =_xlfn.XLOOKUP(A118,DATA[Item No.],DATA[Unit UPC],"") ->  | E118: =_xlfn.XLOOKUP(A118,DATA[Item No.],DATA[Size],"") ->  | F118: =_xlfn.XLOOKUP(A118,DATA[Item No.],DATA[Picked],"") ->  | G118: =_xlfn.XLOOKUP(A118,DATA[Item No.],DATA[Pack],"") ->  | H118: =_xlfn.XLOOKUP(A118,DATA[Item No.],DATA[O],"") ->  | I118: =_xlfn.XLOOKUP(A118,DATA[Item No.],DATA[K],"") ->  | J118: =_xlfn.XLOOKUP(A118,DATA[Item No.],DATA[V],"") ->  | K118: =_xlfn.XLOOKUP(A118,DATA[Item No.],DATA[GF],"") ->  | L118: =_xlfn.XLOOKUP(A118,DATA[Item No.],DATA[N],"") ->  | M118: =_xlfn.XLOOKUP(A118,DATA[Item No.],DATA[H],"") ->  | N118: =_xlfn.XLOOKUP(A118,DATA[Item No.],DATA[CM],"") ->  | O118: =_xlfn.XLOOKUP(A118,DATA[Item No.],DATA[CO],"") ->  | P118: =_xlfn.XLOOKUP(A118,DATA[Item No.],DATA[CP],"") ->  | Q118: =_xlfn.XLOOKUP(A118,DATA[Item No.],DATA[Guaranteed Days],"") ->  | R118: =_xlfn.XLOOKUP(A118,DATA[Item No.],DATA[Storage],"") ->  | S118: =_xlfn.XLOOKUP(A118,DATA[Item No.],DATA[Price],"") ->  | T118: =_xlfn.XLOOKUP(A118,DATA[Item No.],DATA[Monthly Promo],"") ->  | U118: =_xlfn.XLOOKUP(A118,DATA[Item No.],DATA[Promo Discount],"") ->  | V118: =_xlfn.XLOOKUP(A118,DATA[Item No.],DATA[SRP],"") ->  | W118: =_xlfn.XLOOKUP(A118,DATA[Item No.],DATA[SKU Territory Ranking - East],"") -> 
A119: BB300140 | C119: =_xlfn.XLOOKUP(A119,DATA[Item No.],DATA[Description],"") -> Sheep Milk Ricotta Cheese | D119: =_xlfn.XLOOKUP(A119,DATA[Item No.],DATA[Unit UPC],"") -> 736211300140 | E119: =_xlfn.XLOOKUP(A119,DATA[Item No.],DATA[Size],"") -> 400G | F119: =_xlfn.XLOOKUP(A119,DATA[Item No.],DATA[Picked],"") -> EA | G119: =_xlfn.XLOOKUP(A119,DATA[Item No.],DATA[Pack],"") -> 1 | H119: =_xlfn.XLOOKUP(A119,DATA[Item No.],DATA[O],"") -> 0 | I119: =_xlfn.XLOOKUP(A119,DATA[Item No.],DATA[K],"") -> 0 | J119: =_xlfn.XLOOKUP(A119,DATA[Item No.],DATA[V],"") -> 0 | K119: =_xlfn.XLOOKUP(A119,DATA[Item No.],DATA[GF],"") -> Y | L119: =_xlfn.XLOOKUP(A119,DATA[Item No.],DATA[N],"") -> Y | M119: =_xlfn.XLOOKUP(A119,DATA[Item No.],DATA[H],"") -> 0 | N119: =_xlfn.XLOOKUP(A119,DATA[Item No.],DATA[CM],"") -> Y | O119: =_xlfn.XLOOKUP(A119,DATA[Item No.],DATA[CO],"") -> Y | P119: =_xlfn.XLOOKUP(A119,DATA[Item No.],DATA[CP],"") -> Y | Q119: =_xlfn.XLOOKUP(A119,DATA[Item No.],DATA[Guaranteed Days],"") -> 15 | R119: =_xlfn.XLOOKUP(A119,DATA[Item No.],DATA[Storage],"") -> Chilled | S119: =_xlfn.XLOOKUP(A119,DATA[Item No.],DATA[Price],"") -> 8.28 | T119: =_xlfn.XLOOKUP(A119,DATA[Item No.],DATA[Monthly Promo],"") -> 0 | U119: =_xlfn.XLOOKUP(A119,DATA[Item No.],DATA[Promo Discount],"") -> 0 | V119: =_xlfn.XLOOKUP(A119,DATA[Item No.],DATA[SRP],"") -> 8.59 | W119: =_xlfn.XLOOKUP(A119,DATA[Item No.],DATA[SKU Territory Ranking - East],"") -> 9
A120: Sheep Cheese | C120: =_xlfn.XLOOKUP(A120,DATA[Item No.],DATA[Description],"") ->  | D120: =_xlfn.XLOOKUP(A120,DATA[Item No.],DATA[Unit UPC],"") ->  | E120: =_xlfn.XLOOKUP(A120,DATA[Item No.],DATA[Size],"") ->  | F120: =_xlfn.XLOOKUP(A120,DATA[Item No.],DATA[Picked],"") ->  | G120: =_xlfn.XLOOKUP(A120,DATA[Item No.],DATA[Pack],"") ->  | H120: =_xlfn.XLOOKUP(A120,DATA[Item No.],DATA[O],"") ->  | I120: =_xlfn.XLOOKUP(A120,DATA[Item No.],DATA[K],"") ->  | J120: =_xlfn.XLOOKUP(A120,DATA[Item No.],DATA[V],"") ->  | K120: =_xlfn.XLOOKUP(A120,DATA[Item No.],DATA[GF],"") ->  | L120: =_xlfn.XLOOKUP(A120,DATA[Item No.],DATA[N],"") ->  | M120: =_xlfn.XLOOKUP(A120,DATA[Item No.],DATA[H],"") ->  | N120: =_xlfn.XLOOKUP(A120,DATA[Item No.],DATA[CM],"") ->  | O120: =_xlfn.XLOOKUP(A120,DATA[Item No.],DATA[CO],"") ->  | P120: =_xlfn.XLOOKUP(A120,DATA[Item No.],DATA[CP],"") ->  | Q120: =_xlfn.XLOOKUP(A120,DATA[Item No.],DATA[Guaranteed Days],"") ->  | R120: =_xlfn.XLOOKUP(A120,DATA[Item No.],DATA[Storage],"") ->  | S120: =_xlfn.XLOOKUP(A120,DATA[Item No.],DATA[Price],"") ->  | T120: =_xlfn.XLOOKUP(A120,DATA[Item No.],DATA[Monthly Promo],"") ->  | U120: =_xlfn.XLOOKUP(A120,DATA[Item No.],DATA[Promo Discount],"") ->  | V120: =_xlfn.XLOOKUP(A120,DATA[Item No.],DATA[SRP],"") ->  | W120: =_xlfn.XLOOKUP(A120,DATA[Item No.],DATA[SKU Territory Ranking - East],"") -> 
A121: BB300744 | C121: =_xlfn.XLOOKUP(A121,DATA[Item No.],DATA[Description],"") -> Bonfeta Pasteurized Sheep Cheese | D121: =_xlfn.XLOOKUP(A121,DATA[Item No.],DATA[Unit UPC],"") -> 627843616795 | E121: =_xlfn.XLOOKUP(A121,DATA[Item No.],DATA[Size],"") -> 175G | F121: =_xlfn.XLOOKUP(A121,DATA[Item No.],DATA[Picked],"") -> EA | G121: =_xlfn.XLOOKUP(A121,DATA[Item No.],DATA[Pack],"") -> 1 | H121: =_xlfn.XLOOKUP(A121,DATA[Item No.],DATA[O],"") -> 0 | I121: =_xlfn.XLOOKUP(A121,DATA[Item No.],DATA[K],"") -> 0 | J121: =_xlfn.XLOOKUP(A121,DATA[Item No.],DATA[V],"") -> 0 | K121: =_xlfn.XLOOKUP(A121,DATA[Item No.],DATA[GF],"") -> Y | L121: =_xlfn.XLOOKUP(A121,DATA[Item No.],DATA[N],"") -> Y | M121: =_xlfn.XLOOKUP(A121,DATA[Item No.],DATA[H],"") -> 0 | N121: =_xlfn.XLOOKUP(A121,DATA[Item No.],DATA[CM],"") -> Y | O121: =_xlfn.XLOOKUP(A121,DATA[Item No.],DATA[CO],"") -> Y | P121: =_xlfn.XLOOKUP(A121,DATA[Item No.],DATA[CP],"") -> Y | Q121: =_xlfn.XLOOKUP(A121,DATA[Item No.],DATA[Guaranteed Days],"") -> 36 | R121: =_xlfn.XLOOKUP(A121,DATA[Item No.],DATA[Storage],"") -> Chilled | S121: =_xlfn.XLOOKUP(A121,DATA[Item No.],DATA[Price],"") -> 7.94 | T121: =_xlfn.XLOOKUP(A121,DATA[Item No.],DATA[Monthly Promo],"") -> 0 | U121: =_xlfn.XLOOKUP(A121,DATA[Item No.],DATA[Promo Discount],"") -> 0 | V121: =_xlfn.XLOOKUP(A121,DATA[Item No.],DATA[SRP],"") -> 9.99 | W121: =_xlfn.XLOOKUP(A121,DATA[Item No.],DATA[SKU Territory Ranking - East],"") -> 5
A122: BB433124 | C122: =_xlfn.XLOOKUP(A122,DATA[Item No.],DATA[Description],"") -> Plain Brebis Sheep Cream Cheese | D122: =_xlfn.XLOOKUP(A122,DATA[Item No.],DATA[Unit UPC],"") -> 627843616870 | E122: =_xlfn.XLOOKUP(A122,DATA[Item No.],DATA[Size],"") -> 200G | F122: =_xlfn.XLOOKUP(A122,DATA[Item No.],DATA[Picked],"") -> EA | G122: =_xlfn.XLOOKUP(A122,DATA[Item No.],DATA[Pack],"") -> 1 | H122: =_xlfn.XLOOKUP(A122,DATA[Item No.],DATA[O],"") -> 0 | I122: =_xlfn.XLOOKUP(A122,DATA[Item No.],DATA[K],"") -> 0 | J122: =_xlfn.XLOOKUP(A122,DATA[Item No.],DATA[V],"") -> 0 | K122: =_xlfn.XLOOKUP(A122,DATA[Item No.],DATA[GF],"") -> Y | L122: =_xlfn.XLOOKUP(A122,DATA[Item No.],DATA[N],"") -> Y | M122: =_xlfn.XLOOKUP(A122,DATA[Item No.],DATA[H],"") -> 0 | N122: =_xlfn.XLOOKUP(A122,DATA[Item No.],DATA[CM],"") -> Y | O122: =_xlfn.XLOOKUP(A122,DATA[Item No.],DATA[CO],"") -> Y | P122: =_xlfn.XLOOKUP(A122,DATA[Item No.],DATA[CP],"") -> Y | Q122: =_xlfn.XLOOKUP(A122,DATA[Item No.],DATA[Guaranteed Days],"") -> 15 | R122: =_xlfn.XLOOKUP(A122,DATA[Item No.],DATA[Storage],"") -> Chilled | S122: =_xlfn.XLOOKUP(A122,DATA[Item No.],DATA[Price],"") -> 8.42 | T122: =_xlfn.XLOOKUP(A122,DATA[Item No.],DATA[Monthly Promo],"") -> 0 | U122: =_xlfn.XLOOKUP(A122,DATA[Item No.],DATA[Promo Discount],"") -> 0 | V122: =_xlfn.XLOOKUP(A122,DATA[Item No.],DATA[SRP],"") -> 7.99 | W122: =_xlfn.XLOOKUP(A122,DATA[Item No.],DATA[SKU Territory Ranking - East],"") -> 8
A123: BB433223 | C123: =_xlfn.XLOOKUP(A123,DATA[Item No.],DATA[Description],"") -> Garlic Brebis Sheep Cream Cheese | D123: =_xlfn.XLOOKUP(A123,DATA[Item No.],DATA[Unit UPC],"") -> 627843616788 | E123: =_xlfn.XLOOKUP(A123,DATA[Item No.],DATA[Size],"") -> 200G | F123: =_xlfn.XLOOKUP(A123,DATA[Item No.],DATA[Picked],"") -> EA | G123: =_xlfn.XLOOKUP(A123,DATA[Item No.],DATA[Pack],"") -> 1 | H123: =_xlfn.XLOOKUP(A123,DATA[Item No.],DATA[O],"") -> 0 | I123: =_xlfn.XLOOKUP(A123,DATA[Item No.],DATA[K],"") -> 0 | J123: =_xlfn.XLOOKUP(A123,DATA[Item No.],DATA[V],"") -> 0 | K123: =_xlfn.XLOOKUP(A123,DATA[Item No.],DATA[GF],"") -> Y | L123: =_xlfn.XLOOKUP(A123,DATA[Item No.],DATA[N],"") -> Y | M123: =_xlfn.XLOOKUP(A123,DATA[Item No.],DATA[H],"") -> 0 | N123: =_xlfn.XLOOKUP(A123,DATA[Item No.],DATA[CM],"") -> Y | O123: =_xlfn.XLOOKUP(A123,DATA[Item No.],DATA[CO],"") -> Y | P123: =_xlfn.XLOOKUP(A123,DATA[Item No.],DATA[CP],"") -> Y | Q123: =_xlfn.XLOOKUP(A123,DATA[Item No.],DATA[Guaranteed Days],"") -> 15 | R123: =_xlfn.XLOOKUP(A123,DATA[Item No.],DATA[Storage],"") -> Chilled | S123: =_xlfn.XLOOKUP(A123,DATA[Item No.],DATA[Price],"") -> 8.74 | T123: =_xlfn.XLOOKUP(A123,DATA[Item No.],DATA[Monthly Promo],"") -> 0 | U123: =_xlfn.XLOOKUP(A123,DATA[Item No.],DATA[Promo Discount],"") -> 0 | V123: =_xlfn.XLOOKUP(A123,DATA[Item No.],DATA[SRP],"") -> 8.39 | W123: =_xlfn.XLOOKUP(A123,DATA[Item No.],DATA[SKU Territory Ranking - East],"") -> 11
A124: Sheep Kefir | C124: =_xlfn.XLOOKUP(A124,DATA[Item No.],DATA[Description],"") ->  | D124: =_xlfn.XLOOKUP(A124,DATA[Item No.],DATA[Unit UPC],"") ->  | E124: =_xlfn.XLOOKUP(A124,DATA[Item No.],DATA[Size],"") ->  | F124: =_xlfn.XLOOKUP(A124,DATA[Item No.],DATA[Picked],"") ->  | G124: =_xlfn.XLOOKUP(A124,DATA[Item No.],DATA[Pack],"") ->  | H124: =_xlfn.XLOOKUP(A124,DATA[Item No.],DATA[O],"") ->  | I124: =_xlfn.XLOOKUP(A124,DATA[Item No.],DATA[K],"") ->  | J124: =_xlfn.XLOOKUP(A124,DATA[Item No.],DATA[V],"") ->  | K124: =_xlfn.XLOOKUP(A124,DATA[Item No.],DATA[GF],"") ->  | L124: =_xlfn.XLOOKUP(A124,DATA[Item No.],DATA[N],"") ->  | M124: =_xlfn.XLOOKUP(A124,DATA[Item No.],DATA[H],"") ->  | N124: =_xlfn.XLOOKUP(A124,DATA[Item No.],DATA[CM],"") ->  | O124: =_xlfn.XLOOKUP(A124,DATA[Item No.],DATA[CO],"") ->  | P124: =_xlfn.XLOOKUP(A124,DATA[Item No.],DATA[CP],"") ->  | Q124: =_xlfn.XLOOKUP(A124,DATA[Item No.],DATA[Guaranteed Days],"") ->  | R124: =_xlfn.XLOOKUP(A124,DATA[Item No.],DATA[Storage],"") ->  | S124: =_xlfn.XLOOKUP(A124,DATA[Item No.],DATA[Price],"") ->  | T124: =_xlfn.XLOOKUP(A124,DATA[Item No.],DATA[Monthly Promo],"") ->  | U124: =_xlfn.XLOOKUP(A124,DATA[Item No.],DATA[Promo Discount],"") ->  | V124: =_xlfn.XLOOKUP(A124,DATA[Item No.],DATA[SRP],"") ->  | W124: =_xlfn.XLOOKUP(A124,DATA[Item No.],DATA[SKU Territory Ranking - East],"") -> 
A125: BB6832 | C125: =_xlfn.XLOOKUP(A125,DATA[Item No.],DATA[Description],"") -> Sheep Kefir | D125: =_xlfn.XLOOKUP(A125,DATA[Item No.],DATA[Unit UPC],"") -> 627843616832 | E125: =_xlfn.XLOOKUP(A125,DATA[Item No.],DATA[Size],"") -> 1L | F125: =_xlfn.XLOOKUP(A125,DATA[Item No.],DATA[Picked],"") -> EA | G125: =_xlfn.XLOOKUP(A125,DATA[Item No.],DATA[Pack],"") -> 1 | H125: =_xlfn.XLOOKUP(A125,DATA[Item No.],DATA[O],"") -> 0 | I125: =_xlfn.XLOOKUP(A125,DATA[Item No.],DATA[K],"") -> 0 | J125: =_xlfn.XLOOKUP(A125,DATA[Item No.],DATA[V],"") -> 0 | K125: =_xlfn.XLOOKUP(A125,DATA[Item No.],DATA[GF],"") -> Y | L125: =_xlfn.XLOOKUP(A125,DATA[Item No.],DATA[N],"") -> Y | M125: =_xlfn.XLOOKUP(A125,DATA[Item No.],DATA[H],"") -> 0 | N125: =_xlfn.XLOOKUP(A125,DATA[Item No.],DATA[CM],"") -> Y | O125: =_xlfn.XLOOKUP(A125,DATA[Item No.],DATA[CO],"") -> Y | P125: =_xlfn.XLOOKUP(A125,DATA[Item No.],DATA[CP],"") -> Y | Q125: =_xlfn.XLOOKUP(A125,DATA[Item No.],DATA[Guaranteed Days],"") -> 27 | R125: =_xlfn.XLOOKUP(A125,DATA[Item No.],DATA[Storage],"") -> Chilled | S125: =_xlfn.XLOOKUP(A125,DATA[Item No.],DATA[Price],"") -> 8.24 | T125: =_xlfn.XLOOKUP(A125,DATA[Item No.],DATA[Monthly Promo],"") -> 0 | U125: =_xlfn.XLOOKUP(A125,DATA[Item No.],DATA[Promo Discount],"") -> 0 | V125: =_xlfn.XLOOKUP(A125,DATA[Item No.],DATA[SRP],"") -> 8.99 | W125: =_xlfn.XLOOKUP(A125,DATA[Item No.],DATA[SKU Territory Ranking - East],"") -> 6
A126: Sheep Milk | C126: =_xlfn.XLOOKUP(A126,DATA[Item No.],DATA[Description],"") ->  | D126: =_xlfn.XLOOKUP(A126,DATA[Item No.],DATA[Unit UPC],"") ->  | E126: =_xlfn.XLOOKUP(A126,DATA[Item No.],DATA[Size],"") ->  | F126: =_xlfn.XLOOKUP(A126,DATA[Item No.],DATA[Picked],"") ->  | G126: =_xlfn.XLOOKUP(A126,DATA[Item No.],DATA[Pack],"") ->  | H126: =_xlfn.XLOOKUP(A126,DATA[Item No.],DATA[O],"") ->  | I126: =_xlfn.XLOOKUP(A126,DATA[Item No.],DATA[K],"") ->  | J126: =_xlfn.XLOOKUP(A126,DATA[Item No.],DATA[V],"") ->  | K126: =_xlfn.XLOOKUP(A126,DATA[Item No.],DATA[GF],"") ->  | L126: =_xlfn.XLOOKUP(A126,DATA[Item No.],DATA[N],"") ->  | M126: =_xlfn.XLOOKUP(A126,DATA[Item No.],DATA[H],"") ->  | N126: =_xlfn.XLOOKUP(A126,DATA[Item No.],DATA[CM],"") ->  | O126: =_xlfn.XLOOKUP(A126,DATA[Item No.],DATA[CO],"") ->  | P126: =_xlfn.XLOOKUP(A126,DATA[Item No.],DATA[CP],"") ->  | Q126: =_xlfn.XLOOKUP(A126,DATA[Item No.],DATA[Guaranteed Days],"") ->  | R126: =_xlfn.XLOOKUP(A126,DATA[Item No.],DATA[Storage],"") ->  | S126: =_xlfn.XLOOKUP(A126,DATA[Item No.],DATA[Price],"") ->  | T126: =_xlfn.XLOOKUP(A126,DATA[Item No.],DATA[Monthly Promo],"") ->  | U126: =_xlfn.XLOOKUP(A126,DATA[Item No.],DATA[Promo Discount],"") ->  | V126: =_xlfn.XLOOKUP(A126,DATA[Item No.],DATA[SRP],"") ->  | W126: =_xlfn.XLOOKUP(A126,DATA[Item No.],DATA[SKU Territory Ranking - East],"") -> 
A127: BB6825 | C127: =_xlfn.XLOOKUP(A127,DATA[Item No.],DATA[Description],"") -> Sheep Milk | D127: =_xlfn.XLOOKUP(A127,DATA[Item No.],DATA[Unit UPC],"") -> 627843616825 | E127: =_xlfn.XLOOKUP(A127,DATA[Item No.],DATA[Size],"") -> 1L | F127: =_xlfn.XLOOKUP(A127,DATA[Item No.],DATA[Picked],"") -> EA | G127: =_xlfn.XLOOKUP(A127,DATA[Item No.],DATA[Pack],"") -> 1 | H127: =_xlfn.XLOOKUP(A127,DATA[Item No.],DATA[O],"") -> 0 | I127: =_xlfn.XLOOKUP(A127,DATA[Item No.],DATA[K],"") -> 0 | J127: =_xlfn.XLOOKUP(A127,DATA[Item No.],DATA[V],"") -> 0 | K127: =_xlfn.XLOOKUP(A127,DATA[Item No.],DATA[GF],"") -> Y | L127: =_xlfn.XLOOKUP(A127,DATA[Item No.],DATA[N],"") -> Y | M127: =_xlfn.XLOOKUP(A127,DATA[Item No.],DATA[H],"") -> 0 | N127: =_xlfn.XLOOKUP(A127,DATA[Item No.],DATA[CM],"") -> Y | O127: =_xlfn.XLOOKUP(A127,DATA[Item No.],DATA[CO],"") -> Y | P127: =_xlfn.XLOOKUP(A127,DATA[Item No.],DATA[CP],"") -> Y | Q127: =_xlfn.XLOOKUP(A127,DATA[Item No.],DATA[Guaranteed Days],"") -> 11 | R127: =_xlfn.XLOOKUP(A127,DATA[Item No.],DATA[Storage],"") -> Chilled | S127: =_xlfn.XLOOKUP(A127,DATA[Item No.],DATA[Price],"") -> 8.04 | T127: =_xlfn.XLOOKUP(A127,DATA[Item No.],DATA[Monthly Promo],"") -> MARCH DEAL! | U127: =_xlfn.XLOOKUP(A127,DATA[Item No.],DATA[Promo Discount],"") -> SAVE 10% | V127: =_xlfn.XLOOKUP(A127,DATA[Item No.],DATA[SRP],"") -> 8.39 | W127: =_xlfn.XLOOKUP(A127,DATA[Item No.],DATA[SKU Territory Ranking - East],"") -> 4
A128: Sheep Milk Yogurts | C128: =_xlfn.XLOOKUP(A128,DATA[Item No.],DATA[Description],"") ->  | D128: =_xlfn.XLOOKUP(A128,DATA[Item No.],DATA[Unit UPC],"") ->  | E128: =_xlfn.XLOOKUP(A128,DATA[Item No.],DATA[Size],"") ->  | F128: =_xlfn.XLOOKUP(A128,DATA[Item No.],DATA[Picked],"") ->  | G128: =_xlfn.XLOOKUP(A128,DATA[Item No.],DATA[Pack],"") ->  | H128: =_xlfn.XLOOKUP(A128,DATA[Item No.],DATA[O],"") ->  | I128: =_xlfn.XLOOKUP(A128,DATA[Item No.],DATA[K],"") ->  | J128: =_xlfn.XLOOKUP(A128,DATA[Item No.],DATA[V],"") ->  | K128: =_xlfn.XLOOKUP(A128,DATA[Item No.],DATA[GF],"") ->  | L128: =_xlfn.XLOOKUP(A128,DATA[Item No.],DATA[N],"") ->  | M128: =_xlfn.XLOOKUP(A128,DATA[Item No.],DATA[H],"") ->  | N128: =_xlfn.XLOOKUP(A128,DATA[Item No.],DATA[CM],"") ->  | O128: =_xlfn.XLOOKUP(A128,DATA[Item No.],DATA[CO],"") ->  | P128: =_xlfn.XLOOKUP(A128,DATA[Item No.],DATA[CP],"") ->  | Q128: =_xlfn.XLOOKUP(A128,DATA[Item No.],DATA[Guaranteed Days],"") ->  | R128: =_xlfn.XLOOKUP(A128,DATA[Item No.],DATA[Storage],"") ->  | S128: =_xlfn.XLOOKUP(A128,DATA[Item No.],DATA[Price],"") ->  | T128: =_xlfn.XLOOKUP(A128,DATA[Item No.],DATA[Monthly Promo],"") ->  | U128: =_xlfn.XLOOKUP(A128,DATA[Item No.],DATA[Promo Discount],"") ->  | V128: =_xlfn.XLOOKUP(A128,DATA[Item No.],DATA[SRP],"") ->  | W128: =_xlfn.XLOOKUP(A128,DATA[Item No.],DATA[SKU Territory Ranking - East],"") -> 
A129: BB432820 | C129: =_xlfn.XLOOKUP(A129,DATA[Item No.],DATA[Description],"") -> Plain Sheep | D129: =_xlfn.XLOOKUP(A129,DATA[Item No.],DATA[Unit UPC],"") -> 627843616801 | E129: =_xlfn.XLOOKUP(A129,DATA[Item No.],DATA[Size],"") -> 425G | F129: =_xlfn.XLOOKUP(A129,DATA[Item No.],DATA[Picked],"") -> EA | G129: =_xlfn.XLOOKUP(A129,DATA[Item No.],DATA[Pack],"") -> 1 | H129: =_xlfn.XLOOKUP(A129,DATA[Item No.],DATA[O],"") -> 0 | I129: =_xlfn.XLOOKUP(A129,DATA[Item No.],DATA[K],"") -> 0 | J129: =_xlfn.XLOOKUP(A129,DATA[Item No.],DATA[V],"") -> 0 | K129: =_xlfn.XLOOKUP(A129,DATA[Item No.],DATA[GF],"") -> Y | L129: =_xlfn.XLOOKUP(A129,DATA[Item No.],DATA[N],"") -> Y | M129: =_xlfn.XLOOKUP(A129,DATA[Item No.],DATA[H],"") -> 0 | N129: =_xlfn.XLOOKUP(A129,DATA[Item No.],DATA[CM],"") -> Y | O129: =_xlfn.XLOOKUP(A129,DATA[Item No.],DATA[CO],"") -> Y | P129: =_xlfn.XLOOKUP(A129,DATA[Item No.],DATA[CP],"") -> Y | Q129: =_xlfn.XLOOKUP(A129,DATA[Item No.],DATA[Guaranteed Days],"") -> 27 | R129: =_xlfn.XLOOKUP(A129,DATA[Item No.],DATA[Storage],"") -> Chilled | S129: =_xlfn.XLOOKUP(A129,DATA[Item No.],DATA[Price],"") -> 5.59 | T129: =_xlfn.XLOOKUP(A129,DATA[Item No.],DATA[Monthly Promo],"") -> 0 | U129: =_xlfn.XLOOKUP(A129,DATA[Item No.],DATA[Promo Discount],"") -> 0 | V129: =_xlfn.XLOOKUP(A129,DATA[Item No.],DATA[SRP],"") -> 7.99 | W129: =_xlfn.XLOOKUP(A129,DATA[Item No.],DATA[SKU Territory Ranking - East],"") -> 1
A130: BB6818 | C130: =_xlfn.XLOOKUP(A130,DATA[Item No.],DATA[Description],"") -> Maple Sheep | D130: =_xlfn.XLOOKUP(A130,DATA[Item No.],DATA[Unit UPC],"") -> 627843616818 | E130: =_xlfn.XLOOKUP(A130,DATA[Item No.],DATA[Size],"") -> 425G | F130: =_xlfn.XLOOKUP(A130,DATA[Item No.],DATA[Picked],"") -> EA | G130: =_xlfn.XLOOKUP(A130,DATA[Item No.],DATA[Pack],"") -> 1 | H130: =_xlfn.XLOOKUP(A130,DATA[Item No.],DATA[O],"") -> 0 | I130: =_xlfn.XLOOKUP(A130,DATA[Item No.],DATA[K],"") -> 0 | J130: =_xlfn.XLOOKUP(A130,DATA[Item No.],DATA[V],"") -> 0 | K130: =_xlfn.XLOOKUP(A130,DATA[Item No.],DATA[GF],"") -> Y | L130: =_xlfn.XLOOKUP(A130,DATA[Item No.],DATA[N],"") -> Y | M130: =_xlfn.XLOOKUP(A130,DATA[Item No.],DATA[H],"") -> 0 | N130: =_xlfn.XLOOKUP(A130,DATA[Item No.],DATA[CM],"") -> Y | O130: =_xlfn.XLOOKUP(A130,DATA[Item No.],DATA[CO],"") -> Y | P130: =_xlfn.XLOOKUP(A130,DATA[Item No.],DATA[CP],"") -> Y | Q130: =_xlfn.XLOOKUP(A130,DATA[Item No.],DATA[Guaranteed Days],"") -> 27 | R130: =_xlfn.XLOOKUP(A130,DATA[Item No.],DATA[Storage],"") -> Chilled | S130: =_xlfn.XLOOKUP(A130,DATA[Item No.],DATA[Price],"") -> 6.63 | T130: =_xlfn.XLOOKUP(A130,DATA[Item No.],DATA[Monthly Promo],"") -> 0 | U130: =_xlfn.XLOOKUP(A130,DATA[Item No.],DATA[Promo Discount],"") -> 0 | V130: =_xlfn.XLOOKUP(A130,DATA[Item No.],DATA[SRP],"") -> 7.99 | W130: =_xlfn.XLOOKUP(A130,DATA[Item No.],DATA[SKU Territory Ranking - East],"") -> 7
A131: BB6849 | C131: =_xlfn.XLOOKUP(A131,DATA[Item No.],DATA[Description],"") -> Plain Sheep | D131: =_xlfn.XLOOKUP(A131,DATA[Item No.],DATA[Unit UPC],"") -> 627843616849 | E131: =_xlfn.XLOOKUP(A131,DATA[Item No.],DATA[Size],"") -> 150G | F131: =_xlfn.XLOOKUP(A131,DATA[Item No.],DATA[Picked],"") -> EA | G131: =_xlfn.XLOOKUP(A131,DATA[Item No.],DATA[Pack],"") -> 1 | H131: =_xlfn.XLOOKUP(A131,DATA[Item No.],DATA[O],"") -> 0 | I131: =_xlfn.XLOOKUP(A131,DATA[Item No.],DATA[K],"") -> 0 | J131: =_xlfn.XLOOKUP(A131,DATA[Item No.],DATA[V],"") -> 0 | K131: =_xlfn.XLOOKUP(A131,DATA[Item No.],DATA[GF],"") -> Y | L131: =_xlfn.XLOOKUP(A131,DATA[Item No.],DATA[N],"") -> Y | M131: =_xlfn.XLOOKUP(A131,DATA[Item No.],DATA[H],"") -> 0 | N131: =_xlfn.XLOOKUP(A131,DATA[Item No.],DATA[CM],"") -> Y | O131: =_xlfn.XLOOKUP(A131,DATA[Item No.],DATA[CO],"") -> Y | P131: =_xlfn.XLOOKUP(A131,DATA[Item No.],DATA[CP],"") -> Y | Q131: =_xlfn.XLOOKUP(A131,DATA[Item No.],DATA[Guaranteed Days],"") -> 27 | R131: =_xlfn.XLOOKUP(A131,DATA[Item No.],DATA[Storage],"") -> Chilled | S131: =_xlfn.XLOOKUP(A131,DATA[Item No.],DATA[Price],"") -> 2.15 | T131: =_xlfn.XLOOKUP(A131,DATA[Item No.],DATA[Monthly Promo],"") -> 0 | U131: =_xlfn.XLOOKUP(A131,DATA[Item No.],DATA[Promo Discount],"") -> 0 | V131: =_xlfn.XLOOKUP(A131,DATA[Item No.],DATA[SRP],"") -> 3.25 | W131: =_xlfn.XLOOKUP(A131,DATA[Item No.],DATA[SKU Territory Ranking - East],"") -> 3
A132: BB6856 | C132: =_xlfn.XLOOKUP(A132,DATA[Item No.],DATA[Description],"") -> Maple Sheep | D132: =_xlfn.XLOOKUP(A132,DATA[Item No.],DATA[Unit UPC],"") -> 627843616856 | E132: =_xlfn.XLOOKUP(A132,DATA[Item No.],DATA[Size],"") -> 150G | F132: =_xlfn.XLOOKUP(A132,DATA[Item No.],DATA[Picked],"") -> EA | G132: =_xlfn.XLOOKUP(A132,DATA[Item No.],DATA[Pack],"") -> 1 | H132: =_xlfn.XLOOKUP(A132,DATA[Item No.],DATA[O],"") -> 0 | I132: =_xlfn.XLOOKUP(A132,DATA[Item No.],DATA[K],"") -> 0 | J132: =_xlfn.XLOOKUP(A132,DATA[Item No.],DATA[V],"") -> 0 | K132: =_xlfn.XLOOKUP(A132,DATA[Item No.],DATA[GF],"") -> Y | L132: =_xlfn.XLOOKUP(A132,DATA[Item No.],DATA[N],"") -> Y | M132: =_xlfn.XLOOKUP(A132,DATA[Item No.],DATA[H],"") -> 0 | N132: =_xlfn.XLOOKUP(A132,DATA[Item No.],DATA[CM],"") -> Y | O132: =_xlfn.XLOOKUP(A132,DATA[Item No.],DATA[CO],"") -> Y | P132: =_xlfn.XLOOKUP(A132,DATA[Item No.],DATA[CP],"") -> Y | Q132: =_xlfn.XLOOKUP(A132,DATA[Item No.],DATA[Guaranteed Days],"") -> 27 | R132: =_xlfn.XLOOKUP(A132,DATA[Item No.],DATA[Storage],"") -> Chilled | S132: =_xlfn.XLOOKUP(A132,DATA[Item No.],DATA[Price],"") -> 2.15 | T132: =_xlfn.XLOOKUP(A132,DATA[Item No.],DATA[Monthly Promo],"") -> 0 | U132: =_xlfn.XLOOKUP(A132,DATA[Item No.],DATA[Promo Discount],"") -> 0 | V132: =_xlfn.XLOOKUP(A132,DATA[Item No.],DATA[SRP],"") -> 3.25 | W132: =_xlfn.XLOOKUP(A132,DATA[Item No.],DATA[SKU Territory Ranking - East],"") -> 10
A133: BB6863 | C133: =_xlfn.XLOOKUP(A133,DATA[Item No.],DATA[Description],"") -> Plain Sheep | D133: =_xlfn.XLOOKUP(A133,DATA[Item No.],DATA[Unit UPC],"") -> 627843616863 | E133: =_xlfn.XLOOKUP(A133,DATA[Item No.],DATA[Size],"") -> 800G | F133: =_xlfn.XLOOKUP(A133,DATA[Item No.],DATA[Picked],"") -> EA | G133: =_xlfn.XLOOKUP(A133,DATA[Item No.],DATA[Pack],"") -> 1 | H133: =_xlfn.XLOOKUP(A133,DATA[Item No.],DATA[O],"") -> 0 | I133: =_xlfn.XLOOKUP(A133,DATA[Item No.],DATA[K],"") -> 0 | J133: =_xlfn.XLOOKUP(A133,DATA[Item No.],DATA[V],"") -> 0 | K133: =_xlfn.XLOOKUP(A133,DATA[Item No.],DATA[GF],"") -> Y | L133: =_xlfn.XLOOKUP(A133,DATA[Item No.],DATA[N],"") -> Y | M133: =_xlfn.XLOOKUP(A133,DATA[Item No.],DATA[H],"") -> 0 | N133: =_xlfn.XLOOKUP(A133,DATA[Item No.],DATA[CM],"") -> Y | O133: =_xlfn.XLOOKUP(A133,DATA[Item No.],DATA[CO],"") -> Y | P133: =_xlfn.XLOOKUP(A133,DATA[Item No.],DATA[CP],"") -> Y | Q133: =_xlfn.XLOOKUP(A133,DATA[Item No.],DATA[Guaranteed Days],"") -> 27 | R133: =_xlfn.XLOOKUP(A133,DATA[Item No.],DATA[Storage],"") -> Chilled | S133: =_xlfn.XLOOKUP(A133,DATA[Item No.],DATA[Price],"") -> 9.44 | T133: =_xlfn.XLOOKUP(A133,DATA[Item No.],DATA[Monthly Promo],"") -> 0 | U133: =_xlfn.XLOOKUP(A133,DATA[Item No.],DATA[Promo Discount],"") -> 0 | V133: =_xlfn.XLOOKUP(A133,DATA[Item No.],DATA[SRP],"") -> 12.99 | W133: =_xlfn.XLOOKUP(A133,DATA[Item No.],DATA[SKU Territory Ranking - East],"") -> 2
A134: Feta | C134: =_xlfn.XLOOKUP(A134,DATA[Item No.],DATA[Description],"") ->  | D134: =_xlfn.XLOOKUP(A134,DATA[Item No.],DATA[Unit UPC],"") ->  | E134: =_xlfn.XLOOKUP(A134,DATA[Item No.],DATA[Size],"") ->  | F134: =_xlfn.XLOOKUP(A134,DATA[Item No.],DATA[Picked],"") ->  | G134: =_xlfn.XLOOKUP(A134,DATA[Item No.],DATA[Pack],"") ->  | H134: =_xlfn.XLOOKUP(A134,DATA[Item No.],DATA[O],"") ->  | I134: =_xlfn.XLOOKUP(A134,DATA[Item No.],DATA[K],"") ->  | J134: =_xlfn.XLOOKUP(A134,DATA[Item No.],DATA[V],"") ->  | K134: =_xlfn.XLOOKUP(A134,DATA[Item No.],DATA[GF],"") ->  | L134: =_xlfn.XLOOKUP(A134,DATA[Item No.],DATA[N],"") ->  | M134: =_xlfn.XLOOKUP(A134,DATA[Item No.],DATA[H],"") ->  | N134: =_xlfn.XLOOKUP(A134,DATA[Item No.],DATA[CM],"") ->  | O134: =_xlfn.XLOOKUP(A134,DATA[Item No.],DATA[CO],"") ->  | P134: =_xlfn.XLOOKUP(A134,DATA[Item No.],DATA[CP],"") ->  | Q134: =_xlfn.XLOOKUP(A134,DATA[Item No.],DATA[Guaranteed Days],"") ->  | R134: =_xlfn.XLOOKUP(A134,DATA[Item No.],DATA[Storage],"") ->  | S134: =_xlfn.XLOOKUP(A134,DATA[Item No.],DATA[Price],"") ->  | T134: =_xlfn.XLOOKUP(A134,DATA[Item No.],DATA[Monthly Promo],"") ->  | U134: =_xlfn.XLOOKUP(A134,DATA[Item No.],DATA[Promo Discount],"") ->  | V134: =_xlfn.XLOOKUP(A134,DATA[Item No.],DATA[SRP],"") ->  | W134: =_xlfn.XLOOKUP(A134,DATA[Item No.],DATA[SKU Territory Ranking - East],"") -> 
A135: BB6155 | C135: =_xlfn.XLOOKUP(A135,DATA[Item No.],DATA[Description],"") -> Baby Feta | D135: =_xlfn.XLOOKUP(A135,DATA[Item No.],DATA[Unit UPC],"") -> 628774336158 | E135: =_xlfn.XLOOKUP(A135,DATA[Item No.],DATA[Size],"") -> 60G | F135: =_xlfn.XLOOKUP(A135,DATA[Item No.],DATA[Picked],"") -> EA | G135: =_xlfn.XLOOKUP(A135,DATA[Item No.],DATA[Pack],"") -> 1 | H135: =_xlfn.XLOOKUP(A135,DATA[Item No.],DATA[O],"") -> 0 | I135: =_xlfn.XLOOKUP(A135,DATA[Item No.],DATA[K],"") -> 0 | J135: =_xlfn.XLOOKUP(A135,DATA[Item No.],DATA[V],"") -> 0 | K135: =_xlfn.XLOOKUP(A135,DATA[Item No.],DATA[GF],"") -> Y | L135: =_xlfn.XLOOKUP(A135,DATA[Item No.],DATA[N],"") -> Y | M135: =_xlfn.XLOOKUP(A135,DATA[Item No.],DATA[H],"") -> 0 | N135: =_xlfn.XLOOKUP(A135,DATA[Item No.],DATA[CM],"") -> Y | O135: =_xlfn.XLOOKUP(A135,DATA[Item No.],DATA[CO],"") -> 0 | P135: =_xlfn.XLOOKUP(A135,DATA[Item No.],DATA[CP],"") -> 0 | Q135: =_xlfn.XLOOKUP(A135,DATA[Item No.],DATA[Guaranteed Days],"") -> 36 | R135: =_xlfn.XLOOKUP(A135,DATA[Item No.],DATA[Storage],"") -> Chilled | S135: =_xlfn.XLOOKUP(A135,DATA[Item No.],DATA[Price],"") -> 3.91 | T135: =_xlfn.XLOOKUP(A135,DATA[Item No.],DATA[Monthly Promo],"") -> 0 | U135: =_xlfn.XLOOKUP(A135,DATA[Item No.],DATA[Promo Discount],"") -> 0 | V135: =_xlfn.XLOOKUP(A135,DATA[Item No.],DATA[SRP],"") -> 4.75 | W135: =_xlfn.XLOOKUP(A135,DATA[Item No.],DATA[SKU Territory Ranking - East],"") -> 1
A136: BETTER BRIE | C136: =_xlfn.XLOOKUP(A136,DATA[Item No.],DATA[Description],"") ->  | D136: =_xlfn.XLOOKUP(A136,DATA[Item No.],DATA[Unit UPC],"") ->  | E136: =_xlfn.XLOOKUP(A136,DATA[Item No.],DATA[Size],"") ->  | F136: =_xlfn.XLOOKUP(A136,DATA[Item No.],DATA[Picked],"") ->  | G136: =_xlfn.XLOOKUP(A136,DATA[Item No.],DATA[Pack],"") ->  | H136: =_xlfn.XLOOKUP(A136,DATA[Item No.],DATA[O],"") ->  | I136: =_xlfn.XLOOKUP(A136,DATA[Item No.],DATA[K],"") ->  | J136: =_xlfn.XLOOKUP(A136,DATA[Item No.],DATA[V],"") ->  | K136: =_xlfn.XLOOKUP(A136,DATA[Item No.],DATA[GF],"") ->  | L136: =_xlfn.XLOOKUP(A136,DATA[Item No.],DATA[N],"") ->  | M136: =_xlfn.XLOOKUP(A136,DATA[Item No.],DATA[H],"") ->  | N136: =_xlfn.XLOOKUP(A136,DATA[Item No.],DATA[CM],"") ->  | O136: =_xlfn.XLOOKUP(A136,DATA[Item No.],DATA[CO],"") ->  | P136: =_xlfn.XLOOKUP(A136,DATA[Item No.],DATA[CP],"") ->  | Q136: =_xlfn.XLOOKUP(A136,DATA[Item No.],DATA[Guaranteed Days],"") ->  | R136: =_xlfn.XLOOKUP(A136,DATA[Item No.],DATA[Storage],"") ->  | S136: =_xlfn.XLOOKUP(A136,DATA[Item No.],DATA[Price],"") ->  | T136: =_xlfn.XLOOKUP(A136,DATA[Item No.],DATA[Monthly Promo],"") ->  | U136: =_xlfn.XLOOKUP(A136,DATA[Item No.],DATA[Promo Discount],"") ->  | V136: =_xlfn.XLOOKUP(A136,DATA[Item No.],DATA[SRP],"") ->  | W136: =_xlfn.XLOOKUP(A136,DATA[Item No.],DATA[SKU Territory Ranking - East],"") -> 
A137: Vegan Cheese | C137: =_xlfn.XLOOKUP(A137,DATA[Item No.],DATA[Description],"") ->  | D137: =_xlfn.XLOOKUP(A137,DATA[Item No.],DATA[Unit UPC],"") ->  | E137: =_xlfn.XLOOKUP(A137,DATA[Item No.],DATA[Size],"") ->  | F137: =_xlfn.XLOOKUP(A137,DATA[Item No.],DATA[Picked],"") ->  | G137: =_xlfn.XLOOKUP(A137,DATA[Item No.],DATA[Pack],"") ->  | H137: =_xlfn.XLOOKUP(A137,DATA[Item No.],DATA[O],"") ->  | I137: =_xlfn.XLOOKUP(A137,DATA[Item No.],DATA[K],"") ->  | J137: =_xlfn.XLOOKUP(A137,DATA[Item No.],DATA[V],"") ->  | K137: =_xlfn.XLOOKUP(A137,DATA[Item No.],DATA[GF],"") ->  | L137: =_xlfn.XLOOKUP(A137,DATA[Item No.],DATA[N],"") ->  | M137: =_xlfn.XLOOKUP(A137,DATA[Item No.],DATA[H],"") ->  | N137: =_xlfn.XLOOKUP(A137,DATA[Item No.],DATA[CM],"") ->  | O137: =_xlfn.XLOOKUP(A137,DATA[Item No.],DATA[CO],"") ->  | P137: =_xlfn.XLOOKUP(A137,DATA[Item No.],DATA[CP],"") ->  | Q137: =_xlfn.XLOOKUP(A137,DATA[Item No.],DATA[Guaranteed Days],"") ->  | R137: =_xlfn.XLOOKUP(A137,DATA[Item No.],DATA[Storage],"") ->  | S137: =_xlfn.XLOOKUP(A137,DATA[Item No.],DATA[Price],"") ->  | T137: =_xlfn.XLOOKUP(A137,DATA[Item No.],DATA[Monthly Promo],"") ->  | U137: =_xlfn.XLOOKUP(A137,DATA[Item No.],DATA[Promo Discount],"") ->  | V137: =_xlfn.XLOOKUP(A137,DATA[Item No.],DATA[SRP],"") ->  | W137: =_xlfn.XLOOKUP(A137,DATA[Item No.],DATA[SKU Territory Ranking - East],"") -> 
A138: BT4212 | C138: =_xlfn.XLOOKUP(A138,DATA[Item No.],DATA[Description],"") -> Chili Garlic Plant-Based Aged Brie | D138: =_xlfn.XLOOKUP(A138,DATA[Item No.],DATA[Unit UPC],"") -> 628942914218 | E138: =_xlfn.XLOOKUP(A138,DATA[Item No.],DATA[Size],"") -> 200G | F138: =_xlfn.XLOOKUP(A138,DATA[Item No.],DATA[Picked],"") -> CA | G138: =_xlfn.XLOOKUP(A138,DATA[Item No.],DATA[Pack],"") -> 6 | H138: =_xlfn.XLOOKUP(A138,DATA[Item No.],DATA[O],"") -> 0 | I138: =_xlfn.XLOOKUP(A138,DATA[Item No.],DATA[K],"") -> 0 | J138: =_xlfn.XLOOKUP(A138,DATA[Item No.],DATA[V],"") -> Y | K138: =_xlfn.XLOOKUP(A138,DATA[Item No.],DATA[GF],"") -> 0 | L138: =_xlfn.XLOOKUP(A138,DATA[Item No.],DATA[N],"") -> 0 | M138: =_xlfn.XLOOKUP(A138,DATA[Item No.],DATA[H],"") -> 0 | N138: =_xlfn.XLOOKUP(A138,DATA[Item No.],DATA[CM],"") -> Y | O138: =_xlfn.XLOOKUP(A138,DATA[Item No.],DATA[CO],"") -> Y | P138: =_xlfn.XLOOKUP(A138,DATA[Item No.],DATA[CP],"") -> Y | Q138: =_xlfn.XLOOKUP(A138,DATA[Item No.],DATA[Guaranteed Days],"") -> 16 | R138: =_xlfn.XLOOKUP(A138,DATA[Item No.],DATA[Storage],"") -> Chilled | S138: =_xlfn.XLOOKUP(A138,DATA[Item No.],DATA[Price],"") -> 58.46 | T138: =_xlfn.XLOOKUP(A138,DATA[Item No.],DATA[Monthly Promo],"") -> 0 | U138: =_xlfn.XLOOKUP(A138,DATA[Item No.],DATA[Promo Discount],"") -> 0 | V138: =_xlfn.XLOOKUP(A138,DATA[Item No.],DATA[SRP],"") -> 14.99 | W138: =_xlfn.XLOOKUP(A138,DATA[Item No.],DATA[SKU Territory Ranking - East],"") -> 0
A139: BT4222 | C139: =_xlfn.XLOOKUP(A139,DATA[Item No.],DATA[Description],"") -> Ripened Brie | D139: =_xlfn.XLOOKUP(A139,DATA[Item No.],DATA[Unit UPC],"") -> 628942914225 | E139: =_xlfn.XLOOKUP(A139,DATA[Item No.],DATA[Size],"") -> 200G | F139: =_xlfn.XLOOKUP(A139,DATA[Item No.],DATA[Picked],"") -> CA | G139: =_xlfn.XLOOKUP(A139,DATA[Item No.],DATA[Pack],"") -> 6 | H139: =_xlfn.XLOOKUP(A139,DATA[Item No.],DATA[O],"") -> Y | I139: =_xlfn.XLOOKUP(A139,DATA[Item No.],DATA[K],"") -> 0 | J139: =_xlfn.XLOOKUP(A139,DATA[Item No.],DATA[V],"") -> 0 | K139: =_xlfn.XLOOKUP(A139,DATA[Item No.],DATA[GF],"") -> 0 | L139: =_xlfn.XLOOKUP(A139,DATA[Item No.],DATA[N],"") -> Y | M139: =_xlfn.XLOOKUP(A139,DATA[Item No.],DATA[H],"") -> 0 | N139: =_xlfn.XLOOKUP(A139,DATA[Item No.],DATA[CM],"") -> Y | O139: =_xlfn.XLOOKUP(A139,DATA[Item No.],DATA[CO],"") -> Y | P139: =_xlfn.XLOOKUP(A139,DATA[Item No.],DATA[CP],"") -> Y | Q139: =_xlfn.XLOOKUP(A139,DATA[Item No.],DATA[Guaranteed Days],"") -> 24 | R139: =_xlfn.XLOOKUP(A139,DATA[Item No.],DATA[Storage],"") -> Chilled | S139: =_xlfn.XLOOKUP(A139,DATA[Item No.],DATA[Price],"") -> 58.46 | T139: =_xlfn.XLOOKUP(A139,DATA[Item No.],DATA[Monthly Promo],"") -> 0 | U139: =_xlfn.XLOOKUP(A139,DATA[Item No.],DATA[Promo Discount],"") -> 0 | V139: =_xlfn.XLOOKUP(A139,DATA[Item No.],DATA[SRP],"") -> 14.99 | W139: =_xlfn.XLOOKUP(A139,DATA[Item No.],DATA[SKU Territory Ranking - East],"") -> 0
A140: BT4253 | C140: =_xlfn.XLOOKUP(A140,DATA[Item No.],DATA[Description],"") -> Truffle Plant-Based Aged Brie | D140: =_xlfn.XLOOKUP(A140,DATA[Item No.],DATA[Unit UPC],"") -> 628942914256 | E140: =_xlfn.XLOOKUP(A140,DATA[Item No.],DATA[Size],"") -> 200G | F140: =_xlfn.XLOOKUP(A140,DATA[Item No.],DATA[Picked],"") -> CA | G140: =_xlfn.XLOOKUP(A140,DATA[Item No.],DATA[Pack],"") -> 6 | H140: =_xlfn.XLOOKUP(A140,DATA[Item No.],DATA[O],"") -> 0 | I140: =_xlfn.XLOOKUP(A140,DATA[Item No.],DATA[K],"") -> 0 | J140: =_xlfn.XLOOKUP(A140,DATA[Item No.],DATA[V],"") -> Y | K140: =_xlfn.XLOOKUP(A140,DATA[Item No.],DATA[GF],"") -> 0 | L140: =_xlfn.XLOOKUP(A140,DATA[Item No.],DATA[N],"") -> 0 | M140: =_xlfn.XLOOKUP(A140,DATA[Item No.],DATA[H],"") -> 0 | N140: =_xlfn.XLOOKUP(A140,DATA[Item No.],DATA[CM],"") -> Y | O140: =_xlfn.XLOOKUP(A140,DATA[Item No.],DATA[CO],"") -> Y | P140: =_xlfn.XLOOKUP(A140,DATA[Item No.],DATA[CP],"") -> Y | Q140: =_xlfn.XLOOKUP(A140,DATA[Item No.],DATA[Guaranteed Days],"") -> 15 | R140: =_xlfn.XLOOKUP(A140,DATA[Item No.],DATA[Storage],"") -> Chilled | S140: =_xlfn.XLOOKUP(A140,DATA[Item No.],DATA[Price],"") -> 64.8 | T140: =_xlfn.XLOOKUP(A140,DATA[Item No.],DATA[Monthly Promo],"") -> 0 | U140: =_xlfn.XLOOKUP(A140,DATA[Item No.],DATA[Promo Discount],"") -> 0 | V140: =_xlfn.XLOOKUP(A140,DATA[Item No.],DATA[SRP],"") -> 16.99 | W140: =_xlfn.XLOOKUP(A140,DATA[Item No.],DATA[SKU Territory Ranking - East],"") -> 0
A141: BT4345 | C141: =_xlfn.XLOOKUP(A141,DATA[Item No.],DATA[Description],"") -> Everything Plant-Based Aged Brie | D141: =_xlfn.XLOOKUP(A141,DATA[Item No.],DATA[Unit UPC],"") -> 628942914348 | E141: =_xlfn.XLOOKUP(A141,DATA[Item No.],DATA[Size],"") -> 200G | F141: =_xlfn.XLOOKUP(A141,DATA[Item No.],DATA[Picked],"") -> CA | G141: =_xlfn.XLOOKUP(A141,DATA[Item No.],DATA[Pack],"") -> 6 | H141: =_xlfn.XLOOKUP(A141,DATA[Item No.],DATA[O],"") -> 0 | I141: =_xlfn.XLOOKUP(A141,DATA[Item No.],DATA[K],"") -> 0 | J141: =_xlfn.XLOOKUP(A141,DATA[Item No.],DATA[V],"") -> Y | K141: =_xlfn.XLOOKUP(A141,DATA[Item No.],DATA[GF],"") -> 0 | L141: =_xlfn.XLOOKUP(A141,DATA[Item No.],DATA[N],"") -> 0 | M141: =_xlfn.XLOOKUP(A141,DATA[Item No.],DATA[H],"") -> 0 | N141: =_xlfn.XLOOKUP(A141,DATA[Item No.],DATA[CM],"") -> Y | O141: =_xlfn.XLOOKUP(A141,DATA[Item No.],DATA[CO],"") -> Y | P141: =_xlfn.XLOOKUP(A141,DATA[Item No.],DATA[CP],"") -> Y | Q141: =_xlfn.XLOOKUP(A141,DATA[Item No.],DATA[Guaranteed Days],"") -> 16 | R141: =_xlfn.XLOOKUP(A141,DATA[Item No.],DATA[Storage],"") -> Chilled | S141: =_xlfn.XLOOKUP(A141,DATA[Item No.],DATA[Price],"") -> 58.46 | T141: =_xlfn.XLOOKUP(A141,DATA[Item No.],DATA[Monthly Promo],"") -> 0 | U141: =_xlfn.XLOOKUP(A141,DATA[Item No.],DATA[Promo Discount],"") -> 0 | V141: =_xlfn.XLOOKUP(A141,DATA[Item No.],DATA[SRP],"") -> 14.99 | W141: =_xlfn.XLOOKUP(A141,DATA[Item No.],DATA[SKU Territory Ranking - East],"") -> 0
A142: BIERE SANS ALCOOL | C142: =_xlfn.XLOOKUP(A142,DATA[Item No.],DATA[Description],"") ->  | D142: =_xlfn.XLOOKUP(A142,DATA[Item No.],DATA[Unit UPC],"") ->  | E142: =_xlfn.XLOOKUP(A142,DATA[Item No.],DATA[Size],"") ->  | F142: =_xlfn.XLOOKUP(A142,DATA[Item No.],DATA[Picked],"") ->  | G142: =_xlfn.XLOOKUP(A142,DATA[Item No.],DATA[Pack],"") ->  | H142: =_xlfn.XLOOKUP(A142,DATA[Item No.],DATA[O],"") ->  | I142: =_xlfn.XLOOKUP(A142,DATA[Item No.],DATA[K],"") ->  | J142: =_xlfn.XLOOKUP(A142,DATA[Item No.],DATA[V],"") ->  | K142: =_xlfn.XLOOKUP(A142,DATA[Item No.],DATA[GF],"") ->  | L142: =_xlfn.XLOOKUP(A142,DATA[Item No.],DATA[N],"") ->  | M142: =_xlfn.XLOOKUP(A142,DATA[Item No.],DATA[H],"") ->  | N142: =_xlfn.XLOOKUP(A142,DATA[Item No.],DATA[CM],"") ->  | O142: =_xlfn.XLOOKUP(A142,DATA[Item No.],DATA[CO],"") ->  | P142: =_xlfn.XLOOKUP(A142,DATA[Item No.],DATA[CP],"") ->  | Q142: =_xlfn.XLOOKUP(A142,DATA[Item No.],DATA[Guaranteed Days],"") ->  | R142: =_xlfn.XLOOKUP(A142,DATA[Item No.],DATA[Storage],"") ->  | S142: =_xlfn.XLOOKUP(A142,DATA[Item No.],DATA[Price],"") ->  | T142: =_xlfn.XLOOKUP(A142,DATA[Item No.],DATA[Monthly Promo],"") ->  | U142: =_xlfn.XLOOKUP(A142,DATA[Item No.],DATA[Promo Discount],"") ->  | V142: =_xlfn.XLOOKUP(A142,DATA[Item No.],DATA[SRP],"") ->  | W142: =_xlfn.XLOOKUP(A142,DATA[Item No.],DATA[SKU Territory Ranking - East],"") -> 
A143: Non-Alcoholic Beer | C143: =_xlfn.XLOOKUP(A143,DATA[Item No.],DATA[Description],"") ->  | D143: =_xlfn.XLOOKUP(A143,DATA[Item No.],DATA[Unit UPC],"") ->  | E143: =_xlfn.XLOOKUP(A143,DATA[Item No.],DATA[Size],"") ->  | F143: =_xlfn.XLOOKUP(A143,DATA[Item No.],DATA[Picked],"") ->  | G143: =_xlfn.XLOOKUP(A143,DATA[Item No.],DATA[Pack],"") ->  | H143: =_xlfn.XLOOKUP(A143,DATA[Item No.],DATA[O],"") ->  | I143: =_xlfn.XLOOKUP(A143,DATA[Item No.],DATA[K],"") ->  | J143: =_xlfn.XLOOKUP(A143,DATA[Item No.],DATA[V],"") ->  | K143: =_xlfn.XLOOKUP(A143,DATA[Item No.],DATA[GF],"") ->  | L143: =_xlfn.XLOOKUP(A143,DATA[Item No.],DATA[N],"") ->  | M143: =_xlfn.XLOOKUP(A143,DATA[Item No.],DATA[H],"") ->  | N143: =_xlfn.XLOOKUP(A143,DATA[Item No.],DATA[CM],"") ->  | O143: =_xlfn.XLOOKUP(A143,DATA[Item No.],DATA[CO],"") ->  | P143: =_xlfn.XLOOKUP(A143,DATA[Item No.],DATA[CP],"") ->  | Q143: =_xlfn.XLOOKUP(A143,DATA[Item No.],DATA[Guaranteed Days],"") ->  | R143: =_xlfn.XLOOKUP(A143,DATA[Item No.],DATA[Storage],"") ->  | S143: =_xlfn.XLOOKUP(A143,DATA[Item No.],DATA[Price],"") ->  | T143: =_xlfn.XLOOKUP(A143,DATA[Item No.],DATA[Monthly Promo],"") ->  | U143: =_xlfn.XLOOKUP(A143,DATA[Item No.],DATA[Promo Discount],"") ->  | V143: =_xlfn.XLOOKUP(A143,DATA[Item No.],DATA[SRP],"") ->  | W143: =_xlfn.XLOOKUP(A143,DATA[Item No.],DATA[SKU Territory Ranking - East],"") -> 
A144: BS5372 | C144: =_xlfn.XLOOKUP(A144,DATA[Item No.],DATA[Description],"") -> Blonde Pilsner | D144: =_xlfn.XLOOKUP(A144,DATA[Item No.],DATA[Unit UPC],"") -> 627987335378 | E144: =_xlfn.XLOOKUP(A144,DATA[Item No.],DATA[Size],"") -> 473ML | F144: =_xlfn.XLOOKUP(A144,DATA[Item No.],DATA[Picked],"") -> CA | G144: =_xlfn.XLOOKUP(A144,DATA[Item No.],DATA[Pack],"") -> 12 | H144: =_xlfn.XLOOKUP(A144,DATA[Item No.],DATA[O],"") -> 0 | I144: =_xlfn.XLOOKUP(A144,DATA[Item No.],DATA[K],"") -> 0 | J144: =_xlfn.XLOOKUP(A144,DATA[Item No.],DATA[V],"") -> 0 | K144: =_xlfn.XLOOKUP(A144,DATA[Item No.],DATA[GF],"") -> 0 | L144: =_xlfn.XLOOKUP(A144,DATA[Item No.],DATA[N],"") -> 0 | M144: =_xlfn.XLOOKUP(A144,DATA[Item No.],DATA[H],"") -> 0 | N144: =_xlfn.XLOOKUP(A144,DATA[Item No.],DATA[CM],"") -> Y | O144: =_xlfn.XLOOKUP(A144,DATA[Item No.],DATA[CO],"") -> Y | P144: =_xlfn.XLOOKUP(A144,DATA[Item No.],DATA[CP],"") -> 0 | Q144: =_xlfn.XLOOKUP(A144,DATA[Item No.],DATA[Guaranteed Days],"") -> 200 | R144: =_xlfn.XLOOKUP(A144,DATA[Item No.],DATA[Storage],"") -> Dry | S144: =_xlfn.XLOOKUP(A144,DATA[Item No.],DATA[Price],"") -> 30.71 | T144: =_xlfn.XLOOKUP(A144,DATA[Item No.],DATA[Monthly Promo],"") -> 0 | U144: =_xlfn.XLOOKUP(A144,DATA[Item No.],DATA[Promo Discount],"") -> 0 | V144: =_xlfn.XLOOKUP(A144,DATA[Item No.],DATA[SRP],"") -> 3.99 | W144: =_xlfn.XLOOKUP(A144,DATA[Item No.],DATA[SKU Territory Ranking - East],"") -> 4
A145: Non-Alcoholic Craft Beer | C145: =_xlfn.XLOOKUP(A145,DATA[Item No.],DATA[Description],"") ->  | D145: =_xlfn.XLOOKUP(A145,DATA[Item No.],DATA[Unit UPC],"") ->  | E145: =_xlfn.XLOOKUP(A145,DATA[Item No.],DATA[Size],"") ->  | F145: =_xlfn.XLOOKUP(A145,DATA[Item No.],DATA[Picked],"") ->  | G145: =_xlfn.XLOOKUP(A145,DATA[Item No.],DATA[Pack],"") ->  | H145: =_xlfn.XLOOKUP(A145,DATA[Item No.],DATA[O],"") ->  | I145: =_xlfn.XLOOKUP(A145,DATA[Item No.],DATA[K],"") ->  | J145: =_xlfn.XLOOKUP(A145,DATA[Item No.],DATA[V],"") ->  | K145: =_xlfn.XLOOKUP(A145,DATA[Item No.],DATA[GF],"") ->  | L145: =_xlfn.XLOOKUP(A145,DATA[Item No.],DATA[N],"") ->  | M145: =_xlfn.XLOOKUP(A145,DATA[Item No.],DATA[H],"") ->  | N145: =_xlfn.XLOOKUP(A145,DATA[Item No.],DATA[CM],"") ->  | O145: =_xlfn.XLOOKUP(A145,DATA[Item No.],DATA[CO],"") ->  | P145: =_xlfn.XLOOKUP(A145,DATA[Item No.],DATA[CP],"") ->  | Q145: =_xlfn.XLOOKUP(A145,DATA[Item No.],DATA[Guaranteed Days],"") ->  | R145: =_xlfn.XLOOKUP(A145,DATA[Item No.],DATA[Storage],"") ->  | S145: =_xlfn.XLOOKUP(A145,DATA[Item No.],DATA[Price],"") ->  | T145: =_xlfn.XLOOKUP(A145,DATA[Item No.],DATA[Monthly Promo],"") ->  | U145: =_xlfn.XLOOKUP(A145,DATA[Item No.],DATA[Promo Discount],"") ->  | V145: =_xlfn.XLOOKUP(A145,DATA[Item No.],DATA[SRP],"") ->  | W145: =_xlfn.XLOOKUP(A145,DATA[Item No.],DATA[SKU Territory Ranking - East],"") -> 
A146: BS5341 | C146: =_xlfn.XLOOKUP(A146,DATA[Item No.],DATA[Description],"") -> Smooth IPA | D146: =_xlfn.XLOOKUP(A146,DATA[Item No.],DATA[Unit UPC],"") -> 627987335347 | E146: =_xlfn.XLOOKUP(A146,DATA[Item No.],DATA[Size],"") -> 473ML | F146: =_xlfn.XLOOKUP(A146,DATA[Item No.],DATA[Picked],"") -> CA | G146: =_xlfn.XLOOKUP(A146,DATA[Item No.],DATA[Pack],"") -> 12 | H146: =_xlfn.XLOOKUP(A146,DATA[Item No.],DATA[O],"") -> 0 | I146: =_xlfn.XLOOKUP(A146,DATA[Item No.],DATA[K],"") -> 0 | J146: =_xlfn.XLOOKUP(A146,DATA[Item No.],DATA[V],"") -> 0 | K146: =_xlfn.XLOOKUP(A146,DATA[Item No.],DATA[GF],"") -> 0 | L146: =_xlfn.XLOOKUP(A146,DATA[Item No.],DATA[N],"") -> 0 | M146: =_xlfn.XLOOKUP(A146,DATA[Item No.],DATA[H],"") -> 0 | N146: =_xlfn.XLOOKUP(A146,DATA[Item No.],DATA[CM],"") -> Y | O146: =_xlfn.XLOOKUP(A146,DATA[Item No.],DATA[CO],"") -> Y | P146: =_xlfn.XLOOKUP(A146,DATA[Item No.],DATA[CP],"") -> 0 | Q146: =_xlfn.XLOOKUP(A146,DATA[Item No.],DATA[Guaranteed Days],"") -> 200 | R146: =_xlfn.XLOOKUP(A146,DATA[Item No.],DATA[Storage],"") -> Dry | S146: =_xlfn.XLOOKUP(A146,DATA[Item No.],DATA[Price],"") -> 30.71 | T146: =_xlfn.XLOOKUP(A146,DATA[Item No.],DATA[Monthly Promo],"") -> 0 | U146: =_xlfn.XLOOKUP(A146,DATA[Item No.],DATA[Promo Discount],"") -> 0 | V146: =_xlfn.XLOOKUP(A146,DATA[Item No.],DATA[SRP],"") -> 3.99 | W146: =_xlfn.XLOOKUP(A146,DATA[Item No.],DATA[SKU Territory Ranking - East],"") -> 3
A147: BS5358 | C147: =_xlfn.XLOOKUP(A147,DATA[Item No.],DATA[Description],"") -> Tropical Sour | D147: =_xlfn.XLOOKUP(A147,DATA[Item No.],DATA[Unit UPC],"") -> 627987335354 | E147: =_xlfn.XLOOKUP(A147,DATA[Item No.],DATA[Size],"") -> 473ML | F147: =_xlfn.XLOOKUP(A147,DATA[Item No.],DATA[Picked],"") -> CA | G147: =_xlfn.XLOOKUP(A147,DATA[Item No.],DATA[Pack],"") -> 12 | H147: =_xlfn.XLOOKUP(A147,DATA[Item No.],DATA[O],"") -> 0 | I147: =_xlfn.XLOOKUP(A147,DATA[Item No.],DATA[K],"") -> 0 | J147: =_xlfn.XLOOKUP(A147,DATA[Item No.],DATA[V],"") -> 0 | K147: =_xlfn.XLOOKUP(A147,DATA[Item No.],DATA[GF],"") -> 0 | L147: =_xlfn.XLOOKUP(A147,DATA[Item No.],DATA[N],"") -> 0 | M147: =_xlfn.XLOOKUP(A147,DATA[Item No.],DATA[H],"") -> 0 | N147: =_xlfn.XLOOKUP(A147,DATA[Item No.],DATA[CM],"") -> Y | O147: =_xlfn.XLOOKUP(A147,DATA[Item No.],DATA[CO],"") -> Y | P147: =_xlfn.XLOOKUP(A147,DATA[Item No.],DATA[CP],"") -> 0 | Q147: =_xlfn.XLOOKUP(A147,DATA[Item No.],DATA[Guaranteed Days],"") -> 200 | R147: =_xlfn.XLOOKUP(A147,DATA[Item No.],DATA[Storage],"") -> Dry | S147: =_xlfn.XLOOKUP(A147,DATA[Item No.],DATA[Price],"") -> 30.71 | T147: =_xlfn.XLOOKUP(A147,DATA[Item No.],DATA[Monthly Promo],"") -> 0 | U147: =_xlfn.XLOOKUP(A147,DATA[Item No.],DATA[Promo Discount],"") -> 0 | V147: =_xlfn.XLOOKUP(A147,DATA[Item No.],DATA[SRP],"") -> 3.99 | W147: =_xlfn.XLOOKUP(A147,DATA[Item No.],DATA[SKU Territory Ranking - East],"") -> 2
A148: BS5365 | C148: =_xlfn.XLOOKUP(A148,DATA[Item No.],DATA[Description],"") -> Raspberry Sour | D148: =_xlfn.XLOOKUP(A148,DATA[Item No.],DATA[Unit UPC],"") -> 627987335361 | E148: =_xlfn.XLOOKUP(A148,DATA[Item No.],DATA[Size],"") -> 473ML | F148: =_xlfn.XLOOKUP(A148,DATA[Item No.],DATA[Picked],"") -> CA | G148: =_xlfn.XLOOKUP(A148,DATA[Item No.],DATA[Pack],"") -> 12 | H148: =_xlfn.XLOOKUP(A148,DATA[Item No.],DATA[O],"") -> 0 | I148: =_xlfn.XLOOKUP(A148,DATA[Item No.],DATA[K],"") -> 0 | J148: =_xlfn.XLOOKUP(A148,DATA[Item No.],DATA[V],"") -> 0 | K148: =_xlfn.XLOOKUP(A148,DATA[Item No.],DATA[GF],"") -> 0 | L148: =_xlfn.XLOOKUP(A148,DATA[Item No.],DATA[N],"") -> 0 | M148: =_xlfn.XLOOKUP(A148,DATA[Item No.],DATA[H],"") -> 0 | N148: =_xlfn.XLOOKUP(A148,DATA[Item No.],DATA[CM],"") -> Y | O148: =_xlfn.XLOOKUP(A148,DATA[Item No.],DATA[CO],"") -> Y | P148: =_xlfn.XLOOKUP(A148,DATA[Item No.],DATA[CP],"") -> 0 | Q148: =_xlfn.XLOOKUP(A148,DATA[Item No.],DATA[Guaranteed Days],"") -> 200 | R148: =_xlfn.XLOOKUP(A148,DATA[Item No.],DATA[Storage],"") -> Dry | S148: =_xlfn.XLOOKUP(A148,DATA[Item No.],DATA[Price],"") -> 30.71 | T148: =_xlfn.XLOOKUP(A148,DATA[Item No.],DATA[Monthly Promo],"") -> 0 | U148: =_xlfn.XLOOKUP(A148,DATA[Item No.],DATA[Promo Discount],"") -> 0 | V148: =_xlfn.XLOOKUP(A148,DATA[Item No.],DATA[SRP],"") -> 3.99 | W148: =_xlfn.XLOOKUP(A148,DATA[Item No.],DATA[SKU Territory Ranking - East],"") -> 1
A149: BS5396 | C149: =_xlfn.XLOOKUP(A149,DATA[Item No.],DATA[Description],"") -> White Orange | D149: =_xlfn.XLOOKUP(A149,DATA[Item No.],DATA[Unit UPC],"") -> 627987335392 | E149: =_xlfn.XLOOKUP(A149,DATA[Item No.],DATA[Size],"") -> 473ML | F149: =_xlfn.XLOOKUP(A149,DATA[Item No.],DATA[Picked],"") -> CA | G149: =_xlfn.XLOOKUP(A149,DATA[Item No.],DATA[Pack],"") -> 12 | H149: =_xlfn.XLOOKUP(A149,DATA[Item No.],DATA[O],"") -> 0 | I149: =_xlfn.XLOOKUP(A149,DATA[Item No.],DATA[K],"") -> 0 | J149: =_xlfn.XLOOKUP(A149,DATA[Item No.],DATA[V],"") -> 0 | K149: =_xlfn.XLOOKUP(A149,DATA[Item No.],DATA[GF],"") -> 0 | L149: =_xlfn.XLOOKUP(A149,DATA[Item No.],DATA[N],"") -> 0 | M149: =_xlfn.XLOOKUP(A149,DATA[Item No.],DATA[H],"") -> 0 | N149: =_xlfn.XLOOKUP(A149,DATA[Item No.],DATA[CM],"") -> Y | O149: =_xlfn.XLOOKUP(A149,DATA[Item No.],DATA[CO],"") -> Y | P149: =_xlfn.XLOOKUP(A149,DATA[Item No.],DATA[CP],"") -> 0 | Q149: =_xlfn.XLOOKUP(A149,DATA[Item No.],DATA[Guaranteed Days],"") -> 219 | R149: =_xlfn.XLOOKUP(A149,DATA[Item No.],DATA[Storage],"") -> Dry | S149: =_xlfn.XLOOKUP(A149,DATA[Item No.],DATA[Price],"") -> 30.71 | T149: =_xlfn.XLOOKUP(A149,DATA[Item No.],DATA[Monthly Promo],"") -> 0 | U149: =_xlfn.XLOOKUP(A149,DATA[Item No.],DATA[Promo Discount],"") -> 0 | V149: =_xlfn.XLOOKUP(A149,DATA[Item No.],DATA[SRP],"") -> 3.99 | W149: =_xlfn.XLOOKUP(A149,DATA[Item No.],DATA[SKU Territory Ranking - East],"") -> 5
A150: BIG MOUNTAIN | C150: =_xlfn.XLOOKUP(A150,DATA[Item No.],DATA[Description],"") ->  | D150: =_xlfn.XLOOKUP(A150,DATA[Item No.],DATA[Unit UPC],"") ->  | E150: =_xlfn.XLOOKUP(A150,DATA[Item No.],DATA[Size],"") ->  | F150: =_xlfn.XLOOKUP(A150,DATA[Item No.],DATA[Picked],"") ->  | G150: =_xlfn.XLOOKUP(A150,DATA[Item No.],DATA[Pack],"") ->  | H150: =_xlfn.XLOOKUP(A150,DATA[Item No.],DATA[O],"") ->  | I150: =_xlfn.XLOOKUP(A150,DATA[Item No.],DATA[K],"") ->  | J150: =_xlfn.XLOOKUP(A150,DATA[Item No.],DATA[V],"") ->  | K150: =_xlfn.XLOOKUP(A150,DATA[Item No.],DATA[GF],"") ->  | L150: =_xlfn.XLOOKUP(A150,DATA[Item No.],DATA[N],"") ->  | M150: =_xlfn.XLOOKUP(A150,DATA[Item No.],DATA[H],"") ->  | N150: =_xlfn.XLOOKUP(A150,DATA[Item No.],DATA[CM],"") ->  | O150: =_xlfn.XLOOKUP(A150,DATA[Item No.],DATA[CO],"") ->  | P150: =_xlfn.XLOOKUP(A150,DATA[Item No.],DATA[CP],"") ->  | Q150: =_xlfn.XLOOKUP(A150,DATA[Item No.],DATA[Guaranteed Days],"") ->  | R150: =_xlfn.XLOOKUP(A150,DATA[Item No.],DATA[Storage],"") ->  | S150: =_xlfn.XLOOKUP(A150,DATA[Item No.],DATA[Price],"") ->  | T150: =_xlfn.XLOOKUP(A150,DATA[Item No.],DATA[Monthly Promo],"") ->  | U150: =_xlfn.XLOOKUP(A150,DATA[Item No.],DATA[Promo Discount],"") ->  | V150: =_xlfn.XLOOKUP(A150,DATA[Item No.],DATA[SRP],"") ->  | W150: =_xlfn.XLOOKUP(A150,DATA[Item No.],DATA[SKU Territory Ranking - East],"") -> 
A151: Alternative Meat Products | C151: =_xlfn.XLOOKUP(A151,DATA[Item No.],DATA[Description],"") ->  | D151: =_xlfn.XLOOKUP(A151,DATA[Item No.],DATA[Unit UPC],"") ->  | E151: =_xlfn.XLOOKUP(A151,DATA[Item No.],DATA[Size],"") ->  | F151: =_xlfn.XLOOKUP(A151,DATA[Item No.],DATA[Picked],"") ->  | G151: =_xlfn.XLOOKUP(A151,DATA[Item No.],DATA[Pack],"") ->  | H151: =_xlfn.XLOOKUP(A151,DATA[Item No.],DATA[O],"") ->  | I151: =_xlfn.XLOOKUP(A151,DATA[Item No.],DATA[K],"") ->  | J151: =_xlfn.XLOOKUP(A151,DATA[Item No.],DATA[V],"") ->  | K151: =_xlfn.XLOOKUP(A151,DATA[Item No.],DATA[GF],"") ->  | L151: =_xlfn.XLOOKUP(A151,DATA[Item No.],DATA[N],"") ->  | M151: =_xlfn.XLOOKUP(A151,DATA[Item No.],DATA[H],"") ->  | N151: =_xlfn.XLOOKUP(A151,DATA[Item No.],DATA[CM],"") ->  | O151: =_xlfn.XLOOKUP(A151,DATA[Item No.],DATA[CO],"") ->  | P151: =_xlfn.XLOOKUP(A151,DATA[Item No.],DATA[CP],"") ->  | Q151: =_xlfn.XLOOKUP(A151,DATA[Item No.],DATA[Guaranteed Days],"") ->  | R151: =_xlfn.XLOOKUP(A151,DATA[Item No.],DATA[Storage],"") ->  | S151: =_xlfn.XLOOKUP(A151,DATA[Item No.],DATA[Price],"") ->  | T151: =_xlfn.XLOOKUP(A151,DATA[Item No.],DATA[Monthly Promo],"") ->  | U151: =_xlfn.XLOOKUP(A151,DATA[Item No.],DATA[Promo Discount],"") ->  | V151: =_xlfn.XLOOKUP(A151,DATA[Item No.],DATA[SRP],"") ->  | W151: =_xlfn.XLOOKUP(A151,DATA[Item No.],DATA[SKU Territory Ranking - East],"") -> 
A152: BM0019 | C152: =_xlfn.XLOOKUP(A152,DATA[Item No.],DATA[Description],"") -> Original Veggie Patty | D152: =_xlfn.XLOOKUP(A152,DATA[Item No.],DATA[Unit UPC],"") -> 777744000015 | E152: =_xlfn.XLOOKUP(A152,DATA[Item No.],DATA[Size],"") -> 400G | F152: =_xlfn.XLOOKUP(A152,DATA[Item No.],DATA[Picked],"") -> CA | G152: =_xlfn.XLOOKUP(A152,DATA[Item No.],DATA[Pack],"") -> 8 | H152: =_xlfn.XLOOKUP(A152,DATA[Item No.],DATA[O],"") -> 0 | I152: =_xlfn.XLOOKUP(A152,DATA[Item No.],DATA[K],"") -> Y | J152: =_xlfn.XLOOKUP(A152,DATA[Item No.],DATA[V],"") -> Y | K152: =_xlfn.XLOOKUP(A152,DATA[Item No.],DATA[GF],"") -> 0 | L152: =_xlfn.XLOOKUP(A152,DATA[Item No.],DATA[N],"") -> Y | M152: =_xlfn.XLOOKUP(A152,DATA[Item No.],DATA[H],"") -> 0 | N152: =_xlfn.XLOOKUP(A152,DATA[Item No.],DATA[CM],"") -> Y | O152: =_xlfn.XLOOKUP(A152,DATA[Item No.],DATA[CO],"") -> Y | P152: =_xlfn.XLOOKUP(A152,DATA[Item No.],DATA[CP],"") -> Y | Q152: =_xlfn.XLOOKUP(A152,DATA[Item No.],DATA[Guaranteed Days],"") -> 28 | R152: =_xlfn.XLOOKUP(A152,DATA[Item No.],DATA[Storage],"") -> Chilled | S152: =_xlfn.XLOOKUP(A152,DATA[Item No.],DATA[Price],"") -> 47.75 | T152: =_xlfn.XLOOKUP(A152,DATA[Item No.],DATA[Monthly Promo],"") -> 0 | U152: =_xlfn.XLOOKUP(A152,DATA[Item No.],DATA[Promo Discount],"") -> 0 | V152: =_xlfn.XLOOKUP(A152,DATA[Item No.],DATA[SRP],"") -> 6.49 | W152: =_xlfn.XLOOKUP(A152,DATA[Item No.],DATA[SKU Territory Ranking - East],"") -> 6
A153: BM0026 | C153: =_xlfn.XLOOKUP(A153,DATA[Item No.],DATA[Description],"") -> Lion's Mane Mushroom Crumble | D153: =_xlfn.XLOOKUP(A153,DATA[Item No.],DATA[Unit UPC],"") -> 777744000008 | E153: =_xlfn.XLOOKUP(A153,DATA[Item No.],DATA[Size],"") -> 300G | F153: =_xlfn.XLOOKUP(A153,DATA[Item No.],DATA[Picked],"") -> CA | G153: =_xlfn.XLOOKUP(A153,DATA[Item No.],DATA[Pack],"") -> 8 | H153: =_xlfn.XLOOKUP(A153,DATA[Item No.],DATA[O],"") -> 0 | I153: =_xlfn.XLOOKUP(A153,DATA[Item No.],DATA[K],"") -> Y | J153: =_xlfn.XLOOKUP(A153,DATA[Item No.],DATA[V],"") -> Y | K153: =_xlfn.XLOOKUP(A153,DATA[Item No.],DATA[GF],"") -> 0 | L153: =_xlfn.XLOOKUP(A153,DATA[Item No.],DATA[N],"") -> Y | M153: =_xlfn.XLOOKUP(A153,DATA[Item No.],DATA[H],"") -> 0 | N153: =_xlfn.XLOOKUP(A153,DATA[Item No.],DATA[CM],"") -> Y | O153: =_xlfn.XLOOKUP(A153,DATA[Item No.],DATA[CO],"") -> Y | P153: =_xlfn.XLOOKUP(A153,DATA[Item No.],DATA[CP],"") -> Y | Q153: =_xlfn.XLOOKUP(A153,DATA[Item No.],DATA[Guaranteed Days],"") -> 28 | R153: =_xlfn.XLOOKUP(A153,DATA[Item No.],DATA[Storage],"") -> Chilled | S153: =_xlfn.XLOOKUP(A153,DATA[Item No.],DATA[Price],"") -> 47.75 | T153: =_xlfn.XLOOKUP(A153,DATA[Item No.],DATA[Monthly Promo],"") -> 0 | U153: =_xlfn.XLOOKUP(A153,DATA[Item No.],DATA[Promo Discount],"") -> 0 | V153: =_xlfn.XLOOKUP(A153,DATA[Item No.],DATA[SRP],"") -> 6.99 | W153: =_xlfn.XLOOKUP(A153,DATA[Item No.],DATA[SKU Territory Ranking - East],"") -> 3
A154: BM0030 | C154: =_xlfn.XLOOKUP(A154,DATA[Item No.],DATA[Description],"") -> Lion’s Mane Mushroom Burger | D154: =_xlfn.XLOOKUP(A154,DATA[Item No.],DATA[Unit UPC],"") -> 777744000138 | E154: =_xlfn.XLOOKUP(A154,DATA[Item No.],DATA[Size],"") -> 240g | F154: =_xlfn.XLOOKUP(A154,DATA[Item No.],DATA[Picked],"") -> CA | G154: =_xlfn.XLOOKUP(A154,DATA[Item No.],DATA[Pack],"") -> 8 | H154: =_xlfn.XLOOKUP(A154,DATA[Item No.],DATA[O],"") -> 0 | I154: =_xlfn.XLOOKUP(A154,DATA[Item No.],DATA[K],"") -> 0 | J154: =_xlfn.XLOOKUP(A154,DATA[Item No.],DATA[V],"") -> 0 | K154: =_xlfn.XLOOKUP(A154,DATA[Item No.],DATA[GF],"") -> 0 | L154: =_xlfn.XLOOKUP(A154,DATA[Item No.],DATA[N],"") -> 0 | M154: =_xlfn.XLOOKUP(A154,DATA[Item No.],DATA[H],"") -> 0 | N154: =_xlfn.XLOOKUP(A154,DATA[Item No.],DATA[CM],"") -> Y | O154: =_xlfn.XLOOKUP(A154,DATA[Item No.],DATA[CO],"") -> Y | P154: =_xlfn.XLOOKUP(A154,DATA[Item No.],DATA[CP],"") -> Y | Q154: =_xlfn.XLOOKUP(A154,DATA[Item No.],DATA[Guaranteed Days],"") -> 28 | R154: =_xlfn.XLOOKUP(A154,DATA[Item No.],DATA[Storage],"") -> Chilled | S154: =_xlfn.XLOOKUP(A154,DATA[Item No.],DATA[Price],"") -> 52.17 | T154: =_xlfn.XLOOKUP(A154,DATA[Item No.],DATA[Monthly Promo],"") -> 0 | U154: =_xlfn.XLOOKUP(A154,DATA[Item No.],DATA[Promo Discount],"") -> 0 | V154: =_xlfn.XLOOKUP(A154,DATA[Item No.],DATA[SRP],"") -> 7.99 | W154: =_xlfn.XLOOKUP(A154,DATA[Item No.],DATA[SKU Territory Ranking - East],"") -> 14
A155: BM0034 | C155: =_xlfn.XLOOKUP(A155,DATA[Item No.],DATA[Description],"") -> Plant-based Roast | D155: =_xlfn.XLOOKUP(A155,DATA[Item No.],DATA[Unit UPC],"") -> 777744000220 | E155: =_xlfn.XLOOKUP(A155,DATA[Item No.],DATA[Size],"") -> 950G | F155: =_xlfn.XLOOKUP(A155,DATA[Item No.],DATA[Picked],"") -> CA | G155: =_xlfn.XLOOKUP(A155,DATA[Item No.],DATA[Pack],"") -> 6 | H155: =_xlfn.XLOOKUP(A155,DATA[Item No.],DATA[O],"") -> 0 | I155: =_xlfn.XLOOKUP(A155,DATA[Item No.],DATA[K],"") -> 0 | J155: =_xlfn.XLOOKUP(A155,DATA[Item No.],DATA[V],"") -> 0 | K155: =_xlfn.XLOOKUP(A155,DATA[Item No.],DATA[GF],"") -> 0 | L155: =_xlfn.XLOOKUP(A155,DATA[Item No.],DATA[N],"") -> 0 | M155: =_xlfn.XLOOKUP(A155,DATA[Item No.],DATA[H],"") -> 0 | N155: =_xlfn.XLOOKUP(A155,DATA[Item No.],DATA[CM],"") -> Y | O155: =_xlfn.XLOOKUP(A155,DATA[Item No.],DATA[CO],"") -> Y | P155: =_xlfn.XLOOKUP(A155,DATA[Item No.],DATA[CP],"") -> Y | Q155: =_xlfn.XLOOKUP(A155,DATA[Item No.],DATA[Guaranteed Days],"") -> 102 | R155: =_xlfn.XLOOKUP(A155,DATA[Item No.],DATA[Storage],"") -> Frozen | S155: =_xlfn.XLOOKUP(A155,DATA[Item No.],DATA[Price],"") -> 116 | T155: =_xlfn.XLOOKUP(A155,DATA[Item No.],DATA[Monthly Promo],"") -> 0 | U155: =_xlfn.XLOOKUP(A155,DATA[Item No.],DATA[Promo Discount],"") -> 0 | V155: =_xlfn.XLOOKUP(A155,DATA[Item No.],DATA[SRP],"") -> 29.99 | W155: =_xlfn.XLOOKUP(A155,DATA[Item No.],DATA[SKU Territory Ranking - East],"") -> 0
A156: BM0071 | C156: =_xlfn.XLOOKUP(A156,DATA[Item No.],DATA[Description],"") -> Superfood Breakfast Bites | D156: =_xlfn.XLOOKUP(A156,DATA[Item No.],DATA[Unit UPC],"") -> 777744000077 | E156: =_xlfn.XLOOKUP(A156,DATA[Item No.],DATA[Size],"") -> 300G | F156: =_xlfn.XLOOKUP(A156,DATA[Item No.],DATA[Picked],"") -> CA | G156: =_xlfn.XLOOKUP(A156,DATA[Item No.],DATA[Pack],"") -> 8 | H156: =_xlfn.XLOOKUP(A156,DATA[Item No.],DATA[O],"") -> 0 | I156: =_xlfn.XLOOKUP(A156,DATA[Item No.],DATA[K],"") -> Y | J156: =_xlfn.XLOOKUP(A156,DATA[Item No.],DATA[V],"") -> Y | K156: =_xlfn.XLOOKUP(A156,DATA[Item No.],DATA[GF],"") -> 0 | L156: =_xlfn.XLOOKUP(A156,DATA[Item No.],DATA[N],"") -> Y | M156: =_xlfn.XLOOKUP(A156,DATA[Item No.],DATA[H],"") -> 0 | N156: =_xlfn.XLOOKUP(A156,DATA[Item No.],DATA[CM],"") -> Y | O156: =_xlfn.XLOOKUP(A156,DATA[Item No.],DATA[CO],"") -> Y | P156: =_xlfn.XLOOKUP(A156,DATA[Item No.],DATA[CP],"") -> Y | Q156: =_xlfn.XLOOKUP(A156,DATA[Item No.],DATA[Guaranteed Days],"") -> 28 | R156: =_xlfn.XLOOKUP(A156,DATA[Item No.],DATA[Storage],"") -> Chilled | S156: =_xlfn.XLOOKUP(A156,DATA[Item No.],DATA[Price],"") -> 47.75 | T156: =_xlfn.XLOOKUP(A156,DATA[Item No.],DATA[Monthly Promo],"") -> 0 | U156: =_xlfn.XLOOKUP(A156,DATA[Item No.],DATA[Promo Discount],"") -> 0 | V156: =_xlfn.XLOOKUP(A156,DATA[Item No.],DATA[SRP],"") -> 6.49 | W156: =_xlfn.XLOOKUP(A156,DATA[Item No.],DATA[SKU Territory Ranking - East],"") -> 5
A157: BM0088 | C157: =_xlfn.XLOOKUP(A157,DATA[Item No.],DATA[Description],"") -> Mighty Mushroom Bites | D157: =_xlfn.XLOOKUP(A157,DATA[Item No.],DATA[Unit UPC],"") -> 777744000084 | E157: =_xlfn.XLOOKUP(A157,DATA[Item No.],DATA[Size],"") -> 300G | F157: =_xlfn.XLOOKUP(A157,DATA[Item No.],DATA[Picked],"") -> CA | G157: =_xlfn.XLOOKUP(A157,DATA[Item No.],DATA[Pack],"") -> 8 | H157: =_xlfn.XLOOKUP(A157,DATA[Item No.],DATA[O],"") -> 0 | I157: =_xlfn.XLOOKUP(A157,DATA[Item No.],DATA[K],"") -> Y | J157: =_xlfn.XLOOKUP(A157,DATA[Item No.],DATA[V],"") -> Y | K157: =_xlfn.XLOOKUP(A157,DATA[Item No.],DATA[GF],"") -> 0 | L157: =_xlfn.XLOOKUP(A157,DATA[Item No.],DATA[N],"") -> Y | M157: =_xlfn.XLOOKUP(A157,DATA[Item No.],DATA[H],"") -> 0 | N157: =_xlfn.XLOOKUP(A157,DATA[Item No.],DATA[CM],"") -> Y | O157: =_xlfn.XLOOKUP(A157,DATA[Item No.],DATA[CO],"") -> Y | P157: =_xlfn.XLOOKUP(A157,DATA[Item No.],DATA[CP],"") -> Y | Q157: =_xlfn.XLOOKUP(A157,DATA[Item No.],DATA[Guaranteed Days],"") -> 28 | R157: =_xlfn.XLOOKUP(A157,DATA[Item No.],DATA[Storage],"") -> Chilled | S157: =_xlfn.XLOOKUP(A157,DATA[Item No.],DATA[Price],"") -> 47.75 | T157: =_xlfn.XLOOKUP(A157,DATA[Item No.],DATA[Monthly Promo],"") -> 0 | U157: =_xlfn.XLOOKUP(A157,DATA[Item No.],DATA[Promo Discount],"") -> 0 | V157: =_xlfn.XLOOKUP(A157,DATA[Item No.],DATA[SRP],"") -> 6.49 | W157: =_xlfn.XLOOKUP(A157,DATA[Item No.],DATA[SKU Territory Ranking - East],"") -> 7
A158: BM0095 | C158: =_xlfn.XLOOKUP(A158,DATA[Item No.],DATA[Description],"") -> Caulicrumble Veggie Grounds | D158: =_xlfn.XLOOKUP(A158,DATA[Item No.],DATA[Unit UPC],"") -> 777744000046 | E158: =_xlfn.XLOOKUP(A158,DATA[Item No.],DATA[Size],"") -> 340G | F158: =_xlfn.XLOOKUP(A158,DATA[Item No.],DATA[Picked],"") -> CA | G158: =_xlfn.XLOOKUP(A158,DATA[Item No.],DATA[Pack],"") -> 8 | H158: =_xlfn.XLOOKUP(A158,DATA[Item No.],DATA[O],"") -> 0 | I158: =_xlfn.XLOOKUP(A158,DATA[Item No.],DATA[K],"") -> Y | J158: =_xlfn.XLOOKUP(A158,DATA[Item No.],DATA[V],"") -> Y | K158: =_xlfn.XLOOKUP(A158,DATA[Item No.],DATA[GF],"") -> 0 | L158: =_xlfn.XLOOKUP(A158,DATA[Item No.],DATA[N],"") -> Y | M158: =_xlfn.XLOOKUP(A158,DATA[Item No.],DATA[H],"") -> 0 | N158: =_xlfn.XLOOKUP(A158,DATA[Item No.],DATA[CM],"") -> Y | O158: =_xlfn.XLOOKUP(A158,DATA[Item No.],DATA[CO],"") -> Y | P158: =_xlfn.XLOOKUP(A158,DATA[Item No.],DATA[CP],"") -> Y | Q158: =_xlfn.XLOOKUP(A158,DATA[Item No.],DATA[Guaranteed Days],"") -> 28 | R158: =_xlfn.XLOOKUP(A158,DATA[Item No.],DATA[Storage],"") -> Chilled | S158: =_xlfn.XLOOKUP(A158,DATA[Item No.],DATA[Price],"") -> 47.75 | T158: =_xlfn.XLOOKUP(A158,DATA[Item No.],DATA[Monthly Promo],"") -> 0 | U158: =_xlfn.XLOOKUP(A158,DATA[Item No.],DATA[Promo Discount],"") -> 0 | V158: =_xlfn.XLOOKUP(A158,DATA[Item No.],DATA[SRP],"") -> 6.49 | W158: =_xlfn.XLOOKUP(A158,DATA[Item No.],DATA[SKU Territory Ranking - East],"") -> 2
A159: Fava Tofu | C159: =_xlfn.XLOOKUP(A159,DATA[Item No.],DATA[Description],"") ->  | D159: =_xlfn.XLOOKUP(A159,DATA[Item No.],DATA[Unit UPC],"") ->  | E159: =_xlfn.XLOOKUP(A159,DATA[Item No.],DATA[Size],"") ->  | F159: =_xlfn.XLOOKUP(A159,DATA[Item No.],DATA[Picked],"") ->  | G159: =_xlfn.XLOOKUP(A159,DATA[Item No.],DATA[Pack],"") ->  | H159: =_xlfn.XLOOKUP(A159,DATA[Item No.],DATA[O],"") ->  | I159: =_xlfn.XLOOKUP(A159,DATA[Item No.],DATA[K],"") ->  | J159: =_xlfn.XLOOKUP(A159,DATA[Item No.],DATA[V],"") ->  | K159: =_xlfn.XLOOKUP(A159,DATA[Item No.],DATA[GF],"") ->  | L159: =_xlfn.XLOOKUP(A159,DATA[Item No.],DATA[N],"") ->  | M159: =_xlfn.XLOOKUP(A159,DATA[Item No.],DATA[H],"") ->  | N159: =_xlfn.XLOOKUP(A159,DATA[Item No.],DATA[CM],"") ->  | O159: =_xlfn.XLOOKUP(A159,DATA[Item No.],DATA[CO],"") ->  | P159: =_xlfn.XLOOKUP(A159,DATA[Item No.],DATA[CP],"") ->  | Q159: =_xlfn.XLOOKUP(A159,DATA[Item No.],DATA[Guaranteed Days],"") ->  | R159: =_xlfn.XLOOKUP(A159,DATA[Item No.],DATA[Storage],"") ->  | S159: =_xlfn.XLOOKUP(A159,DATA[Item No.],DATA[Price],"") ->  | T159: =_xlfn.XLOOKUP(A159,DATA[Item No.],DATA[Monthly Promo],"") ->  | U159: =_xlfn.XLOOKUP(A159,DATA[Item No.],DATA[Promo Discount],"") ->  | V159: =_xlfn.XLOOKUP(A159,DATA[Item No.],DATA[SRP],"") ->  | W159: =_xlfn.XLOOKUP(A159,DATA[Item No.],DATA[SKU Territory Ranking - East],"") -> 
A160: BM0016 | C160: =_xlfn.XLOOKUP(A160,DATA[Item No.],DATA[Description],"") -> Original - Medium Firm | D160: =_xlfn.XLOOKUP(A160,DATA[Item No.],DATA[Unit UPC],"") -> 777744000107 | E160: =_xlfn.XLOOKUP(A160,DATA[Item No.],DATA[Size],"") -> 340G | F160: =_xlfn.XLOOKUP(A160,DATA[Item No.],DATA[Picked],"") -> CA | G160: =_xlfn.XLOOKUP(A160,DATA[Item No.],DATA[Pack],"") -> 8 | H160: =_xlfn.XLOOKUP(A160,DATA[Item No.],DATA[O],"") -> 0 | I160: =_xlfn.XLOOKUP(A160,DATA[Item No.],DATA[K],"") -> 0 | J160: =_xlfn.XLOOKUP(A160,DATA[Item No.],DATA[V],"") -> 0 | K160: =_xlfn.XLOOKUP(A160,DATA[Item No.],DATA[GF],"") -> 0 | L160: =_xlfn.XLOOKUP(A160,DATA[Item No.],DATA[N],"") -> 0 | M160: =_xlfn.XLOOKUP(A160,DATA[Item No.],DATA[H],"") -> 0 | N160: =_xlfn.XLOOKUP(A160,DATA[Item No.],DATA[CM],"") -> Y | O160: =_xlfn.XLOOKUP(A160,DATA[Item No.],DATA[CO],"") -> Y | P160: =_xlfn.XLOOKUP(A160,DATA[Item No.],DATA[CP],"") -> Y | Q160: =_xlfn.XLOOKUP(A160,DATA[Item No.],DATA[Guaranteed Days],"") -> 28 | R160: =_xlfn.XLOOKUP(A160,DATA[Item No.],DATA[Storage],"") -> Chilled | S160: =_xlfn.XLOOKUP(A160,DATA[Item No.],DATA[Price],"") -> 32.05 | T160: =_xlfn.XLOOKUP(A160,DATA[Item No.],DATA[Monthly Promo],"") -> 0 | U160: =_xlfn.XLOOKUP(A160,DATA[Item No.],DATA[Promo Discount],"") -> 0 | V160: =_xlfn.XLOOKUP(A160,DATA[Item No.],DATA[SRP],"") -> 4.99 | W160: =_xlfn.XLOOKUP(A160,DATA[Item No.],DATA[SKU Territory Ranking - East],"") -> 1
A161: BM0023 | C161: =_xlfn.XLOOKUP(A161,DATA[Item No.],DATA[Description],"") -> Super Smoked - Firm | D161: =_xlfn.XLOOKUP(A161,DATA[Item No.],DATA[Unit UPC],"") -> 777744000121 | E161: =_xlfn.XLOOKUP(A161,DATA[Item No.],DATA[Size],"") -> 280G | F161: =_xlfn.XLOOKUP(A161,DATA[Item No.],DATA[Picked],"") -> CA | G161: =_xlfn.XLOOKUP(A161,DATA[Item No.],DATA[Pack],"") -> 8 | H161: =_xlfn.XLOOKUP(A161,DATA[Item No.],DATA[O],"") -> 0 | I161: =_xlfn.XLOOKUP(A161,DATA[Item No.],DATA[K],"") -> 0 | J161: =_xlfn.XLOOKUP(A161,DATA[Item No.],DATA[V],"") -> 0 | K161: =_xlfn.XLOOKUP(A161,DATA[Item No.],DATA[GF],"") -> 0 | L161: =_xlfn.XLOOKUP(A161,DATA[Item No.],DATA[N],"") -> 0 | M161: =_xlfn.XLOOKUP(A161,DATA[Item No.],DATA[H],"") -> 0 | N161: =_xlfn.XLOOKUP(A161,DATA[Item No.],DATA[CM],"") -> Y | O161: =_xlfn.XLOOKUP(A161,DATA[Item No.],DATA[CO],"") -> Y | P161: =_xlfn.XLOOKUP(A161,DATA[Item No.],DATA[CP],"") -> Y | Q161: =_xlfn.XLOOKUP(A161,DATA[Item No.],DATA[Guaranteed Days],"") -> 28 | R161: =_xlfn.XLOOKUP(A161,DATA[Item No.],DATA[Storage],"") -> Chilled | S161: =_xlfn.XLOOKUP(A161,DATA[Item No.],DATA[Price],"") -> 32.05 | T161: =_xlfn.XLOOKUP(A161,DATA[Item No.],DATA[Monthly Promo],"") -> 0 | U161: =_xlfn.XLOOKUP(A161,DATA[Item No.],DATA[Promo Discount],"") -> 0 | V161: =_xlfn.XLOOKUP(A161,DATA[Item No.],DATA[SRP],"") -> 4.99 | W161: =_xlfn.XLOOKUP(A161,DATA[Item No.],DATA[SKU Territory Ranking - East],"") -> 4
A162: Veggie Links | C162: =_xlfn.XLOOKUP(A162,DATA[Item No.],DATA[Description],"") ->  | D162: =_xlfn.XLOOKUP(A162,DATA[Item No.],DATA[Unit UPC],"") ->  | E162: =_xlfn.XLOOKUP(A162,DATA[Item No.],DATA[Size],"") ->  | F162: =_xlfn.XLOOKUP(A162,DATA[Item No.],DATA[Picked],"") ->  | G162: =_xlfn.XLOOKUP(A162,DATA[Item No.],DATA[Pack],"") ->  | H162: =_xlfn.XLOOKUP(A162,DATA[Item No.],DATA[O],"") ->  | I162: =_xlfn.XLOOKUP(A162,DATA[Item No.],DATA[K],"") ->  | J162: =_xlfn.XLOOKUP(A162,DATA[Item No.],DATA[V],"") ->  | K162: =_xlfn.XLOOKUP(A162,DATA[Item No.],DATA[GF],"") ->  | L162: =_xlfn.XLOOKUP(A162,DATA[Item No.],DATA[N],"") ->  | M162: =_xlfn.XLOOKUP(A162,DATA[Item No.],DATA[H],"") ->  | N162: =_xlfn.XLOOKUP(A162,DATA[Item No.],DATA[CM],"") ->  | O162: =_xlfn.XLOOKUP(A162,DATA[Item No.],DATA[CO],"") ->  | P162: =_xlfn.XLOOKUP(A162,DATA[Item No.],DATA[CP],"") ->  | Q162: =_xlfn.XLOOKUP(A162,DATA[Item No.],DATA[Guaranteed Days],"") ->  | R162: =_xlfn.XLOOKUP(A162,DATA[Item No.],DATA[Storage],"") ->  | S162: =_xlfn.XLOOKUP(A162,DATA[Item No.],DATA[Price],"") ->  | T162: =_xlfn.XLOOKUP(A162,DATA[Item No.],DATA[Monthly Promo],"") ->  | U162: =_xlfn.XLOOKUP(A162,DATA[Item No.],DATA[Promo Discount],"") ->  | V162: =_xlfn.XLOOKUP(A162,DATA[Item No.],DATA[SRP],"") ->  | W162: =_xlfn.XLOOKUP(A162,DATA[Item No.],DATA[SKU Territory Ranking - East],"") -> 
A163: BM0029 | C163: =_xlfn.XLOOKUP(A163,DATA[Item No.],DATA[Description],"") -> Fiesta | D163: =_xlfn.XLOOKUP(A163,DATA[Item No.],DATA[Unit UPC],"") -> 777744000022 | E163: =_xlfn.XLOOKUP(A163,DATA[Item No.],DATA[Size],"") -> 360G | F163: =_xlfn.XLOOKUP(A163,DATA[Item No.],DATA[Picked],"") -> CA | G163: =_xlfn.XLOOKUP(A163,DATA[Item No.],DATA[Pack],"") -> 12 | H163: =_xlfn.XLOOKUP(A163,DATA[Item No.],DATA[O],"") -> 0 | I163: =_xlfn.XLOOKUP(A163,DATA[Item No.],DATA[K],"") -> Y | J163: =_xlfn.XLOOKUP(A163,DATA[Item No.],DATA[V],"") -> Y | K163: =_xlfn.XLOOKUP(A163,DATA[Item No.],DATA[GF],"") -> 0 | L163: =_xlfn.XLOOKUP(A163,DATA[Item No.],DATA[N],"") -> Y | M163: =_xlfn.XLOOKUP(A163,DATA[Item No.],DATA[H],"") -> 0 | N163: =_xlfn.XLOOKUP(A163,DATA[Item No.],DATA[CM],"") -> Y | O163: =_xlfn.XLOOKUP(A163,DATA[Item No.],DATA[CO],"") -> Y | P163: =_xlfn.XLOOKUP(A163,DATA[Item No.],DATA[CP],"") -> Y | Q163: =_xlfn.XLOOKUP(A163,DATA[Item No.],DATA[Guaranteed Days],"") -> 28 | R163: =_xlfn.XLOOKUP(A163,DATA[Item No.],DATA[Storage],"") -> Chilled | S163: =_xlfn.XLOOKUP(A163,DATA[Item No.],DATA[Price],"") -> 71.62 | T163: =_xlfn.XLOOKUP(A163,DATA[Item No.],DATA[Monthly Promo],"") -> 0 | U163: =_xlfn.XLOOKUP(A163,DATA[Item No.],DATA[Promo Discount],"") -> 0 | V163: =_xlfn.XLOOKUP(A163,DATA[Item No.],DATA[SRP],"") -> 6.99 | W163: =_xlfn.XLOOKUP(A163,DATA[Item No.],DATA[SKU Territory Ranking - East],"") -> 8
A164: BM0067 | C164: =_xlfn.XLOOKUP(A164,DATA[Item No.],DATA[Description],"") -> Big Brat | D164: =_xlfn.XLOOKUP(A164,DATA[Item No.],DATA[Unit UPC],"") -> 777744000060 | E164: =_xlfn.XLOOKUP(A164,DATA[Item No.],DATA[Size],"") -> 360G | F164: =_xlfn.XLOOKUP(A164,DATA[Item No.],DATA[Picked],"") -> CA | G164: =_xlfn.XLOOKUP(A164,DATA[Item No.],DATA[Pack],"") -> 12 | H164: =_xlfn.XLOOKUP(A164,DATA[Item No.],DATA[O],"") -> 0 | I164: =_xlfn.XLOOKUP(A164,DATA[Item No.],DATA[K],"") -> Y | J164: =_xlfn.XLOOKUP(A164,DATA[Item No.],DATA[V],"") -> Y | K164: =_xlfn.XLOOKUP(A164,DATA[Item No.],DATA[GF],"") -> 0 | L164: =_xlfn.XLOOKUP(A164,DATA[Item No.],DATA[N],"") -> Y | M164: =_xlfn.XLOOKUP(A164,DATA[Item No.],DATA[H],"") -> 0 | N164: =_xlfn.XLOOKUP(A164,DATA[Item No.],DATA[CM],"") -> Y | O164: =_xlfn.XLOOKUP(A164,DATA[Item No.],DATA[CO],"") -> Y | P164: =_xlfn.XLOOKUP(A164,DATA[Item No.],DATA[CP],"") -> Y | Q164: =_xlfn.XLOOKUP(A164,DATA[Item No.],DATA[Guaranteed Days],"") -> 28 | R164: =_xlfn.XLOOKUP(A164,DATA[Item No.],DATA[Storage],"") -> Chilled | S164: =_xlfn.XLOOKUP(A164,DATA[Item No.],DATA[Price],"") -> 71.62 | T164: =_xlfn.XLOOKUP(A164,DATA[Item No.],DATA[Monthly Promo],"") -> 0 | U164: =_xlfn.XLOOKUP(A164,DATA[Item No.],DATA[Promo Discount],"") -> 0 | V164: =_xlfn.XLOOKUP(A164,DATA[Item No.],DATA[SRP],"") -> 6.99 | W164: =_xlfn.XLOOKUP(A164,DATA[Item No.],DATA[SKU Territory Ranking - East],"") -> 11
A165: BM0111 | C165: =_xlfn.XLOOKUP(A165,DATA[Item No.],DATA[Description],"") -> Spinach & Fava Feta Veggie Links | D165: =_xlfn.XLOOKUP(A165,DATA[Item No.],DATA[Unit UPC],"") -> 777744000152 | E165: =_xlfn.XLOOKUP(A165,DATA[Item No.],DATA[Size],"") -> 300G | F165: =_xlfn.XLOOKUP(A165,DATA[Item No.],DATA[Picked],"") -> CA | G165: =_xlfn.XLOOKUP(A165,DATA[Item No.],DATA[Pack],"") -> 8 | H165: =_xlfn.XLOOKUP(A165,DATA[Item No.],DATA[O],"") -> 0 | I165: =_xlfn.XLOOKUP(A165,DATA[Item No.],DATA[K],"") -> 0 | J165: =_xlfn.XLOOKUP(A165,DATA[Item No.],DATA[V],"") -> 0 | K165: =_xlfn.XLOOKUP(A165,DATA[Item No.],DATA[GF],"") -> 0 | L165: =_xlfn.XLOOKUP(A165,DATA[Item No.],DATA[N],"") -> 0 | M165: =_xlfn.XLOOKUP(A165,DATA[Item No.],DATA[H],"") -> 0 | N165: =_xlfn.XLOOKUP(A165,DATA[Item No.],DATA[CM],"") -> 0 | O165: =_xlfn.XLOOKUP(A165,DATA[Item No.],DATA[CO],"") -> 0 | P165: =_xlfn.XLOOKUP(A165,DATA[Item No.],DATA[CP],"") -> 0 | Q165: =_xlfn.XLOOKUP(A165,DATA[Item No.],DATA[Guaranteed Days],"") -> 37 | R165: =_xlfn.XLOOKUP(A165,DATA[Item No.],DATA[Storage],"") -> Chilled | S165: =_xlfn.XLOOKUP(A165,DATA[Item No.],DATA[Price],"") -> 47.75 | T165: =_xlfn.XLOOKUP(A165,DATA[Item No.],DATA[Monthly Promo],"") -> 0 | U165: =_xlfn.XLOOKUP(A165,DATA[Item No.],DATA[Promo Discount],"") -> 0 | V165: =_xlfn.XLOOKUP(A165,DATA[Item No.],DATA[SRP],"") -> 6.99 | W165: =_xlfn.XLOOKUP(A165,DATA[Item No.],DATA[SKU Territory Ranking - East],"") -> 0
A166: Soy Free Tofu | C166: =_xlfn.XLOOKUP(A166,DATA[Item No.],DATA[Description],"") ->  | D166: =_xlfn.XLOOKUP(A166,DATA[Item No.],DATA[Unit UPC],"") ->  | E166: =_xlfn.XLOOKUP(A166,DATA[Item No.],DATA[Size],"") ->  | F166: =_xlfn.XLOOKUP(A166,DATA[Item No.],DATA[Picked],"") ->  | G166: =_xlfn.XLOOKUP(A166,DATA[Item No.],DATA[Pack],"") ->  | H166: =_xlfn.XLOOKUP(A166,DATA[Item No.],DATA[O],"") ->  | I166: =_xlfn.XLOOKUP(A166,DATA[Item No.],DATA[K],"") ->  | J166: =_xlfn.XLOOKUP(A166,DATA[Item No.],DATA[V],"") ->  | K166: =_xlfn.XLOOKUP(A166,DATA[Item No.],DATA[GF],"") ->  | L166: =_xlfn.XLOOKUP(A166,DATA[Item No.],DATA[N],"") ->  | M166: =_xlfn.XLOOKUP(A166,DATA[Item No.],DATA[H],"") ->  | N166: =_xlfn.XLOOKUP(A166,DATA[Item No.],DATA[CM],"") ->  | O166: =_xlfn.XLOOKUP(A166,DATA[Item No.],DATA[CO],"") ->  | P166: =_xlfn.XLOOKUP(A166,DATA[Item No.],DATA[CP],"") ->  | Q166: =_xlfn.XLOOKUP(A166,DATA[Item No.],DATA[Guaranteed Days],"") ->  | R166: =_xlfn.XLOOKUP(A166,DATA[Item No.],DATA[Storage],"") ->  | S166: =_xlfn.XLOOKUP(A166,DATA[Item No.],DATA[Price],"") ->  | T166: =_xlfn.XLOOKUP(A166,DATA[Item No.],DATA[Monthly Promo],"") ->  | U166: =_xlfn.XLOOKUP(A166,DATA[Item No.],DATA[Promo Discount],"") ->  | V166: =_xlfn.XLOOKUP(A166,DATA[Item No.],DATA[SRP],"") ->  | W166: =_xlfn.XLOOKUP(A166,DATA[Item No.],DATA[SKU Territory Ranking - East],"") -> 
A167: BM0006 | C167: =_xlfn.XLOOKUP(A167,DATA[Item No.],DATA[Description],"") -> Baked Sriracha Soy Free Tofu | D167: =_xlfn.XLOOKUP(A167,DATA[Item No.],DATA[Unit UPC],"") -> 777744000169 | E167: =_xlfn.XLOOKUP(A167,DATA[Item No.],DATA[Size],"") -> 280G | F167: =_xlfn.XLOOKUP(A167,DATA[Item No.],DATA[Picked],"") -> CA | G167: =_xlfn.XLOOKUP(A167,DATA[Item No.],DATA[Pack],"") -> 8 | H167: =_xlfn.XLOOKUP(A167,DATA[Item No.],DATA[O],"") -> 0 | I167: =_xlfn.XLOOKUP(A167,DATA[Item No.],DATA[K],"") -> 0 | J167: =_xlfn.XLOOKUP(A167,DATA[Item No.],DATA[V],"") -> Y | K167: =_xlfn.XLOOKUP(A167,DATA[Item No.],DATA[GF],"") -> 0 | L167: =_xlfn.XLOOKUP(A167,DATA[Item No.],DATA[N],"") -> 0 | M167: =_xlfn.XLOOKUP(A167,DATA[Item No.],DATA[H],"") -> 0 | N167: =_xlfn.XLOOKUP(A167,DATA[Item No.],DATA[CM],"") -> 0 | O167: =_xlfn.XLOOKUP(A167,DATA[Item No.],DATA[CO],"") -> 0 | P167: =_xlfn.XLOOKUP(A167,DATA[Item No.],DATA[CP],"") -> 0 | Q167: =_xlfn.XLOOKUP(A167,DATA[Item No.],DATA[Guaranteed Days],"") -> 27 | R167: =_xlfn.XLOOKUP(A167,DATA[Item No.],DATA[Storage],"") -> Chilled | S167: =_xlfn.XLOOKUP(A167,DATA[Item No.],DATA[Price],"") -> 34.86 | T167: =_xlfn.XLOOKUP(A167,DATA[Item No.],DATA[Monthly Promo],"") -> 0 | U167: =_xlfn.XLOOKUP(A167,DATA[Item No.],DATA[Promo Discount],"") -> 0 | V167: =_xlfn.XLOOKUP(A167,DATA[Item No.],DATA[SRP],"") -> 6.99 | W167: =_xlfn.XLOOKUP(A167,DATA[Item No.],DATA[SKU Territory Ranking - East],"") -> 0
A168: BM0078 | C168: =_xlfn.XLOOKUP(A168,DATA[Item No.],DATA[Description],"") -> Korean Style BBQ Soy Free Tofu | D168: =_xlfn.XLOOKUP(A168,DATA[Item No.],DATA[Unit UPC],"") -> 777744000305 | E168: =_xlfn.XLOOKUP(A168,DATA[Item No.],DATA[Size],"") -> 280G | F168: =_xlfn.XLOOKUP(A168,DATA[Item No.],DATA[Picked],"") -> CA | G168: =_xlfn.XLOOKUP(A168,DATA[Item No.],DATA[Pack],"") -> 8 | H168: =_xlfn.XLOOKUP(A168,DATA[Item No.],DATA[O],"") -> 0 | I168: =_xlfn.XLOOKUP(A168,DATA[Item No.],DATA[K],"") -> 0 | J168: =_xlfn.XLOOKUP(A168,DATA[Item No.],DATA[V],"") -> Y | K168: =_xlfn.XLOOKUP(A168,DATA[Item No.],DATA[GF],"") -> 0 | L168: =_xlfn.XLOOKUP(A168,DATA[Item No.],DATA[N],"") -> Y | M168: =_xlfn.XLOOKUP(A168,DATA[Item No.],DATA[H],"") -> 0 | N168: =_xlfn.XLOOKUP(A168,DATA[Item No.],DATA[CM],"") -> 0 | O168: =_xlfn.XLOOKUP(A168,DATA[Item No.],DATA[CO],"") -> Y | P168: =_xlfn.XLOOKUP(A168,DATA[Item No.],DATA[CP],"") -> 0 | Q168: =_xlfn.XLOOKUP(A168,DATA[Item No.],DATA[Guaranteed Days],"") -> 27 | R168: =_xlfn.XLOOKUP(A168,DATA[Item No.],DATA[Storage],"") -> Chilled | S168: =_xlfn.XLOOKUP(A168,DATA[Item No.],DATA[Price],"") -> 37.41 | T168: =_xlfn.XLOOKUP(A168,DATA[Item No.],DATA[Monthly Promo],"") -> 0 | U168: =_xlfn.XLOOKUP(A168,DATA[Item No.],DATA[Promo Discount],"") -> 0 | V168: =_xlfn.XLOOKUP(A168,DATA[Item No.],DATA[SRP],"") -> 6.99 | W168: =_xlfn.XLOOKUP(A168,DATA[Item No.],DATA[SKU Territory Ranking - East],"") -> 0
A169: BIO K+ | C169: =_xlfn.XLOOKUP(A169,DATA[Item No.],DATA[Description],"") ->  | D169: =_xlfn.XLOOKUP(A169,DATA[Item No.],DATA[Unit UPC],"") ->  | E169: =_xlfn.XLOOKUP(A169,DATA[Item No.],DATA[Size],"") ->  | F169: =_xlfn.XLOOKUP(A169,DATA[Item No.],DATA[Picked],"") ->  | G169: =_xlfn.XLOOKUP(A169,DATA[Item No.],DATA[Pack],"") ->  | H169: =_xlfn.XLOOKUP(A169,DATA[Item No.],DATA[O],"") ->  | I169: =_xlfn.XLOOKUP(A169,DATA[Item No.],DATA[K],"") ->  | J169: =_xlfn.XLOOKUP(A169,DATA[Item No.],DATA[V],"") ->  | K169: =_xlfn.XLOOKUP(A169,DATA[Item No.],DATA[GF],"") ->  | L169: =_xlfn.XLOOKUP(A169,DATA[Item No.],DATA[N],"") ->  | M169: =_xlfn.XLOOKUP(A169,DATA[Item No.],DATA[H],"") ->  | N169: =_xlfn.XLOOKUP(A169,DATA[Item No.],DATA[CM],"") ->  | O169: =_xlfn.XLOOKUP(A169,DATA[Item No.],DATA[CO],"") ->  | P169: =_xlfn.XLOOKUP(A169,DATA[Item No.],DATA[CP],"") ->  | Q169: =_xlfn.XLOOKUP(A169,DATA[Item No.],DATA[Guaranteed Days],"") ->  | R169: =_xlfn.XLOOKUP(A169,DATA[Item No.],DATA[Storage],"") ->  | S169: =_xlfn.XLOOKUP(A169,DATA[Item No.],DATA[Price],"") ->  | T169: =_xlfn.XLOOKUP(A169,DATA[Item No.],DATA[Monthly Promo],"") ->  | U169: =_xlfn.XLOOKUP(A169,DATA[Item No.],DATA[Promo Discount],"") ->  | V169: =_xlfn.XLOOKUP(A169,DATA[Item No.],DATA[SRP],"") ->  | W169: =_xlfn.XLOOKUP(A169,DATA[Item No.],DATA[SKU Territory Ranking - East],"") -> 
A170: Bio Kidz | C170: =_xlfn.XLOOKUP(A170,DATA[Item No.],DATA[Description],"") ->  | D170: =_xlfn.XLOOKUP(A170,DATA[Item No.],DATA[Unit UPC],"") ->  | E170: =_xlfn.XLOOKUP(A170,DATA[Item No.],DATA[Size],"") ->  | F170: =_xlfn.XLOOKUP(A170,DATA[Item No.],DATA[Picked],"") ->  | G170: =_xlfn.XLOOKUP(A170,DATA[Item No.],DATA[Pack],"") ->  | H170: =_xlfn.XLOOKUP(A170,DATA[Item No.],DATA[O],"") ->  | I170: =_xlfn.XLOOKUP(A170,DATA[Item No.],DATA[K],"") ->  | J170: =_xlfn.XLOOKUP(A170,DATA[Item No.],DATA[V],"") ->  | K170: =_xlfn.XLOOKUP(A170,DATA[Item No.],DATA[GF],"") ->  | L170: =_xlfn.XLOOKUP(A170,DATA[Item No.],DATA[N],"") ->  | M170: =_xlfn.XLOOKUP(A170,DATA[Item No.],DATA[H],"") ->  | N170: =_xlfn.XLOOKUP(A170,DATA[Item No.],DATA[CM],"") ->  | O170: =_xlfn.XLOOKUP(A170,DATA[Item No.],DATA[CO],"") ->  | P170: =_xlfn.XLOOKUP(A170,DATA[Item No.],DATA[CP],"") ->  | Q170: =_xlfn.XLOOKUP(A170,DATA[Item No.],DATA[Guaranteed Days],"") ->  | R170: =_xlfn.XLOOKUP(A170,DATA[Item No.],DATA[Storage],"") ->  | S170: =_xlfn.XLOOKUP(A170,DATA[Item No.],DATA[Price],"") ->  | T170: =_xlfn.XLOOKUP(A170,DATA[Item No.],DATA[Monthly Promo],"") ->  | U170: =_xlfn.XLOOKUP(A170,DATA[Item No.],DATA[Promo Discount],"") ->  | V170: =_xlfn.XLOOKUP(A170,DATA[Item No.],DATA[SRP],"") ->  | W170: =_xlfn.XLOOKUP(A170,DATA[Item No.],DATA[SKU Territory Ranking - East],"") -> 
A171: BK0091 | C171: =_xlfn.XLOOKUP(A171,DATA[Item No.],DATA[Description],"") -> Strawberry Dairy Probiotic (6x4SL) | D171: =_xlfn.XLOOKUP(A171,DATA[Item No.],DATA[Unit UPC],"") -> 626608000091 | E171: =_xlfn.XLOOKUP(A171,DATA[Item No.],DATA[Size],"") -> 6X98G | F171: =_xlfn.XLOOKUP(A171,DATA[Item No.],DATA[Picked],"") -> EA | G171: =_xlfn.XLOOKUP(A171,DATA[Item No.],DATA[Pack],"") -> 6 | H171: =_xlfn.XLOOKUP(A171,DATA[Item No.],DATA[O],"") -> 0 | I171: =_xlfn.XLOOKUP(A171,DATA[Item No.],DATA[K],"") -> 0 | J171: =_xlfn.XLOOKUP(A171,DATA[Item No.],DATA[V],"") -> 0 | K171: =_xlfn.XLOOKUP(A171,DATA[Item No.],DATA[GF],"") -> Y | L171: =_xlfn.XLOOKUP(A171,DATA[Item No.],DATA[N],"") -> 0 | M171: =_xlfn.XLOOKUP(A171,DATA[Item No.],DATA[H],"") -> 0 | N171: =_xlfn.XLOOKUP(A171,DATA[Item No.],DATA[CM],"") -> Y | O171: =_xlfn.XLOOKUP(A171,DATA[Item No.],DATA[CO],"") -> Y | P171: =_xlfn.XLOOKUP(A171,DATA[Item No.],DATA[CP],"") -> 0 | Q171: =_xlfn.XLOOKUP(A171,DATA[Item No.],DATA[Guaranteed Days],"") -> 30 | R171: =_xlfn.XLOOKUP(A171,DATA[Item No.],DATA[Storage],"") -> Chilled | S171: =_xlfn.XLOOKUP(A171,DATA[Item No.],DATA[Price],"") -> 12.17 | T171: =_xlfn.XLOOKUP(A171,DATA[Item No.],DATA[Monthly Promo],"") -> 0 | U171: =_xlfn.XLOOKUP(A171,DATA[Item No.],DATA[Promo Discount],"") -> 0 | V171: =_xlfn.XLOOKUP(A171,DATA[Item No.],DATA[SRP],"") -> 15.99 | W171: =_xlfn.XLOOKUP(A171,DATA[Item No.],DATA[SKU Territory Ranking - East],"") -> 4
A172: Dispensary Capsules | C172: =_xlfn.XLOOKUP(A172,DATA[Item No.],DATA[Description],"") ->  | D172: =_xlfn.XLOOKUP(A172,DATA[Item No.],DATA[Unit UPC],"") ->  | E172: =_xlfn.XLOOKUP(A172,DATA[Item No.],DATA[Size],"") ->  | F172: =_xlfn.XLOOKUP(A172,DATA[Item No.],DATA[Picked],"") ->  | G172: =_xlfn.XLOOKUP(A172,DATA[Item No.],DATA[Pack],"") ->  | H172: =_xlfn.XLOOKUP(A172,DATA[Item No.],DATA[O],"") ->  | I172: =_xlfn.XLOOKUP(A172,DATA[Item No.],DATA[K],"") ->  | J172: =_xlfn.XLOOKUP(A172,DATA[Item No.],DATA[V],"") ->  | K172: =_xlfn.XLOOKUP(A172,DATA[Item No.],DATA[GF],"") ->  | L172: =_xlfn.XLOOKUP(A172,DATA[Item No.],DATA[N],"") ->  | M172: =_xlfn.XLOOKUP(A172,DATA[Item No.],DATA[H],"") ->  | N172: =_xlfn.XLOOKUP(A172,DATA[Item No.],DATA[CM],"") ->  | O172: =_xlfn.XLOOKUP(A172,DATA[Item No.],DATA[CO],"") ->  | P172: =_xlfn.XLOOKUP(A172,DATA[Item No.],DATA[CP],"") ->  | Q172: =_xlfn.XLOOKUP(A172,DATA[Item No.],DATA[Guaranteed Days],"") ->  | R172: =_xlfn.XLOOKUP(A172,DATA[Item No.],DATA[Storage],"") ->  | S172: =_xlfn.XLOOKUP(A172,DATA[Item No.],DATA[Price],"") ->  | T172: =_xlfn.XLOOKUP(A172,DATA[Item No.],DATA[Monthly Promo],"") ->  | U172: =_xlfn.XLOOKUP(A172,DATA[Item No.],DATA[Promo Discount],"") ->  | V172: =_xlfn.XLOOKUP(A172,DATA[Item No.],DATA[SRP],"") ->  | W172: =_xlfn.XLOOKUP(A172,DATA[Item No.],DATA[SKU Territory Ranking - East],"") -> 
A173: BK4012 | C173: =_xlfn.XLOOKUP(A173,DATA[Item No.],DATA[Description],"") -> Daily Care 12.5B - 30 Cap | D173: =_xlfn.XLOOKUP(A173,DATA[Item No.],DATA[Unit UPC],"") -> 626608014012 | E173: =_xlfn.XLOOKUP(A173,DATA[Item No.],DATA[Size],"") -> 30CAPS | F173: =_xlfn.XLOOKUP(A173,DATA[Item No.],DATA[Picked],"") -> EA | G173: =_xlfn.XLOOKUP(A173,DATA[Item No.],DATA[Pack],"") -> 30 | H173: =_xlfn.XLOOKUP(A173,DATA[Item No.],DATA[O],"") -> 0 | I173: =_xlfn.XLOOKUP(A173,DATA[Item No.],DATA[K],"") -> 0 | J173: =_xlfn.XLOOKUP(A173,DATA[Item No.],DATA[V],"") -> 0 | K173: =_xlfn.XLOOKUP(A173,DATA[Item No.],DATA[GF],"") -> 0 | L173: =_xlfn.XLOOKUP(A173,DATA[Item No.],DATA[N],"") -> 0 | M173: =_xlfn.XLOOKUP(A173,DATA[Item No.],DATA[H],"") -> 0 | N173: =_xlfn.XLOOKUP(A173,DATA[Item No.],DATA[CM],"") -> Y | O173: =_xlfn.XLOOKUP(A173,DATA[Item No.],DATA[CO],"") -> Y | P173: =_xlfn.XLOOKUP(A173,DATA[Item No.],DATA[CP],"") -> 0 | Q173: =_xlfn.XLOOKUP(A173,DATA[Item No.],DATA[Guaranteed Days],"") -> 109 | R173: =_xlfn.XLOOKUP(A173,DATA[Item No.],DATA[Storage],"") -> Chilled | S173: =_xlfn.XLOOKUP(A173,DATA[Item No.],DATA[Price],"") -> 18.21 | T173: =_xlfn.XLOOKUP(A173,DATA[Item No.],DATA[Monthly Promo],"") -> 0 | U173: =_xlfn.XLOOKUP(A173,DATA[Item No.],DATA[Promo Discount],"") -> 0 | V173: =_xlfn.XLOOKUP(A173,DATA[Item No.],DATA[SRP],"") -> 22.99 | W173: =_xlfn.XLOOKUP(A173,DATA[Item No.],DATA[SKU Territory Ranking - East],"") -> 0
A174: BK4013 | C174: =_xlfn.XLOOKUP(A174,DATA[Item No.],DATA[Description],"") -> Extra Care 30B - 15 Cap | D174: =_xlfn.XLOOKUP(A174,DATA[Item No.],DATA[Unit UPC],"") -> 626608004013 | E174: =_xlfn.XLOOKUP(A174,DATA[Item No.],DATA[Size],"") -> 15CAPS | F174: =_xlfn.XLOOKUP(A174,DATA[Item No.],DATA[Picked],"") -> EA | G174: =_xlfn.XLOOKUP(A174,DATA[Item No.],DATA[Pack],"") -> 15 | H174: =_xlfn.XLOOKUP(A174,DATA[Item No.],DATA[O],"") -> 0 | I174: =_xlfn.XLOOKUP(A174,DATA[Item No.],DATA[K],"") -> 0 | J174: =_xlfn.XLOOKUP(A174,DATA[Item No.],DATA[V],"") -> 0 | K174: =_xlfn.XLOOKUP(A174,DATA[Item No.],DATA[GF],"") -> 0 | L174: =_xlfn.XLOOKUP(A174,DATA[Item No.],DATA[N],"") -> 0 | M174: =_xlfn.XLOOKUP(A174,DATA[Item No.],DATA[H],"") -> 0 | N174: =_xlfn.XLOOKUP(A174,DATA[Item No.],DATA[CM],"") -> Y | O174: =_xlfn.XLOOKUP(A174,DATA[Item No.],DATA[CO],"") -> Y | P174: =_xlfn.XLOOKUP(A174,DATA[Item No.],DATA[CP],"") -> 0 | Q174: =_xlfn.XLOOKUP(A174,DATA[Item No.],DATA[Guaranteed Days],"") -> 109 | R174: =_xlfn.XLOOKUP(A174,DATA[Item No.],DATA[Storage],"") -> Chilled | S174: =_xlfn.XLOOKUP(A174,DATA[Item No.],DATA[Price],"") -> 24.04 | T174: =_xlfn.XLOOKUP(A174,DATA[Item No.],DATA[Monthly Promo],"") -> 0 | U174: =_xlfn.XLOOKUP(A174,DATA[Item No.],DATA[Promo Discount],"") -> 0 | V174: =_xlfn.XLOOKUP(A174,DATA[Item No.],DATA[SRP],"") -> 27.99 | W174: =_xlfn.XLOOKUP(A174,DATA[Item No.],DATA[SKU Territory Ranking - East],"") -> 0
A175: BK6016 | C175: =_xlfn.XLOOKUP(A175,DATA[Item No.],DATA[Description],"") -> Daily Care 25B - 15 Cap | D175: =_xlfn.XLOOKUP(A175,DATA[Item No.],DATA[Unit UPC],"") -> 626608016016 | E175: =_xlfn.XLOOKUP(A175,DATA[Item No.],DATA[Size],"") -> 15CAPS | F175: =_xlfn.XLOOKUP(A175,DATA[Item No.],DATA[Picked],"") -> EA | G175: =_xlfn.XLOOKUP(A175,DATA[Item No.],DATA[Pack],"") -> 15 | H175: =_xlfn.XLOOKUP(A175,DATA[Item No.],DATA[O],"") -> 0 | I175: =_xlfn.XLOOKUP(A175,DATA[Item No.],DATA[K],"") -> 0 | J175: =_xlfn.XLOOKUP(A175,DATA[Item No.],DATA[V],"") -> 0 | K175: =_xlfn.XLOOKUP(A175,DATA[Item No.],DATA[GF],"") -> 0 | L175: =_xlfn.XLOOKUP(A175,DATA[Item No.],DATA[N],"") -> 0 | M175: =_xlfn.XLOOKUP(A175,DATA[Item No.],DATA[H],"") -> 0 | N175: =_xlfn.XLOOKUP(A175,DATA[Item No.],DATA[CM],"") -> Y | O175: =_xlfn.XLOOKUP(A175,DATA[Item No.],DATA[CO],"") -> Y | P175: =_xlfn.XLOOKUP(A175,DATA[Item No.],DATA[CP],"") -> 0 | Q175: =_xlfn.XLOOKUP(A175,DATA[Item No.],DATA[Guaranteed Days],"") -> 109 | R175: =_xlfn.XLOOKUP(A175,DATA[Item No.],DATA[Storage],"") -> Chilled | S175: =_xlfn.XLOOKUP(A175,DATA[Item No.],DATA[Price],"") -> 18.21 | T175: =_xlfn.XLOOKUP(A175,DATA[Item No.],DATA[Monthly Promo],"") -> 0 | U175: =_xlfn.XLOOKUP(A175,DATA[Item No.],DATA[Promo Discount],"") -> 0 | V175: =_xlfn.XLOOKUP(A175,DATA[Item No.],DATA[SRP],"") -> 22.99 | W175: =_xlfn.XLOOKUP(A175,DATA[Item No.],DATA[SKU Territory Ranking - East],"") -> 0
A176: BK6023 | C176: =_xlfn.XLOOKUP(A176,DATA[Item No.],DATA[Description],"") -> Daily Care+ 25B - 30 Caps - Bottle | D176: =_xlfn.XLOOKUP(A176,DATA[Item No.],DATA[Unit UPC],"") -> 626608016023 | E176: =_xlfn.XLOOKUP(A176,DATA[Item No.],DATA[Size],"") -> 30CAPS | F176: =_xlfn.XLOOKUP(A176,DATA[Item No.],DATA[Picked],"") -> EA | G176: =_xlfn.XLOOKUP(A176,DATA[Item No.],DATA[Pack],"") -> 30 | H176: =_xlfn.XLOOKUP(A176,DATA[Item No.],DATA[O],"") -> 0 | I176: =_xlfn.XLOOKUP(A176,DATA[Item No.],DATA[K],"") -> 0 | J176: =_xlfn.XLOOKUP(A176,DATA[Item No.],DATA[V],"") -> 0 | K176: =_xlfn.XLOOKUP(A176,DATA[Item No.],DATA[GF],"") -> 0 | L176: =_xlfn.XLOOKUP(A176,DATA[Item No.],DATA[N],"") -> 0 | M176: =_xlfn.XLOOKUP(A176,DATA[Item No.],DATA[H],"") -> 0 | N176: =_xlfn.XLOOKUP(A176,DATA[Item No.],DATA[CM],"") -> Y | O176: =_xlfn.XLOOKUP(A176,DATA[Item No.],DATA[CO],"") -> Y | P176: =_xlfn.XLOOKUP(A176,DATA[Item No.],DATA[CP],"") -> 0 | Q176: =_xlfn.XLOOKUP(A176,DATA[Item No.],DATA[Guaranteed Days],"") -> 109 | R176: =_xlfn.XLOOKUP(A176,DATA[Item No.],DATA[Storage],"") -> Chilled | S176: =_xlfn.XLOOKUP(A176,DATA[Item No.],DATA[Price],"") -> 33.41 | T176: =_xlfn.XLOOKUP(A176,DATA[Item No.],DATA[Monthly Promo],"") -> 0 | U176: =_xlfn.XLOOKUP(A176,DATA[Item No.],DATA[Promo Discount],"") -> 0 | V176: =_xlfn.XLOOKUP(A176,DATA[Item No.],DATA[SRP],"") -> 39.99 | W176: =_xlfn.XLOOKUP(A176,DATA[Item No.],DATA[SKU Territory Ranking - East],"") -> 0
A177: BK7013 | C177: =_xlfn.XLOOKUP(A177,DATA[Item No.],DATA[Description],"") -> IBS Pro 50B- 30 caps | D177: =_xlfn.XLOOKUP(A177,DATA[Item No.],DATA[Unit UPC],"") -> 626608017013 | E177: =_xlfn.XLOOKUP(A177,DATA[Item No.],DATA[Size],"") -> 30CAPS | F177: =_xlfn.XLOOKUP(A177,DATA[Item No.],DATA[Picked],"") -> EA | G177: =_xlfn.XLOOKUP(A177,DATA[Item No.],DATA[Pack],"") -> 30 | H177: =_xlfn.XLOOKUP(A177,DATA[Item No.],DATA[O],"") -> 0 | I177: =_xlfn.XLOOKUP(A177,DATA[Item No.],DATA[K],"") -> 0 | J177: =_xlfn.XLOOKUP(A177,DATA[Item No.],DATA[V],"") -> 0 | K177: =_xlfn.XLOOKUP(A177,DATA[Item No.],DATA[GF],"") -> 0 | L177: =_xlfn.XLOOKUP(A177,DATA[Item No.],DATA[N],"") -> 0 | M177: =_xlfn.XLOOKUP(A177,DATA[Item No.],DATA[H],"") -> 0 | N177: =_xlfn.XLOOKUP(A177,DATA[Item No.],DATA[CM],"") -> Y | O177: =_xlfn.XLOOKUP(A177,DATA[Item No.],DATA[CO],"") -> Y | P177: =_xlfn.XLOOKUP(A177,DATA[Item No.],DATA[CP],"") -> 0 | Q177: =_xlfn.XLOOKUP(A177,DATA[Item No.],DATA[Guaranteed Days],"") -> 146 | R177: =_xlfn.XLOOKUP(A177,DATA[Item No.],DATA[Storage],"") -> Chilled | S177: =_xlfn.XLOOKUP(A177,DATA[Item No.],DATA[Price],"") -> 34.97 | T177: =_xlfn.XLOOKUP(A177,DATA[Item No.],DATA[Monthly Promo],"") -> 0 | U177: =_xlfn.XLOOKUP(A177,DATA[Item No.],DATA[Promo Discount],"") -> 0 | V177: =_xlfn.XLOOKUP(A177,DATA[Item No.],DATA[SRP],"") -> 42.99 | W177: =_xlfn.XLOOKUP(A177,DATA[Item No.],DATA[SKU Territory Ranking - East],"") -> 0
A178: BK7020 | C178: =_xlfn.XLOOKUP(A178,DATA[Item No.],DATA[Description],"") -> Antibio PRO 50B - 15 caps | D178: =_xlfn.XLOOKUP(A178,DATA[Item No.],DATA[Unit UPC],"") -> 626608017020 | E178: =_xlfn.XLOOKUP(A178,DATA[Item No.],DATA[Size],"") -> 15CAPS | F178: =_xlfn.XLOOKUP(A178,DATA[Item No.],DATA[Picked],"") -> EA | G178: =_xlfn.XLOOKUP(A178,DATA[Item No.],DATA[Pack],"") -> 15 | H178: =_xlfn.XLOOKUP(A178,DATA[Item No.],DATA[O],"") -> 0 | I178: =_xlfn.XLOOKUP(A178,DATA[Item No.],DATA[K],"") -> 0 | J178: =_xlfn.XLOOKUP(A178,DATA[Item No.],DATA[V],"") -> 0 | K178: =_xlfn.XLOOKUP(A178,DATA[Item No.],DATA[GF],"") -> 0 | L178: =_xlfn.XLOOKUP(A178,DATA[Item No.],DATA[N],"") -> 0 | M178: =_xlfn.XLOOKUP(A178,DATA[Item No.],DATA[H],"") -> 0 | N178: =_xlfn.XLOOKUP(A178,DATA[Item No.],DATA[CM],"") -> Y | O178: =_xlfn.XLOOKUP(A178,DATA[Item No.],DATA[CO],"") -> Y | P178: =_xlfn.XLOOKUP(A178,DATA[Item No.],DATA[CP],"") -> 0 | Q178: =_xlfn.XLOOKUP(A178,DATA[Item No.],DATA[Guaranteed Days],"") -> 146 | R178: =_xlfn.XLOOKUP(A178,DATA[Item No.],DATA[Storage],"") -> Chilled | S178: =_xlfn.XLOOKUP(A178,DATA[Item No.],DATA[Price],"") -> 22.6 | T178: =_xlfn.XLOOKUP(A178,DATA[Item No.],DATA[Monthly Promo],"") -> 0 | U178: =_xlfn.XLOOKUP(A178,DATA[Item No.],DATA[Promo Discount],"") -> 0 | V178: =_xlfn.XLOOKUP(A178,DATA[Item No.],DATA[SRP],"") -> 26.99 | W178: =_xlfn.XLOOKUP(A178,DATA[Item No.],DATA[SKU Territory Ranking - East],"") -> 0
A179: BK4029 | C179: =_xlfn.XLOOKUP(A179,DATA[Item No.],DATA[Description],"") -> Bio-K+ Daily Care 12.5B - 60 Caps - Bottle | D179: =_xlfn.XLOOKUP(A179,DATA[Item No.],DATA[Unit UPC],"") -> 626608014029 | E179: =_xlfn.XLOOKUP(A179,DATA[Item No.],DATA[Size],"") -> 60CAPS | F179: =_xlfn.XLOOKUP(A179,DATA[Item No.],DATA[Picked],"") -> EA | G179: =_xlfn.XLOOKUP(A179,DATA[Item No.],DATA[Pack],"") -> 60 | H179: =_xlfn.XLOOKUP(A179,DATA[Item No.],DATA[O],"") -> 0 | I179: =_xlfn.XLOOKUP(A179,DATA[Item No.],DATA[K],"") -> 0 | J179: =_xlfn.XLOOKUP(A179,DATA[Item No.],DATA[V],"") -> 0 | K179: =_xlfn.XLOOKUP(A179,DATA[Item No.],DATA[GF],"") -> 0 | L179: =_xlfn.XLOOKUP(A179,DATA[Item No.],DATA[N],"") -> 0 | M179: =_xlfn.XLOOKUP(A179,DATA[Item No.],DATA[H],"") -> 0 | N179: =_xlfn.XLOOKUP(A179,DATA[Item No.],DATA[CM],"") -> Y | O179: =_xlfn.XLOOKUP(A179,DATA[Item No.],DATA[CO],"") -> Y | P179: =_xlfn.XLOOKUP(A179,DATA[Item No.],DATA[CP],"") -> 0 | Q179: =_xlfn.XLOOKUP(A179,DATA[Item No.],DATA[Guaranteed Days],"") -> 109 | R179: =_xlfn.XLOOKUP(A179,DATA[Item No.],DATA[Storage],"") -> Chilled | S179: =_xlfn.XLOOKUP(A179,DATA[Item No.],DATA[Price],"") -> 33.41 | T179: =_xlfn.XLOOKUP(A179,DATA[Item No.],DATA[Monthly Promo],"") -> 0 | U179: =_xlfn.XLOOKUP(A179,DATA[Item No.],DATA[Promo Discount],"") -> 0 | V179: =_xlfn.XLOOKUP(A179,DATA[Item No.],DATA[SRP],"") -> 39.99 | W179: =_xlfn.XLOOKUP(A179,DATA[Item No.],DATA[SKU Territory Ranking - East],"") -> 0
A180: Extra Probiotics, 80 Billion Bacteria | C180: =_xlfn.XLOOKUP(A180,DATA[Item No.],DATA[Description],"") ->  | D180: =_xlfn.XLOOKUP(A180,DATA[Item No.],DATA[Unit UPC],"") ->  | E180: =_xlfn.XLOOKUP(A180,DATA[Item No.],DATA[Size],"") ->  | F180: =_xlfn.XLOOKUP(A180,DATA[Item No.],DATA[Picked],"") ->  | G180: =_xlfn.XLOOKUP(A180,DATA[Item No.],DATA[Pack],"") ->  | H180: =_xlfn.XLOOKUP(A180,DATA[Item No.],DATA[O],"") ->  | I180: =_xlfn.XLOOKUP(A180,DATA[Item No.],DATA[K],"") ->  | J180: =_xlfn.XLOOKUP(A180,DATA[Item No.],DATA[V],"") ->  | K180: =_xlfn.XLOOKUP(A180,DATA[Item No.],DATA[GF],"") ->  | L180: =_xlfn.XLOOKUP(A180,DATA[Item No.],DATA[N],"") ->  | M180: =_xlfn.XLOOKUP(A180,DATA[Item No.],DATA[H],"") ->  | N180: =_xlfn.XLOOKUP(A180,DATA[Item No.],DATA[CM],"") ->  | O180: =_xlfn.XLOOKUP(A180,DATA[Item No.],DATA[CO],"") ->  | P180: =_xlfn.XLOOKUP(A180,DATA[Item No.],DATA[CP],"") ->  | Q180: =_xlfn.XLOOKUP(A180,DATA[Item No.],DATA[Guaranteed Days],"") ->  | R180: =_xlfn.XLOOKUP(A180,DATA[Item No.],DATA[Storage],"") ->  | S180: =_xlfn.XLOOKUP(A180,DATA[Item No.],DATA[Price],"") ->  | T180: =_xlfn.XLOOKUP(A180,DATA[Item No.],DATA[Monthly Promo],"") ->  | U180: =_xlfn.XLOOKUP(A180,DATA[Item No.],DATA[Promo Discount],"") ->  | V180: =_xlfn.XLOOKUP(A180,DATA[Item No.],DATA[SRP],"") ->  | W180: =_xlfn.XLOOKUP(A180,DATA[Item No.],DATA[SKU Territory Ranking - East],"") -> 
A181: BK0879 | C181: =_xlfn.XLOOKUP(A181,DATA[Item No.],DATA[Description],"") -> Mango/Soy Dairy-Free Probiotic | D181: =_xlfn.XLOOKUP(A181,DATA[Item No.],DATA[Unit UPC],"") -> 626608000879 | E181: =_xlfn.XLOOKUP(A181,DATA[Item No.],DATA[Size],"") -> 12X98G | F181: =_xlfn.XLOOKUP(A181,DATA[Item No.],DATA[Picked],"") -> EA | G181: =_xlfn.XLOOKUP(A181,DATA[Item No.],DATA[Pack],"") -> 12 | H181: =_xlfn.XLOOKUP(A181,DATA[Item No.],DATA[O],"") -> 0 | I181: =_xlfn.XLOOKUP(A181,DATA[Item No.],DATA[K],"") -> 0 | J181: =_xlfn.XLOOKUP(A181,DATA[Item No.],DATA[V],"") -> 0 | K181: =_xlfn.XLOOKUP(A181,DATA[Item No.],DATA[GF],"") -> Y | L181: =_xlfn.XLOOKUP(A181,DATA[Item No.],DATA[N],"") -> 0 | M181: =_xlfn.XLOOKUP(A181,DATA[Item No.],DATA[H],"") -> 0 | N181: =_xlfn.XLOOKUP(A181,DATA[Item No.],DATA[CM],"") -> Y | O181: =_xlfn.XLOOKUP(A181,DATA[Item No.],DATA[CO],"") -> Y | P181: =_xlfn.XLOOKUP(A181,DATA[Item No.],DATA[CP],"") -> 0 | Q181: =_xlfn.XLOOKUP(A181,DATA[Item No.],DATA[Guaranteed Days],"") -> 30 | R181: =_xlfn.XLOOKUP(A181,DATA[Item No.],DATA[Storage],"") -> Chilled | S181: =_xlfn.XLOOKUP(A181,DATA[Item No.],DATA[Price],"") -> 37.07 | T181: =_xlfn.XLOOKUP(A181,DATA[Item No.],DATA[Monthly Promo],"") -> 0 | U181: =_xlfn.XLOOKUP(A181,DATA[Item No.],DATA[Promo Discount],"") -> 0 | V181: =_xlfn.XLOOKUP(A181,DATA[Item No.],DATA[SRP],"") -> 38.99 | W181: =_xlfn.XLOOKUP(A181,DATA[Item No.],DATA[SKU Territory Ranking - East],"") -> 11
A182: BK0978 | C182: =_xlfn.XLOOKUP(A182,DATA[Item No.],DATA[Description],"") -> Strawberry Dairy Probiotic | D182: =_xlfn.XLOOKUP(A182,DATA[Item No.],DATA[Unit UPC],"") -> 626608000978 | E182: =_xlfn.XLOOKUP(A182,DATA[Item No.],DATA[Size],"") -> 12X98G | F182: =_xlfn.XLOOKUP(A182,DATA[Item No.],DATA[Picked],"") -> EA | G182: =_xlfn.XLOOKUP(A182,DATA[Item No.],DATA[Pack],"") -> 12 | H182: =_xlfn.XLOOKUP(A182,DATA[Item No.],DATA[O],"") -> 0 | I182: =_xlfn.XLOOKUP(A182,DATA[Item No.],DATA[K],"") -> 0 | J182: =_xlfn.XLOOKUP(A182,DATA[Item No.],DATA[V],"") -> 0 | K182: =_xlfn.XLOOKUP(A182,DATA[Item No.],DATA[GF],"") -> Y | L182: =_xlfn.XLOOKUP(A182,DATA[Item No.],DATA[N],"") -> 0 | M182: =_xlfn.XLOOKUP(A182,DATA[Item No.],DATA[H],"") -> 0 | N182: =_xlfn.XLOOKUP(A182,DATA[Item No.],DATA[CM],"") -> Y | O182: =_xlfn.XLOOKUP(A182,DATA[Item No.],DATA[CO],"") -> Y | P182: =_xlfn.XLOOKUP(A182,DATA[Item No.],DATA[CP],"") -> 0 | Q182: =_xlfn.XLOOKUP(A182,DATA[Item No.],DATA[Guaranteed Days],"") -> 30 | R182: =_xlfn.XLOOKUP(A182,DATA[Item No.],DATA[Storage],"") -> Chilled | S182: =_xlfn.XLOOKUP(A182,DATA[Item No.],DATA[Price],"") -> 34.29 | T182: =_xlfn.XLOOKUP(A182,DATA[Item No.],DATA[Monthly Promo],"") -> 0 | U182: =_xlfn.XLOOKUP(A182,DATA[Item No.],DATA[Promo Discount],"") -> 0 | V182: =_xlfn.XLOOKUP(A182,DATA[Item No.],DATA[SRP],"") -> 37.99 | W182: =_xlfn.XLOOKUP(A182,DATA[Item No.],DATA[SKU Territory Ranking - East],"") -> 6
A183: BK2125 | C183: =_xlfn.XLOOKUP(A183,DATA[Item No.],DATA[Description],"") -> Blueberry/Rice Dairy-Free Probiotic | D183: =_xlfn.XLOOKUP(A183,DATA[Item No.],DATA[Unit UPC],"") -> 626608002125 | E183: =_xlfn.XLOOKUP(A183,DATA[Item No.],DATA[Size],"") -> 12 X 98G | F183: =_xlfn.XLOOKUP(A183,DATA[Item No.],DATA[Picked],"") -> EA | G183: =_xlfn.XLOOKUP(A183,DATA[Item No.],DATA[Pack],"") -> 12 | H183: =_xlfn.XLOOKUP(A183,DATA[Item No.],DATA[O],"") -> Y | I183: =_xlfn.XLOOKUP(A183,DATA[Item No.],DATA[K],"") -> 0 | J183: =_xlfn.XLOOKUP(A183,DATA[Item No.],DATA[V],"") -> 0 | K183: =_xlfn.XLOOKUP(A183,DATA[Item No.],DATA[GF],"") -> Y | L183: =_xlfn.XLOOKUP(A183,DATA[Item No.],DATA[N],"") -> 0 | M183: =_xlfn.XLOOKUP(A183,DATA[Item No.],DATA[H],"") -> 0 | N183: =_xlfn.XLOOKUP(A183,DATA[Item No.],DATA[CM],"") -> Y | O183: =_xlfn.XLOOKUP(A183,DATA[Item No.],DATA[CO],"") -> Y | P183: =_xlfn.XLOOKUP(A183,DATA[Item No.],DATA[CP],"") -> 0 | Q183: =_xlfn.XLOOKUP(A183,DATA[Item No.],DATA[Guaranteed Days],"") -> 30 | R183: =_xlfn.XLOOKUP(A183,DATA[Item No.],DATA[Storage],"") -> Chilled | S183: =_xlfn.XLOOKUP(A183,DATA[Item No.],DATA[Price],"") -> 37.07 | T183: =_xlfn.XLOOKUP(A183,DATA[Item No.],DATA[Monthly Promo],"") -> 0 | U183: =_xlfn.XLOOKUP(A183,DATA[Item No.],DATA[Promo Discount],"") -> 0 | V183: =_xlfn.XLOOKUP(A183,DATA[Item No.],DATA[SRP],"") -> 38.99 | W183: =_xlfn.XLOOKUP(A183,DATA[Item No.],DATA[SKU Territory Ranking - East],"") -> 10
A184: BK8066 | C184: =_xlfn.XLOOKUP(A184,DATA[Item No.],DATA[Description],"") -> Elderberry w/wellmune Yeast Beta Glucan | D184: =_xlfn.XLOOKUP(A184,DATA[Item No.],DATA[Unit UPC],"") -> 626608008066 | E184: =_xlfn.XLOOKUP(A184,DATA[Item No.],DATA[Size],"") -> 6 X 98G | F184: =_xlfn.XLOOKUP(A184,DATA[Item No.],DATA[Picked],"") -> EA | G184: =_xlfn.XLOOKUP(A184,DATA[Item No.],DATA[Pack],"") -> 6 | H184: =_xlfn.XLOOKUP(A184,DATA[Item No.],DATA[O],"") -> 0 | I184: =_xlfn.XLOOKUP(A184,DATA[Item No.],DATA[K],"") -> 0 | J184: =_xlfn.XLOOKUP(A184,DATA[Item No.],DATA[V],"") -> 0 | K184: =_xlfn.XLOOKUP(A184,DATA[Item No.],DATA[GF],"") -> Y | L184: =_xlfn.XLOOKUP(A184,DATA[Item No.],DATA[N],"") -> 0 | M184: =_xlfn.XLOOKUP(A184,DATA[Item No.],DATA[H],"") -> 0 | N184: =_xlfn.XLOOKUP(A184,DATA[Item No.],DATA[CM],"") -> Y | O184: =_xlfn.XLOOKUP(A184,DATA[Item No.],DATA[CO],"") -> Y | P184: =_xlfn.XLOOKUP(A184,DATA[Item No.],DATA[CP],"") -> 0 | Q184: =_xlfn.XLOOKUP(A184,DATA[Item No.],DATA[Guaranteed Days],"") -> 30 | R184: =_xlfn.XLOOKUP(A184,DATA[Item No.],DATA[Storage],"") -> Chilled | S184: =_xlfn.XLOOKUP(A184,DATA[Item No.],DATA[Price],"") -> 19.4 | T184: =_xlfn.XLOOKUP(A184,DATA[Item No.],DATA[Monthly Promo],"") -> 0 | U184: =_xlfn.XLOOKUP(A184,DATA[Item No.],DATA[Promo Discount],"") -> 0 | V184: =_xlfn.XLOOKUP(A184,DATA[Item No.],DATA[SRP],"") -> 26.99 | W184: =_xlfn.XLOOKUP(A184,DATA[Item No.],DATA[SKU Territory Ranking - East],"") -> 7
A185: Probiotics | C185: =_xlfn.XLOOKUP(A185,DATA[Item No.],DATA[Description],"") ->  | D185: =_xlfn.XLOOKUP(A185,DATA[Item No.],DATA[Unit UPC],"") ->  | E185: =_xlfn.XLOOKUP(A185,DATA[Item No.],DATA[Size],"") ->  | F185: =_xlfn.XLOOKUP(A185,DATA[Item No.],DATA[Picked],"") ->  | G185: =_xlfn.XLOOKUP(A185,DATA[Item No.],DATA[Pack],"") ->  | H185: =_xlfn.XLOOKUP(A185,DATA[Item No.],DATA[O],"") ->  | I185: =_xlfn.XLOOKUP(A185,DATA[Item No.],DATA[K],"") ->  | J185: =_xlfn.XLOOKUP(A185,DATA[Item No.],DATA[V],"") ->  | K185: =_xlfn.XLOOKUP(A185,DATA[Item No.],DATA[GF],"") ->  | L185: =_xlfn.XLOOKUP(A185,DATA[Item No.],DATA[N],"") ->  | M185: =_xlfn.XLOOKUP(A185,DATA[Item No.],DATA[H],"") ->  | N185: =_xlfn.XLOOKUP(A185,DATA[Item No.],DATA[CM],"") ->  | O185: =_xlfn.XLOOKUP(A185,DATA[Item No.],DATA[CO],"") ->  | P185: =_xlfn.XLOOKUP(A185,DATA[Item No.],DATA[CP],"") ->  | Q185: =_xlfn.XLOOKUP(A185,DATA[Item No.],DATA[Guaranteed Days],"") ->  | R185: =_xlfn.XLOOKUP(A185,DATA[Item No.],DATA[Storage],"") ->  | S185: =_xlfn.XLOOKUP(A185,DATA[Item No.],DATA[Price],"") ->  | T185: =_xlfn.XLOOKUP(A185,DATA[Item No.],DATA[Monthly Promo],"") ->  | U185: =_xlfn.XLOOKUP(A185,DATA[Item No.],DATA[Promo Discount],"") ->  | V185: =_xlfn.XLOOKUP(A185,DATA[Item No.],DATA[SRP],"") ->  | W185: =_xlfn.XLOOKUP(A185,DATA[Item No.],DATA[SKU Territory Ranking - East],"") -> 
A186: BK0022 | C186: =_xlfn.XLOOKUP(A186,DATA[Item No.],DATA[Description],"") -> Raspberry Fermented Pea | D186: =_xlfn.XLOOKUP(A186,DATA[Item No.],DATA[Unit UPC],"") -> 626608000022 | E186: =_xlfn.XLOOKUP(A186,DATA[Item No.],DATA[Size],"") -> 6 X 98G | F186: =_xlfn.XLOOKUP(A186,DATA[Item No.],DATA[Picked],"") -> EA | G186: =_xlfn.XLOOKUP(A186,DATA[Item No.],DATA[Pack],"") -> 6 | H186: =_xlfn.XLOOKUP(A186,DATA[Item No.],DATA[O],"") -> Y | I186: =_xlfn.XLOOKUP(A186,DATA[Item No.],DATA[K],"") -> 0 | J186: =_xlfn.XLOOKUP(A186,DATA[Item No.],DATA[V],"") -> Y | K186: =_xlfn.XLOOKUP(A186,DATA[Item No.],DATA[GF],"") -> Y | L186: =_xlfn.XLOOKUP(A186,DATA[Item No.],DATA[N],"") -> 0 | M186: =_xlfn.XLOOKUP(A186,DATA[Item No.],DATA[H],"") -> 0 | N186: =_xlfn.XLOOKUP(A186,DATA[Item No.],DATA[CM],"") -> Y | O186: =_xlfn.XLOOKUP(A186,DATA[Item No.],DATA[CO],"") -> Y | P186: =_xlfn.XLOOKUP(A186,DATA[Item No.],DATA[CP],"") -> 0 | Q186: =_xlfn.XLOOKUP(A186,DATA[Item No.],DATA[Guaranteed Days],"") -> 30 | R186: =_xlfn.XLOOKUP(A186,DATA[Item No.],DATA[Storage],"") -> Chilled | S186: =_xlfn.XLOOKUP(A186,DATA[Item No.],DATA[Price],"") -> 20.1 | T186: =_xlfn.XLOOKUP(A186,DATA[Item No.],DATA[Monthly Promo],"") -> 0 | U186: =_xlfn.XLOOKUP(A186,DATA[Item No.],DATA[Promo Discount],"") -> 0 | V186: =_xlfn.XLOOKUP(A186,DATA[Item No.],DATA[SRP],"") -> 24.69 | W186: =_xlfn.XLOOKUP(A186,DATA[Item No.],DATA[SKU Territory Ranking - East],"") -> 9
A187: BK0268 | C187: =_xlfn.XLOOKUP(A187,DATA[Item No.],DATA[Description],"") -> Blueberry/Rice Dairy-Free Probiotic | D187: =_xlfn.XLOOKUP(A187,DATA[Item No.],DATA[Unit UPC],"") -> 626608000268 | E187: =_xlfn.XLOOKUP(A187,DATA[Item No.],DATA[Size],"") -> 6X98G | F187: =_xlfn.XLOOKUP(A187,DATA[Item No.],DATA[Picked],"") -> EA | G187: =_xlfn.XLOOKUP(A187,DATA[Item No.],DATA[Pack],"") -> 6 | H187: =_xlfn.XLOOKUP(A187,DATA[Item No.],DATA[O],"") -> Y | I187: =_xlfn.XLOOKUP(A187,DATA[Item No.],DATA[K],"") -> 0 | J187: =_xlfn.XLOOKUP(A187,DATA[Item No.],DATA[V],"") -> 0 | K187: =_xlfn.XLOOKUP(A187,DATA[Item No.],DATA[GF],"") -> Y | L187: =_xlfn.XLOOKUP(A187,DATA[Item No.],DATA[N],"") -> 0 | M187: =_xlfn.XLOOKUP(A187,DATA[Item No.],DATA[H],"") -> 0 | N187: =_xlfn.XLOOKUP(A187,DATA[Item No.],DATA[CM],"") -> Y | O187: =_xlfn.XLOOKUP(A187,DATA[Item No.],DATA[CO],"") -> Y | P187: =_xlfn.XLOOKUP(A187,DATA[Item No.],DATA[CP],"") -> 0 | Q187: =_xlfn.XLOOKUP(A187,DATA[Item No.],DATA[Guaranteed Days],"") -> 30 | R187: =_xlfn.XLOOKUP(A187,DATA[Item No.],DATA[Storage],"") -> Chilled | S187: =_xlfn.XLOOKUP(A187,DATA[Item No.],DATA[Price],"") -> 20.1 | T187: =_xlfn.XLOOKUP(A187,DATA[Item No.],DATA[Monthly Promo],"") -> 0 | U187: =_xlfn.XLOOKUP(A187,DATA[Item No.],DATA[Promo Discount],"") -> 0 | V187: =_xlfn.XLOOKUP(A187,DATA[Item No.],DATA[SRP],"") -> 22.99 | W187: =_xlfn.XLOOKUP(A187,DATA[Item No.],DATA[SKU Territory Ranking - East],"") -> 2
A188: BK0336 | C188: =_xlfn.XLOOKUP(A188,DATA[Item No.],DATA[Description],"") -> Vanilla Dairy Probiotic | D188: =_xlfn.XLOOKUP(A188,DATA[Item No.],DATA[Unit UPC],"") -> 626608000336 | E188: =_xlfn.XLOOKUP(A188,DATA[Item No.],DATA[Size],"") -> 6X98G | F188: =_xlfn.XLOOKUP(A188,DATA[Item No.],DATA[Picked],"") -> EA | G188: =_xlfn.XLOOKUP(A188,DATA[Item No.],DATA[Pack],"") -> 6 | H188: =_xlfn.XLOOKUP(A188,DATA[Item No.],DATA[O],"") -> 0 | I188: =_xlfn.XLOOKUP(A188,DATA[Item No.],DATA[K],"") -> 0 | J188: =_xlfn.XLOOKUP(A188,DATA[Item No.],DATA[V],"") -> 0 | K188: =_xlfn.XLOOKUP(A188,DATA[Item No.],DATA[GF],"") -> Y | L188: =_xlfn.XLOOKUP(A188,DATA[Item No.],DATA[N],"") -> 0 | M188: =_xlfn.XLOOKUP(A188,DATA[Item No.],DATA[H],"") -> 0 | N188: =_xlfn.XLOOKUP(A188,DATA[Item No.],DATA[CM],"") -> Y | O188: =_xlfn.XLOOKUP(A188,DATA[Item No.],DATA[CO],"") -> Y | P188: =_xlfn.XLOOKUP(A188,DATA[Item No.],DATA[CP],"") -> 0 | Q188: =_xlfn.XLOOKUP(A188,DATA[Item No.],DATA[Guaranteed Days],"") -> 30 | R188: =_xlfn.XLOOKUP(A188,DATA[Item No.],DATA[Storage],"") -> Chilled | S188: =_xlfn.XLOOKUP(A188,DATA[Item No.],DATA[Price],"") -> 18.35 | T188: =_xlfn.XLOOKUP(A188,DATA[Item No.],DATA[Monthly Promo],"") -> 0 | U188: =_xlfn.XLOOKUP(A188,DATA[Item No.],DATA[Promo Discount],"") -> 0 | V188: =_xlfn.XLOOKUP(A188,DATA[Item No.],DATA[SRP],"") -> 21.99 | W188: =_xlfn.XLOOKUP(A188,DATA[Item No.],DATA[SKU Territory Ranking - East],"") -> 5
